Workbook

Sheet DL1153_2025 (hidden)
AO1: 1 | BB1: 1
B2: REPORTE DE INDICADORES DE CONVENIOS DE GESTION DL 1153 - 2025 | DICIEMBRE 2025
B4: DIRIS/DIRESA | C4: NACIONAL
B6: Area Responsable | C6: Indicador | D6: Valor 2025 | E6: DICIEMBRE | F6: Mes mínimo | G6: Mes máximo | H6: Comportamiento mensual | AP6: 2 | AQ6: 3 | AR6: 4 | AS6: 5 | AT6: 6 | AU6: 7 | AV6: 8 | AW6: 9 | AX6: 10 | AY6: 11 | AZ6: 12 | BA6: 13
A7: DL_1153_2024_CG01 | B7: DGIESP /UFANS | C7: Ficha 01: Porcentaje de niñas y niños de 12 a 18 meses, con diagnóstico de anemia entre los 6 y 11 meses, que se han recuperado. | D7: =IFERROR(VLOOKUP($C$4,DL_1153_2025_CG01!BP62:BQ91,2,0),"-") -> 41.7% | E7: =+IFERROR(VLOOKUP($E$6,DL_1153_2025_CG01!$CN$47:$DR$59,MATCH(DL1153_2025!$C$4,DL_1153_2025_CG01!$CN$47:$DR$47,0),FALSE),"-") -> 42.1% | F7: =+IFERROR(VLOOKUP($C$4,DL_1153_2025_CG01!$CI$62:$CK$91,2,0),"-") -> 31.1% | G7: =+IFERROR(VLOOKUP($C$4,DL_1153_2025_CG01!$CI$62:$CK$91,3,0),"-") -> 49.6% | AP7: =+IFERROR(VLOOKUP($C$4,DL_1153_2025_CG01!$BU$61:$CG$91,DL1153_2025!AP$6,0),"-") -> 31.1% | AQ7: =+IFERROR(VLOOKUP($C$4,DL_1153_2025_CG01!$BU$61:$CG$91,DL1153_2025!AQ$6,0),"-") -> 35.0% | AR7: =+IFERROR(VLOOKUP($C$4,DL_1153_2025_CG01!$BU$61:$CG$91,DL1153_2025!AR$6,0),"-") -> 36.5% | AS7: =+IFERROR(VLOOKUP($C$4,DL_1153_2025_CG01!$BU$61:$CG$91,DL1153_2025!AS$6,0),"-") -> 37.6% | AT7: =+IFERROR(VLOOKUP($C$4,DL_1153_2025_CG01!$BU$61:$CG$91,DL1153_2025!AT$6,0),"-") -> 41.9% | AU7: =+IFERROR(VLOOKUP($C$4,DL_1153_2025_CG01!$BU$61:$CG$91,DL1153_2025!AU$6,0),"-") -> 43.4% | AV7: =+IFERROR(VLOOKUP($C$4,DL_1153_2025_CG01!$BU$61:$CG$91,DL1153_2025!AV$6,0),"-") -> 45.9% | AW7: =+IFERROR(VLOOKUP($C$4,DL_1153_2025_CG01!$BU$61:$CG$91,DL1153_2025!AW$6,0),"-") -> 49.6% | AX7: =+IFERROR(VLOOKUP($C$4,DL_1153_2025_CG01!$BU$61:$CG$91,DL1153_2025!AX$6,0),"-") -> 47.5% | AY7: =+IFERROR(VLOOKUP($C$4,DL_1153_2025_CG01!$BU$61:$CG$91,DL1153_2025!AY$6,0),"-") -> 44.9% | AZ7: =+IFERROR(VLOOKUP($C$4,DL_1153_2025_CG01!$BU$61:$CG$91,DL1153_2025!AZ$6,0),"-") -> 43.9% | BA7: =+IFERROR(VLOOKUP($C$4,DL_1153_2025_CG01!$BU$61:$CG$91,DL1153_2025!BA$6,0),"-") -> 42.1%
A8: DL_1153_2024_CG02 | B8: DGIESP / UFANS | C8: Ficha 02: Porcentaje de niñas/niños menores de 12 meses, que reciben un paquete integrado de servicios: CRED, vacunas, dosaje de hemoglobina para descarte de anemia y suplementación con hierro. | D8: =IFERROR(VLOOKUP($C$4,DL_1153_2025_CG02!BQ62:BR91,2,0),"-") -> 53.2% | E8: =+IFERROR(VLOOKUP($E$6,DL_1153_2025_CG02!$CM$28:$DQ$40,MATCH(DL1153_2025!$C$4,DL_1153_2025_CG02!$CM$28:$DQ$28,0),FALSE),"-") -> 53.2% | F8: =+IFERROR(VLOOKUP($C$4,DL_1153_2025_CG02!$CI$62:$CK$91,2,0),"-") -> 35.1% | G8: =+IFERROR(VLOOKUP($C$4,DL_1153_2025_CG02!$CI$62:$CK$91,3,0),"-") -> 54.6% | AP8: =+VLOOKUP($C$4,DL_1153_2025_CG02!$BU$61:$CG$91,DL1153_2025!AP$6,0) -> 35.1% | AQ8: =+VLOOKUP($C$4,DL_1153_2025_CG02!$BU$61:$CG$91,DL1153_2025!AQ$6,0) -> 36.8% | AR8: =+IFERROR(VLOOKUP($C$4,DL_1153_2025_CG02!$BU$61:$CG$91,DL1153_2025!AR$6,0),"-") -> 39.9% | AS8: =+VLOOKUP($C$4,DL_1153_2025_CG02!$BU$61:$CG$91,DL1153_2025!AS$6,0) -> 43.6% | AT8: =+VLOOKUP($C$4,DL_1153_2025_CG02!$BU$61:$CG$91,DL1153_2025!AT$6,0) -> 46.4% | AU8: =+VLOOKUP($C$4,DL_1153_2025_CG02!$BU$61:$CG$91,DL1153_2025!AU$6,0) -> 49.6% | AV8: =+VLOOKUP($C$4,DL_1153_2025_CG02!$BU$61:$CG$91,DL1153_2025!AV$6,0) -> 51.3% | AW8: =+VLOOKUP($C$4,DL_1153_2025_CG02!$BU$61:$CG$91,DL1153_2025!AW$6,0) -> 53.6% | AX8: =+VLOOKUP($C$4,DL_1153_2025_CG02!$BU$61:$CG$91,DL1153_2025!AX$6,0) -> 54.1% | AY8: =+VLOOKUP($C$4,DL_1153_2025_CG02!$BU$61:$CG$91,DL1153_2025!AY$6,0) -> 54.1% | AZ8: =+VLOOKUP($C$4,DL_1153_2025_CG02!$BU$61:$CG$91,DL1153_2025!AZ$6,0) -> 54.6% | BA8: =+VLOOKUP($C$4,DL_1153_2025_CG02!$BU$61:$CG$91,DL1153_2025!BA$6,0) -> 53.2%
A9: DL_1153_2024_CG03 | B9: DGIESP / DVICI | C9: Ficha 03: Porcentaje de niños y niñas de 6 a 35 meses con diagnóstico de anemia del Total de los casos esperados de anemia | D9: =IFERROR(VLOOKUP($C$4,DL_1153_2025_CG03!BH62:BI91,2,0),"-") -> 23.5% | E9: =+IFERROR(VLOOKUP($E$6,DL_1153_2025_CG03!$CD$35:$DZ$47,MATCH(DL1153_2025!$C$4,DL_1153_2025_CG03!$CD$35:$DH$35,0),FALSE),"-") -> 21.5% | F9: =+IFERROR(VLOOKUP($C$4,DL_1153_2025_CG03!$BZ$62:$CB$91,2,0),"-") -> 21.1% | G9: =+IFERROR(VLOOKUP($C$4,DL_1153_2025_CG03!$BZ$62:$CB$91,3,0),"-") -> 26.3% | AP9: =+IFERROR(VLOOKUP($C$4,DL_1153_2025_CG03!$BL$50:$BX$80,DL1153_2025!AP$6,0),"-") -> 26.3% | AQ9: =+IFERROR(VLOOKUP($C$4,DL_1153_2025_CG03!$BL$50:$BX$80,DL1153_2025!AQ$6,0),"-") -> 25.9% | AR9: =+IFERROR(VLOOKUP($C$4,DL_1153_2025_CG03!$BL$50:$BX$80,DL1153_2025!AR$6,0),"-") -> 25.5% | AS9: =+IFERROR(VLOOKUP($C$4,DL_1153_2025_CG03!$BL$50:$BX$80,DL1153_2025!AS$6,0),"-") -> 25.4% | AT9: =+IFERROR(VLOOKUP($C$4,DL_1153_2025_CG03!$BL$50:$BX$80,DL1153_2025!AT$6,0),"-") -> 24.4% | AU9: =+IFERROR(VLOOKUP($C$4,DL_1153_2025_CG03!$BL$50:$BX$80,DL1153_2025!AU$6,0),"-") -> 22.7% | AV9: =+IFERROR(VLOOKUP($C$4,DL_1153_2025_CG03!$BL$50:$BX$80,DL1153_2025!AV$6,0),"-") -> 22.6% | AW9: =+IFERROR(VLOOKUP($C$4,DL_1153_2025_CG03!$BL$50:$BX$80,DL1153_2025!AW$6,0),"-") -> 22.3% | AX9: =+IFERROR(VLOOKUP($C$4,DL_1153_2025_CG03!$BL$50:$BX$80,DL1153_2025!AX$6,0),"-") -> 21.4% | AY9: =+IFERROR(VLOOKUP($C$4,DL_1153_2025_CG03!$BL$50:$BX$80,DL1153_2025!AY$6,0),"-") -> 21.1% | AZ9: =+IFERROR(VLOOKUP($C$4,DL_1153_2025_CG03!$BL$50:$BX$80,DL1153_2025!AZ$6,0),"-") -> 21.7% | BA9: =+IFERROR(VLOOKUP($C$4,DL_1153_2025_CG03!$BL$50:$BX$80,DL1153_2025!BA$6,0),"-") -> 21.5%
A10: DL_1153_2024_CG04 | B10: DGIESP / DVICI | C10: Ficha 04:Porcentaje de recién nacidos que reciben vacunas BCG, HvB, controles CRED y tamizaje neonatal metabólico. | D10: =IFERROR(VLOOKUP($C$4,DL_1153_2025_CG04!BO51:BP81,2,0),"-") -> 53.4% | E10: =+IFERROR(VLOOKUP($E$6,DL_1153_2025_CG04!$CL$36:$DP$48,MATCH(DL1153_2025!$C$4,DL_1153_2025_CG04!$CL$36:$DP$36,0),FALSE),"-") -> 50.2% | F10: =+IFERROR(VLOOKUP($C$4,DL_1153_2025_CG04!$CG$52:$CI$81,2,0),"-") -> 42.4% | G10: =+IFERROR(VLOOKUP($C$4,DL_1153_2025_CG04!$CG$52:$CI$81,3,0),"-") -> 57.1% | AP10: =+IFERROR(VLOOKUP($C$4,DL_1153_2025_CG04!$BS$51:$CE$81,DL1153_2025!AP$6,0),"-") -> 42.4% | AQ10: =+IFERROR(VLOOKUP($C$4,DL_1153_2025_CG04!$BS$51:$CE$81,DL1153_2025!AQ$6,0),"-") -> 54.6% | AR10: =+IFERROR(VLOOKUP($C$4,DL_1153_2025_CG04!$BS$51:$CE$81,DL1153_2025!AR$6,0),"-") -> 57.1% | AS10: =+IFERROR(VLOOKUP($C$4,DL_1153_2025_CG04!$BS$51:$CE$81,DL1153_2025!AS$6,0),"-") -> 55.1% | AT10: =+IFERROR(VLOOKUP($C$4,DL_1153_2025_CG04!$BS$51:$CE$81,DL1153_2025!AT$6,0),"-") -> 53.3% | AU10: =+IFERROR(VLOOKUP($C$4,DL_1153_2025_CG04!$BS$51:$CE$81,DL1153_2025!AU$6,0),"-") -> 55.9% | AV10: =+IFERROR(VLOOKUP($C$4,DL_1153_2025_CG04!$BS$51:$CE$81,DL1153_2025!AV$6,0),"-") -> 55.5% | AW10: =+IFERROR(VLOOKUP($C$4,DL_1153_2025_CG04!$BS$51:$CE$81,DL1153_2025!AW$6,0),"-") -> 54.5% | AX10: =+IFERROR(VLOOKUP($C$4,DL_1153_2025_CG04!$BS$51:$CE$81,DL1153_2025!AX$6,0),"-") -> 54.6% | AY10: =+IFERROR(VLOOKUP($C$4,DL_1153_2025_CG04!$BS$51:$CE$81,DL1153_2025!AY$6,0),"-") -> 54.5% | AZ10: =+IFERROR(VLOOKUP($C$4,DL_1153_2025_CG04!$BS$51:$CE$81,DL1153_2025!AZ$6,0),"-") -> 52.3% | BA10: =+IFERROR(VLOOKUP($C$4,DL_1153_2025_CG04!$BS$51:$CE$81,DL1153_2025!BA$6,0),"-") -> 50.2%
A11: DL_1153_2024_CG05 | B11: DGIESP / DMUNI | C11: Ficha 05:Porcentaje de niñas y niños menores de 2 años en condición crecimiento inadecuado que luego de un periodo de seguimiento mejora sus condiciones nutricionales. | D11: =IFERROR(VLOOKUP($C$4,DL_1153_2025_CG05!BQ47:BR77,2,0),"-") -> 29.3% | E11: =+IFERROR(VLOOKUP($E$6,DL_1153_2025_CG05!$CN$36:$DR$48,MATCH(DL1153_2025!$C$4,DL_1153_2025_CG05!$CN$36:$DR$36,0),FALSE),"-") -> 33.6% | F11: =+IFERROR(VLOOKUP($C$4,DL_1153_2025_CG05!$CI$48:$CK$77,2,0),"-") -> 9.5% | G11: =+IFERROR(VLOOKUP($C$4,DL_1153_2025_CG05!$CI$48:$CK$77,3,0),"-") -> 36.7% | AP11: =+VLOOKUP(DL1153_2025!$C$4,DL_1153_2025_CG05!$BU$47:$CG$77,DL1153_2025!AP$6,0) -> 9.5% | AQ11: =+VLOOKUP(DL1153_2025!$C$4,DL_1153_2025_CG05!$BU$47:$CG$77,DL1153_2025!AQ$6,0) -> 22.1% | AR11: =+VLOOKUP(DL1153_2025!$C$4,DL_1153_2025_CG05!$BU$47:$CG$77,DL1153_2025!AR$6,0) -> 30.1% | AS11: =+VLOOKUP(DL1153_2025!$C$4,DL_1153_2025_CG05!$BU$47:$CG$77,DL1153_2025!AS$6,0) -> 31.9% | AT11: =+VLOOKUP(DL1153_2025!$C$4,DL_1153_2025_CG05!$BU$47:$CG$77,DL1153_2025!AT$6,0) -> 29.5% | AU11: =+VLOOKUP(DL1153_2025!$C$4,DL_1153_2025_CG05!$BU$47:$CG$77,DL1153_2025!AU$6,0) -> 31.1% | AV11: =+VLOOKUP(DL1153_2025!$C$4,DL_1153_2025_CG05!$BU$47:$CG$77,DL1153_2025!AV$6,0) -> 36.7% | AW11: =+VLOOKUP(DL1153_2025!$C$4,DL_1153_2025_CG05!$BU$47:$CG$77,DL1153_2025!AW$6,0) -> 36.4% | AX11: =+VLOOKUP(DL1153_2025!$C$4,DL_1153_2025_CG05!$BU$47:$CG$77,DL1153_2025!AX$6,0) -> 35.9% | AY11: =+VLOOKUP(DL1153_2025!$C$4,DL_1153_2025_CG05!$BU$47:$CG$77,DL1153_2025!AY$6,0) -> 35.4% | AZ11: =+VLOOKUP(DL1153_2025!$C$4,DL_1153_2025_CG05!$BU$47:$CG$77,DL1153_2025!AZ$6,0) -> 32.4% | BA11: =+VLOOKUP(DL1153_2025!$C$4,DL_1153_2025_CG05!$BU$47:$CG$77,DL1153_2025!BA$6,0) -> 33.6%
A12: DL_1153_2024_CG06 | B12: DGIESP /DPROM | C12: Ficha 06:Porcentaje de niñas y niños de 1 año vacunados con dos dosis de vacuna sarampión, parotiditis y rubeola (SPR). | D12: =IFERROR(VLOOKUP($C$4,DL_1153_2025_CG06!BQ50:BR80,2,0),"-") -> 69.9% | E12: =+IFERROR(VLOOKUP($E$6,DL_1153_2025_CG06!$CN$36:$DR$48,MATCH(DL1153_2025!$C$4,DL_1153_2025_CG06!$CN$36:$DR$36,0),FALSE),"-") -> 69.9% | F12: =+IFERROR(VLOOKUP($C$4,DL_1153_2025_CG06!$CI$51:$CK$80,2,0),"-") -> 5.9% | G12: =+IFERROR(VLOOKUP($C$4,DL_1153_2025_CG06!$CI$51:$CK$80,3,0),"-") -> 69.9% | AP12: =+IFERROR(VLOOKUP($C$4,DL_1153_2025_CG06!$BU$50:$CG$80,DL1153_2025!AP$6,0),"-") -> 5.9% | AQ12: =+IFERROR(VLOOKUP($C$4,DL_1153_2025_CG06!$BU$50:$CG$80,DL1153_2025!AQ$6,0),"-") -> 11.4% | AR12: =+IFERROR(VLOOKUP($C$4,DL_1153_2025_CG06!$BU$50:$CG$80,DL1153_2025!AR$6,0),"-") -> 17.8% | AS12: =+IFERROR(VLOOKUP($C$4,DL_1153_2025_CG06!$BU$50:$CG$80,DL1153_2025!AS$6,0),"-") -> 24.0% | AT12: =+IFERROR(VLOOKUP($C$4,DL_1153_2025_CG06!$BU$50:$CG$80,DL1153_2025!AT$6,0),"-") -> 30.2% | AU12: =+IFERROR(VLOOKUP($C$4,DL_1153_2025_CG06!$BU$50:$CG$80,DL1153_2025!AU$6,0),"-") -> 35.7% | AV12: =+IFERROR(VLOOKUP($C$4,DL_1153_2025_CG06!$BU$50:$CG$80,DL1153_2025!AV$6,0),"-") -> 41.3% | AW12: =+IFERROR(VLOOKUP($C$4,DL_1153_2025_CG06!$BU$50:$CG$80,DL1153_2025!AW$6,0),"-") -> 47.2% | AX12: =+IFERROR(VLOOKUP($C$4,DL_1153_2025_CG06!$BU$50:$CG$80,DL1153_2025!AX$6,0),"-") -> 53.0% | AY12: =+IFERROR(VLOOKUP($C$4,DL_1153_2025_CG06!$BU$50:$CG$80,DL1153_2025!AY$6,0),"-") -> 59.1% | AZ12: =+IFERROR(VLOOKUP($C$4,DL_1153_2025_CG06!$BU$50:$CG$80,DL1153_2025!AZ$6,0),"-") -> 64.9% | BA12: =+IFERROR(VLOOKUP($C$4,DL_1153_2025_CG06!$BU$50:$CG$80,DL1153_2025!BA$6,0),"-") -> 69.9%
A13: DL_1153_2024_CG07 | B13: DGIESP / DMUNI | C13: Ficha 07:Porcentaje de recién nacidos de parto institucional, vacunados con BCG y Anti hepatitis B dentro de las 24 horas después del nacimiento. | D13: =IFERROR(VLOOKUP($C$4,DL_1153_2025_CG07!BM52:BN82,2,0),"-") -> 93.8% | E13: =+IFERROR(VLOOKUP($E$6,DL_1153_2025_CG07!$CJ$36:$DN$48,MATCH(DL1153_2025!$C$4,DL_1153_2025_CG07!$CJ$36:$DN$36,0),FALSE),"-") -> 92.6% | F13: =+IFERROR(VLOOKUP($C$4,DL_1153_2025_CG07!$CE$53:$CG$82,2,0),"-") -> 92.3% | G13: =+IFERROR(VLOOKUP($C$4,DL_1153_2025_CG07!$CE$53:$CG$82,3,0),"-") -> 94.9% | AP13: =+IFERROR(VLOOKUP($C$4,DL_1153_2025_CG07!$BQ$52:$CC$82,DL1153_2025!AP$6,0),"-") -> 94.3% | AQ13: =+IFERROR(VLOOKUP($C$4,DL_1153_2025_CG07!$BQ$52:$CC$82,DL1153_2025!AQ$6,0),"-") -> 94.9% | AR13: =+IFERROR(VLOOKUP($C$4,DL_1153_2025_CG07!$BQ$52:$CC$82,DL1153_2025!AR$6,0),"-") -> 94.2% | AS13: =+IFERROR(VLOOKUP($C$4,DL_1153_2025_CG07!$BQ$52:$CC$82,DL1153_2025!AS$6,0),"-") -> 92.3% | AT13: =+IFERROR(VLOOKUP($C$4,DL_1153_2025_CG07!$BQ$52:$CC$82,DL1153_2025!AT$6,0),"-") -> 94.0% | AU13: =+IFERROR(VLOOKUP($C$4,DL_1153_2025_CG07!$BQ$52:$CC$82,DL1153_2025!AU$6,0),"-") -> 94.0% | AV13: =+IFERROR(VLOOKUP($C$4,DL_1153_2025_CG07!$BQ$52:$CC$82,DL1153_2025!AV$6,0),"-") -> 94.2% | AW13: =+IFERROR(VLOOKUP($C$4,DL_1153_2025_CG07!$BQ$52:$CC$82,DL1153_2025!AW$6,0),"-") -> 93.6% | AX13: =+IFERROR(VLOOKUP($C$4,DL_1153_2025_CG07!$BQ$52:$CC$82,DL1153_2025!AX$6,0),"-") -> 93.7% | AY13: =+IFERROR(VLOOKUP($C$4,DL_1153_2025_CG07!$BQ$52:$CC$82,DL1153_2025!AY$6,0),"-") -> 93.8% | AZ13: =+IFERROR(VLOOKUP($C$4,DL_1153_2025_CG07!$BQ$52:$CC$82,DL1153_2025!AZ$6,0),"-") -> 93.9% | BA13: =+IFERROR(VLOOKUP($C$4,DL_1153_2025_CG07!$BQ$52:$CC$82,DL1153_2025!BA$6,0),"-") -> 92.6%
A14: DL_1153_2024_CG08 | B14: DGIESP / DPCT | C14: Ficha 08:Tasa de éxito de tratamiento para TB Sensible | D14: =IFERROR(VLOOKUP($C$4,DL_1153_2025_CG08!BR45:BS75,2,0),"-") -> 79.8% | E14: =+IFERROR(VLOOKUP($E$6,DL_1153_2025_CG08!$CO$29:$DS$41,MATCH(DL1153_2025!$C$4,DL_1153_2025_CG08!$CO$29:$DS$29,0),FALSE),"-") -> 79.8% | F14: =+IFERROR(VLOOKUP($C$4,DL_1153_2025_CG08!$CJ$46:$CL$75,2,0),"-") -> 7.3% | G14: =+IFERROR(VLOOKUP($C$4,DL_1153_2025_CG08!$CJ$46:$CL$75,3,0),"-") -> 79.8% | AP14: =+IFERROR(VLOOKUP($C$4,DL_1153_2025_CG08!$BV$45:$CH$75,DL1153_2025!AP$6,0),"-") -> 7.3% | AQ14: =+IFERROR(VLOOKUP($C$4,DL_1153_2025_CG08!$BV$45:$CH$75,DL1153_2025!AQ$6,0),"-") -> 14.2% | AR14: =+IFERROR(VLOOKUP($C$4,DL_1153_2025_CG08!$BV$45:$CH$75,DL1153_2025!AR$6,0),"-") -> 21.8% | AS14: =+IFERROR(VLOOKUP($C$4,DL_1153_2025_CG08!$BV$45:$CH$75,DL1153_2025!AS$6,0),"-") -> 27.6% | AT14: =+IFERROR(VLOOKUP($C$4,DL_1153_2025_CG08!$BV$45:$CH$75,DL1153_2025!AT$6,0),"-") -> 33.0% | AU14: =+IFERROR(VLOOKUP($C$4,DL_1153_2025_CG08!$BV$45:$CH$75,DL1153_2025!AU$6,0),"-") -> 37.2% | AV14: =+IFERROR(VLOOKUP($C$4,DL_1153_2025_CG08!$BV$45:$CH$75,DL1153_2025!AV$6,0),"-") -> 45.0% | AW14: =+IFERROR(VLOOKUP($C$4,DL_1153_2025_CG08!$BV$45:$CH$75,DL1153_2025!AW$6,0),"-") -> 52.7% | AX14: =+IFERROR(VLOOKUP($C$4,DL_1153_2025_CG08!$BV$45:$CH$75,DL1153_2025!AX$6,0),"-") -> 60.2% | AY14: =+IFERROR(VLOOKUP($C$4,DL_1153_2025_CG08!$BV$45:$CH$75,DL1153_2025!AY$6,0),"-") -> 67.5% | AZ14: =+IFERROR(VLOOKUP($C$4,DL_1153_2025_CG08!$BV$45:$CH$75,DL1153_2025!AZ$6,0),"-") -> 74.2% | BA14: =+IFERROR(VLOOKUP($C$4,DL_1153_2025_CG08!$BV$45:$CH$75,DL1153_2025!BA$6,0),"-") -> 79.8%
A15: DL_1153_2024_CG09 | B15: DGIESP / DPCT | C15: Ficha 09:Porcentaje de contactos menores de 5 años de edad que culminan Terapia Preventiva para TB. | D15: =IFERROR(VLOOKUP($C$4,DL_1153_2025_CG09!BQ45:BR75,2,0),"-") -> 71.3% | E15: =+IFERROR(VLOOKUP($E$6,DL_1153_2025_CG09!$CN$29:$DR$41,MATCH(DL1153_2025!$C$4,DL_1153_2025_CG09!$CN$29:$DR$29,0),FALSE),"-") -> 71.3% | F15: =+IFERROR(VLOOKUP($C$4,DL_1153_2025_CG09!$CI$46:$CK$75,2,0),"-") -> 6.5% | G15: =+IFERROR(VLOOKUP($C$4,DL_1153_2025_CG09!$CI$46:$CK$75,3,0),"-") -> 71.3% | AP15: =+VLOOKUP($C$4,DL_1153_2025_CG09!$BU$45:$CG$75,DL1153_2025!AP$6,0) -> 6.5% | AQ15: =+VLOOKUP($C$4,DL_1153_2025_CG09!$BU$45:$CG$75,DL1153_2025!AQ$6,0) -> 12.8% | AR15: =+VLOOKUP($C$4,DL_1153_2025_CG09!$BU$45:$CG$75,DL1153_2025!AR$6,0) -> 17.1% | AS15: =+VLOOKUP($C$4,DL_1153_2025_CG09!$BU$45:$CG$75,DL1153_2025!AS$6,0) -> 24.0% | AT15: =+VLOOKUP($C$4,DL_1153_2025_CG09!$BU$45:$CG$75,DL1153_2025!AT$6,0) -> 32.3% | AU15: =+VLOOKUP($C$4,DL_1153_2025_CG09!$BU$45:$CG$75,DL1153_2025!AU$6,0) -> 40.8% | AV15: =+VLOOKUP($C$4,DL_1153_2025_CG09!$BU$45:$CG$75,DL1153_2025!AV$6,0) -> 46.8% | AW15: =+VLOOKUP($C$4,DL_1153_2025_CG09!$BU$45:$CG$75,DL1153_2025!AW$6,0) -> 51.2% | AX15: =+VLOOKUP($C$4,DL_1153_2025_CG09!$BU$45:$CG$75,DL1153_2025!AX$6,0) -> 53.7% | AY15: =+VLOOKUP($C$4,DL_1153_2025_CG09!$BU$45:$CG$75,DL1153_2025!AY$6,0) -> 60.0% | AZ15: =+VLOOKUP($C$4,DL_1153_2025_CG09!$BU$45:$CG$75,DL1153_2025!AZ$6,0) -> 65.3% | BA15: =+VLOOKUP($C$4,DL_1153_2025_CG09!$BU$45:$CG$75,DL1153_2025!BA$6,0) -> 71.3%
A16: DL_1153_2024_CG10 | B16: DGIESP / DPVIH | C16: Ficha 10:Cobertura de la Terapia Preventiva para Tuberculosis en personas viviendo con VIH que inician Tratamiento Antirretroviral. | D16: En proceso de validación
A17: DL_1153_2024_CG11 | B17: DGIESP / DPCAN | C17: Ficha 11: Mujeres de 30 a 49 años con tamizaje para la detección de lesiones premalignas e incipientes de cáncer de cuello uterino. | D17: =IFERROR(VLOOKUP($C$4,DL_1153_2024_CG11!BQ41:BR71,2,0),"-") -> 16.7% | E17: =+IFERROR(VLOOKUP($E$6,DL_1153_2024_CG11!$CN$36:$DR$48,MATCH(DL1153_2025!$C$4,DL_1153_2024_CG11!$CN$36:$DR$36,0),FALSE),"-") -> 16.7% | F17: =+IFERROR(VLOOKUP($C$4,DL_1153_2024_CG11!$CJ$53:$CL$82,2,0),"-") -> 0.5% | G17: =+IFERROR(VLOOKUP($C$4,DL_1153_2024_CG11!$CJ$53:$CL$82,3,0),"-") -> 16.7% | AP17: =+VLOOKUP($C$4,DL_1153_2024_CG11!$BU$41:$CG$71,DL1153_2025!AP$6,0) -> 0.5% | AQ17: =+VLOOKUP($C$4,DL_1153_2024_CG11!$BU$41:$CG$71,DL1153_2025!AQ$6,0) -> 1.9% | AR17: =+VLOOKUP($C$4,DL_1153_2024_CG11!$BU$41:$CG$71,DL1153_2025!AR$6,0) -> 3.2% | AS17: =+VLOOKUP($C$4,DL_1153_2024_CG11!$BU$41:$CG$71,DL1153_2025!AS$6,0) -> 4.6% | AT17: =+VLOOKUP($C$4,DL_1153_2024_CG11!$BU$41:$CG$71,DL1153_2025!AT$6,0) -> 6.0% | AU17: =+VLOOKUP($C$4,DL_1153_2024_CG11!$BU$41:$CG$71,DL1153_2025!AU$6,0) -> 7.4% | AV17: =+VLOOKUP($C$4,DL_1153_2024_CG11!$BU$41:$CG$71,DL1153_2025!AV$6,0) -> 8.7% | AW17: =+VLOOKUP($C$4,DL_1153_2024_CG11!$BU$41:$CG$71,DL1153_2025!AW$6,0) -> 10.0% | AX17: =+VLOOKUP($C$4,DL_1153_2024_CG11!$BU$41:$CG$71,DL1153_2025!AX$6,0) -> 11.5% | AY17: =+VLOOKUP($C$4,DL_1153_2024_CG11!$BU$41:$CG$71,DL1153_2025!AY$6,0) -> 13.4% | AZ17: =+VLOOKUP($C$4,DL_1153_2024_CG11!$BU$41:$CG$71,DL1153_2025!AZ$6,0) -> 15.0% | BA17: =+VLOOKUP($C$4,DL_1153_2024_CG11!$BU$41:$CG$71,DL1153_2025!BA$6,0) -> 16.7%
A18: DL_1153_2024_CG12 | B18: DGIESP / DPCAN | C18: Ficha 12:Porcentaje de niñas y niños (6 meses a 6 años) que reciben procedimientos estomatológicos preventivos. | D18: =AY18 -> 42.9% | E18: =D18 -> 42.9% | F18: =MIN(AP18:BA18) -> 0.0% | G18: =MAX(AP18:BA18) -> 182.9% | AP18: 0.0% | AQ18: 0.0% | AR18: 0.0% | AS18: 0.0% | AT18: 0.0% | AU18: 0.0% | AV18: 0.0% | AW18: 26.6% | AX18: 34.8% | AY18: 42.9% | AZ18: =GETPIVOTDATA("Ind ",DL_1153_2024_CG12!$P$8,"Mes",11) -> 182.9% | BA18: =+VLOOKUP(DL1153_2025!$C$4,DL_1153_2024_CG12!$BM$46:$BY$76,DL1153_2025!BA$6,0) -> -
A19: DL_1153_2024_CG13 | B19: DGIESP / DPCAN | C19: Ficha 13:Porcentaje de personas que acceden a algún método anticonceptivo moderno de planificación familiar. | D19: =IFERROR(VLOOKUP($C$4,DL_1153_2024_CG13!BQ47:BR77,2,0),"-") -> 26.5% | E19: =+IFERROR(VLOOKUP($E$6,DL_1153_2024_CG13!$CN$36:$DR$48,MATCH(DL1153_2025!$C$4,DL_1153_2024_CG13!$CN$36:$DR$36,0),FALSE),"-") -> 26.5% | F19: =+IFERROR(VLOOKUP($C$4,DL_1153_2024_CG13!$CI$53:$CK$82,2,0),"-") -> 14.4% | G19: =+IFERROR(VLOOKUP($C$4,DL_1153_2024_CG13!$CI$53:$CK$82,3,0),"-") -> 26.5% | AP19: =+VLOOKUP($C$4,DL_1153_2024_CG13!$BU$46:$CG$76,DL1153_2025!AP$6,0) -> 14.4% | AQ19: =+VLOOKUP($C$4,DL_1153_2024_CG13!$BU$46:$CG$76,DL1153_2025!AQ$6,0) -> 15.7% | AR19: =+VLOOKUP($C$4,DL_1153_2024_CG13!$BU$46:$CG$76,DL1153_2025!AR$6,0) -> 17.3% | AS19: =+VLOOKUP($C$4,DL_1153_2024_CG13!$BU$46:$CG$76,DL1153_2025!AS$6,0) -> 18.6% | AT19: =+VLOOKUP($C$4,DL_1153_2024_CG13!$BU$46:$CG$76,DL1153_2025!AT$6,0) -> 19.4% | AU19: =+VLOOKUP($C$4,DL_1153_2024_CG13!$BU$46:$CG$76,DL1153_2025!AU$6,0) -> 20.2% | AV19: =+VLOOKUP($C$4,DL_1153_2024_CG13!$BU$46:$CG$76,DL1153_2025!AV$6,0) -> 21.2% | AW19: =+VLOOKUP($C$4,DL_1153_2024_CG13!$BU$46:$CG$76,DL1153_2025!AW$6,0) -> 22.0% | AX19: =+VLOOKUP($C$4,DL_1153_2024_CG13!$BU$46:$CG$76,DL1153_2025!AX$6,0) -> 22.8% | AY19: =+VLOOKUP($C$4,DL_1153_2024_CG13!$BU$46:$CG$76,DL1153_2025!AY$6,0) -> 24.0% | AZ19: =+VLOOKUP($C$4,DL_1153_2024_CG13!$BU$46:$CG$76,DL1153_2025!AZ$6,0) -> 25.2% | BA19: =+VLOOKUP($C$4,DL_1153_2024_CG13!$BU$46:$CG$76,DL1153_2025!BA$6,0) -> 26.5%
A20: DL_1153_2024_CG14 | B20: DGIESP / DPCAN | C20: Ficha 14:Porcentaje de gestante atendidas con 2 o más Atenciones Prenatales (APN) en el hospital, referidas por factores de riesgo. | D20: =IFERROR(VLOOKUP($C$4,DL_1153_2024_CG14!BQ52:BR81,2,0),"-") -> 58.4% | E20: =+IFERROR(VLOOKUP($E$6,DL_1153_2024_CG14!$CN$36:$DR$48,MATCH(DL1153_2025!$C$4,DL_1153_2024_CG14!$CN$36:$DR$36,0),FALSE),"-") -> - | F20: =+IFERROR(VLOOKUP($C$4,DL_1153_2024_CG14!$CI$53:$CK$82,2,0),"-") -> 21.6% | G20: =+IFERROR(VLOOKUP($C$4,DL_1153_2024_CG14!$CI$53:$CK$82,3,0),"-") -> 65.7% | AP20: =+IFERROR(VLOOKUP($C$4,DL_1153_2024_CG14!$BU$51:$CG$81,DL1153_2025!AP$6,0),"-") -> 65.3% | AQ20: =+IFERROR(VLOOKUP($C$4,DL_1153_2024_CG14!$BU$51:$CG$81,DL1153_2025!AQ$6,0),"-") -> 65.0% | AR20: =+IFERROR(VLOOKUP($C$4,DL_1153_2024_CG14!$BU$51:$CG$81,DL1153_2025!AR$6,0),"-") -> 61.8% | AS20: =+IFERROR(VLOOKUP($C$4,DL_1153_2024_CG14!$BU$51:$CG$81,DL1153_2025!AS$6,0),"-") -> 63.7% | AT20: =+IFERROR(VLOOKUP($C$4,DL_1153_2024_CG14!$BU$51:$CG$81,DL1153_2025!AT$6,0),"-") -> 65.7% | AU20: =+IFERROR(VLOOKUP($C$4,DL_1153_2024_CG14!$BU$51:$CG$81,DL1153_2025!AU$6,0),"-") -> 64.6% | AV20: =+IFERROR(VLOOKUP($C$4,DL_1153_2024_CG14!$BU$51:$CG$81,DL1153_2025!AV$6,0),"-") -> 61.6% | AW20: =+IFERROR(VLOOKUP($C$4,DL_1153_2024_CG14!$BU$51:$CG$81,DL1153_2025!AW$6,0),"-") -> 62.7% | AX20: =+IFERROR(VLOOKUP($C$4,DL_1153_2024_CG14!$BU$51:$CG$81,DL1153_2025!AX$6,0),"-") -> 60.2% | AY20: =+IFERROR(VLOOKUP($C$4,DL_1153_2024_CG14!$BU$51:$CG$81,DL1153_2025!AY$6,0),"-") -> 51.1% | AZ20: =+IFERROR(VLOOKUP($C$4,DL_1153_2024_CG14!$BU$51:$CG$81,DL1153_2025!AZ$6,0),"-") -> 21.6% | BA20: =+IFERROR(VLOOKUP($C$4,DL_1153_2024_CG14!$BU$51:$CG$81,DL1153_2025!BA$6,0),"-") -> -
A21: DL_1153_2024_CG15 | B21: DGIESP / DSABU | C21: Ficha 15:Porcentaje de gestantes con paquete preventivo completo. . | D21: =IFERROR(VLOOKUP($C$4,DL_1153_2024_CG15!BQ52:BR82,2,0),"-") -> 35.5% | E21: =+IFERROR(VLOOKUP($E$6,DL_1153_2024_CG15!$CN$36:$DR$48,MATCH(DL1153_2025!$C$4,DL_1153_2024_CG15!$CN$36:$DR$36,0),FALSE),"-") -> 38.4% | F21: =+IFERROR(VLOOKUP($C$4,DL_1153_2024_CG15!$CI$53:$CK$82,2,0),"-") -> 32.0% | G21: =+IFERROR(VLOOKUP($C$4,DL_1153_2024_CG15!$CI$53:$CK$82,3,0),"-") -> 39.5% | AP21: =+IFERROR(VLOOKUP($C$4,DL_1153_2024_CG15!$BU$46:$CG$76,DL1153_2025!AP6:AP6,0),"-") -> 32.7% | AQ21: =+IFERROR(VLOOKUP($C$4,DL_1153_2024_CG15!$BU$46:$CG$76,DL1153_2025!AQ6:AQ6,0),"-") -> 32.0% | AR21: =+IFERROR(VLOOKUP($C$4,DL_1153_2024_CG15!$BU$46:$CG$76,DL1153_2025!AR6:AR6,0),"-") -> 32.9% | AS21: =+IFERROR(VLOOKUP($C$4,DL_1153_2024_CG15!$BU$46:$CG$76,DL1153_2025!AS6:AS6,0),"-") -> 33.4% | AT21: =+IFERROR(VLOOKUP($C$4,DL_1153_2024_CG15!$BU$46:$CG$76,DL1153_2025!AT6:AT6,0),"-") -> 33.5% | AU21: =+IFERROR(VLOOKUP($C$4,DL_1153_2024_CG15!$BU$46:$CG$76,DL1153_2025!AU6:AU6,0),"-") -> 33.4% | AV21: =+IFERROR(VLOOKUP($C$4,DL_1153_2024_CG15!$BU$46:$CG$76,DL1153_2025!AV6:AV6,0),"-") -> 34.7% | AW21: =+IFERROR(VLOOKUP($C$4,DL_1153_2024_CG15!$BU$46:$CG$76,DL1153_2025!AW6:AW6,0),"-") -> 37.8% | AX21: =+IFERROR(VLOOKUP($C$4,DL_1153_2024_CG15!$BU$46:$CG$76,DL1153_2025!AX6:AX6,0),"-") -> 38.8% | AY21: =+IFERROR(VLOOKUP($C$4,DL_1153_2024_CG15!$BU$46:$CG$76,DL1153_2025!AY6:AY6,0),"-") -> 39.5% | AZ21: =+IFERROR(VLOOKUP($C$4,DL_1153_2024_CG15!$BU$46:$CG$76,DL1153_2025!AZ6:AZ6,0),"-") -> 39.0% | BA21: =+IFERROR(VLOOKUP($C$4,DL_1153_2024_CG15!$BU$46:$CG$76,DL1153_2025!BA6:BA6,0),"-") -> 38.4%
A22: DL_1153_2024_CG16 | B22: DGIESP / DSARE | C22: Ficha 16:Porcentaje de adolescentes que reciben prestaciones priorizadas para el cuidado integral de la salud. | D22: =IFERROR(VLOOKUP($C$4,DL_1153_2024_CG16!BP45:BQ75,2,0),"-") -> 38.1% | E22: =+IFERROR(VLOOKUP($E$6,DL_1153_2024_CG16!$CM$36:$DR$48,MATCH(DL1153_2025!$C$4,DL_1153_2024_CG16!$CM$36:$DR$36,0),FALSE),"-") -> 38.1% | F22: =+IFERROR(VLOOKUP($C$4,DL_1153_2024_CG16!$CH$53:$CJ$82,2,0),"-") -> 4.0% | G22: =+IFERROR(VLOOKUP($C$4,DL_1153_2024_CG16!$CH$53:$CJ$82,3,0),"-") -> 38.1% | AP22: =+IFERROR(VLOOKUP($C$4,DL_1153_2024_CG16!$BT$45:$CF$75,DL1153_2025!AP$6,0),"-") -> 4.0% | AQ22: =+IFERROR(VLOOKUP($C$4,DL_1153_2024_CG16!$BT$45:$CF$75,DL1153_2025!AQ$6,0),"-") -> 5.0% | AR22: =+IFERROR(VLOOKUP($C$4,DL_1153_2024_CG16!$BT$45:$CF$75,DL1153_2025!AR$6,0),"-") -> 8.1% | AS22: =+IFERROR(VLOOKUP($C$4,DL_1153_2024_CG16!$BT$45:$CF$75,DL1153_2025!AS$6,0),"-") -> 10.6% | AT22: =+IFERROR(VLOOKUP($C$4,DL_1153_2024_CG16!$BT$45:$CF$75,DL1153_2025!AT$6,0),"-") -> 13.6% | AU22: =+IFERROR(VLOOKUP($C$4,DL_1153_2024_CG16!$BT$45:$CF$75,DL1153_2025!AU$6,0),"-") -> 18.2% | AV22: =+IFERROR(VLOOKUP($C$4,DL_1153_2024_CG16!$BT$45:$CF$75,DL1153_2025!AV$6,0),"-") -> 22.2% | AW22: =+IFERROR(VLOOKUP($C$4,DL_1153_2024_CG16!$BT$45:$CF$75,DL1153_2025!AW$6,0),"-") -> 25.8% | AX22: =+IFERROR(VLOOKUP($C$4,DL_1153_2024_CG16!$BT$45:$CF$75,DL1153_2025!AX$6,0),"-") -> 29.3% | AY22: =+IFERROR(VLOOKUP($C$4,DL_1153_2024_CG16!$BT$45:$CF$75,DL1153_2025!AY$6,0),"-") -> 32.2% | AZ22: =+IFERROR(VLOOKUP($C$4,DL_1153_2024_CG16!$BT$45:$CF$75,DL1153_2025!AZ$6,0),"-") -> 35.3% | BA22: =+IFERROR(VLOOKUP($C$4,DL_1153_2024_CG16!$BT$45:$CF$75,DL1153_2025!BA$6,0),"-") -> 38.1%
A23: DL_1153_2024_CG17 | B23: DGIESP / DSARE | C23: Ficha 17:Porcentaje de niños y niñas menores de 5 años con deficiencias o factores de riesgo de discapacidad, con dos o más atenciones en la UPSS Medicina de Rehabilitación. | D23: =IFERROR(VLOOKUP($C$4,DL_1153_2024_CG17!BQ47:BR76,2,0),"-") -> 77.7% | E23: =+IFERROR(VLOOKUP($E$6,DL_1153_2024_CG17!$CN$36:$DR$48,MATCH(DL1153_2025!$C$4,DL_1153_2024_CG17!$CN$36:$DR$36,0),FALSE),"-") -> 77.7% | F23: =+IFERROR(VLOOKUP($C$4,DL_1153_2024_CG17!$CI$53:$CK$82,2,0),"-") -> 30.0% | G23: =+IFERROR(VLOOKUP($C$4,DL_1153_2024_CG17!$CI$53:$CK$82,3,0),"-") -> 77.7% | AP23: =+IFERROR(VLOOKUP($C$4,DL_1153_2024_CG17!$BU$76:$CG$76,DL1153_2025!AP$6,0),"-") -> 30.0% | AQ23: =+IFERROR(VLOOKUP($C$4,DL_1153_2024_CG17!$BU$76:$CG$76,DL1153_2025!AQ$6,0),"-") -> 40.6% | AR23: =+IFERROR(VLOOKUP($C$4,DL_1153_2024_CG17!$BU$76:$CG$76,DL1153_2025!AR$6,0),"-") -> 48.5% | AS23: =+IFERROR(VLOOKUP($C$4,DL_1153_2024_CG17!$BU$76:$CG$76,DL1153_2025!AS$6,0),"-") -> 53.4% | AT23: =+IFERROR(VLOOKUP($C$4,DL_1153_2024_CG17!$BU$76:$CG$76,DL1153_2025!AT$6,0),"-") -> 57.8% | AU23: =+IFERROR(VLOOKUP($C$4,DL_1153_2024_CG17!$BU$76:$CG$76,DL1153_2025!AU$6,0),"-") -> 61.7% | AV23: =+IFERROR(VLOOKUP($C$4,DL_1153_2024_CG17!$BU$76:$CG$76,DL1153_2025!AV$6,0),"-") -> 64.2% | AW23: =+IFERROR(VLOOKUP($C$4,DL_1153_2024_CG17!$BU$76:$CG$76,DL1153_2025!AW$6,0),"-") -> 66.6% | AX23: =+IFERROR(VLOOKUP($C$4,DL_1153_2024_CG17!$BU$76:$CG$76,DL1153_2025!AX$6,0),"-") -> 69.3% | AY23: =+IFERROR(VLOOKUP($C$4,DL_1153_2024_CG17!$BU$76:$CG$76,DL1153_2025!AY$6,0),"-") -> 71.5% | AZ23: =+IFERROR(VLOOKUP($C$4,DL_1153_2024_CG17!$BU$76:$CG$76,DL1153_2025!AZ$6,0),"-") -> 74.2% | BA23: =+IFERROR(VLOOKUP($C$4,DL_1153_2024_CG17!$BU$76:$CG$76,DL1153_2025!BA$6,0),"-") -> 77.7%
A24: DL_1153_2024_CG18 | B24: DGIESP / DSARE | C24: Ficha 18:Rendimiento cama en Unidades de Hospitalización de Salud Mental y Adicciones (UHSMA) en hospitales. | D24: =IFERROR(VLOOKUP($C$4,DL_1153_2024_CG18!BM44:BN74,2,0),"-") -> 17.7 | E24: =BA24 -> 17.7 | F24: =+IFERROR(VLOOKUP($C$4,DL_1153_2024_CG18!$CE$53:$CG$82,2,0),"-") -> 1.2 | G24: =+IFERROR(VLOOKUP($C$4,DL_1153_2024_CG18!$CE$53:$CG$82,3,0),"-") -> 17.7 | AP24: =+IFERROR(VLOOKUP($C$4,DL_1153_2024_CG18!$BQ$44:$CC$74,DL1153_2025!AP$6,0),"-") -> 1.2 | AQ24: =+IFERROR(VLOOKUP($C$4,DL_1153_2024_CG18!$BQ$44:$CC$74,DL1153_2025!AQ$6,0),"-") -> 2.6 | AR24: =+IFERROR(VLOOKUP($C$4,DL_1153_2024_CG18!$BQ$44:$CC$74,DL1153_2025!AR$6,0),"-") -> 4.2 | AS24: =+IFERROR(VLOOKUP($C$4,DL_1153_2024_CG18!$BQ$44:$CC$74,DL1153_2025!AS$6,0),"-") -> 5.5 | AT24: =+IFERROR(VLOOKUP($C$4,DL_1153_2024_CG18!$BQ$44:$CC$74,DL1153_2025!AT$6,0),"-") -> 7.1 | AU24: =+IFERROR(VLOOKUP($C$4,DL_1153_2024_CG18!$BQ$44:$CC$74,DL1153_2025!AU$6,0),"-") -> 8.4 | AV24: =+IFERROR(VLOOKUP($C$4,DL_1153_2024_CG18!$BQ$44:$CC$74,DL1153_2025!AV$6,0),"-") -> 9.9 | AW24: =+IFERROR(VLOOKUP($C$4,DL_1153_2024_CG18!$BQ$44:$CC$74,DL1153_2025!AW$6,0),"-") -> 11.3 | AX24: =+IFERROR(VLOOKUP($C$4,DL_1153_2024_CG18!$BQ$44:$CC$74,DL1153_2025!AX$6,0),"-") -> 12.9 | AY24: =+IFERROR(VLOOKUP($C$4,DL_1153_2024_CG18!$BQ$44:$CC$74,DL1153_2025!AY$6,0),"-") -> 14.6 | AZ24: =+IFERROR(VLOOKUP($C$4,DL_1153_2024_CG18!$BQ$44:$CC$74,DL1153_2025!AZ$6,0),"-") -> 16.2 | BA24: =+IFERROR(VLOOKUP($C$4,DL_1153_2024_CG18!$BQ$44:$CC$74,DL1153_2025!BA$6,0),"-") -> 17.7
A25: DL_1153_2024_CG19 | B25: DGIESP / DVICI | C25: Ficha 19:Porcentaje de personas con diagnóstico de Depresión que recibieron paquete mínimo de intervenciones terapéuticas en Centro de Salud Mental Comunitaria. | D25: =IFERROR(VLOOKUP($C$4,DL_1153_2024_CG19!BK48:BL79,2,0),"-") -> 35.9% | E25: =+IFERROR(VLOOKUP($E$6,DL_1153_2024_CG19!$CH$35:$DL$47,MATCH(DL1153_2025!$C$4,DL_1153_2024_CG19!$CH$35:$DL$35,0),FALSE),"-") -> 43.0% | F25: =+IFERROR(VLOOKUP($C$4,DL_1153_2024_CG19!$CC$53:$CE$82,2,0),"-") -> 29.5% | G25: =+IFERROR(VLOOKUP($C$4,DL_1153_2024_CG19!$CC$53:$CE$82,3,0),"-") -> 45.5% | AP25: =+IFERROR(VLOOKUP($C$4,DL_1153_2024_CG19!$BO$47:$CA$77,DL1153_2025!AP$6,0),"-") -> 30.4% | AQ25: =+IFERROR(VLOOKUP($C$4,DL_1153_2024_CG19!$BO$47:$CA$77,DL1153_2025!AQ$6,0),"-") -> 29.5% | AR25: =+IFERROR(VLOOKUP($C$4,DL_1153_2024_CG19!$BO$47:$CA$77,DL1153_2025!AR$6,0),"-") -> 32.0% | AS25: =+IFERROR(VLOOKUP($C$4,DL_1153_2024_CG19!$BO$47:$CA$77,DL1153_2025!AS$6,0),"-") -> 32.2% | AT25: =+IFERROR(VLOOKUP($C$4,DL_1153_2024_CG19!$BO$47:$CA$77,DL1153_2025!AT$6,0),"-") -> 31.9% | AU25: =+IFERROR(VLOOKUP($C$4,DL_1153_2024_CG19!$BO$47:$CA$77,DL1153_2025!AU$6,0),"-") -> 31.8% | AV25: =+IFERROR(VLOOKUP($C$4,DL_1153_2024_CG19!$BO$47:$CA$77,DL1153_2025!AV$6,0),"-") -> 34.8% | AW25: =+IFERROR(VLOOKUP($C$4,DL_1153_2024_CG19!$BO$47:$CA$77,DL1153_2025!AW$6,0),"-") -> 35.8% | AX25: =+IFERROR(VLOOKUP($C$4,DL_1153_2024_CG19!$BO$47:$CA$77,DL1153_2025!AX$6,0),"-") -> 44.9% | AY25: =+IFERROR(VLOOKUP($C$4,DL_1153_2024_CG19!$BO$47:$CA$77,DL1153_2025!AY$6,0),"-") -> 45.5% | AZ25: =+IFERROR(VLOOKUP($C$4,DL_1153_2024_CG19!$BO$47:$CA$77,DL1153_2025!AZ$6,0),"-") -> 44.9% | BA25: =+IFERROR(VLOOKUP($C$4,DL_1153_2024_CG19!$BO$47:$CA$77,DL1153_2025!BA$6,0),"-") -> 43.0%
A26: DL_1153_2024_CG20 | B26: DGIESP /DISCAP | C26: Ficha 20: Porcentaje de resolutividad. | D26: =IFERROR(VLOOKUP($C$4,DL_1153_2024_CG20!BQ45:BR74,2,0),"-") -> 1.7% | E26: =+IFERROR(VLOOKUP($E$6,DL_1153_2024_CG20!$CN$36:$DR$48,MATCH(DL1153_2025!$C$4,DL_1153_2024_CG20!$CN$36:$DR$36,0),FALSE),"-") -> 1.7% | F26: =+IFERROR(VLOOKUP($C$4,DL_1153_2024_CG20!$CI$53:$CK$82,2,0),"-") -> 1.6% | G26: =+IFERROR(VLOOKUP($C$4,DL_1153_2024_CG20!$CI$53:$CK$82,3,0),"-") -> 1.9% | AP26: =+IFERROR(VLOOKUP($C$4,DL_1153_2024_CG20!$BU$44:$CG$74,DL1153_2025!AP$6,0),"-") -> 1.6% | AQ26: =+IFERROR(VLOOKUP($C$4,DL_1153_2024_CG20!$BU$44:$CG$74,DL1153_2025!AQ$6,0),"-") -> 1.8% | AR26: =+IFERROR(VLOOKUP($C$4,DL_1153_2024_CG20!$BU$44:$CG$74,DL1153_2025!AR$6,0),"-") -> 1.7% | AS26: =+IFERROR(VLOOKUP($C$4,DL_1153_2024_CG20!$BU$44:$CG$74,DL1153_2025!AS$6,0),"-") -> 1.7% | AT26: =+IFERROR(VLOOKUP($C$4,DL_1153_2024_CG20!$BU$44:$CG$74,DL1153_2025!AT$6,0),"-") -> 1.6% | AU26: =+IFERROR(VLOOKUP($C$4,DL_1153_2024_CG20!$BU$44:$CG$74,DL1153_2025!AU$6,0),"-") -> 1.7% | AV26: =+IFERROR(VLOOKUP($C$4,DL_1153_2024_CG20!$BU$44:$CG$74,DL1153_2025!AV$6,0),"-") -> 1.7% | AW26: =+IFERROR(VLOOKUP($C$4,DL_1153_2024_CG20!$BU$44:$CG$74,DL1153_2025!AW$6,0),"-") -> 1.9% | AX26: =+IFERROR(VLOOKUP($C$4,DL_1153_2024_CG20!$BU$44:$CG$74,DL1153_2025!AX$6,0),"-") -> 1.8% | AY26: =+IFERROR(VLOOKUP($C$4,DL_1153_2024_CG20!$BU$44:$CG$74,DL1153_2025!AY$6,0),"-") -> 1.8% | AZ26: =+IFERROR(VLOOKUP($C$4,DL_1153_2024_CG20!$BU$44:$CG$74,DL1153_2025!AZ$6,0),"-") -> 1.6% | BA26: =+IFERROR(VLOOKUP($C$4,DL_1153_2024_CG20!$BU$44:$CG$74,DL1153_2025!BA$6,0),"-") -> 1.7%
A27: DL_1153_2024_CG21 | B27: DGIESP /DSAME | C27: Ficha 21:Porcentaje de cirugías suspendidas | D27: =IFERROR(VLOOKUP($C$4,DL_1153_2024_CG21!BQ44:BR74,2,0),"-") -> 3.2% | E27: =+IFERROR(VLOOKUP($E$6,DL_1153_2024_CG21!$CN$36:$DR$48,MATCH(DL1153_2025!$C$4,DL_1153_2024_CG21!$CN$36:$DR$36,0),FALSE),"-") -> 3.0% | F27: =+IFERROR(VLOOKUP($C$4,DL_1153_2024_CG21!$CI$53:$CK$82,2,0),"-") -> 2.9% | G27: =+IFERROR(VLOOKUP($C$4,DL_1153_2024_CG21!$CI$53:$CK$82,3,0),"-") -> 3.6% | AP27: =+IFERROR(VLOOKUP($C$4,DL_1153_2024_CG21!$BU$44:$CG$74,DL1153_2025!AP$6,0),"-") -> 3.2% | AQ27: =+IFERROR(VLOOKUP($C$4,DL_1153_2024_CG21!$BU$44:$CG$74,DL1153_2025!AQ$6,0),"-") -> 3.1% | AR27: =+IFERROR(VLOOKUP($C$4,DL_1153_2024_CG21!$BU$44:$CG$74,DL1153_2025!AR$6,0),"-") -> 3.4% | AS27: =+VLOOKUP($C$4,DL_1153_2024_CG21!$BU$44:$CG$74,DL1153_2025!AS$6,0) -> 3.1% | AT27: =+VLOOKUP($C$4,DL_1153_2024_CG21!$BU$44:$CG$74,DL1153_2025!AT$6,0) -> 2.9% | AU27: =+VLOOKUP($C$4,DL_1153_2024_CG21!$BU$44:$CG$74,DL1153_2025!AU$6,0) -> 3.2% | AV27: =+VLOOKUP($C$4,DL_1153_2024_CG21!$BU$44:$CG$74,DL1153_2025!AV$6,0) -> 3.6% | AW27: =+VLOOKUP($C$4,DL_1153_2024_CG21!$BU$44:$CG$74,DL1153_2025!AW$6,0) -> 3.1% | AX27: =+VLOOKUP($C$4,DL_1153_2024_CG21!$BU$44:$CG$74,DL1153_2025!AX$6,0) -> 3.0% | AY27: =+VLOOKUP($C$4,DL_1153_2024_CG21!$BU$44:$CG$74,DL1153_2025!AY$6,0) -> 3.1% | AZ27: =+VLOOKUP($C$4,DL_1153_2024_CG21!$BU$44:$CG$74,DL1153_2025!AZ$6,0) -> 3.4% | BA27: =+VLOOKUP($C$4,DL_1153_2024_CG21!$BU$44:$CG$74,DL1153_2025!BA$6,0) -> 3.0%
A28: DL_1153_2024_CG22 | B28: DGIESP /DSAME | C28: Ficha 22:Rendimiento de sala de operaciones | D28: =IFERROR(VLOOKUP($C$4,DL_1153_2024_CG22!BM45:BN75,2,0),"-") -> 87.7 | E28: =+IFERROR(VLOOKUP($E$6,DL_1153_2024_CG22!$CF$29:$DN$41,MATCH(DL1153_2025!$C$4,DL_1153_2024_CG22!$CF$29:$DN$29,0),FALSE),"-") -> 77.2 | F28: =+IFERROR(VLOOKUP($C$4,DL_1153_2024_CG22!$CE$46:$CG$75,2,0),"-") -> 77.2 | G28: =+IFERROR(VLOOKUP($C$4,DL_1153_2024_CG22!$CE$46:$CG$75,3,0),"-") -> 93.0 | AP28: =+IFERROR(VLOOKUP($C$4,DL_1153_2024_CG22!$BQ$45:$CC$75,DL1153_2025!AP$6,0),"-") -> 86.4 | AQ28: =+IFERROR(VLOOKUP($C$4,DL_1153_2024_CG22!$BQ$45:$CC$75,DL1153_2025!AQ$6,0),"-") -> 86.1 | AR28: =+IFERROR(VLOOKUP($C$4,DL_1153_2024_CG22!$BQ$45:$CC$75,DL1153_2025!AR$6,0),"-") -> 91.7 | AS28: =+VLOOKUP($C$4,DL_1153_2024_CG22!$BQ$45:$CC$75,DL1153_2025!AS$6,0) -> 88.1 | AT28: =+VLOOKUP($C$4,DL_1153_2024_CG22!$BQ$45:$CC$75,DL1153_2025!AT$6,0) -> 93.0 | AU28: =+VLOOKUP($C$4,DL_1153_2024_CG22!$BQ$45:$CC$75,DL1153_2025!AU$6,0) -> 88.9 | AV28: =+VLOOKUP($C$4,DL_1153_2024_CG22!$BQ$45:$CC$75,DL1153_2025!AV$6,0) -> 86.3 | AW28: =+VLOOKUP($C$4,DL_1153_2024_CG22!$BQ$45:$CC$75,DL1153_2025!AW$6,0) -> 85.5 | AX28: =+VLOOKUP($C$4,DL_1153_2024_CG22!$BQ$45:$CC$75,DL1153_2025!AX$6,0) -> 91.1 | AY28: =+VLOOKUP($C$4,DL_1153_2024_CG22!$BQ$45:$CC$75,DL1153_2025!AY$6,0) -> 90.4 | AZ28: =+VLOOKUP($C$4,DL_1153_2024_CG22!$BQ$45:$CC$75,DL1153_2025!AZ$6,0) -> 87.5 | BA28: =+VLOOKUP($C$4,DL_1153_2024_CG22!$BQ$45:$CC$75,DL1153_2025!BA$6,0) -> 77.2
A29: DL_1153_2024_CG23 | B29: DGIESP /DSAME | C29: Ficha 23:Porcentaje de ocupación cama. (Hospitalización) | D29: =GETPIVOTDATA("Suma de Ind_Hosp",DL_1153_2024_CG23!$A$10) -> 57.3% | E29: =GETPIVOTDATA("Suma de Ind_Hosp",DL_1153_2024_CG23!$M$10,"mes",10) -> 56.7% | F29: =GETPIVOTDATA("Suma de Ind_Hosp",DL_1153_2024_CG23!$M$10,"mes",1) ->  | G29: =GETPIVOTDATA("Suma de Ind_Hosp",DL_1153_2024_CG23!$M$10,"mes",5) -> 59.6% | AP29: =+IFERROR(VLOOKUP($C$4,DL_1153_2024_CG23!$BR$45:$CD$75,DL1153_2025!AP$6,0),"-") -> 69.6% | AQ29: =+IFERROR(VLOOKUP($C$4,DL_1153_2024_CG23!$BR$45:$CD$75,DL1153_2025!AQ$6,0),"-") -> 72.0% | AR29: =+IFERROR(VLOOKUP($C$4,DL_1153_2024_CG23!$BR$45:$CD$75,DL1153_2025!AR$6,0),"-") -> 71.9% | AS29: =+IFERROR(VLOOKUP($C$4,DL_1153_2024_CG23!$BR$45:$CD$75,DL1153_2025!AS$6,0),"-") -> 72.2% | AT29: =+IFERROR(VLOOKUP($C$4,DL_1153_2024_CG23!$BR$45:$CD$75,DL1153_2025!AT$6,0),"-") -> 72.9% | AU29: =+IFERROR(VLOOKUP($C$4,DL_1153_2024_CG23!$BR$45:$CD$75,DL1153_2025!AU$6,0),"-") -> 72.4% | AV29: =+IFERROR(VLOOKUP($C$4,DL_1153_2024_CG23!$BR$45:$CD$75,DL1153_2025!AV$6,0),"-") -> 72.6% | AW29: =+IFERROR(VLOOKUP($C$4,DL_1153_2024_CG23!$BR$45:$CD$75,DL1153_2025!AW$6,0),"-") -> 72.6% | AX29: =+IFERROR(VLOOKUP($C$4,DL_1153_2024_CG23!$BR$45:$CD$75,DL1153_2025!AX$6,0),"-") -> 72.8% | AY29: =+IFERROR(VLOOKUP($C$4,DL_1153_2024_CG23!$BR$45:$CD$75,DL1153_2025!AY$6,0),"-") -> 72.9% | AZ29: =+IFERROR(VLOOKUP($C$4,DL_1153_2024_CG23!$BR$45:$CD$75,DL1153_2025!AZ$6,0),"-") -> 73.1% | BA29: =+IFERROR(VLOOKUP($C$4,DL_1153_2024_CG23!$BR$45:$CD$75,DL1153_2025!BA$6,0),"-") -> 69.9%
C30: Ficha 23:Porcentaje de ocupación cama. (UCI) | D30: =GETPIVOTDATA("Suma de Ind_UCI",DL_1153_2024_CG23!$A$10) ->  | E30: =GETPIVOTDATA("Suma de Ind_UCI",DL_1153_2024_CG23!$M$10,"mes",10) -> 66.7% | F30: =GETPIVOTDATA("Suma de Ind_UCI",DL_1153_2024_CG23!$M$10,"mes",3) ->  | G30: =GETPIVOTDATA("Suma de Ind_UCI",DL_1153_2024_CG23!$M$10,"mes",5) -> 
A31: DL_1153_2024_CG25 | B31: DGOS/DIMON | C31: Ficha 24:Intervalo de sustitución cama | D31: =IFERROR(VLOOKUP($C$4,DL_1153_2024_CG24!BQ46:BR75,2,0),"-") -> 1.6 | E31: =AQ31 -> 1.4 | F31: =MIN(AP31:AQ31) -> 1.4 | G31: =MAX(AP31:AQ31) -> 1.6 | AP31: =+IFERROR(VLOOKUP($C$4,DL_1153_2024_CG24!$BU$45:$CG$75,DL1153_2025!AP$6,0),"-") -> 1.6 | AQ31: =+IFERROR(VLOOKUP($C$4,DL_1153_2024_CG24!$BU$45:$CG$75,DL1153_2025!AQ$6,0),"-") -> 1.4 | AR31: =+IFERROR(VLOOKUP($C$4,DL_1153_2024_CG24!$BU$45:$CG$75,DL1153_2025!AR$6,0),"-") -> 1.4 | AS31: =+IFERROR(VLOOKUP($C$4,DL_1153_2024_CG24!$BU$45:$CG$75,DL1153_2025!AS$6,0),"-") -> 1.6 | AT31: =+IFERROR(VLOOKUP($C$4,DL_1153_2024_CG24!$BU$45:$CG$75,DL1153_2025!AT$6,0),"-") -> 1.3 | AU31: =+IFERROR(VLOOKUP($C$4,DL_1153_2024_CG24!$BU$45:$CG$75,DL1153_2025!AU$6,0),"-") -> 1.6 | AV31: =+IFERROR(VLOOKUP($C$4,DL_1153_2024_CG24!$BU$45:$CG$75,DL1153_2025!AV$6,0),"-") -> 1.7 | AW31: =+IFERROR(VLOOKUP($C$4,DL_1153_2024_CG24!$BU$45:$CG$75,DL1153_2025!AW$6,0),"-") -> 1.6 | AX31: =+IFERROR(VLOOKUP($C$4,DL_1153_2024_CG24!$BU$45:$CG$75,DL1153_2025!AX$6,0),"-") -> 1.6 | AY31: =+IFERROR(VLOOKUP($C$4,DL_1153_2024_CG24!$BU$45:$CG$75,DL1153_2025!AY$6,0),"-") -> 1.7 | AZ31: =+IFERROR(VLOOKUP($C$4,DL_1153_2024_CG24!$BU$45:$CG$75,DL1153_2025!AZ$6,0),"-") -> 1.7 | BA31: =+IFERROR(VLOOKUP($C$4,DL_1153_2024_CG24!$BU$45:$CG$75,DL1153_2025!BA$6,0),"-") -> 2.0
A32: DL_1153_2024_CG26 | B32: DGOS/DIMON | C32: Ficha 25:Promedio de Espera para la Atención en Consulta Externa de un paciente referido | D32: =IFERROR(VLOOKUP($C$4,DL_1153_2024_CG25!BI48:BJ78,2,0),"-") -> 24.0 | E32: =+IFERROR(VLOOKUP($E$6,DL_1153_2024_CG25!$CB$35:$DF$47,MATCH(DL1153_2025!$C$4,DL_1153_2024_CG25!$CB$35:$DF$35,0),FALSE),"-") -> 27.1 | F32: =+IFERROR(VLOOKUP($C$4,DL_1153_2024_CG25!$CA$49:$CC$78,2,0),"-") -> 4.9 | G32: =+IFERROR(VLOOKUP($C$4,DL_1153_2024_CG25!$CA$49:$CC$78,3,0),"-") -> 38.5 | AP32: =+IFERROR(VLOOKUP($C$4,DL_1153_2024_CG25!$BM$45:$BY$78,DL1153_2025!AP$6,0),"-") -> 4.9 | AQ32: =+IFERROR(VLOOKUP($C$4,DL_1153_2024_CG25!$BM$45:$BY$78,DL1153_2025!AQ$6,0),"-") -> 11.1 | AR32: =+IFERROR(VLOOKUP($C$4,DL_1153_2024_CG25!$BM$45:$BY$78,DL1153_2025!AR$6,0),"-") -> 13.9 | AS32: =+IFERROR(VLOOKUP($C$4,DL_1153_2024_CG25!$BM$45:$BY$78,DL1153_2025!AS$6,0),"-") -> 19.0 | AT32: =+IFERROR(VLOOKUP($C$4,DL_1153_2024_CG25!$BM$45:$BY$78,DL1153_2025!AT$6,0),"-") -> 24.9 | AU32: =+IFERROR(VLOOKUP($C$4,DL_1153_2024_CG25!$BM$45:$BY$78,DL1153_2025!AU$6,0),"-") -> 24.1 | AV32: =+IFERROR(VLOOKUP($C$4,DL_1153_2024_CG25!$BM$45:$BY$78,DL1153_2025!AV$6,0),"-") -> 24.4 | AW32: =+IFERROR(VLOOKUP($C$4,DL_1153_2024_CG25!$BM$45:$BY$78,DL1153_2025!AW$6,0),"-") -> 23.8 | AX32: =+IFERROR(VLOOKUP($C$4,DL_1153_2024_CG25!$BM$45:$BY$78,DL1153_2025!AX$6,0),"-") -> 30.0 | AY32: =+IFERROR(VLOOKUP($C$4,DL_1153_2024_CG25!$BM$45:$BY$78,DL1153_2025!AY$6,0),"-") -> 38.5 | AZ32: =+IFERROR(VLOOKUP($C$4,DL_1153_2024_CG25!$BM$45:$BY$78,DL1153_2025!AZ$6,0),"-") -> 28.5 | BA32: =+IFERROR(VLOOKUP($C$4,DL_1153_2024_CG25!$BM$45:$BY$78,DL1153_2025!BA$6,0),"-") -> 27.1
A33: DL_1153_2024_CG27 | B33: DGOS/DIMON | C33: Ficha 26:Promedio de Espera para la Atención en Apoyo al Diagnóstico de un Paciente Referido | D33: =IFERROR(VLOOKUP($C$4,DL_1153_2024_CG26!BQ45:BR75,2,0),"-") -> 12.9 | E33: =+IFERROR(VLOOKUP($E$6,DL_1153_2024_CG26!$CI$29:$DM$41,MATCH(DL1153_2025!$C$4,DL_1153_2024_CG26!$CI$29:$DM$29,0),FALSE),"-") -> 17.1 | F33: =+IFERROR(VLOOKUP($C$4,DL_1153_2024_CG26!$CH$46:$CJ$75,2,0),"-") -> 3.4 | G33: =+IFERROR(VLOOKUP($C$4,DL_1153_2024_CG26!$CH$46:$CJ$75,3,0),"-") -> 18.8 | AP33: =+IFERROR(VLOOKUP($C$4,DL_1153_2024_CG26!$BT$45:$CG$75,DL1153_2025!AP$6,0),"-") -> 3.4 | AQ33: =+IFERROR(VLOOKUP($C$4,DL_1153_2024_CG26!$BT$45:$CG$75,DL1153_2025!AQ$6,0),"-") -> 6.5 | AR33: =+IFERROR(VLOOKUP($C$4,DL_1153_2024_CG26!$BT$45:$CG$75,DL1153_2025!AR$6,0),"-") -> 9.0 | AS33: =+IFERROR(VLOOKUP($C$4,DL_1153_2024_CG26!$BT$45:$CG$75,DL1153_2025!AS$6,0),"-") -> 8.2 | AT33: =+IFERROR(VLOOKUP($C$4,DL_1153_2024_CG26!$BT$45:$CG$75,DL1153_2025!AT$6,0),"-") -> 15.1 | AU33: =+IFERROR(VLOOKUP($C$4,DL_1153_2024_CG26!$BT$45:$CG$75,DL1153_2025!AU$6,0),"-") -> 12.6 | AV33: =+IFERROR(VLOOKUP($C$4,DL_1153_2024_CG26!$BT$45:$CG$75,DL1153_2025!AV$6,0),"-") -> 18.8 | AW33: =+IFERROR(VLOOKUP($C$4,DL_1153_2024_CG26!$BT$45:$CG$75,DL1153_2025!AW$6,0),"-") -> 15.9 | AX33: =+IFERROR(VLOOKUP($C$4,DL_1153_2024_CG26!$BT$45:$CG$75,DL1153_2025!AX$6,0),"-") -> 14.6 | AY33: =+IFERROR(VLOOKUP($C$4,DL_1153_2024_CG26!$BT$45:$CG$75,DL1153_2025!AY$6,0),"-") -> 11.3 | AZ33: =+IFERROR(VLOOKUP($C$4,DL_1153_2024_CG26!$BT$45:$CG$75,DL1153_2025!AZ$6,0),"-") -> 17.4 | BA33: =+IFERROR(VLOOKUP($C$4,DL_1153_2024_CG26!$BT$45:$CG$75,DL1153_2025!BA$6,0),"-") -> 17.1
A34: DL_1153_2024_CG28 | B34: DGOS/DIMON | C34: Ficha 27:Productividad Hora Médico | D34: 2.5 | E34: 2.5 | F34: 2.5 | G34: 2.6 | AP34: =+IFERROR(VLOOKUP($C$4,DL_1153_2024_CG27!$BT$45:$CG$75,DL1153_2025!AP$6,0),"-") -> 3.47% | AQ34: =+IFERROR(VLOOKUP($C$4,DL_1153_2024_CG27!$BT$45:$CG$75,DL1153_2025!AQ$6,0),"-") -> 3.62% | AR34: =+IFERROR(VLOOKUP($C$4,DL_1153_2024_CG27!$BT$45:$CG$75,DL1153_2025!AR$6,0),"-") -> 3.32% | AS34: =+IFERROR(VLOOKUP($C$4,DL_1153_2024_CG27!$BT$45:$CG$75,DL1153_2025!AS$6,0),"-") -> 3.91% | AT34: =+IFERROR(VLOOKUP($C$4,DL_1153_2024_CG27!$BT$45:$CG$75,DL1153_2025!AT$6,0),"-") -> 3.70% | AU34: =+IFERROR(VLOOKUP($C$4,DL_1153_2024_CG27!$BT$45:$CG$75,DL1153_2025!AU$6,0),"-") -> 3.39% | AV34: =+IFERROR(VLOOKUP($C$4,DL_1153_2024_CG27!$BT$45:$CG$75,DL1153_2025!AV$6,0),"-") -> 3.67% | AW34: =+IFERROR(VLOOKUP($C$4,DL_1153_2024_CG27!$BT$45:$CG$75,DL1153_2025!AW$6,0),"-") -> 3.65% | AX34: =+IFERROR(VLOOKUP($C$4,DL_1153_2024_CG27!$BT$45:$CG$75,DL1153_2025!AX$6,0),"-") -> 3.46% | AY34: =+IFERROR(VLOOKUP($C$4,DL_1153_2024_CG27!$BT$45:$CG$75,DL1153_2025!AY$6,0),"-") -> 2.99% | AZ34: =+IFERROR(VLOOKUP($C$4,DL_1153_2024_CG27!$BT$45:$CG$75,DL1153_2025!AZ$6,0),"-") -> 3.17% | BA34: =+IFERROR(VLOOKUP($C$4,DL_1153_2024_CG27!$BT$45:$CG$75,DL1153_2025!BA$6,0),"-") -> 3.36%
A35: DL_1153_2024_CG29 | B35: DGOS | C35: Ficha 28:Utilización de consultorios externos | D35: =GETPIVOTDATA("Suma de Ind",DL_1153_2024_CG28!$J$10) -> 20.1 | E35: =AY35 -> 1.7 | F35: =+IFERROR(VLOOKUP($C$4,DL_1153_2024_CG28!$CH$46:$CJ$75,2,0),"-") -> 1.6 | G35: =+IFERROR(VLOOKUP($C$4,DL_1153_2024_CG28!$CH$46:$CJ$75,3,0),"-") -> 1.8 | AP35: =+IFERROR(VLOOKUP($C$4,DL_1153_2024_CG28!$BT$45:$CG$75,DL1153_2025!AP$6,0),"-") -> 1.6 | AQ35: =+IFERROR(VLOOKUP($C$4,DL_1153_2024_CG28!$BT$45:$CG$75,DL1153_2025!AQ$6,0),"-") -> 1.6 | AR35: =+IFERROR(VLOOKUP($C$4,DL_1153_2024_CG28!$BT$45:$CG$75,DL1153_2025!AR$6,0),"-") -> 1.8 | AS35: =+IFERROR(VLOOKUP($C$4,DL_1153_2024_CG28!$BT$45:$CG$75,DL1153_2025!AS$6,0),"-") -> 1.7 | AT35: =+IFERROR(VLOOKUP($C$4,DL_1153_2024_CG28!$BT$45:$CG$75,DL1153_2025!AT$6,0),"-") -> 1.7 | AU35: =+IFERROR(VLOOKUP($C$4,DL_1153_2024_CG28!$BT$45:$CG$75,DL1153_2025!AU$6,0),"-") -> 1.7 | AV35: =+IFERROR(VLOOKUP($C$4,DL_1153_2024_CG28!$BT$45:$CG$75,DL1153_2025!AV$6,0),"-") -> 1.7 | AW35: =+IFERROR(VLOOKUP($C$4,DL_1153_2024_CG28!$BT$45:$CG$75,DL1153_2025!AW$6,0),"-") -> 1.7 | AX35: =+IFERROR(VLOOKUP($C$4,DL_1153_2024_CG28!$BT$45:$CG$75,DL1153_2025!AX$6,0),"-") -> 1.7 | AY35: =+IFERROR(VLOOKUP($C$4,DL_1153_2024_CG28!$BT$45:$CG$75,DL1153_2025!AY$6,0),"-") -> 1.7 | AZ35: =+IFERROR(VLOOKUP($C$4,DL_1153_2024_CG28!$BT$45:$CG$75,DL1153_2025!AZ$6,0),"-") -> 1.8 | BA35: =+IFERROR(VLOOKUP($C$4,DL_1153_2024_CG28!$BT$45:$CG$75,DL1153_2025!BA$6,0),"-") -> 1.8
A36: DL_1153_2024_CG30 | B36: DGOS | C36: Ficha 30:Promedio de Espera para la Atención en Consulta Externa de un paciente referido | D36: =IFERROR(VLOOKUP($C$4,DL_1153_2024_CG30!FX46:FY75,2,0),"-") -> 16.0 | E36: =$AT$36 -> 29.8 | F36: =AP36 -> 6.4 | G36: =$AT$36 -> 29.8 | AP36: =+IFERROR(VLOOKUP($C$4,DL_1153_2024_CG30!$GA$46:$GM$75,DL1153_2025!AP$6,0),"-") -> 6.4 | AQ36: =+IFERROR(VLOOKUP($C$4,DL_1153_2024_CG30!$GA$46:$GM$75,DL1153_2025!AQ$6,0),"-") -> 15.1 | AR36: =+IFERROR(VLOOKUP($C$4,DL_1153_2024_CG30!$GA$46:$GM$75,DL1153_2025!AR$6,0),"-") -> 21.9 | AS36: =+IFERROR(VLOOKUP($C$4,DL_1153_2024_CG30!$GA$46:$GM$75,DL1153_2025!AS$6,0),"-") -> 24.2 | AT36: =+IFERROR(VLOOKUP($C$4,DL_1153_2024_CG30!$GA$46:$GM$75,DL1153_2025!AT$6,0),"-") -> 29.8 | AU36: =+IFERROR(VLOOKUP($C$4,DL_1153_2024_CG30!$GA$46:$GM$75,DL1153_2025!AU$6,0),"-") -> 39.5 | AV36: =+IFERROR(VLOOKUP($C$4,DL_1153_2024_CG30!$GA$46:$GM$75,DL1153_2025!AV$6,0),"-") -> 37.8 | AW36: =+IFERROR(VLOOKUP($C$4,DL_1153_2024_CG30!$GA$46:$GM$75,DL1153_2025!AW$6,0),"-") -> 46.0 | AX36: =+IFERROR(VLOOKUP($C$4,DL_1153_2024_CG30!$GA$46:$GM$75,DL1153_2025!AX$6,0),"-") -> 50.1 | AY36: =+IFERROR(VLOOKUP($C$4,DL_1153_2024_CG30!$GA$46:$GM$75,DL1153_2025!AY$6,0),"-") -> 42.6 | AZ36: =+IFERROR(VLOOKUP($C$4,DL_1153_2024_CG30!$GA$46:$GM$75,DL1153_2025!AZ$6,0),"-") -> 47.4 | BA36: =+IFERROR(VLOOKUP($C$4,DL_1153_2024_CG30!$GA$46:$GM$75,DL1153_2025!BA$6,0),"-") -> 81.3
A37: DL_1153_2024_CG32 | B37: DIGEP | C37: Ficha 32:Porcentaje de personal registrado en el aplicativo del Registro Nacional de Personal de Salud sin inconsistencias de informacion. | AP37: =+IFERROR(VLOOKUP($C$4,DL_1153_2024_CG30!$BV$45:$CH$75,DL1153_2025!AP$6,0),"-") -> - | AQ37: =+VLOOKUP($C$4,DL_1153_2024_CG22!$BQ$45:$CC$75,DL1153_2025!AQ$6,0) -> 8606.6% | AR37: =+VLOOKUP($C$4,DL_1153_2024_CG22!$BQ$45:$CC$75,DL1153_2025!AR$6,0) -> 9168.0% | AS37: =+VLOOKUP($C$4,DL_1153_2024_CG22!$BQ$45:$CC$75,DL1153_2025!AS$6,0) -> 8805.9% | AT37: =+VLOOKUP($C$4,DL_1153_2024_CG22!$BQ$45:$CC$75,DL1153_2025!AT$6,0) -> 9303.8% | AU37: =+VLOOKUP($C$4,DL_1153_2024_CG22!$BQ$45:$CC$75,DL1153_2025!AU$6,0) -> 8885.8% | AV37: =+VLOOKUP($C$4,DL_1153_2024_CG22!$BQ$45:$CC$75,DL1153_2025!AV$6,0) -> 8625.9% | AW37: =+VLOOKUP($C$4,DL_1153_2024_CG22!$BQ$45:$CC$75,DL1153_2025!AW$6,0) -> 8552.3% | AX37: =+VLOOKUP($C$4,DL_1153_2024_CG22!$BQ$45:$CC$75,DL1153_2025!AX$6,0) -> 9106.2% | AY37: =+VLOOKUP($C$4,DL_1153_2024_CG22!$BQ$45:$CC$75,DL1153_2025!AY$6,0) -> 9035.8% | AZ37: =+VLOOKUP($C$4,DL_1153_2024_CG22!$BQ$45:$CC$75,DL1153_2025!AZ$6,0) -> 8752.5% | BA37: =+VLOOKUP($C$4,DL_1153_2024_CG22!$BQ$45:$CC$75,DL1153_2025!BA$6,0) -> 7724.3%
B38: DIGEP | C38: Ficha 32: Porcentaje de personal registrado en el aplicativo del Registro Nacional de Personal de la Salud sin inconsistencias de información. | D38: =GETPIVOTDATA("Suma de Ind",#REF!) ->  | E38: =AW38 -> 95.5% | F38: =MIN($AP$38:$AW$38) -> 88.9% | G38: =MAX($AP$38:$AW$38) -> 95.5% | AP38: 88.9% | AQ38: 89.3% | AR38: 91.8% | AS38: 92.0% | AT38: 93.2% | AU38: 94.0% | AV38: 95.0% | AW38: 95.5% | AX38: 95.6% | AY38: 95.0% | AZ38: =GETPIVOTDATA("Suma de Ind",#REF!,"MES","Noviembre") ->  | BA38: =GETPIVOTDATA("Suma de Ind",#REF!,"MES","Diciembre") -> 
A39: DL_1153_2024_CG33 | B39: DIGTEL | C39: Ficha 32:Utilización de los servicios de telemedicina (teleinterconsultas, teleconsultas,telemonitoreo) | D39: =G39 -> 36.8 | E39: =D39 -> 36.8 | F39: =MIN(AP39:AQ39) -> 2.5 | G39: =MAX(AP39:AY39) -> 36.8 | AP39: 2.5 | AQ39: 10.7 | AR39: 16.8 | AS39: 19.9 | AT39: 21.5 | AU39: 25.9 | AV39: 29.9 | AW39: 32.8 | AX39: 36.6 | AY39: 36.8 | AZ39: =+VLOOKUP($C$4,DL_1153_2024_CG22!$BQ$45:$CC$75,DL1153_2025!AZ$6,0) -> 87.5 | BA39: =+VLOOKUP($C$4,DL_1153_2024_CG22!$BQ$45:$CC$75,DL1153_2025!BA$6,0) -> 77.2
AZ40: =+VLOOKUP($C$4,DL_1153_2024_CG22!$BQ$45:$CC$75,DL1153_2025!AZ$6,0) -> 8752.5% | BA40: =+VLOOKUP($C$4,DL_1153_2024_CG22!$BQ$45:$CC$75,DL1153_2025!BA$6,0) -> 7724.3%
B41: Periodo Evaluación:
B42: Diciembre - 2025
B44: Fuente de Datos: (Todo las atenciones hasta noviembre registradas al:)
B45: HIS MINSA 2025 (31/01/2026)
B46: PADRON NOMINAL (20/01/2026)
B47: CNV (22/01/2026)
B48: REFCON (31/01/2026)
B49: SEEM-EGRESOS (20/01/2026)
B50: SEEM- EMERGENCIA (20/01/2026)
B51: SETIPRESS - SUSALUD (02/02/2026)
B52: FICHA 500.2 (RENOXI) (20/01/2026)
B53: SIGTB (03/02/2026)
B54: SIASIS (31/12/2024)
B55: INFORHUS (02/11/2024)

Sheet DL_1153_2025_CG01
A1: =+DL1153_2025!C7 -> Ficha 01: Porcentaje de niñas y niños de 12 a 18 meses, con diagnóstico de anemia entre los 6 y 11 meses, que se han recuperado. | BN1: 1 | DT1: 1
A2: Periodo de Evaluación: | B2: =+DL1153_2025!B42 -> Diciembre - 2025
J3: seguro | K3: 1
J4: Diris | K4: (Todas)
A5: seguro | B5: 1 | J5: Red | K5: KIMBIRI PICHARI
A6: año | B6: 2025 | J6: Provincia | K6: (Todas)
A7: mes | B7: 12 | J7: Distrito | K7: (Todas)
A8: DIRESA/ DIRIS | B8: RED | C8: Provincia | D8: Distrito | E8: UBIGEO | F8: Denominador: Suma de DNI únicos de niños que cumplen entre 350 a 573 días de edad en el período de evaluación, con SIS, sin datos de seguro y sin seguro (población MINSA y Gobierno Regional), registrados en el padrón nominal con DNI, según el ámbito de la jurisdicción determinado por la residencia registrada en el padrón nominal Y Niños que cumplen 209 días posteriores al diagnóstico de anemia en el periodo de evaluación. | G8: Numerador: Suma de DNIs que forman parte del denominador que, a partir del último diagnóstico definitivo de anemia entre los 170 y 364 días de edad (11 meses 29 días), iniciaron oportunamente tratamiento (hasta 7 días desde el diagnóstico). Registrados en HIS con un rango de 25 a 70 días entre cada entrega de hierro. Se considerarán como mínimo 3 entregas. Y Registran en HIS su recuperación con diagnóstico repetitivo anemia y dosaje de hemoglobina. | H8: Indicador: Porcentaje de niñas y niños de 12 a 18 meses, con diagnóstico de anemia entre los 6 y 11 meses, que se han recuperado. | J8: AÑO | K8: MES | L8: Denominador: Suma de DNI únicos de niños que cumplen entre 350 a 573 días de edad en el período de evaluación, con SIS, sin datos de seguro y sin seguro (población MINSA y Gobierno Regional), registrados en el padrón nominal con DNI, según el ámbito de la jurisdicción determinado por la residencia registrada en el padrón nominal Y Niños que cumplen 209 días posteriores al diagnóstico de anemia en el periodo de evaluación. | M8: Numerador: Suma de DNIs que forman parte del denominador que, a partir del último diagnóstico definitivo de anemia entre los 170 y 364 días de edad (11 meses 29 días), iniciaron oportunamente tratamiento (hasta 7 días desde el diagnóstico). Registrados en HIS con un rango de 25 a 70 días entre cada entrega de hierro. Se considerarán como mínimo 3 entregas. Y Registran en HIS su recuperación con diagnóstico repetitivo anemia y dosaje de hemoglobina. | N8: Indicador: Porcentaje de niñas y niños de 12 a 18 meses, con diagnóstico de anemia entre los 6 y 11 meses, que se han recuperado.
A9: Diris | B9: Red | C9: Provincia | D9: Distrito | E9: ubigeo | F9: Denominador | G9: Numerador | H9: Suma de Ind | J9: año | K9: mes | L9: Denominador | M9: Numerador | N9: Suma de Ind
A10: CUSCO | B10: KIMBIRI PICHARI | C10: LA CONVENCION | D10: KIMBIRI | E10: 80907 | F10: 4 | G10: 1 | H10: 25.0% | J10: 2025 | K10: 1 | L10: 20 | M10: 5 | N10: 25.0%
A11: CUSCO | B11: KIMBIRI PICHARI | C11: LA CONVENCION | D11: PICHARI | E11: 80910 | F11: 9 | G11: 3 | H11: 33.3% | J11: 2025 | K11: 2 | L11: 12 | M11: 6 | N11: 50.0%
A12: CUSCO | B12: KIMBIRI PICHARI | C12: LA CONVENCION | D12: UNION ASHANINKA | E12: 80918 | F12: 3 | G12: 3 | H12: 100.0% | J12: 2025 | K12: 3 | L12: 15 | M12: 11 | N12: 73.3%
A13: CUSCO | B13: KIMBIRI PICHARI | C13: LA CONVENCION | D13: VILLA KINTIARINA | E13: 80913 | F13: 1 | G13: 1 | H13: 100.0% | J13: 2025 | K13: 4 | L13: 15 | M13: 6 | N13: 40.0%
A14: Total general | F14: 17 | G14: 8 | H14: 47.1% | J14: 2025 | K14: 5 | L14: 11 | M14: 6 | N14: 54.5%
J15: 2025 | K15: 6 | L15: 13 | M15: 4 | N15: 30.8%
J16: 2025 | K16: 7 | L16: 12 | M16: 4 | N16: 33.3%
J17: 2025 | K17: 8 | L17: 8 | M17: 7 | N17: 87.5%
J18: 2025 | K18: 9 | L18: 11 | M18: 7 | N18: 63.6%
J19: 2025 | K19: 10 | L19: 7 | M19: 5 | N19: 71.4%
J20: 2025 | K20: 11 | L20: 9 | M20: 8 | N20: 88.9%
J21: 2025 | K21: 12 | L21: 17 | M21: 8 | N21: 47.1%
J22: Total general | L22: 150 | M22: 77 | N22: 51.3% | BP22: año | BQ22: (Todas) | BU22: año | BV22: (Todas) | CN22: año | CO22: (Todas)
BP23: seguro | BQ23: 1 | BU23: seguro | BV23: 1 | CN23: seguro | CO23: 1
BP25: Diris | BQ25: Suma de IND | BU25: Suma de IND | BV25: mes | CN25: Suma de IND | CO25: Diris
BP26: AMAZONAS | BQ26: 31.1% | BU26: Diris | BV26: 1 | BW26: 2 | BX26: 3 | BY26: 4 | BZ26: 5 | CA26: 6 | CB26: 7 | CC26: 8 | CD26: 9 | CE26: 10 | CF26: 11 | CG26: 12 | CN26: mes | CO26: AMAZONAS | CP26: ANCASH | CQ26: APURIMAC | CR26: AREQUIPA | CS26: AYACUCHO | CT26: CAJAMARCA | CU26: CALLAO | CV26: CUSCO | CW26: HUANCAVELICA | CX26: HUANUCO | CY26: ICA | CZ26: JUNIN | DA26: LA LIBERTAD | DB26: LAMBAYEQUE | DC26: LIMA DIRIS CENTRO | DD26: LIMA DIRIS ESTE | DE26: LIMA DIRIS NORTE | DF26: LIMA DIRIS SUR | DG26: LIMA PROVINCIAS | DH26: LORETO | DI26: MADRE DE DIOS | DJ26: MOQUEGUA | DK26: PASCO | DL26: PIURA | DM26: PUNO | DN26: SAN MARTIN | DO26: TACNA | DP26: TUMBES | DQ26: UCAYALI | DR26: Total general
BP27: ANCASH | BQ27: 35.6% | BU27: AMAZONAS | BV27: 21.8% | BW27: 27.3% | BX27: 20.3% | BY27: 34.1% | BZ27: 33.8% | CA27: 38.2% | CB27: 31.0% | CC27: 39.7% | CD27: 29.2% | CE27: 49.0% | CF27: 26.4% | CG27: 28.6% | CN27: Enero | CO27: 21.8% | CP27: 28.4% | CQ27: 37.5% | CR27: 17.9% | CS27: 83.3% | CT27: 42.0% | CU27: 45.8% | CV27: 26.7% | CW27: 28.8% | CX27: 46.2% | CY27: 31.8% | CZ27: 59.2% | DA27: 54.1% | DB27: 31.1% | DC27: 29.2% | DD27: 35.3% | DE27: 18.5% | DF27: 40.5% | DG27: 64.8% | DH27: 15.3% | DI27: 35.1% | DJ27: 22.2% | DK27: 25.4% | DL27: 20.1% | DM27: 35.0% | DN27: 32.6% | DO27: 31.3% | DP27: 43.5% | DQ27: 25.5% | DR27: 31.1%
BP28: APURIMAC | BQ28: 60.0% | BU28: ANCASH | BV28: 28.4% | BW28: 35.0% | BX28: 36.1% | BY28: 34.9% | BZ28: 36.7% | CA28: 32.8% | CB28: 39.2% | CC28: 39.7% | CD28: 33.3% | CE28: 42.6% | CF28: 34.6% | CG28: 35.3% | CN28: Febrero | CO28: 27.3% | CP28: 35.0% | CQ28: 58.6% | CR28: 19.8% | CS28: 75.8% | CT28: 45.8% | CU28: 41.3% | CV28: 28.3% | CW28: 25.9% | CX28: 51.0% | CY28: 34.3% | CZ28: 51.2% | DA28: 58.1% | DB28: 37.2% | DC28: 31.9% | DD28: 38.2% | DE28: 16.9% | DF28: 59.8% | DG28: 60.9% | DH28: 17.7% | DI28: 24.4% | DJ28: 66.7% | DK28: 29.3% | DL28: 22.2% | DM28: 39.1% | DN28: 35.4% | DO28: 100.0% | DP28: 62.5% | DQ28: 23.6% | DR28: 35.0%
BP29: AREQUIPA | BQ29: 29.5% | BU29: APURIMAC | BV29: 37.5% | BW29: 58.6% | BX29: 47.5% | BY29: 65.0% | BZ29: 65.9% | CA29: 55.2% | CB29: 61.8% | CC29: 61.4% | CD29: 64.9% | CE29: 73.2% | CF29: 62.9% | CG29: 66.7% | CN29: Marzo | CO29: 20.3% | CP29: 36.1% | CQ29: 47.5% | CR29: 25.8% | CS29: 82.1% | CT29: 49.7% | CU29: 45.5% | CV29: 30.1% | CW29: 40.7% | CX29: 44.4% | CY29: 53.0% | CZ29: 54.2% | DA29: 53.5% | DB29: 34.0% | DC29: 36.0% | DD29: 37.7% | DE29: 16.2% | DF29: 54.1% | DG29: 45.2% | DH29: 18.3% | DI29: 45.9% | DJ29: 40.0% | DK29: 38.3% | DL29: 21.3% | DM29: 34.4% | DN29: 33.7% | DO29: 83.3% | DP29: 82.4% | DQ29: 23.9% | DR29: 36.5%
BP30: AYACUCHO | BQ30: 77.2% | BU30: AREQUIPA | BV30: 17.9% | BW30: 19.8% | BX30: 25.8% | BY30: 19.8% | BZ30: 31.9% | CA30: 30.9% | CB30: 31.7% | CC30: 35.1% | CD30: 35.5% | CE30: 34.2% | CF30: 31.7% | CG30: 36.3% | CN30: Abril | CO30: 34.1% | CP30: 34.9% | CQ30: 65.0% | CR30: 19.8% | CS30: 85.2% | CT30: 47.3% | CU30: 52.0% | CV30: 22.9% | CW30: 29.9% | CX30: 58.2% | CY30: 38.0% | CZ30: 57.5% | DA30: 60.8% | DB30: 37.1% | DC30: 32.9% | DD30: 49.7% | DE30: 25.4% | DF30: 57.0% | DG30: 41.0% | DH30: 14.3% | DI30: 49.1% | DJ30: 35.3% | DK30: 25.6% | DL30: 26.8% | DM30: 25.9% | DN30: 29.8% | DO30: 100.0% | DP30: 82.4% | DQ30: 27.5% | DR30: 37.6%
BP31: CAJAMARCA | BQ31: 45.5% | BU31: AYACUCHO | BV31: 83.3% | BW31: 75.8% | BX31: 82.1% | BY31: 85.2% | BZ31: 83.6% | CA31: 82.4% | CB31: 73.8% | CC31: 78.9% | CD31: 77.4% | CE31: 73.9% | CF31: 75.6% | CG31: 57.1% | CN31: Mayo | CO31: 33.8% | CP31: 36.7% | CQ31: 65.9% | CR31: 31.9% | CS31: 83.6% | CT31: 38.3% | CU31: 46.5% | CV31: 25.2% | CW31: 40.5% | CX31: 50.9% | CY31: 46.6% | CZ31: 63.2% | DA31: 75.6% | DB31: 34.1% | DC31: 42.2% | DD31: 52.0% | DE31: 26.8% | DF31: 55.8% | DG31: 56.0% | DH31: 23.5% | DI31: 31.0% | DJ31: 40.0% | DK31: 43.2% | DL31: 35.7% | DM31: 34.4% | DN31: 39.5% | DO31: 66.7% | DP31: 65.0% | DQ31: 32.2% | DR31: 41.9%
BP32: CALLAO | BQ32: 61.5% | BU32: CAJAMARCA | BV32: 42.0% | BW32: 45.8% | BX32: 49.7% | BY32: 47.3% | BZ32: 38.3% | CA32: 46.2% | CB32: 51.4% | CC32: 44.7% | CD32: 46.3% | CE32: 44.2% | CF32: 42.5% | CG32: 48.0% | CN32: Junio | CO32: 38.2% | CP32: 32.8% | CQ32: 55.2% | CR32: 30.9% | CS32: 82.4% | CT32: 46.2% | CU32: 63.6% | CV32: 32.9% | CW32: 44.6% | CX32: 55.7% | CY32: 54.2% | CZ32: 65.2% | DA32: 78.3% | DB32: 43.6% | DC32: 38.3% | DD32: 64.3% | DE32: 25.1% | DF32: 65.0% | DG32: 60.9% | DH32: 15.2% | DI32: 47.2% | DJ32: 21.4% | DK32: 40.6% | DL32: 32.4% | DM32: 24.3% | DN32: 38.8% | DO32: 54.5% | DP32: 60.9% | DQ32: 31.1% | DR32: 43.4%
BP33: CUSCO | BQ33: 29.5% | BU33: CALLAO | BV33: 45.8% | BW33: 41.3% | BX33: 45.5% | BY33: 52.0% | BZ33: 46.5% | CA33: 63.6% | CB33: 66.7% | CC33: 76.1% | CD33: 69.4% | CE33: 71.6% | CF33: 67.4% | CG33: 63.6% | CN33: Julio | CO33: 31.0% | CP33: 39.2% | CQ33: 61.8% | CR33: 31.7% | CS33: 73.8% | CT33: 51.4% | CU33: 66.7% | CV33: 24.8% | CW33: 46.3% | CX33: 58.5% | CY33: 57.8% | CZ33: 62.5% | DA33: 72.7% | DB33: 55.4% | DC33: 36.7% | DD33: 66.0% | DE33: 33.0% | DF33: 73.0% | DG33: 51.6% | DH33: 19.1% | DI33: 52.0% | DJ33: 41.7% | DK33: 26.9% | DL33: 34.0% | DM33: 35.5% | DN33: 41.7% | DO33: 38.5% | DP33: 54.5% | DQ33: 42.4% | DR33: 45.9%
BP34: HUANCAVELICA | BQ34: 37.8% | BU34: CUSCO | BV34: 26.7% | BW34: 28.3% | BX34: 30.1% | BY34: 22.9% | BZ34: 25.2% | CA34: 32.9% | CB34: 24.8% | CC34: 34.0% | CD34: 27.2% | CE34: 34.0% | CF34: 28.9% | CG34: 39.8% | CN34: Agosto | CO34: 39.7% | CP34: 39.7% | CQ34: 61.4% | CR34: 35.1% | CS34: 78.9% | CT34: 44.7% | CU34: 76.1% | CV34: 34.0% | CW34: 38.9% | CX34: 55.4% | CY34: 64.8% | CZ34: 64.5% | DA34: 73.4% | DB34: 50.7% | DC34: 43.9% | DD34: 69.3% | DE34: 46.4% | DF34: 76.7% | DG34: 73.0% | DH34: 25.6% | DI34: 43.2% | DJ34: 50.0% | DK34: 38.1% | DL34: 30.5% | DM34: 41.5% | DN34: 41.8% | DO34: 73.3% | DP34: 58.3% | DQ34: 36.4% | DR34: 49.6%
BP35: HUANUCO | BQ35: 53.3% | BU35: HUANCAVELICA | BV35: 28.8% | BW35: 25.9% | BX35: 40.7% | BY35: 29.9% | BZ35: 40.5% | CA35: 44.6% | CB35: 46.3% | CC35: 38.9% | CD35: 38.9% | CE35: 43.1% | CF35: 38.1% | CG35: 38.3% | CN35: Setiembre | CO35: 29.2% | CP35: 33.3% | CQ35: 64.9% | CR35: 35.5% | CS35: 77.4% | CT35: 46.3% | CU35: 69.4% | CV35: 27.2% | CW35: 38.9% | CX35: 52.2% | CY35: 63.4% | CZ35: 52.8% | DA35: 69.5% | DB35: 50.4% | DC35: 47.7% | DD35: 78.7% | DE35: 38.3% | DF35: 68.9% | DG35: 52.8% | DH35: 23.9% | DI35: 38.6% | DJ35: 55.6% | DK35: 41.5% | DL35: 38.3% | DM35: 21.4% | DN35: 39.0% | DO35: 64.9% | DP35: 58.8% | DQ35: 38.5% | DR35: 47.5%
BP36: ICA | BQ36: 52.7% | BU36: HUANUCO | BV36: 46.2% | BW36: 51.0% | BX36: 44.4% | BY36: 58.2% | BZ36: 50.9% | CA36: 55.7% | CB36: 58.5% | CC36: 55.4% | CD36: 52.2% | CE36: 46.5% | CF36: 60.7% | CG36: 63.9% | CN36: Octubre | CO36: 49.0% | CP36: 42.6% | CQ36: 73.2% | CR36: 34.2% | CS36: 73.9% | CT36: 44.2% | CU36: 71.6% | CV36: 34.0% | CW36: 43.1% | CX36: 46.5% | CY36: 67.3% | CZ36: 52.6% | DA36: 65.3% | DB36: 38.1% | DC36: 45.7% | DD36: 69.8% | DE36: 30.7% | DF36: 65.8% | DG36: 48.2% | DH36: 22.0% | DI36: 50.0% | DJ36: 11.1% | DK36: 29.0% | DL36: 32.5% | DM36: 33.3% | DN36: 30.2% | DO36: 50.0% | DP36: 58.1% | DQ36: 32.8% | DR36: 44.9%
BP37: JUNIN | BQ37: 57.8% | BU37: ICA | BV37: 31.8% | BW37: 34.3% | BX37: 53.0% | BY37: 38.0% | BZ37: 46.6% | CA37: 54.2% | CB37: 57.8% | CC37: 64.8% | CD37: 63.4% | CE37: 67.3% | CF37: 58.2% | CG37: 56.3% | CN37: Noviembre | CO37: 26.4% | CP37: 34.6% | CQ37: 62.9% | CR37: 31.7% | CS37: 75.6% | CT37: 42.5% | CU37: 67.4% | CV37: 28.9% | CW37: 38.1% | CX37: 60.7% | CY37: 58.2% | CZ37: 58.2% | DA37: 71.2% | DB37: 45.8% | DC37: 30.0% | DD37: 71.2% | DE37: 35.1% | DF37: 62.2% | DG37: 70.5% | DH37: 22.4% | DI37: 43.5% | DJ37: 25.0% | DK37: 35.7% | DL37: 26.8% | DM37: 36.8% | DN37: 46.3% | DO37: 70.0% | DP37: 66.7% | DQ37: 34.1% | DR37: 43.9%
BP38: LA LIBERTAD | BQ38: 66.3% | BU38: JUNIN | BV38: 59.2% | BW38: 51.2% | BX38: 54.2% | BY38: 57.5% | BZ38: 63.2% | CA38: 65.2% | CB38: 62.5% | CC38: 64.5% | CD38: 52.8% | CE38: 52.6% | CF38: 58.2% | CG38: 49.5% | CN38: Diciembre | CO38: 28.6% | CP38: 35.3% | CQ38: 66.7% | CR38: 36.3% | CS38: 57.1% | CT38: 48.0% | CU38: 63.6% | CV38: 39.8% | CW38: 38.3% | CX38: 63.9% | CY38: 56.3% | CZ38: 49.5% | DA38: 63.1% | DB38: 39.0% | DC38: 34.6% | DD38: 56.2% | DE38: 35.1% | DF38: 58.9% | DG38: 50.0% | DH38: 20.2% | DI38: 45.2% | DJ38: 45.5% | DK38: 30.8% | DL38: 21.3% | DM38: 32.4% | DN38: 34.4% | DO38: 63.6% | DP38: 85.7% | DQ38: 35.6% | DR38: 42.1%
BP39: LAMBAYEQUE | BQ39: 41.6% | BU39: LA LIBERTAD | BV39: 54.1% | BW39: 58.1% | BX39: 53.5% | BY39: 60.8% | BZ39: 75.6% | CA39: 78.3% | CB39: 72.7% | CC39: 73.4% | CD39: 69.5% | CE39: 65.3% | CF39: 71.2% | CG39: 63.1%
BP40: LIMA DIRIS CENTRO | BQ40: 38.3% | BU40: LAMBAYEQUE | BV40: 31.1% | BW40: 37.2% | BX40: 34.0% | BY40: 37.1% | BZ40: 34.1% | CA40: 43.6% | CB40: 55.4% | CC40: 50.7% | CD40: 50.4% | CE40: 38.1% | CF40: 45.8% | CG40: 39.0%
BP41: LIMA DIRIS ESTE | BQ41: 59.9% | BU41: LIMA DIRIS CENTRO | BV41: 29.2% | BW41: 31.9% | BX41: 36.0% | BY41: 32.9% | BZ41: 42.2% | CA41: 38.3% | CB41: 36.7% | CC41: 43.9% | CD41: 47.7% | CE41: 45.7% | CF41: 30.0% | CG41: 34.6%
BP42: LIMA DIRIS NORTE | BQ42: 31.1% | BU42: LIMA DIRIS ESTE | BV42: 35.3% | BW42: 38.2% | BX42: 37.7% | BY42: 49.7% | BZ42: 52.0% | CA42: 64.3% | CB42: 66.0% | CC42: 69.3% | CD42: 78.7% | CE42: 69.8% | CF42: 71.2% | CG42: 56.2%
BP43: LIMA DIRIS SUR | BQ43: 62.9% | BU43: LIMA DIRIS NORTE | BV43: 18.5% | BW43: 16.9% | BX43: 16.2% | BY43: 25.4% | BZ43: 26.8% | CA43: 25.1% | CB43: 33.0% | CC43: 46.4% | CD43: 38.3% | CE43: 30.7% | CF43: 35.1% | CG43: 35.1%
BP44: LIMA PROVINCIAS | BQ44: 57.2% | BU44: LIMA DIRIS SUR | BV44: 40.5% | BW44: 59.8% | BX44: 54.1% | BY44: 57.0% | BZ44: 55.8% | CA44: 65.0% | CB44: 73.0% | CC44: 76.7% | CD44: 68.9% | CE44: 65.8% | CF44: 62.2% | CG44: 58.9%
BP45: LORETO | BQ45: 19.2% | BU45: LIMA PROVINCIAS | BV45: 64.8% | BW45: 60.9% | BX45: 45.2% | BY45: 41.0% | BZ45: 56.0% | CA45: 60.9% | CB45: 51.6% | CC45: 73.0% | CD45: 52.8% | CE45: 48.2% | CF45: 70.5% | CG45: 50.0%
BP46: MADRE DE DIOS | BQ46: 41.2% | BU46: LORETO | BV46: 15.3% | BW46: 17.7% | BX46: 18.3% | BY46: 14.3% | BZ46: 23.5% | CA46: 15.2% | CB46: 19.1% | CC46: 25.6% | CD46: 23.9% | CE46: 22.0% | CF46: 22.4% | CG46: 20.2%
BP47: MOQUEGUA | BQ47: 39.3% | BU47: MADRE DE DIOS | BV47: 35.1% | BW47: 24.4% | BX47: 45.9% | BY47: 49.1% | BZ47: 31.0% | CA47: 47.2% | CB47: 52.0% | CC47: 43.2% | CD47: 38.6% | CE47: 50.0% | CF47: 43.5% | CG47: 45.2% | CO47: AMAZONAS | CP47: ANCASH | CQ47: APURIMAC | CR47: AREQUIPA | CS47: AYACUCHO | CT47: CAJAMARCA | CU47: CALLAO | CV47: CUSCO | CW47: HUANCAVELICA | CX47: HUANUCO | CY47: ICA | CZ47: JUNIN | DA47: LA LIBERTAD | DB47: LAMBAYEQUE | DC47: LIMA DIRIS CENTRO | DD47: LIMA DIRIS ESTE | DE47: LIMA DIRIS NORTE | DF47: LIMA DIRIS SUR | DG47: LIMA PROVINCIAS | DH47: LORETO | DI47: MADRE DE DIOS | DJ47: MOQUEGUA | DK47: PASCO | DL47: PIURA | DM47: PUNO | DN47: SAN MARTIN | DO47: TACNA | DP47: TUMBES | DQ47: UCAYALI | DR47: NACIONAL
BP48: PASCO | BQ48: 33.5% | BU48: MOQUEGUA | BV48: 22.2% | BW48: 66.7% | BX48: 40.0% | BY48: 35.3% | BZ48: 40.0% | CA48: 21.4% | CB48: 41.7% | CC48: 50.0% | CD48: 55.6% | CE48: 11.1% | CF48: 25.0% | CG48: 45.5% | CN48: Enero | CO48: =+GETPIVOTDATA("IND",$CN$25,"Diris",CO$47,"mes",$CN48) -> 21.8% | CP48: =+GETPIVOTDATA("IND",$CN$25,"Diris",CP$47,"mes",$CN48) -> 28.4% | CQ48: 37.5% | CR48: 17.9% | CS48: 83.3% | CT48: 42.0% | CU48: 45.8% | CV48: 26.7% | CW48: 28.8% | CX48: 46.2% | CY48: 31.8% | CZ48: 59.2% | DA48: 54.1% | DB48: 31.1% | DC48: 29.2% | DD48: 35.3% | DE48: 18.5% | DF48: 40.5% | DG48: 64.8% | DH48: 15.3% | DI48: 35.1% | DJ48: 22.2% | DK48: 25.4% | DL48: 20.1% | DM48: 35.0% | DN48: 32.6% | DO48: 31.3% | DP48: 43.5% | DQ48: 25.5% | DR48: =+GETPIVOTDATA("IND",$CN$25,"mes",$CN48) -> 31.1%
BP49: PIURA | BQ49: 28.4% | BU49: PASCO | BV49: 25.4% | BW49: 29.3% | BX49: 38.3% | BY49: 25.6% | BZ49: 43.2% | CA49: 40.6% | CB49: 26.9% | CC49: 38.1% | CD49: 41.5% | CE49: 29.0% | CF49: 35.7% | CG49: 30.8% | CN49: Febrero | CO49: =+GETPIVOTDATA("IND",$CN$25,"Diris",CO$47,"mes",$CN49) -> 27.3% | CP49: 35.0% | CQ49: 58.6% | CR49: 19.8% | CS49: 75.8% | CT49: 45.8% | CU49: 41.3% | CV49: 28.3% | CW49: 25.9% | CX49: 51.0% | CY49: 34.3% | CZ49: 51.2% | DA49: 58.1% | DB49: 37.2% | DC49: 31.9% | DD49: 38.2% | DE49: 16.9% | DF49: 59.8% | DG49: 60.9% | DH49: 17.7% | DI49: 24.4% | DJ49: 66.7% | DK49: 29.3% | DL49: 22.2% | DM49: 39.1% | DN49: 35.4% | DO49: 100.0% | DP49: 62.5% | DQ49: 23.6% | DR49: =+GETPIVOTDATA("IND",$CN$25,"mes",$CN49) -> 35.0%
BP50: PUNO | BQ50: 32.4% | BU50: PIURA | BV50: 20.1% | BW50: 22.2% | BX50: 21.3% | BY50: 26.8% | BZ50: 35.7% | CA50: 32.4% | CB50: 34.0% | CC50: 30.5% | CD50: 38.3% | CE50: 32.5% | CF50: 26.8% | CG50: 21.3% | CN50: Marzo | CO50: 20.3% | CP50: 36.1% | CQ50: 47.5% | CR50: 25.8% | CS50: 82.1% | CT50: 49.7% | CU50: 45.5% | CV50: 30.1% | CW50: 40.7% | CX50: 44.4% | CY50: 53.0% | CZ50: 54.2% | DA50: 53.5% | DB50: 34.0% | DC50: 36.0% | DD50: 37.7% | DE50: 16.2% | DF50: 54.1% | DG50: 45.2% | DH50: 18.3% | DI50: 45.9% | DJ50: 40.0% | DK50: 38.3% | DL50: 21.3% | DM50: 34.4% | DN50: 33.7% | DO50: 83.3% | DP50: 82.4% | DQ50: 23.9% | DR50: 36.5%
BP51: SAN MARTIN | BQ51: 36.2% | BU51: PUNO | BV51: 35.0% | BW51: 39.1% | BX51: 34.4% | BY51: 25.9% | BZ51: 34.4% | CA51: 24.3% | CB51: 35.5% | CC51: 41.5% | CD51: 21.4% | CE51: 33.3% | CF51: 36.8% | CG51: 32.4% | CN51: Abril | CO51: 34.1% | CP51: 34.9% | CQ51: 65.0% | CR51: 19.8% | CS51: 85.2% | CT51: 47.3% | CU51: 52.0% | CV51: 22.9% | CW51: 29.9% | CX51: 58.2% | CY51: 38.0% | CZ51: 57.5% | DA51: 60.8% | DB51: 37.1% | DC51: 32.9% | DD51: 49.7% | DE51: 25.4% | DF51: 57.0% | DG51: 41.0% | DH51: 14.3% | DI51: 49.1% | DJ51: 35.3% | DK51: 25.6% | DL51: 26.8% | DM51: 25.9% | DN51: 29.8% | DO51: 100.0% | DP51: 82.4% | DQ51: 27.5% | DR51: 37.6%
BP52: TACNA | BQ52: 62.2% | BU52: SAN MARTIN | BV52: 32.6% | BW52: 35.4% | BX52: 33.7% | BY52: 29.8% | BZ52: 39.5% | CA52: 38.8% | CB52: 41.7% | CC52: 41.8% | CD52: 39.0% | CE52: 30.2% | CF52: 46.3% | CG52: 34.4% | CN52: Mayo | CO52: 33.8% | CP52: 36.7% | CQ52: 65.9% | CR52: 31.9% | CS52: 83.6% | CT52: 38.3% | CU52: 46.5% | CV52: 25.2% | CW52: 40.5% | CX52: 50.9% | CY52: 46.6% | CZ52: 63.2% | DA52: 75.6% | DB52: 34.1% | DC52: 42.2% | DD52: 52.0% | DE52: 26.8% | DF52: 55.8% | DG52: 56.0% | DH52: 23.5% | DI52: 31.0% | DJ52: 40.0% | DK52: 43.2% | DL52: 35.7% | DM52: 34.4% | DN52: 39.5% | DO52: 66.7% | DP52: 65.0% | DQ52: 32.2% | DR52: 41.9%
BP53: TUMBES | BQ53: 63.3% | BU53: TACNA | BV53: 31.3% | BW53: 100.0% | BX53: 83.3% | BY53: 100.0% | BZ53: 66.7% | CA53: 54.5% | CB53: 38.5% | CC53: 73.3% | CD53: 64.9% | CE53: 50.0% | CF53: 70.0% | CG53: 63.6% | CN53: Junio | CO53: 38.2% | CP53: 32.8% | CQ53: 55.2% | CR53: 30.9% | CS53: 82.4% | CT53: 46.2% | CU53: 63.6% | CV53: 32.9% | CW53: 44.6% | CX53: 55.7% | CY53: 54.2% | CZ53: 65.2% | DA53: 78.3% | DB53: 43.6% | DC53: 38.3% | DD53: 64.3% | DE53: 25.1% | DF53: 65.0% | DG53: 60.9% | DH53: 15.2% | DI53: 47.2% | DJ53: 21.4% | DK53: 40.6% | DL53: 32.4% | DM53: 24.3% | DN53: 38.8% | DO53: 54.5% | DP53: 60.9% | DQ53: 31.1% | DR53: 43.4%
BP54: UCAYALI | BQ54: 32.1% | BU54: TUMBES | BV54: 43.5% | BW54: 62.5% | BX54: 82.4% | BY54: 82.4% | BZ54: 65.0% | CA54: 60.9% | CB54: 54.5% | CC54: 58.3% | CD54: 58.8% | CE54: 58.1% | CF54: 66.7% | CG54: 85.7% | CN54: Julio | CO54: 31.0% | CP54: 39.2% | CQ54: 61.8% | CR54: 31.7% | CS54: 73.8% | CT54: 51.4% | CU54: 66.7% | CV54: 24.8% | CW54: 46.3% | CX54: 58.5% | CY54: 57.8% | CZ54: 62.5% | DA54: 72.7% | DB54: 55.4% | DC54: 36.7% | DD54: 66.0% | DE54: 33.0% | DF54: 73.0% | DG54: 51.6% | DH54: 19.1% | DI54: 52.0% | DJ54: 41.7% | DK54: 26.9% | DL54: 34.0% | DM54: 35.5% | DN54: 41.7% | DO54: 38.5% | DP54: 54.5% | DQ54: 42.4% | DR54: 45.9%
BP55: Total general | BQ55: 41.7% | BU55: UCAYALI | BV55: 25.5% | BW55: 23.6% | BX55: 23.9% | BY55: 27.5% | BZ55: 32.2% | CA55: 31.1% | CB55: 42.4% | CC55: 36.4% | CD55: 38.5% | CE55: 32.8% | CF55: 34.1% | CG55: 35.6% | CN55: Agosto | CO55: 39.7% | CP55: 39.7% | CQ55: 61.4% | CR55: 35.1% | CS55: 78.9% | CT55: 44.7% | CU55: 76.1% | CV55: 34.0% | CW55: 38.9% | CX55: 55.4% | CY55: 64.8% | CZ55: 64.5% | DA55: 73.4% | DB55: 50.7% | DC55: 43.9% | DD55: 69.3% | DE55: 46.4% | DF55: 76.7% | DG55: 73.0% | DH55: 25.6% | DI55: 43.2% | DJ55: 50.0% | DK55: 38.1% | DL55: 30.5% | DM55: 41.5% | DN55: 41.8% | DO55: 73.3% | DP55: 58.3% | DQ55: 36.4% | DR55: 49.6%
BU56: Total general | BV56: 31.1% | BW56: 35.0% | BX56: 36.5% | BY56: 37.6% | BZ56: 41.9% | CA56: 43.4% | CB56: 45.9% | CC56: 49.6% | CD56: 47.5% | CE56: 44.9% | CF56: 43.9% | CG56: 42.1% | CN56: Setiembre | CO56: 29.2% | CP56: 33.3% | CQ56: 64.9% | CR56: 35.5% | CS56: 77.4% | CT56: 46.3% | CU56: 69.4% | CV56: 27.2% | CW56: 38.9% | CX56: 52.2% | CY56: 63.4% | CZ56: 52.8% | DA56: 69.5% | DB56: 50.4% | DC56: 47.7% | DD56: 78.7% | DE56: 38.3% | DF56: 68.9% | DG56: 52.8% | DH56: 23.9% | DI56: 38.6% | DJ56: 55.6% | DK56: 41.5% | DL56: 38.3% | DM56: 21.4% | DN56: 39.0% | DO56: 64.9% | DP56: 58.8% | DQ56: 38.5% | DR56: 47.5%
CN57: Octubre | CO57: 49.0% | CP57: 42.6% | CQ57: 73.2% | CR57: 34.2% | CS57: 73.9% | CT57: 44.2% | CU57: 71.6% | CV57: 34.0% | CW57: 43.1% | CX57: 46.5% | CY57: 67.3% | CZ57: 52.6% | DA57: 65.3% | DB57: 38.1% | DC57: 45.7% | DD57: 69.8% | DE57: 30.7% | DF57: 65.8% | DG57: 48.2% | DH57: =+GETPIVOTDATA("IND",$CN$25,"Diris",DH$47,"mes",$CN57) -> 22.0% | DI57: 50.0% | DJ57: 11.1% | DK57: 29.0% | DL57: 32.5% | DM57: 33.3% | DN57: 30.2% | DO57: 50.0% | DP57: 58.1% | DQ57: 32.8% | DR57: 44.9%
CN58: Noviembre | CO58: 26.4% | CP58: 34.6% | CQ58: 62.9% | CR58: 31.7% | CS58: 75.6% | CT58: 42.5% | CU58: 67.4% | CV58: 28.9% | CW58: 38.1% | CX58: 60.7% | CY58: 58.2% | CZ58: 58.2% | DA58: 71.2% | DB58: 45.8% | DC58: 30.0% | DD58: 71.2% | DE58: 35.1% | DF58: 62.2% | DG58: 70.5% | DH58: 22.4% | DI58: 43.5% | DJ58: 25.0% | DK58: 35.7% | DL58: 26.8% | DM58: 36.8% | DN58: 46.3% | DO58: 70.0% | DP58: 66.7% | DQ58: 34.1% | DR58: 43.9%
CN59: Diciembre | CO59: 28.6% | CP59: 35.3% | CQ59: 66.7% | CR59: 36.3% | CS59: 57.1% | CT59: 48.0% | CU59: 63.6% | CV59: 39.8% | CW59: 38.3% | CX59: 63.9% | CY59: 56.3% | CZ59: 49.5% | DA59: 63.1% | DB59: 39.0% | DC59: 34.6% | DD59: 56.2% | DE59: 35.1% | DF59: 58.9% | DG59: 50.0% | DH59: 20.2% | DI59: 45.2% | DJ59: 45.5% | DK59: 30.8% | DL59: 21.3% | DM59: 32.4% | DN59: 34.4% | DO59: 63.6% | DP59: 85.7% | DQ59: 35.6% | DR59: 42.1%
BV61: 1 | BW61: 2 | BX61: 3 | BY61: 4 | BZ61: 5 | CA61: 6 | CB61: 7 | CC61: 8 | CD61: 9 | CE61: 10 | CF61: 11 | CG61: 12
BP62: AMAZONAS | BQ62: =+IFERROR(GETPIVOTDATA("IND",$BP$25,"Diris",$BP62),"-") -> 31.1% | BU62: AMAZONAS | BV62: =+IFERROR(GETPIVOTDATA("IND",$BU$25,"Diris",$BU62,"mes",BV$61),"-") -> 21.8% | BW62: =+IFERROR(GETPIVOTDATA("IND",$BU$25,"Diris",$BU62,"mes",BW$61),"-") -> 27.3% | BX62: 20.3% | BY62: 34.1% | BZ62: 33.8% | CA62: 38.2% | CB62: 31.0% | CC62: 39.7% | CD62: 29.2% | CE62: 49.0% | CF62: 26.4% | CG62: 28.6% | CI62: AMAZONAS | CJ62: =+IF(BV62="-","-",MIN(BV62:CG62)) -> 20.3% | CK62: =+IF(BV62="-","-",MAX(BV62:CG62)) -> 49.0%
BP63: ANCASH | BQ63: =+IFERROR(GETPIVOTDATA("IND",$BP$25,"Diris",$BP63),"-") -> 35.6% | BU63: ANCASH | BV63: =+IFERROR(GETPIVOTDATA("IND",$BU$25,"Diris",$BU63,"mes",BV$61),"-") -> 28.4% | BW63: 35.0% | BX63: 36.1% | BY63: 34.9% | BZ63: 36.7% | CA63: 32.8% | CB63: 39.2% | CC63: 39.7% | CD63: 33.3% | CE63: 42.6% | CF63: 34.6% | CG63: 35.3% | CI63: ANCASH | CJ63: =+IF(BV63="-","-",MIN(BV63:CG63)) -> 28.4% | CK63: =+IF(BV63="-","-",MAX(BV63:CG63)) -> 42.6%
BP64: APURIMAC | BQ64: 60.0% | BU64: APURIMAC | BV64: 37.5% | BW64: 58.6% | BX64: 47.5% | BY64: 65.0% | BZ64: 65.9% | CA64: 55.2% | CB64: 61.8% | CC64: 61.4% | CD64: 64.9% | CE64: 73.2% | CF64: 62.9% | CG64: 66.7% | CI64: APURIMAC | CJ64: 37.5% | CK64: 73.2%
BP65: AREQUIPA | BQ65: 29.5% | BU65: AREQUIPA | BV65: 17.9% | BW65: 19.8% | BX65: 25.8% | BY65: 19.8% | BZ65: 31.9% | CA65: 30.9% | CB65: 31.7% | CC65: 35.1% | CD65: 35.5% | CE65: 34.2% | CF65: 31.7% | CG65: 36.3% | CI65: AREQUIPA | CJ65: 17.9% | CK65: 36.3%
BP66: AYACUCHO | BQ66: 77.2% | BU66: AYACUCHO | BV66: 83.3% | BW66: 75.8% | BX66: 82.1% | BY66: 85.2% | BZ66: 83.6% | CA66: 82.4% | CB66: 73.8% | CC66: 78.9% | CD66: 77.4% | CE66: 73.9% | CF66: 75.6% | CG66: 57.1% | CI66: AYACUCHO | CJ66: 57.1% | CK66: 85.2%
BP67: CAJAMARCA | BQ67: 45.5% | BU67: CAJAMARCA | BV67: 42.0% | BW67: 45.8% | BX67: 49.7% | BY67: 47.3% | BZ67: 38.3% | CA67: 46.2% | CB67: 51.4% | CC67: 44.7% | CD67: 46.3% | CE67: 44.2% | CF67: 42.5% | CG67: 48.0% | CI67: CAJAMARCA | CJ67: 38.3% | CK67: 51.4%
BP68: CALLAO | BQ68: 61.5% | BU68: CALLAO | BV68: 45.8% | BW68: 41.3% | BX68: 45.5% | BY68: 52.0% | BZ68: 46.5% | CA68: 63.6% | CB68: 66.7% | CC68: 76.1% | CD68: 69.4% | CE68: 71.6% | CF68: 67.4% | CG68: 63.6% | CI68: CALLAO | CJ68: 41.3% | CK68: 76.1%
BP69: CUSCO | BQ69: 29.5% | BU69: CUSCO | BV69: 26.7% | BW69: 28.3% | BX69: 30.1% | BY69: 22.9% | BZ69: 25.2% | CA69: 32.9% | CB69: 24.8% | CC69: 34.0% | CD69: 27.2% | CE69: 34.0% | CF69: 28.9% | CG69: 39.8% | CI69: CUSCO | CJ69: 22.9% | CK69: 39.8%
BP70: HUANCAVELICA | BQ70: 37.8% | BU70: HUANCAVELICA | BV70: 28.8% | BW70: 25.9% | BX70: 40.7% | BY70: 29.9% | BZ70: 40.5% | CA70: 44.6% | CB70: 46.3% | CC70: 38.9% | CD70: 38.9% | CE70: 43.1% | CF70: 38.1% | CG70: 38.3% | CI70: HUANCAVELICA | CJ70: 25.9% | CK70: 46.3%
BP71: HUANUCO | BQ71: 53.3% | BU71: HUANUCO | BV71: 46.2% | BW71: 51.0% | BX71: 44.4% | BY71: 58.2% | BZ71: 50.9% | CA71: 55.7% | CB71: 58.5% | CC71: 55.4% | CD71: 52.2% | CE71: 46.5% | CF71: 60.7% | CG71: 63.9% | CI71: HUANUCO | CJ71: 44.4% | CK71: 63.9%
BP72: ICA | BQ72: 52.7% | BU72: ICA | BV72: 31.8% | BW72: 34.3% | BX72: 53.0% | BY72: 38.0% | BZ72: 46.6% | CA72: 54.2% | CB72: 57.8% | CC72: 64.8% | CD72: 63.4% | CE72: 67.3% | CF72: 58.2% | CG72: 56.3% | CI72: ICA | CJ72: 31.8% | CK72: 67.3%
BP73: JUNIN | BQ73: 57.8% | BU73: JUNIN | BV73: 59.2% | BW73: 51.2% | BX73: 54.2% | BY73: 57.5% | BZ73: 63.2% | CA73: 65.2% | CB73: 62.5% | CC73: 64.5% | CD73: 52.8% | CE73: 52.6% | CF73: 58.2% | CG73: 49.5% | CI73: JUNIN | CJ73: 49.5% | CK73: 65.2%
BP74: LA LIBERTAD | BQ74: 66.3% | BU74: LA LIBERTAD | BV74: 54.1% | BW74: 58.1% | BX74: 53.5% | BY74: 60.8% | BZ74: 75.6% | CA74: 78.3% | CB74: 72.7% | CC74: 73.4% | CD74: 69.5% | CE74: 65.3% | CF74: 71.2% | CG74: 63.1% | CI74: LA LIBERTAD | CJ74: 53.5% | CK74: 78.3%
BP75: LAMBAYEQUE | BQ75: 41.6% | BU75: LAMBAYEQUE | BV75: 31.1% | BW75: 37.2% | BX75: 34.0% | BY75: 37.1% | BZ75: 34.1% | CA75: 43.6% | CB75: 55.4% | CC75: 50.7% | CD75: 50.4% | CE75: 38.1% | CF75: 45.8% | CG75: 39.0% | CI75: LAMBAYEQUE | CJ75: 31.1% | CK75: 55.4%
BP76: LIMA DIRIS CENTRO | BQ76: 38.3% | BU76: LIMA DIRIS CENTRO | BV76: 29.2% | BW76: 31.9% | BX76: 36.0% | BY76: 32.9% | BZ76: 42.2% | CA76: 38.3% | CB76: 36.7% | CC76: 43.9% | CD76: 47.7% | CE76: 45.7% | CF76: 30.0% | CG76: 34.6% | CI76: LIMA DIRIS CENTRO | CJ76: 29.2% | CK76: 47.7%
BP77: LIMA DIRIS ESTE | BQ77: 59.9% | BU77: LIMA DIRIS ESTE | BV77: 35.3% | BW77: 38.2% | BX77: 37.7% | BY77: 49.7% | BZ77: 52.0% | CA77: 64.3% | CB77: 66.0% | CC77: 69.3% | CD77: 78.7% | CE77: 69.8% | CF77: 71.2% | CG77: 56.2% | CI77: LIMA DIRIS ESTE | CJ77: 35.3% | CK77: 78.7%
BP78: LIMA DIRIS NORTE | BQ78: 31.1% | BU78: LIMA DIRIS NORTE | BV78: 18.5% | BW78: 16.9% | BX78: 16.2% | BY78: 25.4% | BZ78: 26.8% | CA78: 25.1% | CB78: 33.0% | CC78: 46.4% | CD78: 38.3% | CE78: 30.7% | CF78: 35.1% | CG78: 35.1% | CI78: LIMA DIRIS NORTE | CJ78: 16.2% | CK78: 46.4%
BP79: LIMA DIRIS SUR | BQ79: 62.9% | BU79: LIMA DIRIS SUR | BV79: 40.5% | BW79: 59.8% | BX79: 54.1% | BY79: 57.0% | BZ79: 55.8% | CA79: 65.0% | CB79: 73.0% | CC79: 76.7% | CD79: 68.9% | CE79: 65.8% | CF79: 62.2% | CG79: 58.9% | CI79: LIMA DIRIS SUR | CJ79: 40.5% | CK79: 76.7%
BP80: LIMA PROVINCIAS | BQ80: 57.2% | BU80: LIMA PROVINCIAS | BV80: 64.8% | BW80: 60.9% | BX80: 45.2% | BY80: 41.0% | BZ80: 56.0% | CA80: 60.9% | CB80: 51.6% | CC80: 73.0% | CD80: 52.8% | CE80: 48.2% | CF80: 70.5% | CG80: 50.0% | CI80: LIMA PROVINCIAS | CJ80: 41.0% | CK80: 73.0%
BP81: LORETO | BQ81: 19.2% | BU81: LORETO | BV81: 15.3% | BW81: 17.7% | BX81: 18.3% | BY81: 14.3% | BZ81: 23.5% | CA81: 15.2% | CB81: 19.1% | CC81: 25.6% | CD81: 23.9% | CE81: 22.0% | CF81: 22.4% | CG81: 20.2% | CI81: LORETO | CJ81: 14.3% | CK81: 25.6%
BP82: MADRE DE DIOS | BQ82: 41.2% | BU82: MADRE DE DIOS | BV82: 35.1% | BW82: 24.4% | BX82: 45.9% | BY82: 49.1% | BZ82: 31.0% | CA82: 47.2% | CB82: 52.0% | CC82: 43.2% | CD82: 38.6% | CE82: 50.0% | CF82: 43.5% | CG82: 45.2% | CI82: MADRE DE DIOS | CJ82: 24.4% | CK82: 52.0%
BP83: MOQUEGUA | BQ83: 39.3% | BU83: MOQUEGUA | BV83: 22.2% | BW83: 66.7% | BX83: 40.0% | BY83: 35.3% | BZ83: 40.0% | CA83: 21.4% | CB83: 41.7% | CC83: 50.0% | CD83: 55.6% | CE83: 11.1% | CF83: 25.0% | CG83: 45.5% | CI83: MOQUEGUA | CJ83: 11.1% | CK83: 66.7%
BP84: PASCO | BQ84: 33.5% | BU84: PASCO | BV84: 25.4% | BW84: 29.3% | BX84: 38.3% | BY84: 25.6% | BZ84: 43.2% | CA84: 40.6% | CB84: 26.9% | CC84: 38.1% | CD84: 41.5% | CE84: 29.0% | CF84: 35.7% | CG84: 30.8% | CI84: PASCO | CJ84: 25.4% | CK84: 43.2%
BP85: PIURA | BQ85: 28.4% | BU85: PIURA | BV85: 20.1% | BW85: 22.2% | BX85: 21.3% | BY85: 26.8% | BZ85: 35.7% | CA85: 32.4% | CB85: 34.0% | CC85: 30.5% | CD85: 38.3% | CE85: 32.5% | CF85: 26.8% | CG85: 21.3% | CI85: PIURA | CJ85: 20.1% | CK85: 38.3%
BP86: PUNO | BQ86: 32.4% | BU86: PUNO | BV86: 35.0% | BW86: 39.1% | BX86: 34.4% | BY86: 25.9% | BZ86: 34.4% | CA86: 24.3% | CB86: 35.5% | CC86: 41.5% | CD86: 21.4% | CE86: 33.3% | CF86: 36.8% | CG86: 32.4% | CI86: PUNO | CJ86: 21.4% | CK86: 41.5%
BP87: SAN MARTIN | BQ87: 36.2% | BU87: SAN MARTIN | BV87: 32.6% | BW87: 35.4% | BX87: 33.7% | BY87: 29.8% | BZ87: 39.5% | CA87: 38.8% | CB87: 41.7% | CC87: 41.8% | CD87: 39.0% | CE87: 30.2% | CF87: 46.3% | CG87: 34.4% | CI87: SAN MARTIN | CJ87: 29.8% | CK87: 46.3%
BP88: TACNA | BQ88: 62.2% | BU88: TACNA | BV88: 31.3% | BW88: 100.0% | BX88: 83.3% | BY88: 100.0% | BZ88: 66.7% | CA88: 54.5% | CB88: 38.5% | CC88: 73.3% | CD88: 64.9% | CE88: 50.0% | CF88: 70.0% | CG88: 63.6% | CI88: TACNA | CJ88: 31.3% | CK88: 100.0%
BP89: TUMBES | BQ89: 63.3% | BU89: TUMBES | BV89: 43.5% | BW89: 62.5% | BX89: 82.4% | BY89: 82.4% | BZ89: 65.0% | CA89: 60.9% | CB89: 54.5% | CC89: 58.3% | CD89: 58.8% | CE89: 58.1% | CF89: 66.7% | CG89: 85.7% | CI89: TUMBES | CJ89: 43.5% | CK89: 85.7%
BP90: UCAYALI | BQ90: 32.1% | BU90: UCAYALI | BV90: 25.5% | BW90: 23.6% | BX90: 23.9% | BY90: 27.5% | BZ90: 32.2% | CA90: 31.1% | CB90: 42.4% | CC90: 36.4% | CD90: 38.5% | CE90: 32.8% | CF90: 34.1% | CG90: 35.6% | CI90: UCAYALI | CJ90: 23.6% | CK90: 42.4%
BP91: NACIONAL | BQ91: =+IFERROR(GETPIVOTDATA("IND",$BP$25),"-") -> 41.7% | BU91: NACIONAL | BV91: =+IFERROR(GETPIVOTDATA("IND",$BU$25,"mes",BV$61),"-") -> 31.1% | BW91: =+IFERROR(GETPIVOTDATA("IND",$BU$25,"mes",BW$61),"-") -> 35.0% | BX91: 36.5% | BY91: 37.6% | BZ91: 41.9% | CA91: 43.4% | CB91: 45.9% | CC91: 49.6% | CD91: 47.5% | CE91: 44.9% | CF91: 43.9% | CG91: 42.1% | CI91: NACIONAL | CJ91: 31.1% | CK91: 49.6%

Sheet DL_1153_2025_CG02
A1: =+DL1153_2025!C8 -> Ficha 02: Porcentaje de niñas/niños menores de 12 meses, que reciben un paquete integrado de servicios: CRED, vacunas, dosaje de hemoglobina para descarte de anemia y suplementación con hierro. | BP1: 1 | DS1: 1
A2: Periodo de Evaluación: | B2: =+DL1153_2025!B42 -> Diciembre - 2025
J3: Distritos_FED | K3: (Todas)
J4: Disa | K4: (Todas)
A5: Distritos_FED | B5: (Todas) | J5: Prov | K5: (Todas)
A6: mes | B6: 12 | J6: RED | K6: KIMBIRI PICHARI
A7: seguro | B7: MINSA | J7: seguro | K7: MINSA | BQ7: seguro | BR7: MINSA
A8: DIRESA/ DIRIS | B8: Provincia | C8: Red | D8: Distrito | E8: UBIGEO | F8: Denominador: Niñas/niños menores de 364 días en el periodo de evaluación, con SIS, sin dato de seguro y sin seguro (población MINSA y Gobierno Regional), registrados en el padrón nominal con DNI o CNV, según el ámbito de la jurisdicción determinado por la residencia registrada en el padrón nominal. | G8: Numerador: Niñas/niños del denominador que recibieron paquete integrado de servicios (registrado en el HIS), de acuerdo al esquema vigente: CRED, vacunas, entrega de hierro (gotas, jarabe o micronutrientes) y dosaje de hemoglobina para descarte de anemi | H8: Indicador: Porcentaje de niñas/niños menores de 12 meses, que reciben un paquete integrado de servicios: CRED, vacunas, dosaje de hemoglobina para descarte de anemia y suplementación con hierro. | J8: AÑO | K8: MES | L8: Denominador: Niñas/niños menores de 364 días en el periodo de evaluación, con SIS, sin dato de seguro y sin seguro (población MINSA y Gobierno Regional), registrados en el padrón nominal con DNI o CNV, según el ámbito de la jurisdicción determinado por la residencia registrada en el padrón nominal. | M8: Numerador: Niñas/niños del denominador que recibieron paquete integrado de servicios (registrado en el HIS), de acuerdo al esquema vigente: CRED, vacunas, entrega de hierro (gotas, jarabe o micronutrientes) y dosaje de hemoglobina para descarte de anemi | N8: Indicador: Porcentaje de niñas/niños menores de 12 meses, que reciben un paquete integrado de servicios: CRED, vacunas, dosaje de hemoglobina para descarte de anemia y suplementación con hierro. | BQ8: mes | BR8: 12 | BU8: seguro | BV8: MINSA | CM8: seguro | CN8: MINSA
A9: Disa | B9: Prov | C9: RED | D9: Dist | E9: ubigeo | F9: Denominador | G9: Numerador | H9: Indicador | J9: anio | K9: mes | L9: Denominador | M9: Numerador | N9: Indicador
A10: CUSCO | B10: LA CONVENCION | C10: KIMBIRI PICHARI | D10: CIELO PUNCO | E10: 80916 | F10: 34 | G10: 27 | H10: 79.4% | J10: 2025 | K10: 1 | L10: 1,083 | M10: 369 | N10: 34.1% | BQ10: Disa | BR10: Suma de IND | BU10: Suma de IND | BV10: mes | CM10: Suma de IND | CN10: Disa
A11: CUSCO | B11: LA CONVENCION | C11: KIMBIRI PICHARI | D11: KIMBIRI | E11: 80907 | F11: 219 | G11: 127 | H11: 58.0% | J11: 2025 | K11: 2 | L11: 1,080 | M11: 420 | N11: 38.9% | BQ11: AMAZONAS | BR11: 54.2% | BU11: Disa | BV11: 1 | BW11: 2 | BX11: 3 | BY11: 4 | BZ11: 5 | CA11: 6 | CB11: 7 | CC11: 8 | CD11: 9 | CE11: 10 | CF11: 11 | CG11: 12 | CM11: mes | CN11: AMAZONAS | CO11: ANCASH | CP11: APURIMAC | CQ11: AREQUIPA | CR11: AYACUCHO | CS11: CAJAMARCA | CT11: CALLAO | CU11: CUSCO | CV11: HUANCAVELICA | CW11: HUANUCO | CX11: ICA | CY11: JUNIN | CZ11: LA LIBERTAD | DA11: LAMBAYEQUE | DB11: LIMA DIRIS CENTRO | DC11: LIMA DIRIS ESTE | DD11: LIMA DIRIS NORTE | DE11: LIMA DIRIS SUR | DF11: LIMA PROVINCIAS | DG11: LORETO | DH11: MADRE DE DIOS | DI11: MOQUEGUA | DJ11: PASCO | DK11: PIURA | DL11: PUNO | DM11: SAN MARTIN | DN11: TACNA | DO11: TUMBES | DP11: UCAYALI | DQ11: Total general
A12: CUSCO | B12: LA CONVENCION | C12: KIMBIRI PICHARI | D12: MANITEA | E12: 80917 | F12: 54 | G12: 44 | H12: 81.5% | J12: 2025 | K12: 3 | L12: 1,059 | M12: 477 | N12: 45.0% | BQ12: ANCASH | BR12: 63.6% | BU12: AMAZONAS | BV12: 33.7% | BW12: 35.3% | BX12: 38.7% | BY12: 42.4% | BZ12: 44.9% | CA12: 48.4% | CB12: 50.1% | CC12: 52.9% | CD12: 53.1% | CE12: 53.7% | CF12: 54.6% | CG12: 54.2% | CM12: enero | CN12: 33.7% | CO12: 41.7% | CP12: 42.0% | CQ12: 30.2% | CR12: 46.8% | CS12: 36.0% | CT12: 36.3% | CU12: 36.9% | CV12: 52.2% | CW12: 54.7% | CX12: 30.7% | CY12: 51.9% | CZ12: 31.9% | DA12: 41.8% | DB12: 24.8% | DC12: 24.1% | DD12: 25.0% | DE12: 25.4% | DF12: 38.9% | DG12: 27.9% | DH12: 63.0% | DI12: 31.5% | DJ12: 37.9% | DK12: 33.9% | DL12: 32.1% | DM12: 36.2% | DN12: 34.0% | DO12: 32.7% | DP12: 31.5% | DQ12: 35.1%
A13: CUSCO | B13: LA CONVENCION | C13: KIMBIRI PICHARI | D13: PICHARI | E13: 80910 | F13: 517 | G13: 353 | H13: 68.3% | J13: 2025 | K13: 4 | L13: 1,079 | M13: 544 | N13: 50.4% | BQ13: APURIMAC | BR13: 79.0% | BU13: ANCASH | BV13: 41.7% | BW13: 43.4% | BX13: 46.8% | BY13: 50.0% | BZ13: 53.2% | CA13: 57.5% | CB13: 60.4% | CC13: 63.7% | CD13: 64.4% | CE13: 64.3% | CF13: 65.1% | CG13: 63.6% | CM13: febrero | CN13: 35.3% | CO13: 43.4% | CP13: 43.7% | CQ13: 30.5% | CR13: 48.3% | CS13: 39.8% | CT13: 38.6% | CU13: 40.6% | CV13: 55.4% | CW13: 53.1% | CX13: 31.4% | CY13: 53.9% | CZ13: 35.0% | DA13: 40.6% | DB13: 27.0% | DC13: 26.4% | DD13: 27.1% | DE13: 26.7% | DF13: 41.0% | DG13: 30.3% | DH13: 62.7% | DI13: 33.5% | DJ13: 40.7% | DK13: 34.3% | DL13: 32.8% | DM13: 37.0% | DN13: 37.2% | DO13: 36.0% | DP13: 32.7% | DQ13: 36.8%
A14: CUSCO | B14: LA CONVENCION | C14: KIMBIRI PICHARI | D14: UNION ASHANINKA | E14: 80918 | F14: 128 | G14: 61 | H14: 47.7% | J14: 2025 | K14: 5 | L14: 1,069 | M14: 571 | N14: 53.4% | BQ14: AREQUIPA | BR14: 49.2% | BU14: APURIMAC | BV14: 42.0% | BW14: 43.7% | BX14: 46.2% | BY14: 51.5% | BZ14: 56.9% | CA14: 61.5% | CB14: 66.2% | CC14: 70.9% | CD14: 73.9% | CE14: 76.5% | CF14: 79.0% | CG14: 79.0% | CM14: Marzo | CN14: 38.7% | CO14: 46.8% | CP14: 46.2% | CQ14: 32.9% | CR14: 51.8% | CS14: 45.3% | CT14: 42.9% | CU14: 45.5% | CV14: 59.2% | CW14: 53.2% | CX14: 35.0% | CY14: 57.3% | CZ14: 38.2% | DA14: 41.7% | DB14: 30.8% | DC14: 29.4% | DD14: 29.8% | DE14: 29.5% | DF14: 44.3% | DG14: 35.0% | DH14: 62.6% | DI14: 36.9% | DJ14: 42.9% | DK14: 37.0% | DL14: 35.3% | DM14: 38.6% | DN14: 43.4% | DO14: 39.9% | DP14: 36.2% | DQ14: 39.9%
A15: CUSCO | B15: LA CONVENCION | C15: KIMBIRI PICHARI | D15: VILLA KINTIARINA | E15: 80913 | F15: 40 | G15: 35 | H15: 87.5% | J15: 2025 | K15: 6 | L15: 1,079 | M15: 629 | N15: 58.3% | BQ15: AYACUCHO | BR15: 84.9% | BU15: AREQUIPA | BV15: 30.2% | BW15: 30.5% | BX15: 32.9% | BY15: 36.2% | BZ15: 40.0% | CA15: 42.9% | CB15: 44.8% | CC15: 47.1% | CD15: 47.9% | CE15: 49.2% | CF15: 50.0% | CG15: 49.2% | CM15: Abril | CN15: 42.4% | CO15: 50.0% | CP15: 51.5% | CQ15: 36.2% | CR15: 56.8% | CS15: 50.9% | CT15: 47.7% | CU15: 50.3% | CV15: 64.3% | CW15: 56.1% | CX15: 39.9% | CY15: 60.9% | CZ15: 42.0% | DA15: 45.2% | DB15: 32.7% | DC15: 32.0% | DD15: 31.4% | DE15: 33.0% | DF15: 47.9% | DG15: 39.0% | DH15: 64.6% | DI15: 42.0% | DJ15: 46.3% | DK15: 41.5% | DL15: 37.7% | DM15: 41.5% | DN15: 48.9% | DO15: 47.6% | DP15: 39.4% | DQ15: 43.6%
A16: CUSCO | B16: LA CONVENCION | C16: KIMBIRI PICHARI | D16: VILLA VIRGEN | E16: 80912 | F16: 35 | G16: 24 | H16: 68.6% | J16: 2025 | K16: 7 | L16: 1,042 | M16: 640 | N16: 61.4% | BQ16: CAJAMARCA | BR16: 67.1% | BU16: AYACUCHO | BV16: 46.8% | BW16: 48.3% | BX16: 51.8% | BY16: 56.8% | BZ16: 62.5% | CA16: 68.1% | CB16: 73.6% | CC16: 78.0% | CD16: 81.8% | CE16: 84.6% | CF16: 86.0% | CG16: 84.9% | CM16: Mayo | CN16: 44.9% | CO16: 53.2% | CP16: 56.9% | CQ16: 40.0% | CR16: 62.5% | CS16: 55.3% | CT16: 51.8% | CU16: 53.4% | CV16: 67.3% | CW16: 58.9% | CX16: 44.5% | CY16: 63.9% | CZ16: 45.0% | DA16: 47.6% | DB16: 33.5% | DC16: 33.3% | DD16: 31.3% | DE16: 35.7% | DF16: 50.9% | DG16: 41.0% | DH16: 66.3% | DI16: 45.1% | DJ16: 52.0% | DK16: 44.6% | DL16: 39.6% | DM16: 43.0% | DN16: 54.0% | DO16: 54.5% | DP16: 42.2% | DQ16: 46.4%
A17: Total general | F17: 1,027 | G17: 671 | H17: 65.3% | J17: 2025 | K17: 8 | L17: 1,034 | M17: 671 | N17: 64.9% | BQ17: CALLAO | BR17: 60.1% | BU17: CAJAMARCA | BV17: 36.0% | BW17: 39.8% | BX17: 45.3% | BY17: 50.9% | BZ17: 55.3% | CA17: 60.1% | CB17: 63.4% | CC17: 67.3% | CD17: 67.5% | CE17: 67.4% | CF17: 67.8% | CG17: 67.1% | CM17: Junio | CN17: 48.4% | CO17: 57.5% | CP17: 61.5% | CQ17: 42.9% | CR17: 68.1% | CS17: 60.1% | CT17: 54.8% | CU17: 57.6% | CV17: 71.2% | CW17: 62.7% | CX17: 49.6% | CY17: 66.4% | CZ17: 48.8% | DA17: 52.5% | DB17: 35.0% | DC17: 34.3% | DD17: 32.4% | DE17: 38.9% | DF17: 55.3% | DG17: 43.0% | DH17: 67.2% | DI17: 49.4% | DJ17: 56.8% | DK17: 48.5% | DL17: 40.6% | DM17: 44.2% | DN17: 58.7% | DO17: 60.3% | DP17: 44.9% | DQ17: 49.6%
J18: 2025 | K18: 9 | L18: 1,029 | M18: 677 | N18: 65.8% | BQ18: CUSCO | BR18: 61.9% | BU18: CALLAO | BV18: 36.3% | BW18: 38.6% | BX18: 42.9% | BY18: 47.7% | BZ18: 51.8% | CA18: 54.8% | CB18: 57.4% | CC18: 59.0% | CD18: 60.2% | CE18: 61.3% | CF18: 61.3% | CG18: 60.1% | CM18: Julio | CN18: 50.1% | CO18: 60.4% | CP18: 66.2% | CQ18: 44.8% | CR18: 73.6% | CS18: 63.4% | CT18: 57.4% | CU18: 59.6% | CV18: 73.5% | CW18: 64.7% | CX18: 53.6% | CY18: 68.6% | CZ18: 50.4% | DA18: 55.6% | DB18: 34.7% | DC18: 34.8% | DD18: 31.9% | DE18: 40.2% | DF18: 58.2% | DG18: 43.3% | DH18: 67.3% | DI18: 49.9% | DJ18: 60.0% | DK18: 49.9% | DL18: 41.5% | DM18: 44.4% | DN18: 63.0% | DO18: 63.2% | DP18: 45.5% | DQ18: 51.3%
J19: 2025 | K19: 10 | L19: 1,029 | M19: 671 | N19: 65.2% | BQ19: HUANCAVELICA | BR19: 77.3% | BU19: CUSCO | BV19: 36.9% | BW19: 40.6% | BX19: 45.5% | BY19: 50.3% | BZ19: 53.4% | CA19: 57.6% | CB19: 59.6% | CC19: 62.6% | CD19: 62.4% | CE19: 62.0% | CF19: 62.4% | CG19: 61.9% | CM19: Agosto | CN19: 52.9% | CO19: 63.7% | CP19: 70.9% | CQ19: 47.1% | CR19: 78.0% | CS19: 67.3% | CT19: 59.0% | CU19: 62.6% | CV19: 76.2% | CW19: 67.7% | CX19: 57.5% | CY19: 70.5% | CZ19: 52.7% | DA19: 57.8% | DB19: 35.0% | DC19: 35.5% | DD19: 31.8% | DE19: 42.6% | DF19: 60.9% | DG19: 44.8% | DH19: 68.1% | DI19: 51.8% | DJ19: 64.3% | DK19: 52.5% | DL19: 42.7% | DM19: 45.3% | DN19: 67.6% | DO19: 66.3% | DP19: 46.9% | DQ19: 53.6%
J20: 2025 | K20: 11 | L20: 1,035 | M20: 684 | N20: 66.1% | BQ20: HUANUCO | BR20: 68.6% | BU20: HUANCAVELICA | BV20: 52.2% | BW20: 55.4% | BX20: 59.2% | BY20: 64.3% | BZ20: 67.3% | CA20: 71.2% | CB20: 73.5% | CC20: 76.2% | CD20: 76.7% | CE20: 76.6% | CF20: 77.9% | CG20: 77.3% | CM20: Setiembre | CN20: 53.1% | CO20: 64.4% | CP20: 73.9% | CQ20: 47.9% | CR20: 81.8% | CS20: 67.5% | CT20: 60.2% | CU20: 62.4% | CV20: 76.7% | CW20: 68.6% | CX20: 60.9% | CY20: 71.1% | CZ20: 52.9% | DA20: 58.2% | DB20: 33.8% | DC20: 34.3% | DD20: 31.6% | DE20: 43.6% | DF20: 62.0% | DG20: 45.7% | DH20: 68.1% | DI20: 51.5% | DJ20: 66.7% | DK20: 52.8% | DL20: 44.2% | DM20: 45.5% | DN20: 70.4% | DO20: 64.0% | DP20: 47.0% | DQ20: 54.1%
J21: 2025 | K21: 12 | L21: 1,027 | M21: 671 | N21: 65.3% | BQ21: ICA | BR21: 63.1% | BU21: HUANUCO | BV21: 54.7% | BW21: 53.1% | BX21: 53.2% | BY21: 56.1% | BZ21: 58.9% | CA21: 62.7% | CB21: 64.7% | CC21: 67.7% | CD21: 68.6% | CE21: 68.5% | CF21: 69.7% | CG21: 68.6% | CM21: Octubre | CN21: 53.7% | CO21: 64.3% | CP21: 76.5% | CQ21: 49.2% | CR21: 84.6% | CS21: 67.4% | CT21: 61.3% | CU21: 62.0% | CV21: 76.6% | CW21: 68.5% | CX21: 62.7% | CY21: 70.6% | CZ21: 52.6% | DA21: 56.7% | DB21: 33.8% | DC21: 33.0% | DD21: 31.4% | DE21: 44.0% | DF21: 61.8% | DG21: 46.4% | DH21: 67.5% | DI21: 49.9% | DJ21: 66.3% | DK21: 51.8% | DL21: 44.8% | DM21: 45.8% | DN21: 71.8% | DO21: 63.0% | DP21: 47.1% | DQ21: 54.1%
BQ22: JUNIN | BR22: 70.7% | BU22: ICA | BV22: 30.7% | BW22: 31.4% | BX22: 35.0% | BY22: 39.9% | BZ22: 44.5% | CA22: 49.6% | CB22: 53.6% | CC22: 57.5% | CD22: 60.9% | CE22: 62.7% | CF22: 64.7% | CG22: 63.1% | CM22: Noviembre | CN22: 54.6% | CO22: 65.1% | CP22: 79.0% | CQ22: 50.0% | CR22: 86.0% | CS22: 67.8% | CT22: 61.3% | CU22: 62.4% | CV22: 77.9% | CW22: 69.7% | CX22: 64.7% | CY22: 71.2% | CZ22: 53.4% | DA22: 55.7% | DB22: 33.6% | DC22: 32.2% | DD22: 31.0% | DE22: 44.5% | DF22: 62.8% | DG22: 47.0% | DH22: 67.1% | DI22: 49.2% | DJ22: 67.3% | DK22: 51.9% | DL22: 45.5% | DM22: 46.7% | DN22: 72.1% | DO22: 61.6% | DP22: 49.0% | DQ22: 54.6%
BQ23: LA LIBERTAD | BR23: 52.5% | BU23: JUNIN | BV23: 51.9% | BW23: 53.9% | BX23: 57.3% | BY23: 60.9% | BZ23: 63.9% | CA23: 66.4% | CB23: 68.6% | CC23: 70.5% | CD23: 71.1% | CE23: 70.6% | CF23: 71.2% | CG23: 70.7% | CM23: Diciembre | CN23: 54.2% | CO23: 63.6% | CP23: 79.0% | CQ23: 49.2% | CR23: 84.9% | CS23: 67.1% | CT23: 60.1% | CU23: 61.9% | CV23: 77.3% | CW23: 68.6% | CX23: 63.1% | CY23: 70.7% | CZ23: 52.5% | DA23: 52.2% | DB23: 31.6% | DC23: 30.2% | DD23: 30.0% | DE23: 42.3% | DF23: 62.4% | DG23: 45.1% | DH23: 62.9% | DI23: 46.3% | DJ23: 65.3% | DK23: 49.6% | DL23: 45.1% | DM23: 45.6% | DN23: 70.5% | DO23: 56.7% | DP23: 47.6% | DQ23: 53.2%
BQ24: LAMBAYEQUE | BR24: 52.2% | BU24: LA LIBERTAD | BV24: 31.9% | BW24: 35.0% | BX24: 38.2% | BY24: 42.0% | BZ24: 45.0% | CA24: 48.8% | CB24: 50.4% | CC24: 52.7% | CD24: 52.9% | CE24: 52.6% | CF24: 53.4% | CG24: 52.5%
BQ25: LIMA DIRIS CENTRO | BR25: 31.6% | BU25: LAMBAYEQUE | BV25: 41.8% | BW25: 40.6% | BX25: 41.7% | BY25: 45.2% | BZ25: 47.6% | CA25: 52.5% | CB25: 55.6% | CC25: 57.8% | CD25: 58.2% | CE25: 56.7% | CF25: 55.7% | CG25: 52.2%
BQ26: LIMA DIRIS ESTE | BR26: 30.2% | BU26: LIMA DIRIS CENTRO | BV26: 24.8% | BW26: 27.0% | BX26: 30.8% | BY26: 32.7% | BZ26: 33.5% | CA26: 35.0% | CB26: 34.7% | CC26: 35.0% | CD26: 33.8% | CE26: 33.8% | CF26: 33.6% | CG26: 31.6%
BQ27: LIMA DIRIS NORTE | BR27: 30.0% | BU27: LIMA DIRIS ESTE | BV27: 24.1% | BW27: 26.4% | BX27: 29.4% | BY27: 32.0% | BZ27: 33.3% | CA27: 34.3% | CB27: 34.8% | CC27: 35.5% | CD27: 34.3% | CE27: 33.0% | CF27: 32.2% | CG27: 30.2%
BQ28: LIMA DIRIS SUR | BR28: 42.3% | BU28: LIMA DIRIS NORTE | BV28: 25.0% | BW28: 27.1% | BX28: 29.8% | BY28: 31.4% | BZ28: 31.3% | CA28: 32.4% | CB28: 31.9% | CC28: 31.8% | CD28: 31.6% | CE28: 31.4% | CF28: 31.0% | CG28: 30.0% | CN28: AMAZONAS | CO28: ANCASH | CP28: APURIMAC | CQ28: AREQUIPA | CR28: AYACUCHO | CS28: CAJAMARCA | CT28: CALLAO | CU28: CUSCO | CV28: HUANCAVELICA | CW28: HUANUCO | CX28: ICA | CY28: JUNIN | CZ28: LA LIBERTAD | DA28: LAMBAYEQUE | DB28: LIMA DIRIS CENTRO | DC28: LIMA DIRIS ESTE | DD28: LIMA DIRIS NORTE | DE28: LIMA DIRIS SUR | DF28: LIMA PROVINCIAS | DG28: LORETO | DH28: MADRE DE DIOS | DI28: MOQUEGUA | DJ28: PASCO | DK28: PIURA | DL28: PUNO | DM28: SAN MARTIN | DN28: TACNA | DO28: TUMBES | DP28: UCAYALI | DQ28: NACIONAL
BQ29: LIMA PROVINCIAS | BR29: 62.4% | BU29: LIMA DIRIS SUR | BV29: 25.4% | BW29: 26.7% | BX29: 29.5% | BY29: 33.0% | BZ29: 35.7% | CA29: 38.9% | CB29: 40.2% | CC29: 42.6% | CD29: 43.6% | CE29: 44.0% | CF29: 44.5% | CG29: 42.3% | CM29: Enero | CN29: =+IFERROR(GETPIVOTDATA("IND",$CM$10,"Disa",CN$28,"mes",$CM29),"-") -> 33.7% | CO29: =+IFERROR(GETPIVOTDATA("IND",$CM$10,"Disa",CO$28,"mes",$CM29),"-") -> 41.7% | CP29: 42.0% | CQ29: 30.2% | CR29: 46.8% | CS29: 36.0% | CT29: 36.3% | CU29: 36.9% | CV29: 52.2% | CW29: 54.7% | CX29: 30.7% | CY29: 51.9% | CZ29: 31.9% | DA29: 41.8% | DB29: 24.8% | DC29: 24.1% | DD29: 25.0% | DE29: 25.4% | DF29: 38.9% | DG29: 27.9% | DH29: 63.0% | DI29: 31.5% | DJ29: 37.9% | DK29: 33.9% | DL29: 32.1% | DM29: 36.2% | DN29: 34.0% | DO29: 32.7% | DP29: 31.5% | DQ29: =+IFERROR(GETPIVOTDATA("IND",$CM$10,"mes",$CM29),"-") -> 35.1%
BQ30: LORETO | BR30: 45.1% | BU30: LIMA PROVINCIAS | BV30: 38.9% | BW30: 41.0% | BX30: 44.3% | BY30: 47.9% | BZ30: 50.9% | CA30: 55.3% | CB30: 58.2% | CC30: 60.9% | CD30: 62.0% | CE30: 61.8% | CF30: 62.8% | CG30: 62.4% | CM30: Febrero | CN30: =+IFERROR(GETPIVOTDATA("IND",$CM$10,"Disa",CN$28,"mes",$CM30),"-") -> 35.3% | CO30: 43.4% | CP30: 43.7% | CQ30: 30.5% | CR30: 48.3% | CS30: 39.8% | CT30: 38.6% | CU30: 40.6% | CV30: 55.4% | CW30: 53.1% | CX30: 31.4% | CY30: 53.9% | CZ30: 35.0% | DA30: 40.6% | DB30: 27.0% | DC30: 26.4% | DD30: 27.1% | DE30: 26.7% | DF30: 41.0% | DG30: 30.3% | DH30: 62.7% | DI30: 33.5% | DJ30: 40.7% | DK30: 34.3% | DL30: 32.8% | DM30: 37.0% | DN30: 37.2% | DO30: 36.0% | DP30: 32.7% | DQ30: =+IFERROR(GETPIVOTDATA("IND",$CM$10,"mes",$CM30),"-") -> 36.8%
BQ31: MADRE DE DIOS | BR31: 62.9% | BU31: LORETO | BV31: 27.9% | BW31: 30.3% | BX31: 35.0% | BY31: 39.0% | BZ31: 41.0% | CA31: 43.0% | CB31: 43.3% | CC31: 44.8% | CD31: 45.7% | CE31: 46.4% | CF31: 47.0% | CG31: 45.1% | CM31: Marzo | CN31: 38.7% | CO31: 46.8% | CP31: 46.2% | CQ31: 32.9% | CR31: 51.8% | CS31: 45.3% | CT31: 42.9% | CU31: 45.5% | CV31: 59.2% | CW31: 53.2% | CX31: 35.0% | CY31: 57.3% | CZ31: 38.2% | DA31: 41.7% | DB31: 30.8% | DC31: 29.4% | DD31: 29.8% | DE31: 29.5% | DF31: 44.3% | DG31: 35.0% | DH31: 62.6% | DI31: 36.9% | DJ31: 42.9% | DK31: 37.0% | DL31: 35.3% | DM31: 38.6% | DN31: 43.4% | DO31: 39.9% | DP31: 36.2% | DQ31: 39.9%
BQ32: MOQUEGUA | BR32: 46.3% | BU32: MADRE DE DIOS | BV32: 63.0% | BW32: 62.7% | BX32: 62.6% | BY32: 64.6% | BZ32: 66.3% | CA32: 67.2% | CB32: 67.3% | CC32: 68.1% | CD32: 68.1% | CE32: 67.5% | CF32: 67.1% | CG32: 62.9% | CM32: Abril | CN32: 42.4% | CO32: 50.0% | CP32: 51.5% | CQ32: 36.2% | CR32: 56.8% | CS32: 50.9% | CT32: 47.7% | CU32: 50.3% | CV32: 64.3% | CW32: 56.1% | CX32: 39.9% | CY32: 60.9% | CZ32: 42.0% | DA32: 45.2% | DB32: 32.7% | DC32: 32.0% | DD32: 31.4% | DE32: 33.0% | DF32: 47.9% | DG32: 39.0% | DH32: 64.6% | DI32: 42.0% | DJ32: 46.3% | DK32: 41.5% | DL32: 37.7% | DM32: 41.5% | DN32: 48.9% | DO32: 47.6% | DP32: 39.4% | DQ32: 43.6%
BQ33: PASCO | BR33: 65.3% | BU33: MOQUEGUA | BV33: 31.5% | BW33: 33.5% | BX33: 36.9% | BY33: 42.0% | BZ33: 45.1% | CA33: 49.4% | CB33: 49.9% | CC33: 51.8% | CD33: 51.5% | CE33: 49.9% | CF33: 49.2% | CG33: 46.3% | CM33: Mayo | CN33: 44.9% | CO33: 53.2% | CP33: 56.9% | CQ33: 40.0% | CR33: 62.5% | CS33: 55.3% | CT33: 51.8% | CU33: 53.4% | CV33: 67.3% | CW33: 58.9% | CX33: 44.5% | CY33: 63.9% | CZ33: 45.0% | DA33: 47.6% | DB33: 33.5% | DC33: 33.3% | DD33: 31.3% | DE33: 35.7% | DF33: 50.9% | DG33: 41.0% | DH33: 66.3% | DI33: 45.1% | DJ33: 52.0% | DK33: 44.6% | DL33: 39.6% | DM33: 43.0% | DN33: 54.0% | DO33: 54.5% | DP33: 42.2% | DQ33: 46.4%
BQ34: PIURA | BR34: 49.6% | BU34: PASCO | BV34: 37.9% | BW34: 40.7% | BX34: 42.9% | BY34: 46.3% | BZ34: 52.0% | CA34: 56.8% | CB34: 60.0% | CC34: 64.3% | CD34: 66.7% | CE34: 66.3% | CF34: 67.3% | CG34: 65.3% | CM34: Junio | CN34: 48.4% | CO34: 57.5% | CP34: 61.5% | CQ34: 42.9% | CR34: 68.1% | CS34: 60.1% | CT34: 54.8% | CU34: 57.6% | CV34: 71.2% | CW34: 62.7% | CX34: 49.6% | CY34: 66.4% | CZ34: 48.8% | DA34: 52.5% | DB34: 35.0% | DC34: 34.3% | DD34: 32.4% | DE34: 38.9% | DF34: 55.3% | DG34: 43.0% | DH34: 67.2% | DI34: 49.4% | DJ34: 56.8% | DK34: 48.5% | DL34: 40.6% | DM34: 44.2% | DN34: 58.7% | DO34: 60.3% | DP34: 44.9% | DQ34: 49.6%
BQ35: PUNO | BR35: 45.1% | BU35: PIURA | BV35: 33.9% | BW35: 34.3% | BX35: 37.0% | BY35: 41.5% | BZ35: 44.6% | CA35: 48.5% | CB35: 49.9% | CC35: 52.5% | CD35: 52.8% | CE35: 51.8% | CF35: 51.9% | CG35: 49.6% | CM35: Julio | CN35: 50.1% | CO35: 60.4% | CP35: 66.2% | CQ35: 44.8% | CR35: 73.6% | CS35: 63.4% | CT35: 57.4% | CU35: 59.6% | CV35: 73.5% | CW35: 64.7% | CX35: 53.6% | CY35: 68.6% | CZ35: 50.4% | DA35: 55.6% | DB35: 34.7% | DC35: 34.8% | DD35: 31.9% | DE35: 40.2% | DF35: 58.2% | DG35: 43.3% | DH35: 67.3% | DI35: 49.9% | DJ35: 60.0% | DK35: 49.9% | DL35: 41.5% | DM35: 44.4% | DN35: 63.0% | DO35: 63.2% | DP35: 45.5% | DQ35: 51.3%
BQ36: SAN MARTIN | BR36: 45.6% | BU36: PUNO | BV36: 32.1% | BW36: 32.8% | BX36: 35.3% | BY36: 37.7% | BZ36: 39.6% | CA36: 40.6% | CB36: 41.5% | CC36: 42.7% | CD36: 44.2% | CE36: 44.8% | CF36: 45.5% | CG36: 45.1% | CM36: Agosto | CN36: 52.9% | CO36: 63.7% | CP36: 70.9% | CQ36: 47.1% | CR36: 78.0% | CS36: 67.3% | CT36: 59.0% | CU36: 62.6% | CV36: 76.2% | CW36: 67.7% | CX36: 57.5% | CY36: 70.5% | CZ36: 52.7% | DA36: 57.8% | DB36: 35.0% | DC36: 35.5% | DD36: 31.8% | DE36: 42.6% | DF36: 60.9% | DG36: 44.8% | DH36: 68.1% | DI36: 51.8% | DJ36: 64.3% | DK36: 52.5% | DL36: 42.7% | DM36: 45.3% | DN36: 67.6% | DO36: 66.3% | DP36: 46.9% | DQ36: 53.6%
BQ37: TACNA | BR37: 70.5% | BU37: SAN MARTIN | BV37: 36.2% | BW37: 37.0% | BX37: 38.6% | BY37: 41.5% | BZ37: 43.0% | CA37: 44.2% | CB37: 44.4% | CC37: 45.3% | CD37: 45.5% | CE37: 45.8% | CF37: 46.7% | CG37: 45.6% | CM37: Setiembre | CN37: 53.1% | CO37: 64.4% | CP37: 73.9% | CQ37: 47.9% | CR37: 81.8% | CS37: 67.5% | CT37: 60.2% | CU37: 62.4% | CV37: 76.7% | CW37: 68.6% | CX37: 60.9% | CY37: 71.1% | CZ37: 52.9% | DA37: 58.2% | DB37: 33.8% | DC37: 34.3% | DD37: 31.6% | DE37: 43.6% | DF37: 62.0% | DG37: 45.7% | DH37: 68.1% | DI37: 51.5% | DJ37: 66.7% | DK37: 52.8% | DL37: 44.2% | DM37: 45.5% | DN37: 70.4% | DO37: 64.0% | DP37: 47.0% | DQ37: 54.1%
BQ38: TUMBES | BR38: 56.7% | BU38: TACNA | BV38: 34.0% | BW38: 37.2% | BX38: 43.4% | BY38: 48.9% | BZ38: 54.0% | CA38: 58.7% | CB38: 63.0% | CC38: 67.6% | CD38: 70.4% | CE38: 71.8% | CF38: 72.1% | CG38: 70.5% | CM38: Octubre | CN38: 53.7% | CO38: 64.3% | CP38: 76.5% | CQ38: 49.2% | CR38: =+IFERROR(GETPIVOTDATA("IND",$CM$10,"Disa",CR$28,"mes",$CM38),"-") -> 84.6% | CS38: 67.4% | CT38: 61.3% | CU38: 62.0% | CV38: 76.6% | CW38: 68.5% | CX38: 62.7% | CY38: 70.6% | CZ38: 52.6% | DA38: 56.7% | DB38: 33.8% | DC38: 33.0% | DD38: 31.4% | DE38: 44.0% | DF38: 61.8% | DG38: 46.4% | DH38: =+IFERROR(GETPIVOTDATA("IND",$CM$10,"Disa",DH$28,"mes",$CM38),"-") -> 67.5% | DI38: 49.9% | DJ38: 66.3% | DK38: 51.8% | DL38: 44.8% | DM38: 45.8% | DN38: 71.8% | DO38: 63.0% | DP38: 47.1% | DQ38: 54.1%
BQ39: UCAYALI | BR39: 47.6% | BU39: TUMBES | BV39: 32.7% | BW39: 36.0% | BX39: 39.9% | BY39: 47.6% | BZ39: 54.5% | CA39: 60.3% | CB39: 63.2% | CC39: 66.3% | CD39: 64.0% | CE39: 63.0% | CF39: 61.6% | CG39: 56.7% | CM39: Noviembre | CN39: 54.6% | CO39: 65.1% | CP39: 79.0% | CQ39: 50.0% | CR39: 86.0% | CS39: 67.8% | CT39: 61.3% | CU39: 62.4% | CV39: 77.9% | CW39: 69.7% | CX39: 64.7% | CY39: 71.2% | CZ39: 53.4% | DA39: 55.7% | DB39: 33.6% | DC39: 32.2% | DD39: 31.0% | DE39: 44.5% | DF39: 62.8% | DG39: 47.0% | DH39: 67.1% | DI39: 49.2% | DJ39: 67.3% | DK39: 51.9% | DL39: 45.5% | DM39: 46.7% | DN39: 72.1% | DO39: 61.6% | DP39: 49.0% | DQ39: 54.6%
BQ40: Total general | BR40: 53.2% | BU40: UCAYALI | BV40: 31.5% | BW40: 32.7% | BX40: 36.2% | BY40: 39.4% | BZ40: 42.2% | CA40: 44.9% | CB40: 45.5% | CC40: 46.9% | CD40: 47.0% | CE40: 47.1% | CF40: 49.0% | CG40: 47.6% | CM40: Diciembre | CN40: 54.2% | CO40: 63.6% | CP40: 79.0% | CQ40: 49.2% | CR40: 84.9% | CS40: 67.1% | CT40: 60.1% | CU40: 61.9% | CV40: 77.3% | CW40: 68.6% | CX40: 63.1% | CY40: 70.7% | CZ40: 52.5% | DA40: 52.2% | DB40: 31.6% | DC40: 30.2% | DD40: 30.0% | DE40: 42.3% | DF40: 62.4% | DG40: 45.1% | DH40: 62.9% | DI40: 46.3% | DJ40: 65.3% | DK40: 49.6% | DL40: 45.1% | DM40: 45.6% | DN40: 70.5% | DO40: 56.7% | DP40: 47.6% | DQ40: 53.2%
BU41: Total general | BV41: 35.1% | BW41: 36.8% | BX41: 39.9% | BY41: 43.6% | BZ41: 46.4% | CA41: 49.6% | CB41: 51.3% | CC41: 53.6% | CD41: 54.1% | CE41: 54.1% | CF41: 54.6% | CG41: 53.2%
BV61: 1 | BW61: 2 | BX61: 3 | BY61: 4 | BZ61: 5 | CA61: 6 | CB61: 7 | CC61: 8 | CD61: 9 | CE61: 10 | CF61: 11 | CG61: 12 | CJ61: MIN | CK61: MAX
BQ62: AMAZONAS | BR62: =+IFERROR(GETPIVOTDATA("IND",$BQ$10,"Disa",$BQ62),"-") -> 54.2% | BU62: AMAZONAS | BV62: =IFERROR(GETPIVOTDATA("Ind",$BU$10,"Disa",$BU62,"mes",BV$61),"-") -> 33.7% | BW62: =IFERROR(GETPIVOTDATA("Ind",$BU$10,"Disa",$BU62,"mes",BW$61),"-") -> 35.3% | BX62: 38.7% | BY62: 42.4% | BZ62: 44.9% | CA62: 48.4% | CB62: 50.1% | CC62: 52.9% | CD62: 53.1% | CE62: 53.7% | CF62: 54.6% | CG62: 54.2% | CI62: AMAZONAS | CJ62: =+IF(BV62="-","-",MIN(BV62:CG62)) -> 33.7% | CK62: =+IF(BV62="-","-",MAX(BV62:CG62)) -> 54.6%
BQ63: ANCASH | BR63: =+IFERROR(GETPIVOTDATA("IND",$BQ$10,"Disa",$BQ63),"-") -> 63.6% | BU63: ANCASH | BV63: =IFERROR(GETPIVOTDATA("Ind",$BU$10,"Disa",$BU63,"mes",BV$61),"-") -> 41.7% | BW63: 43.4% | BX63: 46.8% | BY63: 50.0% | BZ63: 53.2% | CA63: 57.5% | CB63: 60.4% | CC63: 63.7% | CD63: 64.4% | CE63: 64.3% | CF63: 65.1% | CG63: 63.6% | CI63: ANCASH | CJ63: 41.7% | CK63: =+IF(BV63="-","-",MAX(BV63:CG63)) -> 65.1%
BQ64: APURIMAC | BR64: 79.0% | BU64: APURIMAC | BV64: 42.0% | BW64: 43.7% | BX64: 46.2% | BY64: 51.5% | BZ64: 56.9% | CA64: 61.5% | CB64: 66.2% | CC64: 70.9% | CD64: 73.9% | CE64: 76.5% | CF64: 79.0% | CG64: 79.0% | CI64: APURIMAC | CJ64: 42.0% | CK64: 79.0%
BQ65: AREQUIPA | BR65: 49.2% | BU65: AREQUIPA | BV65: 30.2% | BW65: 30.5% | BX65: 32.9% | BY65: 36.2% | BZ65: 40.0% | CA65: 42.9% | CB65: 44.8% | CC65: 47.1% | CD65: 47.9% | CE65: 49.2% | CF65: 50.0% | CG65: 49.2% | CI65: AREQUIPA | CJ65: 30.2% | CK65: 50.0%
BQ66: AYACUCHO | BR66: 84.9% | BU66: AYACUCHO | BV66: 46.8% | BW66: 48.3% | BX66: 51.8% | BY66: 56.8% | BZ66: 62.5% | CA66: 68.1% | CB66: 73.6% | CC66: 78.0% | CD66: 81.8% | CE66: 84.6% | CF66: 86.0% | CG66: 84.9% | CI66: AYACUCHO | CJ66: 46.8% | CK66: 86.0%
BQ67: CAJAMARCA | BR67: 67.1% | BU67: CAJAMARCA | BV67: 36.0% | BW67: 39.8% | BX67: 45.3% | BY67: 50.9% | BZ67: 55.3% | CA67: 60.1% | CB67: 63.4% | CC67: 67.3% | CD67: 67.5% | CE67: 67.4% | CF67: 67.8% | CG67: 67.1% | CI67: CAJAMARCA | CJ67: 36.0% | CK67: 67.8%
BQ68: CALLAO | BR68: 60.1% | BU68: CALLAO | BV68: 36.3% | BW68: 38.6% | BX68: 42.9% | BY68: 47.7% | BZ68: 51.8% | CA68: 54.8% | CB68: 57.4% | CC68: 59.0% | CD68: 60.2% | CE68: 61.3% | CF68: 61.3% | CG68: 60.1% | CI68: CALLAO | CJ68: 36.3% | CK68: 61.3%
BQ69: CUSCO | BR69: 61.9% | BU69: CUSCO | BV69: 36.9% | BW69: 40.6% | BX69: 45.5% | BY69: 50.3% | BZ69: 53.4% | CA69: 57.6% | CB69: 59.6% | CC69: 62.6% | CD69: 62.4% | CE69: 62.0% | CF69: 62.4% | CG69: 61.9% | CI69: CUSCO | CJ69: 36.9% | CK69: 62.6%
BQ70: HUANCAVELICA | BR70: 77.3% | BU70: HUANCAVELICA | BV70: 52.2% | BW70: 55.4% | BX70: 59.2% | BY70: 64.3% | BZ70: 67.3% | CA70: 71.2% | CB70: 73.5% | CC70: 76.2% | CD70: 76.7% | CE70: 76.6% | CF70: 77.9% | CG70: 77.3% | CI70: HUANCAVELICA | CJ70: 52.2% | CK70: 77.9%
BQ71: HUANUCO | BR71: 68.6% | BU71: HUANUCO | BV71: 54.7% | BW71: 53.1% | BX71: 53.2% | BY71: 56.1% | BZ71: 58.9% | CA71: 62.7% | CB71: 64.7% | CC71: 67.7% | CD71: 68.6% | CE71: 68.5% | CF71: 69.7% | CG71: 68.6% | CI71: HUANUCO | CJ71: 53.1% | CK71: 69.7%
BQ72: ICA | BR72: 63.1% | BU72: ICA | BV72: 30.7% | BW72: 31.4% | BX72: 35.0% | BY72: 39.9% | BZ72: 44.5% | CA72: 49.6% | CB72: 53.6% | CC72: 57.5% | CD72: 60.9% | CE72: 62.7% | CF72: 64.7% | CG72: 63.1% | CI72: ICA | CJ72: 30.7% | CK72: 64.7%
BQ73: JUNIN | BR73: 70.7% | BU73: JUNIN | BV73: 51.9% | BW73: 53.9% | BX73: 57.3% | BY73: 60.9% | BZ73: 63.9% | CA73: 66.4% | CB73: 68.6% | CC73: 70.5% | CD73: 71.1% | CE73: 70.6% | CF73: 71.2% | CG73: 70.7% | CI73: JUNIN | CJ73: 51.9% | CK73: 71.2%
BQ74: LA LIBERTAD | BR74: 52.5% | BU74: LA LIBERTAD | BV74: 31.9% | BW74: 35.0% | BX74: 38.2% | BY74: 42.0% | BZ74: 45.0% | CA74: 48.8% | CB74: 50.4% | CC74: 52.7% | CD74: 52.9% | CE74: 52.6% | CF74: 53.4% | CG74: 52.5% | CI74: LA LIBERTAD | CJ74: 31.9% | CK74: 53.4%
BQ75: LAMBAYEQUE | BR75: 52.2% | BU75: LAMBAYEQUE | BV75: 41.8% | BW75: 40.6% | BX75: 41.7% | BY75: 45.2% | BZ75: 47.6% | CA75: 52.5% | CB75: 55.6% | CC75: 57.8% | CD75: 58.2% | CE75: 56.7% | CF75: 55.7% | CG75: 52.2% | CI75: LAMBAYEQUE | CJ75: =+IF(BV75="-","-",MIN(BV75:CG75)) -> 40.6% | CK75: 58.2%
BQ76: LIMA DIRIS CENTRO | BR76: 31.6% | BU76: LIMA DIRIS CENTRO | BV76: 24.8% | BW76: 27.0% | BX76: 30.8% | BY76: 32.7% | BZ76: 33.5% | CA76: 35.0% | CB76: 34.7% | CC76: 35.0% | CD76: 33.8% | CE76: 33.8% | CF76: 33.6% | CG76: 31.6% | CI76: LIMA DIRIS CENTRO | CJ76: 24.8% | CK76: 35.0%
BQ77: LIMA DIRIS ESTE | BR77: 30.2% | BU77: LIMA DIRIS ESTE | BV77: 24.1% | BW77: 26.4% | BX77: 29.4% | BY77: 32.0% | BZ77: 33.3% | CA77: 34.3% | CB77: 34.8% | CC77: 35.5% | CD77: 34.3% | CE77: 33.0% | CF77: 32.2% | CG77: 30.2% | CI77: LIMA DIRIS ESTE | CJ77: 24.1% | CK77: 35.5%
BQ78: LIMA DIRIS NORTE | BR78: 30.0% | BU78: LIMA DIRIS NORTE | BV78: 25.0% | BW78: 27.1% | BX78: 29.8% | BY78: 31.4% | BZ78: 31.3% | CA78: 32.4% | CB78: 31.9% | CC78: 31.8% | CD78: 31.6% | CE78: 31.4% | CF78: 31.0% | CG78: 30.0% | CI78: LIMA DIRIS NORTE | CJ78: 25.0% | CK78: 32.4%
BQ79: LIMA DIRIS SUR | BR79: 42.3% | BU79: LIMA DIRIS SUR | BV79: =IFERROR(GETPIVOTDATA("Ind",$BU$10,"Disa",$BU79,"mes",BV$61),"-") -> 25.4% | BW79: 26.7% | BX79: 29.5% | BY79: 33.0% | BZ79: 35.7% | CA79: 38.9% | CB79: 40.2% | CC79: 42.6% | CD79: 43.6% | CE79: 44.0% | CF79: 44.5% | CG79: 42.3% | CI79: LIMA DIRIS SUR | CJ79: 25.4% | CK79: 44.5%
BQ80: LIMA PROVINCIAS | BR80: 62.4% | BU80: LIMA PROVINCIAS | BV80: 38.9% | BW80: 41.0% | BX80: 44.3% | BY80: 47.9% | BZ80: 50.9% | CA80: 55.3% | CB80: 58.2% | CC80: 60.9% | CD80: 62.0% | CE80: 61.8% | CF80: 62.8% | CG80: 62.4% | CI80: LIMA PROVINCIAS | CJ80: 38.9% | CK80: 62.8%
BQ81: LORETO | BR81: 45.1% | BU81: LORETO | BV81: 27.9% | BW81: 30.3% | BX81: 35.0% | BY81: 39.0% | BZ81: 41.0% | CA81: 43.0% | CB81: 43.3% | CC81: 44.8% | CD81: 45.7% | CE81: 46.4% | CF81: 47.0% | CG81: 45.1% | CI81: LORETO | CJ81: 27.9% | CK81: 47.0%
BQ82: MADRE DE DIOS | BR82: 62.9% | BU82: MADRE DE DIOS | BV82: 63.0% | BW82: 62.7% | BX82: 62.6% | BY82: 64.6% | BZ82: 66.3% | CA82: 67.2% | CB82: 67.3% | CC82: 68.1% | CD82: 68.1% | CE82: 67.5% | CF82: 67.1% | CG82: 62.9% | CI82: MADRE DE DIOS | CJ82: 62.6% | CK82: 68.1%
BQ83: MOQUEGUA | BR83: 46.3% | BU83: MOQUEGUA | BV83: 31.5% | BW83: 33.5% | BX83: 36.9% | BY83: 42.0% | BZ83: 45.1% | CA83: 49.4% | CB83: 49.9% | CC83: 51.8% | CD83: 51.5% | CE83: 49.9% | CF83: 49.2% | CG83: 46.3% | CI83: MOQUEGUA | CJ83: 31.5% | CK83: 51.8%
BQ84: PASCO | BR84: 65.3% | BU84: PASCO | BV84: 37.9% | BW84: 40.7% | BX84: 42.9% | BY84: 46.3% | BZ84: 52.0% | CA84: 56.8% | CB84: 60.0% | CC84: 64.3% | CD84: 66.7% | CE84: 66.3% | CF84: 67.3% | CG84: 65.3% | CI84: PASCO | CJ84: 37.9% | CK84: 67.3%
BQ85: PIURA | BR85: 49.6% | BU85: PIURA | BV85: 33.9% | BW85: 34.3% | BX85: 37.0% | BY85: 41.5% | BZ85: 44.6% | CA85: 48.5% | CB85: 49.9% | CC85: 52.5% | CD85: 52.8% | CE85: 51.8% | CF85: 51.9% | CG85: 49.6% | CI85: PIURA | CJ85: 33.9% | CK85: 52.8%
BQ86: PUNO | BR86: 45.1% | BU86: PUNO | BV86: 32.1% | BW86: 32.8% | BX86: 35.3% | BY86: 37.7% | BZ86: 39.6% | CA86: 40.6% | CB86: 41.5% | CC86: 42.7% | CD86: 44.2% | CE86: 44.8% | CF86: 45.5% | CG86: 45.1% | CI86: PUNO | CJ86: 32.1% | CK86: 45.5%
BQ87: SAN MARTIN | BR87: 45.6% | BU87: SAN MARTIN | BV87: 36.2% | BW87: 37.0% | BX87: 38.6% | BY87: 41.5% | BZ87: 43.0% | CA87: 44.2% | CB87: 44.4% | CC87: 45.3% | CD87: 45.5% | CE87: 45.8% | CF87: 46.7% | CG87: 45.6% | CI87: SAN MARTIN | CJ87: 36.2% | CK87: 46.7%
BQ88: TACNA | BR88: 70.5% | BU88: TACNA | BV88: 34.0% | BW88: 37.2% | BX88: 43.4% | BY88: 48.9% | BZ88: 54.0% | CA88: 58.7% | CB88: 63.0% | CC88: 67.6% | CD88: 70.4% | CE88: 71.8% | CF88: 72.1% | CG88: 70.5% | CI88: TACNA | CJ88: 34.0% | CK88: 72.1%
BQ89: TUMBES | BR89: 56.7% | BU89: TUMBES | BV89: 32.7% | BW89: 36.0% | BX89: 39.9% | BY89: 47.6% | BZ89: 54.5% | CA89: 60.3% | CB89: 63.2% | CC89: 66.3% | CD89: 64.0% | CE89: 63.0% | CF89: 61.6% | CG89: 56.7% | CI89: TUMBES | CJ89: 32.7% | CK89: 66.3%
BQ90: UCAYALI | BR90: 47.6% | BU90: UCAYALI | BV90: 31.5% | BW90: 32.7% | BX90: 36.2% | BY90: 39.4% | BZ90: 42.2% | CA90: 44.9% | CB90: 45.5% | CC90: 46.9% | CD90: 47.0% | CE90: 47.1% | CF90: 49.0% | CG90: 47.6% | CI90: UCAYALI | CJ90: 31.5% | CK90: 49.0%
BQ91: NACIONAL | BR91: =+IFERROR(GETPIVOTDATA("IND",$BQ$25),"-") -> 53.2% | BU91: NACIONAL | BV91: =IFERROR(GETPIVOTDATA("Ind",$BU$10,"mes",BV$61),"-") -> 35.1% | BW91: =IFERROR(GETPIVOTDATA("Ind",$BU$10,"mes",BW$61),"-") -> 36.8% | BX91: 39.9% | BY91: 43.6% | BZ91: 46.4% | CA91: 49.6% | CB91: 51.3% | CC91: 53.6% | CD91: 54.1% | CE91: 54.1% | CF91: 54.6% | CG91: 53.2% | CI91: NACIONAL | CJ91: 35.1% | CK91: 54.6%

Sheet DL_1153_2025_CG03
A1: =+DL1153_2025!C9 -> Ficha 03: Porcentaje de niños y niñas de 6 a 35 meses con diagnóstico de anemia del Total de los casos esperados de anemia | BG1: 1 | DJ1: 1
A2: Periodo de Evaluación: | B2: =+DL1153_2025!B42 -> Diciembre - 2025
I4: DESC_DPTO | J4: (Todas)
I5: DESC_PROV | J5: (Todas)
A6: Año | B6: 2025 | I6: RED | J6: KIMBIRI PICHARI
A7: Mes | B7: 12 | I7: DESC_DIST | J7: (Todas)
A8: DEPARTAMENTO | B8: Provincia | C8: Distrito | D8: RED | E8: Denominador: Casos de anemia esperados en Niñas/niños de 6 a 35 meses de edad (6 a 11 meses, 12 a 23 meses, 24 a 35 meses), según la prevalencia de anemia en niños de la misma edad, según la ENDES del año anterior | F8: Numerador: Niñas/niños con el primer diagnóstico definitivo de anemia (CIE-X: D509 o D64.9) entre los 6 a 35 meses de edad (6 a 11 meses, 12 a 23 meses, 24 a 35 meses), dosaje definitivo de hemoglobina CPMS: 85018 o 85018.01 hasta 7 días a partir del diagnóstico e inicio de tratamiento oportuno CPMS: 99199.17 | G8: Indicador: Porcentaje de niños y niñas de 6 a 35 meses con diagnóstico de anemia del Total de los casos esperados de anemia. | I8: MES | J8: Denominador: Casos de anemia esperados en Niñas/niños de 6 a 35 meses de edad (6 a 11 meses, 12 a 23 meses, 24 a 35 meses), según la prevalencia de anemia en niños de la misma edad, según la ENDES del año anterior | K8: Numerador: Niñas/niños con el primer diagnóstico definitivo de anemia (CIE-X: D509 o D64.9) entre los 6 a 35 meses de edad (6 a 11 meses, 12 a 23 meses, 24 a 35 meses), dosaje definitivo de hemoglobina CPMS: 85018 o 85018.01 hasta 7 días a partir del diagnóstico e inicio de tratamiento oportuno CPMS: 99199.17 | L8: Indicador: Porcentaje de niños y niñas de 6 a 35 meses con diagnóstico de anemia del Total de los casos esperados de anemia.
A9: DESC_DPTO | B9: DESC_PROV | C9: RED | D9: DESC_DIST | E9: Den | F9: Num | G9: Ind | I9: Mes | J9: Den | K9: Num | L9: Ind
A10: CUSCO | B10: LA CONVENCION | C10: KIMBIRI PICHARI | D10: CIELO PUNCO | E10: 4 | F10: 1 | G10: 25.0% | I10: 1 | J10: 168 | K10: 50 | L10: 29.8% | BH10: Año | BI10: (Todas) | BL10: Año | BM10: (Todas)
A11: CUSCO | B11: LA CONVENCION | C11: KIMBIRI PICHARI | D11: KIMBIRI | E11: 38 | F11: 4 | G11: 10.5% | I11: 2 | J11: 176 | K11: 73 | L11: 41.5%
A12: CUSCO | B12: LA CONVENCION | C12: KIMBIRI PICHARI | D12: MANITEA | E12: 9 | F12: 6 | G12: 66.7% | I12: 3 | J12: 193 | K12: 61 | L12: 31.6% | BH12: DESC_DPTO | BI12: Suma de Ind | BL12: Suma de Ind | BM12: Mes
A13: CUSCO | B13: LA CONVENCION | C13: KIMBIRI PICHARI | D13: PICHARI | E13: 73 | F13: 23 | G13: 31.5% | I13: 4 | J13: 150 | K13: 49 | L13: 32.7% | BH13: AMAZONAS | BI13: 22.1% | BL13: DESC_DPTO | BM13: 1 | BN13: 2 | BO13: 3 | BP13: 4 | BQ13: 5 | BR13: 6 | BS13: 7 | BT13: 8 | BU13: 9 | BV13: 10 | BW13: 11 | BX13: 12
A14: CUSCO | B14: LA CONVENCION | C14: KIMBIRI PICHARI | D14: UNION ASHANINKA | E14: 22 | F14: 9 | G14: 40.9% | I14: 5 | J14: 169 | K14: 42 | L14: 24.9% | BH14: ANCASH | BI14: 44.6% | BL14: AMAZONAS | BM14: 25.4% | BN14: 23.0% | BO14: 25.3% | BP14: 22.1% | BQ14: 24.4% | BR14: 17.9% | BS14: 21.7% | BT14: 20.3% | BU14: 20.4% | BV14: 20.6% | BW14: 20.4% | BX14: 22.3% | CD14: Año | CE14: (Todas)
A15: CUSCO | B15: LA CONVENCION | C15: KIMBIRI PICHARI | D15: VILLA VIRGEN | E15: 4 | F15: 4 | G15: 100.0% | I15: 6 | J15: 140 | K15: 36 | L15: 25.7% | BH15: APURIMAC | BI15: 24.2% | BL15: ANCASH | BM15: 50.4% | BN15: 47.9% | BO15: 45.5% | BP15: 48.3% | BQ15: 46.3% | BR15: 44.3% | BS15: 45.0% | BT15: 41.2% | BU15: 40.6% | BV15: 44.3% | BW15: 39.4% | BX15: 39.5%
A16: CUSCO | B16: LA CONVENCION | C16: KIMBIRI PICHARI | D16: VILLA KINTIARINA | E16: 3 | F16: 2 | G16: 66.7% | I16: 7 | J16: 162 | K16: 51 | L16: 31.5% | BH16: AREQUIPA | BI16: 26.3% | BL16: APURIMAC | BM16: 31.0% | BN16: 26.7% | BO16: 24.2% | BP16: 26.7% | BQ16: 25.0% | BR16: 22.4% | BS16: 23.2% | BT16: 20.5% | BU16: 20.7% | BV16: 22.7% | BW16: 23.6% | BX16: 22.6% | CD16: Suma de Ind | CE16: DESC_DPTO
A17: Total general | E17: 153 | F17: 49 | G17: 32.0% | I17: 8 | J17: 156 | K17: 45 | L17: 28.8% | BH17: AYACUCHO | BI17: 23.4% | BL17: AREQUIPA | BM17: 25.2% | BN17: 27.1% | BO17: 26.9% | BP17: 27.8% | BQ17: 25.5% | BR17: 24.3% | BS17: 26.3% | BT17: 27.5% | BU17: 29.1% | BV17: 23.3% | BW17: 25.8% | BX17: 27.1% | CD17: Mes | CE17: AMAZONAS | CF17: ANCASH | CG17: APURIMAC | CH17: AREQUIPA | CI17: AYACUCHO | CJ17: CAJAMARCA | CK17: CALLAO | CL17: CUSCO | CM17: HUANCAVELICA | CN17: HUANUCO | CO17: ICA | CP17: JUNIN | CQ17: LA LIBERTAD | CR17: LAMBAYEQUE | CS17: LIMA METROPOLITANA | CT17: LIMA PROVINCIAS | CU17: LORETO | CV17: MADRE DE DIOS | CW17: MOQUEGUA | CX17: PASCO | CY17: PIURA | CZ17: PUNO | DA17: SAN MARTIN | DB17: TACNA | DC17: TUMBES | DD17: UCAYALI | DE17: Total general
I18: 9 | J18: 148 | K18: 36 | L18: 24.3% | BH18: CAJAMARCA | BI18: 28.3% | BL18: AYACUCHO | BM18: 26.5% | BN18: 29.7% | BO18: 24.9% | BP18: 21.4% | BQ18: 23.4% | BR18: 21.2% | BS18: 23.6% | BT18: 25.3% | BU18: 20.8% | BV18: 21.5% | BW18: 22.3% | BX18: 19.2% | CD18: Enero | CE18: 25.4% | CF18: 50.4% | CG18: 31.0% | CH18: 25.2% | CI18: 26.5% | CJ18: 29.8% | CK18: 19.4% | CL18: 38.5% | CM18: 36.2% | CN18: 17.8% | CO18: 24.9% | CP18: 25.7% | CQ18: 23.9% | CR18: 38.7% | CS18: 25.0% | CT18: 20.7% | CU18: 21.5% | CV18: 25.5% | CW18: 40.0% | CX18: 34.1% | CY18: 25.7% | CZ18: 13.4% | DA18: 22.0% | DB18: 24.5% | DC18: 26.6% | DD18: 25.9% | DE18: 26.3%
I19: 10 | J19: 139 | K19: 47 | L19: 33.8% | BH19: CALLAO | BI19: 18.8% | BL19: CAJAMARCA | BM19: 29.8% | BN19: 29.4% | BO19: 29.8% | BP19: 31.7% | BQ19: 29.7% | BR19: 29.1% | BS19: 28.2% | BT19: 27.3% | BU19: 25.5% | BV19: 26.8% | BW19: 27.4% | BX19: 25.0% | CD19: Febrero | CE19: 23.0% | CF19: 47.9% | CG19: 26.7% | CH19: 27.1% | CI19: 29.7% | CJ19: 29.4% | CK19: 19.7% | CL19: 35.6% | CM19: 35.4% | CN19: 20.0% | CO19: 28.1% | CP19: 24.5% | CQ19: 21.8% | CR19: 37.0% | CS19: 25.2% | CT19: 18.7% | CU19: 21.6% | CV19: 23.8% | CW19: 40.5% | CX19: 31.2% | CY19: 24.3% | CZ19: 13.3% | DA19: 21.4% | DB19: 19.7% | DC19: 34.6% | DD19: 25.5% | DE19: 25.9%
I20: 11 | J20: 143 | K20: 40 | L20: 28.0% | BH20: CUSCO | BI20: 29.1% | BL20: CALLAO | BM20: 19.4% | BN20: 19.7% | BO20: 21.4% | BP20: 22.0% | BQ20: 17.6% | BR20: 19.4% | BS20: 19.6% | BT20: 18.7% | BU20: 14.8% | BV20: 15.2% | BW20: 18.8% | BX20: 17.9% | CD20: Marzo | CE20: 25.3% | CF20: 45.5% | CG20: 24.2% | CH20: 26.9% | CI20: 24.9% | CJ20: 29.8% | CK20: 21.4% | CL20: 32.0% | CM20: 38.0% | CN20: 20.2% | CO20: 26.9% | CP20: 25.2% | CQ20: 20.6% | CR20: 30.4% | CS20: 26.1% | CT20: 17.2% | CU20: 23.5% | CV20: 32.4% | CW20: 36.1% | CX20: 26.2% | CY20: 23.2% | CZ20: 12.8% | DA20: 21.9% | DB20: 24.7% | DC20: 31.6% | DD20: 25.6% | DE20: 25.5%
I21: 12 | J21: 153 | K21: 49 | L21: 32.0% | BH21: HUANCAVELICA | BI21: 33.7% | BL21: CUSCO | BM21: 38.5% | BN21: 35.6% | BO21: 32.0% | BP21: 34.0% | BQ21: 31.3% | BR21: 27.3% | BS21: 26.3% | BT21: 24.7% | BU21: 21.7% | BV21: 24.2% | BW21: 24.2% | BX21: 27.1% | CD21: Abril | CE21: 22.1% | CF21: 48.3% | CG21: 26.7% | CH21: 27.8% | CI21: 21.4% | CJ21: 31.7% | CK21: 22.0% | CL21: 34.0% | CM21: 35.6% | CN21: 17.2% | CO21: 27.2% | CP21: 25.9% | CQ21: 22.7% | CR21: 30.8% | CS21: 25.2% | CT21: 20.2% | CU21: 21.4% | CV21: 27.4% | CW21: 39.3% | CX21: 27.0% | CY21: 22.8% | CZ21: 11.8% | DA21: 20.5% | DB21: 23.7% | DC21: 34.6% | DD21: 25.5% | DE21: 25.4%
I22: Total general | J22: 1,897 | K22: 579 | L22: 30.5% | BH22: HUANUCO | BI22: 17.6% | BL22: HUANCAVELICA | BM22: 36.2% | BN22: 35.4% | BO22: 38.0% | BP22: 35.6% | BQ22: 39.0% | BR22: 34.1% | BS22: 33.5% | BT22: 30.8% | BU22: 32.9% | BV22: 28.5% | BW22: 27.4% | BX22: 30.6% | CD22: Mayo | CE22: 24.4% | CF22: 46.3% | CG22: 25.0% | CH22: 25.5% | CI22: 23.4% | CJ22: 29.7% | CK22: 17.6% | CL22: 31.3% | CM22: 39.0% | CN22: 19.5% | CO22: 25.5% | CP22: 25.2% | CQ22: 21.8% | CR22: 28.3% | CS22: 24.7% | CT22: 17.5% | CU22: 21.2% | CV22: 24.9% | CW22: 40.5% | CX22: 31.1% | CY22: 20.9% | CZ22: 9.0% | DA22: 19.2% | DB22: 16.7% | DC22: 30.8% | DD22: 27.3% | DE22: 24.4%
BH23: ICA | BI23: 25.2% | BL23: HUANUCO | BM23: 17.8% | BN23: 20.0% | BO23: 20.2% | BP23: 17.2% | BQ23: 19.5% | BR23: 17.7% | BS23: 15.1% | BT23: 17.5% | BU23: 17.1% | BV23: 15.8% | BW23: 16.6% | BX23: 16.8% | CD23: Junio | CE23: 17.9% | CF23: 44.3% | CG23: 22.4% | CH23: 24.3% | CI23: 21.2% | CJ23: 29.1% | CK23: 19.4% | CL23: 27.3% | CM23: 34.1% | CN23: 17.7% | CO23: 21.6% | CP23: 20.4% | CQ23: 19.0% | CR23: 28.3% | CS23: 22.2% | CT23: 17.0% | CU23: 19.6% | CV23: 21.5% | CW23: 31.5% | CX23: 22.8% | CY23: 20.4% | CZ23: 10.4% | DA23: 19.4% | DB23: 22.5% | DC23: 32.0% | DD23: 30.9% | DE23: 22.7%
BH24: JUNIN | BI24: 23.3% | BL24: ICA | BM24: 24.9% | BN24: 28.1% | BO24: 26.9% | BP24: 27.2% | BQ24: 25.5% | BR24: 21.6% | BS24: 26.3% | BT24: 24.8% | BU24: 23.5% | BV24: 24.1% | BW24: 24.4% | BX24: 23.7% | CD24: Julio | CE24: 21.7% | CF24: 45.0% | CG24: 23.2% | CH24: 26.3% | CI24: 23.6% | CJ24: 28.2% | CK24: 19.6% | CL24: 26.3% | CM24: 33.5% | CN24: 15.1% | CO24: 26.3% | CP24: 20.8% | CQ24: 21.5% | CR24: 28.6% | CS24: 22.7% | CT24: 15.5% | CU24: 19.5% | CV24: 24.3% | CW24: 38.2% | CX24: 27.0% | CY24: 18.0% | CZ24: 9.9% | DA24: 17.7% | DB24: 17.0% | DC24: 26.3% | DD24: 25.5% | DE24: 22.6%
BH25: LA LIBERTAD | BI25: 20.7% | BL25: JUNIN | BM25: 25.7% | BN25: 24.5% | BO25: 25.2% | BP25: 25.9% | BQ25: 25.2% | BR25: 20.4% | BS25: 20.8% | BT25: 21.8% | BU25: 22.8% | BV25: 23.3% | BW25: 21.9% | BX25: 21.3% | CD25: Agosto | CE25: 20.3% | CF25: 41.2% | CG25: 20.5% | CH25: 27.5% | CI25: 25.3% | CJ25: 27.3% | CK25: 18.7% | CL25: 24.7% | CM25: 30.8% | CN25: 17.5% | CO25: 24.8% | CP25: 21.8% | CQ25: 19.2% | CR25: 29.2% | CS25: 20.9% | CT25: 15.2% | CU25: 19.8% | CV25: 19.9% | CW25: 36.6% | CX25: 25.2% | CY25: 20.3% | CZ25: 11.1% | DA25: 18.1% | DB25: 17.7% | DC25: 26.5% | DD25: 28.4% | DE25: 22.3%
BH26: LAMBAYEQUE | BI26: 29.3% | BL26: LA LIBERTAD | BM26: 23.9% | BN26: 21.8% | BO26: 20.6% | BP26: 22.7% | BQ26: 21.8% | BR26: 19.0% | BS26: 21.5% | BT26: 19.2% | BU26: 19.2% | BV26: 20.1% | BW26: 18.6% | BX26: 19.4% | CD26: Setiembre | CE26: 20.4% | CF26: 40.6% | CG26: 20.7% | CH26: 29.1% | CI26: 20.8% | CJ26: 25.5% | CK26: 14.8% | CL26: 21.7% | CM26: 32.9% | CN26: 17.1% | CO26: 23.5% | CP26: 22.8% | CQ26: 19.2% | CR26: 26.1% | CS26: 21.1% | CT26: 14.4% | CU26: 19.0% | CV26: 22.3% | CW26: 26.0% | CX26: 22.8% | CY26: 17.4% | CZ26: 10.1% | DA26: 17.4% | DB26: 20.0% | DC26: 28.4% | DD26: 27.8% | DE26: 21.4%
BH27: LIMA METROPOLITANA | BI27: 23.0% | BL27: LAMBAYEQUE | BM27: 38.7% | BN27: 37.0% | BO27: 30.4% | BP27: 30.8% | BQ27: 28.3% | BR27: 28.3% | BS27: 28.6% | BT27: 29.2% | BU27: 26.1% | BV27: 23.7% | BW27: 24.2% | BX27: 25.2% | CD27: Octubre | CE27: 20.6% | CF27: 44.3% | CG27: 22.7% | CH27: 23.3% | CI27: 21.5% | CJ27: 26.8% | CK27: 15.2% | CL27: 24.2% | CM27: 28.5% | CN27: 15.8% | CO27: 24.1% | CP27: 23.3% | CQ27: 20.1% | CR27: 23.7% | CS27: 19.7% | CT27: 14.4% | CU27: 18.3% | CV27: 19.1% | CW27: 27.8% | CX27: 25.5% | CY27: 16.5% | CZ27: 9.2% | DA27: 16.6% | DB27: 17.5% | DC27: 31.8% | DD27: 27.4% | DE27: 21.1%
BH28: LIMA PROVINCIAS | BI28: 17.0% | BL28: LIMA METROPOLITANA | BM28: 25.0% | BN28: 25.2% | BO28: 26.1% | BP28: 25.2% | BQ28: 24.7% | BR28: 22.2% | BS28: 22.7% | BT28: 20.9% | BU28: 21.1% | BV28: 19.7% | BW28: 20.3% | BX28: 21.0% | CD28: Noviembre | CE28: 20.4% | CF28: 39.4% | CG28: 23.6% | CH28: 25.8% | CI28: 22.3% | CJ28: 27.4% | CK28: 18.8% | CL28: 24.2% | CM28: 27.4% | CN28: 16.6% | CO28: 24.4% | CP28: 21.9% | CQ28: 18.6% | CR28: 24.2% | CS28: 20.3% | CT28: 18.6% | CU28: 19.3% | CV28: 19.7% | CW28: 30.2% | CX28: 29.4% | CY28: 16.5% | CZ28: 10.5% | DA28: 17.2% | DB28: 19.0% | DC28: 31.6% | DD28: 30.7% | DE28: 21.7%
BH29: LORETO | BI29: 20.3% | BL29: LIMA PROVINCIAS | BM29: 20.7% | BN29: 18.7% | BO29: 17.2% | BP29: 20.2% | BQ29: 17.5% | BR29: 17.0% | BS29: 15.5% | BT29: 15.2% | BU29: 14.4% | BV29: 14.4% | BW29: 18.6% | BX29: 13.8% | CD29: Diciembre | CE29: 22.3% | CF29: 39.5% | CG29: 22.6% | CH29: 27.1% | CI29: 19.2% | CJ29: 25.0% | CK29: 17.9% | CL29: 27.1% | CM29: 30.6% | CN29: 16.8% | CO29: 23.7% | CP29: 21.3% | CQ29: 19.4% | CR29: 25.2% | CS29: 21.0% | CT29: 13.8% | CU29: 18.0% | CV29: 16.6% | CW29: 27.9% | CX29: 24.3% | CY29: 17.7% | CZ29: 10.0% | DA29: 18.3% | DB29: 21.1% | DC29: 31.2% | DD29: 29.7% | DE29: 21.5%
BH30: MADRE DE DIOS | BI30: 23.3% | BL30: LORETO | BM30: 21.5% | BN30: 21.6% | BO30: 23.5% | BP30: 21.4% | BQ30: 21.2% | BR30: 19.6% | BS30: 19.5% | BT30: 19.8% | BU30: 19.0% | BV30: 18.3% | BW30: 19.3% | BX30: 18.0% | CD30: Total general | CE30: 22.1% | CF30: 44.6% | CG30: 24.2% | CH30: 26.3% | CI30: 23.4% | CJ30: 28.3% | CK30: 18.8% | CL30: 29.1% | CM30: 33.7% | CN30: 17.6% | CO30: 25.2% | CP30: 23.3% | CQ30: 20.7% | CR30: 29.3% | CS30: 23.0% | CT30: 17.0% | CU30: 20.3% | CV30: 23.3% | CW30: 34.7% | CX30: 27.4% | CY30: 20.5% | CZ30: 11.0% | DA30: 19.2% | DB30: 20.5% | DC30: 30.4% | DD30: 27.5% | DE30: 23.5%
BH31: MOQUEGUA | BI31: 34.7% | BL31: MADRE DE DIOS | BM31: 25.5% | BN31: 23.8% | BO31: 32.4% | BP31: 27.4% | BQ31: 24.9% | BR31: 21.5% | BS31: 24.3% | BT31: 19.9% | BU31: 22.3% | BV31: 19.1% | BW31: 19.7% | BX31: 16.6%
BH32: PASCO | BI32: 27.4% | BL32: MOQUEGUA | BM32: 40.0% | BN32: 40.5% | BO32: 36.1% | BP32: 39.3% | BQ32: 40.5% | BR32: 31.5% | BS32: 38.2% | BT32: 36.6% | BU32: 26.0% | BV32: 27.8% | BW32: 30.2% | BX32: 27.9%
BH33: PIURA | BI33: 20.5% | BL33: PASCO | BM33: 34.1% | BN33: 31.2% | BO33: 26.2% | BP33: 27.0% | BQ33: 31.1% | BR33: 22.8% | BS33: 27.0% | BT33: 25.2% | BU33: 22.8% | BV33: 25.5% | BW33: 29.4% | BX33: 24.3%
BH34: PUNO | BI34: 11.0% | BL34: PIURA | BM34: 25.7% | BN34: 24.3% | BO34: 23.2% | BP34: 22.8% | BQ34: 20.9% | BR34: 20.4% | BS34: 18.0% | BT34: 20.3% | BU34: 17.4% | BV34: 16.5% | BW34: 16.5% | BX34: 17.7%
BH35: SAN MARTIN | BI35: 19.2% | BL35: PUNO | BM35: 13.4% | BN35: 13.3% | BO35: 12.8% | BP35: 11.8% | BQ35: 9.0% | BR35: 10.4% | BS35: 9.9% | BT35: 11.1% | BU35: 10.1% | BV35: 9.2% | BW35: 10.5% | BX35: 10.0% | CE35: AMAZONAS | CF35: ANCASH | CG35: APURIMAC | CH35: AREQUIPA | CI35: AYACUCHO | CJ35: CAJAMARCA | CK35: CALLAO | CL35: CUSCO | CM35: HUANCAVELICA | CN35: HUANUCO | CO35: ICA | CP35: JUNIN | CQ35: LA LIBERTAD | CR35: LAMBAYEQUE | CS35: LIMA DIRIS CENTRO | CT35: LIMA DIRIS ESTE | CU35: LIMA DIRIS NORTE | CV35: LIMA DIRIS SUR | CW35: LIMA PROVINCIAS | CX35: LORETO | CY35: MADRE DE DIOS | CZ35: MOQUEGUA | DA35: PASCO | DB35: PIURA | DC35: PUNO | DD35: SAN MARTIN | DE35: TACNA | DF35: TUMBES | DG35: UCAYALI | DH35: NACIONAL
BH36: TACNA | BI36: 20.5% | BL36: SAN MARTIN | BM36: 22.0% | BN36: 21.4% | BO36: 21.9% | BP36: 20.5% | BQ36: 19.2% | BR36: 19.4% | BS36: 17.7% | BT36: 18.1% | BU36: 17.4% | BV36: 16.6% | BW36: 17.2% | BX36: 18.3% | CD36: Enero | CE36: =+IFERROR(GETPIVOTDATA("Ind",$CD$16,"Mes",$CD36,"DESC_DPTO",CE$35),"-") -> 25.4% | CF36: =+IFERROR(GETPIVOTDATA("Ind",$CD$16,"Mes",$CD36,"DESC_DPTO",CF$35),"-") -> 50.4% | CG36: 31.0% | CH36: 25.2% | CI36: 26.5% | CJ36: 29.8% | CK36: 19.4% | CL36: 38.5% | CM36: 36.2% | CN36: 17.8% | CO36: 24.9% | CP36: 25.7% | CQ36: 23.9% | CR36: 38.7% | CS36: - | CT36: - | CU36: - | CV36: - | CW36: 20.7% | CX36: 21.5% | CY36: 25.5% | CZ36: 40.0% | DA36: 34.1% | DB36: 25.7% | DC36: 13.4% | DD36: 22.0% | DE36: 24.5% | DF36: 26.6% | DG36: 25.9% | DH36: =DE18 -> 26.3%
BH37: TUMBES | BI37: 30.4% | BL37: TACNA | BM37: 24.5% | BN37: 19.7% | BO37: 24.7% | BP37: 23.7% | BQ37: 16.7% | BR37: 22.5% | BS37: 17.0% | BT37: 17.7% | BU37: 20.0% | BV37: 17.5% | BW37: 19.0% | BX37: 21.1% | CD37: Febrero | CE37: =+IFERROR(GETPIVOTDATA("Ind",$CD$16,"Mes",$CD37,"DESC_DPTO",CE$35),"-") -> 23.0% | CF37: 47.9% | CG37: 26.7% | CH37: 27.1% | CI37: 29.7% | CJ37: 29.4% | CK37: 19.7% | CL37: 35.6% | CM37: 35.4% | CN37: 20.0% | CO37: 28.1% | CP37: 24.5% | CQ37: 21.8% | CR37: 37.0% | CS37: - | CT37: - | CU37: - | CV37: - | CW37: 18.7% | CX37: 21.6% | CY37: 23.8% | CZ37: 40.5% | DA37: 31.2% | DB37: 24.3% | DC37: 13.3% | DD37: 21.4% | DE37: 19.7% | DF37: 34.6% | DG37: 25.5% | DH37: =DE19 -> 25.9%
BH38: UCAYALI | BI38: 27.5% | BL38: TUMBES | BM38: 26.6% | BN38: 34.6% | BO38: 31.6% | BP38: 34.6% | BQ38: 30.8% | BR38: 32.0% | BS38: 26.3% | BT38: 26.5% | BU38: 28.4% | BV38: 31.8% | BW38: 31.6% | BX38: 31.2% | CD38: Marzo | CE38: =+IFERROR(GETPIVOTDATA("Ind",$CD$16,"Mes",$CD38,"DESC_DPTO",CE$35),"-") -> 25.3% | CF38: 45.5% | CG38: 24.2% | CH38: 26.9% | CI38: 24.9% | CJ38: 29.8% | CK38: 21.4% | CL38: 32.0% | CM38: 38.0% | CN38: 20.2% | CO38: 26.9% | CP38: 25.2% | CQ38: 20.6% | CR38: 30.4% | CS38: - | CT38: - | CU38: - | CV38: - | CW38: 17.2% | CX38: 23.5% | CY38: 32.4% | CZ38: 36.1% | DA38: 26.2% | DB38: 23.2% | DC38: 12.8% | DD38: 21.9% | DE38: 24.7% | DF38: 31.6% | DG38: 25.6% | DH38: =DE20 -> 25.5%
BH39: Total general | BI39: 23.5% | BL39: UCAYALI | BM39: 25.9% | BN39: 25.5% | BO39: 25.6% | BP39: 25.5% | BQ39: 27.3% | BR39: 30.9% | BS39: 25.5% | BT39: 28.4% | BU39: 27.8% | BV39: 27.4% | BW39: 30.7% | BX39: 29.7% | CD39: Abril | CE39: =+IFERROR(GETPIVOTDATA("Ind",$CD$16,"Mes",$CD39,"DESC_DPTO",CE$35),"-") -> 22.1% | CF39: 48.3% | CG39: 26.7% | CH39: 27.8% | CI39: 21.4% | CJ39: 31.7% | CK39: 22.0% | CL39: 34.0% | CM39: 35.6% | CN39: 17.2% | CO39: 27.2% | CP39: 25.9% | CQ39: 22.7% | CR39: 30.8% | CS39: - | CT39: - | CU39: - | CV39: - | CW39: 20.2% | CX39: 21.4% | CY39: 27.4% | CZ39: 39.3% | DA39: 27.0% | DB39: 22.8% | DC39: 11.8% | DD39: 20.5% | DE39: 23.7% | DF39: 34.6% | DG39: 25.5% | DH39: =DE21 -> 25.4%
BL40: Total general | BM40: 26.3% | BN40: 25.9% | BO40: 25.5% | BP40: 25.4% | BQ40: 24.4% | BR40: 22.7% | BS40: 22.6% | BT40: 22.3% | BU40: 21.4% | BV40: 21.1% | BW40: 21.7% | BX40: 21.5% | CD40: Mayo | CE40: 24.4% | CF40: 46.3% | CG40: 25.0% | CH40: 25.5% | CI40: 23.4% | CJ40: 29.7% | CK40: 17.6% | CL40: 31.3% | CM40: 39.0% | CN40: 19.5% | CO40: 25.5% | CP40: 25.2% | CQ40: 21.8% | CR40: 28.3% | CS40: - | CT40: - | CU40: - | CV40: - | CW40: 17.5% | CX40: 21.2% | CY40: 24.9% | CZ40: 40.5% | DA40: 31.1% | DB40: 20.9% | DC40: 9.0% | DD40: 19.2% | DE40: 16.7% | DF40: 30.8% | DG40: 27.3% | DH40: 24.4%
CD41: Junio | CE41: 17.9% | CF41: 44.3% | CG41: 22.4% | CH41: 24.3% | CI41: 21.2% | CJ41: 29.1% | CK41: 19.4% | CL41: 27.3% | CM41: 34.1% | CN41: 17.7% | CO41: 21.6% | CP41: 20.4% | CQ41: 19.0% | CR41: 28.3% | CS41: - | CT41: - | CU41: - | CV41: - | CW41: 17.0% | CX41: 19.6% | CY41: 21.5% | CZ41: 31.5% | DA41: 22.8% | DB41: 20.4% | DC41: 10.4% | DD41: 19.4% | DE41: 22.5% | DF41: 32.0% | DG41: 30.9% | DH41: 22.7%
CD42: Julio | CE42: 21.7% | CF42: 45.0% | CG42: 23.2% | CH42: 26.3% | CI42: 23.6% | CJ42: 28.2% | CK42: 19.6% | CL42: 26.3% | CM42: 33.5% | CN42: 15.1% | CO42: 26.3% | CP42: 20.8% | CQ42: 21.5% | CR42: 28.6% | CS42: - | CT42: - | CU42: - | CV42: - | CW42: 15.5% | CX42: 19.5% | CY42: 24.3% | CZ42: 38.2% | DA42: 27.0% | DB42: 18.0% | DC42: 9.9% | DD42: 17.7% | DE42: 17.0% | DF42: 26.3% | DG42: 25.5% | DH42: 22.6%
CD43: Agosto | CE43: 20.3% | CF43: 41.2% | CG43: 20.5% | CH43: 27.5% | CI43: 25.3% | CJ43: 27.3% | CK43: 18.7% | CL43: 24.7% | CM43: 30.8% | CN43: 17.5% | CO43: 24.8% | CP43: 21.8% | CQ43: 19.2% | CR43: 29.2% | CS43: - | CT43: - | CU43: - | CV43: - | CW43: 15.2% | CX43: 19.8% | CY43: 19.9% | CZ43: 36.6% | DA43: 25.2% | DB43: 20.3% | DC43: 11.1% | DD43: 18.1% | DE43: 17.7% | DF43: 26.5% | DG43: 28.4% | DH43: 22.3%
CD44: Setiembre | CE44: 20.4% | CF44: 40.6% | CG44: 20.7% | CH44: 29.1% | CI44: 20.8% | CJ44: 25.5% | CK44: 14.8% | CL44: 21.7% | CM44: 32.9% | CN44: 17.1% | CO44: 23.5% | CP44: 22.8% | CQ44: 19.2% | CR44: 26.1% | CS44: - | CT44: - | CU44: - | CV44: - | CW44: 14.4% | CX44: 19.0% | CY44: 22.3% | CZ44: 26.0% | DA44: 22.8% | DB44: 17.4% | DC44: 10.1% | DD44: 17.4% | DE44: 20.0% | DF44: 28.4% | DG44: 27.8% | DH44: 21.4%
CD45: Octubre | CE45: 20.6% | CF45: 44.3% | CG45: 22.7% | CH45: 23.3% | CI45: =+IFERROR(GETPIVOTDATA("Ind",$CD$16,"Mes",$CD45,"DESC_DPTO",CI$35),"-") -> 21.5% | CJ45: 26.8% | CK45: 15.2% | CL45: 24.2% | CM45: 28.5% | CN45: 15.8% | CO45: 24.1% | CP45: 23.3% | CQ45: 20.1% | CR45: 23.7% | CS45: - | CT45: - | CU45: - | CV45: - | CW45: 14.4% | CX45: 18.3% | CY45: =+IFERROR(GETPIVOTDATA("Ind",$CD$16,"Mes",$CD45,"DESC_DPTO",CY$35),"-") -> 19.1% | CZ45: 27.8% | DA45: 25.5% | DB45: 16.5% | DC45: 9.2% | DD45: 16.6% | DE45: 17.5% | DF45: 31.8% | DG45: 27.4% | DH45: 21.1%
CD46: Noviembre | CE46: 20.4% | CF46: 39.4% | CG46: 23.6% | CH46: 25.8% | CI46: 22.3% | CJ46: 27.4% | CK46: 18.8% | CL46: 24.2% | CM46: 27.4% | CN46: 16.6% | CO46: 24.4% | CP46: 21.9% | CQ46: 18.6% | CR46: 24.2% | CS46: - | CT46: - | CU46: - | CV46: - | CW46: 18.6% | CX46: 19.3% | CY46: 19.7% | CZ46: 30.2% | DA46: 29.4% | DB46: 16.5% | DC46: 10.5% | DD46: 17.2% | DE46: 19.0% | DF46: 31.6% | DG46: 30.7% | DH46: 21.7%
CD47: Diciembre | CE47: 22.3% | CF47: 39.5% | CG47: 22.6% | CH47: 27.1% | CI47: 19.2% | CJ47: 25.0% | CK47: 17.9% | CL47: 27.1% | CM47: 30.6% | CN47: 16.8% | CO47: 23.7% | CP47: 21.3% | CQ47: 19.4% | CR47: 25.2% | CS47: - | CT47: - | CU47: - | CV47: - | CW47: 13.8% | CX47: 18.0% | CY47: 16.6% | CZ47: 27.9% | DA47: 24.3% | DB47: 17.7% | DC47: 10.0% | DD47: 18.3% | DE47: 21.1% | DF47: 31.2% | DG47: 29.7% | DH47: 21.5%
CE48: - | CF48: - | CG48: - | CH48: - | CI48: - | CJ48: - | CK48: - | CL48: - | CM48: - | CN48: - | CO48: - | CP48: - | CQ48: - | CR48: - | CS48: - | CT48: - | CU48: - | CV48: - | CW48: - | CX48: - | CY48: - | CZ48: - | DA48: - | DB48: - | DC48: - | DD48: - | DE48: - | DF48: - | DG48: - | DH48: 23.5%
BL49: VALOR
BM50: 1 | BN50: 2 | BO50: 3 | BP50: 4 | BQ50: 5 | BR50: 6 | BS50: 7 | BT50: 8 | BU50: 9 | BV50: 10 | BW50: 11 | BX50: 12 | CA50: MIN | CB50: MAX
BH51: AMAZONAS | BI51: =+IFERROR(GETPIVOTDATA("Ind",$BH$12,"DESC_DPTO",$BH51),"-") -> 22.1% | BL51: AMAZONAS | BM51: =IFERROR(GETPIVOTDATA("Ind",$BL$12,"Mes",BM$50,"DESC_DPTO",$BL51),"") -> 25.4% | BN51: =IFERROR(GETPIVOTDATA("Ind",$BL$12,"Mes",BN$50,"DESC_DPTO",$BL51),"") -> 23.0% | BO51: 25.3% | BP51: 22.1% | BQ51: 24.4% | BR51: 17.9% | BS51: 21.7% | BT51: 20.3% | BU51: 20.4% | BV51: 20.6% | BW51: 20.4% | BX51: 22.3% | BZ51: AMAZONAS | CA51: =+IF(BM51="-","-",MIN(BM51:BX51)) -> 17.9% | CB51: =+IF(BM51="-","-",MAX(BM51:BX51)) -> 25.4%
BH52: ANCASH | BI52: =+IFERROR(GETPIVOTDATA("Ind",$BH$12,"DESC_DPTO",$BH52),"-") -> 44.6% | BL52: ANCASH | BM52: =IFERROR(GETPIVOTDATA("Ind",$BL$12,"Mes",BM$50,"DESC_DPTO",$BL52),"") -> 50.4% | BN52: 47.9% | BO52: 45.5% | BP52: 48.3% | BQ52: 46.3% | BR52: 44.3% | BS52: 45.0% | BT52: 41.2% | BU52: 40.6% | BV52: 44.3% | BW52: 39.4% | BX52: 39.5% | BZ52: ANCASH | CA52: =+IF(BM52="-","-",MIN(BM52:BX52)) -> 39.4% | CB52: =+IF(BM52="-","-",MAX(BM52:BX52)) -> 50.4%
BH53: APURIMAC | BI53: 24.2% | BL53: APURIMAC | BM53: 31.0% | BN53: 26.7% | BO53: 24.2% | BP53: 26.7% | BQ53: 25.0% | BR53: 22.4% | BS53: 23.2% | BT53: 20.5% | BU53: 20.7% | BV53: 22.7% | BW53: 23.6% | BX53: 22.6% | BZ53: APURIMAC | CA53: 20.5% | CB53: 31.0%
BH54: AREQUIPA | BI54: 26.3% | BL54: AREQUIPA | BM54: 25.2% | BN54: 27.1% | BO54: 26.9% | BP54: 27.8% | BQ54: 25.5% | BR54: 24.3% | BS54: 26.3% | BT54: 27.5% | BU54: 29.1% | BV54: 23.3% | BW54: 25.8% | BX54: 27.1% | BZ54: AREQUIPA | CA54: 23.3% | CB54: 29.1%
BH55: AYACUCHO | BI55: 23.4% | BL55: AYACUCHO | BM55: 26.5% | BN55: 29.7% | BO55: 24.9% | BP55: 21.4% | BQ55: 23.4% | BR55: 21.2% | BS55: 23.6% | BT55: 25.3% | BU55: 20.8% | BV55: 21.5% | BW55: 22.3% | BX55: 19.2% | BZ55: AYACUCHO | CA55: 19.2% | CB55: 29.7%
BH56: CAJAMARCA | BI56: 28.3% | BL56: CAJAMARCA | BM56: 29.8% | BN56: 29.4% | BO56: 29.8% | BP56: 31.7% | BQ56: 29.7% | BR56: 29.1% | BS56: 28.2% | BT56: 27.3% | BU56: 25.5% | BV56: 26.8% | BW56: 27.4% | BX56: 25.0% | BZ56: CAJAMARCA | CA56: 25.0% | CB56: 31.7%
BH57: CALLAO | BI57: 18.8% | BL57: CALLAO | BM57: 19.4% | BN57: 19.7% | BO57: 21.4% | BP57: 22.0% | BQ57: 17.6% | BR57: 19.4% | BS57: 19.6% | BT57: 18.7% | BU57: 14.8% | BV57: 15.2% | BW57: 18.8% | BX57: 17.9% | BZ57: CALLAO | CA57: 14.8% | CB57: 22.0%
BH58: CUSCO | BI58: 29.1% | BL58: CUSCO | BM58: 38.5% | BN58: 35.6% | BO58: 32.0% | BP58: 34.0% | BQ58: 31.3% | BR58: 27.3% | BS58: 26.3% | BT58: 24.7% | BU58: 21.7% | BV58: 24.2% | BW58: 24.2% | BX58: 27.1% | BZ58: CUSCO | CA58: 21.7% | CB58: 38.5%
BH59: HUANCAVELICA | BI59: 33.7% | BL59: HUANCAVELICA | BM59: 36.2% | BN59: 35.4% | BO59: 38.0% | BP59: 35.6% | BQ59: 39.0% | BR59: 34.1% | BS59: 33.5% | BT59: 30.8% | BU59: 32.9% | BV59: 28.5% | BW59: 27.4% | BX59: 30.6% | BZ59: HUANCAVELICA | CA59: 27.4% | CB59: 39.0%
BH60: HUANUCO | BI60: 17.6% | BL60: HUANUCO | BM60: 17.8% | BN60: 20.0% | BO60: 20.2% | BP60: 17.2% | BQ60: 19.5% | BR60: 17.7% | BS60: 15.1% | BT60: 17.5% | BU60: 17.1% | BV60: 15.8% | BW60: 16.6% | BX60: 16.8% | BZ60: HUANUCO | CA60: 15.1% | CB60: 20.2%
BH61: ICA | BI61: 25.2% | BL61: ICA | BM61: 24.9% | BN61: 28.1% | BO61: 26.9% | BP61: 27.2% | BQ61: 25.5% | BR61: 21.6% | BS61: 26.3% | BT61: 24.8% | BU61: 23.5% | BV61: 24.1% | BW61: 24.4% | BX61: 23.7% | BZ61: ICA | CA61: 21.6% | CB61: 28.1%
BH62: JUNIN | BI62: 23.3% | BL62: JUNIN | BM62: 25.7% | BN62: 24.5% | BO62: 25.2% | BP62: 25.9% | BQ62: 25.2% | BR62: 20.4% | BS62: 20.8% | BT62: 21.8% | BU62: 22.8% | BV62: 23.3% | BW62: 21.9% | BX62: 21.3% | BZ62: JUNIN | CA62: 20.4% | CB62: 25.9%
BH63: LA LIBERTAD | BI63: 20.7% | BL63: LA LIBERTAD | BM63: 23.9% | BN63: 21.8% | BO63: 20.6% | BP63: 22.7% | BQ63: 21.8% | BR63: 19.0% | BS63: 21.5% | BT63: 19.2% | BU63: 19.2% | BV63: 20.1% | BW63: 18.6% | BX63: 19.4% | BZ63: LA LIBERTAD | CA63: 18.6% | CB63: 23.9%
BH64: LAMBAYEQUE | BI64: 29.3% | BL64: LAMBAYEQUE | BM64: 38.7% | BN64: 37.0% | BO64: 30.4% | BP64: 30.8% | BQ64: 28.3% | BR64: 28.3% | BS64: 28.6% | BT64: 29.2% | BU64: 26.1% | BV64: 23.7% | BW64: 24.2% | BX64: 25.2% | BZ64: LAMBAYEQUE | CA64: 23.7% | CB64: 38.7%
BH65: LIMA DIRIS CENTRO | BI65: - | BL65: LIMA DIRIS CENTRO | BZ65: LIMA DIRIS CENTRO | CA65: 0.0% | CB65: 0.0%
BH66: LIMA DIRIS ESTE | BI66: - | BL66: LIMA DIRIS ESTE | BZ66: LIMA DIRIS ESTE | CA66: 0.0% | CB66: 0.0%
BH67: LIMA DIRIS NORTE | BI67: - | BL67: LIMA DIRIS NORTE | BZ67: LIMA DIRIS NORTE | CA67: 0.0% | CB67: 0.0%
BH68: LIMA DIRIS SUR | BI68: - | BL68: LIMA DIRIS SUR | BZ68: LIMA DIRIS SUR | CA68: 0.0% | CB68: 0.0%
BH69: LIMA PROVINCIAS | BI69: 17.0% | BL69: LIMA PROVINCIAS | BM69: 20.7% | BN69: 18.7% | BO69: 17.2% | BP69: 20.2% | BQ69: 17.5% | BR69: 17.0% | BS69: 15.5% | BT69: 15.2% | BU69: 14.4% | BV69: 14.4% | BW69: 18.6% | BX69: 13.8% | BZ69: LIMA PROVINCIAS | CA69: 13.8% | CB69: 20.7%
BH70: LORETO | BI70: 20.3% | BL70: LORETO | BM70: 21.5% | BN70: 21.6% | BO70: 23.5% | BP70: 21.4% | BQ70: 21.2% | BR70: 19.6% | BS70: 19.5% | BT70: 19.8% | BU70: 19.0% | BV70: 18.3% | BW70: 19.3% | BX70: 18.0% | BZ70: LORETO | CA70: 18.0% | CB70: 23.5%
BH71: MADRE DE DIOS | BI71: 23.3% | BL71: MADRE DE DIOS | BM71: 25.5% | BN71: 23.8% | BO71: 32.4% | BP71: 27.4% | BQ71: 24.9% | BR71: 21.5% | BS71: 24.3% | BT71: 19.9% | BU71: 22.3% | BV71: 19.1% | BW71: 19.7% | BX71: 16.6% | BZ71: MADRE DE DIOS | CA71: 16.6% | CB71: 32.4%
BH72: MOQUEGUA | BI72: 34.7% | BL72: MOQUEGUA | BM72: 40.0% | BN72: 40.5% | BO72: 36.1% | BP72: 39.3% | BQ72: 40.5% | BR72: 31.5% | BS72: 38.2% | BT72: 36.6% | BU72: 26.0% | BV72: 27.8% | BW72: 30.2% | BX72: 27.9% | BZ72: MOQUEGUA | CA72: 26.0% | CB72: 40.5%
BH73: PASCO | BI73: 27.4% | BL73: PASCO | BM73: 34.1% | BN73: 31.2% | BO73: 26.2% | BP73: 27.0% | BQ73: 31.1% | BR73: 22.8% | BS73: 27.0% | BT73: 25.2% | BU73: 22.8% | BV73: 25.5% | BW73: 29.4% | BX73: 24.3% | BZ73: PASCO | CA73: 22.8% | CB73: 34.1%
BH74: PIURA | BI74: 20.5% | BL74: PIURA | BM74: 25.7% | BN74: 24.3% | BO74: 23.2% | BP74: 22.8% | BQ74: 20.9% | BR74: 20.4% | BS74: 18.0% | BT74: 20.3% | BU74: 17.4% | BV74: 16.5% | BW74: 16.5% | BX74: 17.7% | BZ74: PIURA | CA74: 16.5% | CB74: 25.7%
BH75: PUNO | BI75: 11.0% | BL75: PUNO | BM75: 13.4% | BN75: 13.3% | BO75: 12.8% | BP75: 11.8% | BQ75: 9.0% | BR75: 10.4% | BS75: 9.9% | BT75: 11.1% | BU75: 10.1% | BV75: 9.2% | BW75: 10.5% | BX75: 10.0% | BZ75: PUNO | CA75: 9.0% | CB75: 13.4%
BH76: SAN MARTIN | BI76: 19.2% | BL76: SAN MARTIN | BM76: 22.0% | BN76: 21.4% | BO76: 21.9% | BP76: 20.5% | BQ76: 19.2% | BR76: 19.4% | BS76: 17.7% | BT76: 18.1% | BU76: 17.4% | BV76: 16.6% | BW76: 17.2% | BX76: 18.3% | BZ76: SAN MARTIN | CA76: 16.6% | CB76: 22.0%
BH77: TACNA | BI77: 20.5% | BL77: TACNA | BM77: 24.5% | BN77: 19.7% | BO77: 24.7% | BP77: 23.7% | BQ77: 16.7% | BR77: 22.5% | BS77: 17.0% | BT77: 17.7% | BU77: 20.0% | BV77: 17.5% | BW77: 19.0% | BX77: 21.1% | BZ77: TACNA | CA77: 16.7% | CB77: 24.7%
BH78: TUMBES | BI78: 30.4% | BL78: TUMBES | BM78: 26.6% | BN78: 34.6% | BO78: 31.6% | BP78: 34.6% | BQ78: 30.8% | BR78: 32.0% | BS78: 26.3% | BT78: 26.5% | BU78: 28.4% | BV78: 31.8% | BW78: 31.6% | BX78: 31.2% | BZ78: TUMBES | CA78: 26.3% | CB78: 34.6%
BH79: UCAYALI | BI79: 27.5% | BL79: UCAYALI | BM79: 25.9% | BN79: 25.5% | BO79: 25.6% | BP79: 25.5% | BQ79: 27.3% | BR79: 30.9% | BS79: 25.5% | BT79: 28.4% | BU79: 27.8% | BV79: 27.4% | BW79: 30.7% | BX79: 29.7% | BZ79: UCAYALI | CA79: 25.5% | CB79: 30.9%
BH80: NACIONAL | BI80: =BI39 -> 23.5% | BL80: NACIONAL | BM80: =IFERROR(GETPIVOTDATA("Ind",$BL$12,"Mes",BM$50),"-") -> 26.3% | BN80: =IFERROR(GETPIVOTDATA("Ind",$BL$12,"Mes",BN$50),"-") -> 25.9% | BO80: 25.5% | BP80: 25.4% | BQ80: 24.4% | BR80: 22.7% | BS80: 22.6% | BT80: 22.3% | BU80: 21.4% | BV80: 21.1% | BW80: 21.7% | BX80: 21.5% | BZ80: NACIONAL | CA80: 21.1% | CB80: 26.3%

Sheet DL_1153_2025_CG04
A1: =+DL1153_2025!C10 -> Ficha 04:Porcentaje de recién nacidos que reciben vacunas BCG, HvB, controles CRED y tamizaje neonatal metabólico. | BN1: 1 | DS1: 1
A2: Periodo de Evaluación: | B2: =+DL1153_2025!B42 -> Diciembre - 2025
I4: seguro | J4: MINSA
A5: seguro | B5: MINSA | I5: diresa | J5: (Todas)
A6: mes | B6: 12 | I6: provincia | J6: (Todas)
A7: año | B7: 2025 | I7: distrito | J7: (Varios elementos)
A8: DIRESA/DIRIS | B8: Provincia | C8: Distrito | D8: Denominador: N° de recién nacidos de 28 días de vida, del departamento en el mes de medición, registrados en el padrón nominal (DNI o CNV en línea) y CNV en línea, con tipo de seguro SIS. Excluyendo los recién nacidos con bajo peso al nacer (menor de 2500 gramos) y/o prematuros (menor de 37 SG), registrados en CNV. | E8: Numerador: Niñas/niños recién nacidos del denominador, que reciben vacunas BCG y HvB, 04 Controles de CRED y tamizaje neonatal metabólico (toma de muestra), registrados en HIS. | F8: Indicador: Porcentaje de recién nacidos que reciben vacunas BCG, HvB, controles CRED y tamizaje neonatal metabólico. | I8: AÑO | J8: MES | K8: Denominador: N° de recién nacidos de 28 días de vida, del departamento en el mes de medición, registrados en el padrón nominal (DNI o CNV en línea) y CNV en línea, con tipo de seguro SIS. Excluyendo los recién nacidos con bajo peso al nacer (menor de 2500 gramos) y/o prematuros (menor de 37 SG), registrados en CNV. | L8: Numerador: Niñas/niños recién nacidos del denominador, que reciben vacunas BCG y HvB, 04 Controles de CRED y tamizaje neonatal metabólico (toma de muestra), registrados en HIS. | M8: Indicador: Porcentaje de recién nacidos que reciben vacunas BCG, HvB, controles CRED y tamizaje neonatal metabólico.
A9: diresa | B9: provincia | C9: distrito | D9: denominador | E9: numerador | F9: Suma de Ind | I9: año | J9: mes | K9: Suma de denominador2 | L9: Suma de numerador2 | M9: Suma de Ind
A10: 08 CUSCO | B10: 0809 LA CONVENCION | C10: 080907 KIMBIRI | D10: 23 | E10: 19 | F10: 82.6% | I10: 2025 | J10: 1 | K10: 99 | L10: 69 | M10: 69.7%
A11: 08 CUSCO | B11: 0809 LA CONVENCION | C11: 080910 PICHARI | D11: 60 | E11: 47 | F11: 78.3% | I11: 2025 | J11: 2 | K11: 105 | L11: 90 | M11: 85.7%
A12: 08 CUSCO | B12: 0809 LA CONVENCION | C12: 080912 VILLA VIRGEN | D12: 1 | E12: 1 | F12: 100.0% | I12: 2025 | J12: 3 | K12: 93 | L12: 80 | M12: 86.0%
A13: 08 CUSCO | B13: 0809 LA CONVENCION | C13: 080913 VILLA KINTIARINA | D13: 2 | E13: 1 | F13: 50.0% | I13: 2025 | J13: 4 | K13: 102 | L13: 89 | M13: 87.3% | BO13: seguro | BP13: MINSA | BS13: seguro | BT13: MINSA
A14: 08 CUSCO | B14: 0809 LA CONVENCION | C14: 080916 CIELO PUNCO | D14: 3 | E14: 2 | F14: 66.7% | I14: 2025 | J14: 5 | K14: 112 | L14: 102 | M14: 91.1% | BO14: año | BP14: (Todas) | BS14: año | BT14: (Todas)
A15: 08 CUSCO | B15: 0809 LA CONVENCION | C15: 080917 MANITEA | D15: 6 | E15: 2 | F15: 33.3% | I15: 2025 | J15: 6 | K15: 83 | L15: 72 | M15: 86.7% | CL15: seguro | CM15: MINSA
A16: 08 CUSCO | B16: 0809 LA CONVENCION | C16: 080918 UNION ASHANINKA | D16: 9 | E16: 8 | F16: 88.9% | I16: 2025 | J16: 7 | K16: 105 | L16: 87 | M16: 82.9% | BO16: diresa | BP16: Suma de IND | BS16: Suma de IND | BT16: mes | CL16: año | CM16: (Todas)
A17: Total general | D17: 104 | E17: 80 | F17: 76.9% | I17: 2025 | J17: 8 | K17: 65 | L17: 52 | M17: 80.0% | BO17: AMAZONAS | BP17: 48.1% | BS17: diresa | BT17: 1 | BU17: 2 | BV17: 3 | BW17: 4 | BX17: 5 | BY17: 6 | BZ17: 7 | CA17: 8 | CB17: 9 | CC17: 10 | CD17: 11 | CE17: 12
I18: 2025 | J18: 9 | K18: 82 | L18: 58 | M18: 70.7% | BO18: ANCASH | BP18: 62.0% | BS18: AMAZONAS | BT18: 31.9% | BU18: 46.7% | BV18: 48.6% | BW18: 49.2% | BX18: 51.4% | BY18: 48.6% | BZ18: 47.5% | CA18: 49.4% | CB18: 52.7% | CC18: 50.2% | CD18: 49.3% | CE18: 53.7% | CL18: Suma de IND | CM18: diresa
I19: 2025 | J19: 10 | K19: 89 | L19: 72 | M19: 80.9% | BO19: APURIMAC | BP19: 84.8% | BS19: ANCASH | BT19: 50.0% | BU19: 65.1% | BV19: 63.6% | BW19: 66.7% | BX19: 62.2% | BY19: 65.4% | BZ19: 63.9% | CA19: 64.2% | CB19: 60.6% | CC19: 62.3% | CD19: 61.2% | CE19: 58.0% | CL19: mes | CM19: AMAZONAS | CN19: ANCASH | CO19: APURIMAC | CP19: AREQUIPA | CQ19: AYACUCHO | CR19: CAJAMARCA | CS19: CALLAO | CT19: CUSCO | CU19: HUANCAVELICA | CV19: HUANUCO | CW19: ICA | CX19: JUNIN | CY19: LA LIBERTAD | CZ19: LAMBAYEQUE | DA19: LIMA DIRIS CENTRO | DB19: LIMA DIRIS ESTE | DC19: LIMA DIRIS NORTE | DD19: LIMA DIRIS SUR | DE19: LIMA PROVINCIAS | DF19: LORETO | DG19: MADRE DE DIOS | DH19: MOQUEGUA | DI19: PASCO | DJ19: PIURA | DK19: PUNO | DL19: SAN MARTIN | DM19: TACNA | DN19: TUMBES | DO19: UCAYALI | DP19: Total general
I20: 2025 | J20: 11 | K20: 80 | L20: 60 | M20: 75.0% | BO20: AREQUIPA | BP20: 40.8% | BS20: APURIMAC | BT20: 82.6% | BU20: 87.5% | BV20: 87.6% | BW20: 88.4% | BX20: 87.5% | BY20: 84.7% | BZ20: 87.4% | CA20: 83.8% | CB20: 81.9% | CC20: 83.3% | CD20: 82.5% | CE20: 79.8% | CL20: Enero | CM20: 31.9% | CN20: 50.0% | CO20: 82.6% | CP20: 22.1% | CQ20: 82.4% | CR20: 48.8% | CS20: 49.2% | CT20: 63.3% | CU20: 78.7% | CV20: 64.6% | CW20: 58.5% | CX20: 73.2% | CY20: 29.5% | CZ20: 30.4% | DA20: 7.8% | DB20: 14.3% | DC20: 12.2% | DD20: 22.8% | DE20: 68.1% | DF20: 21.9% | DG20: 65.5% | DH20: 73.8% | DI20: 70.0% | DJ20: 46.0% | DK20: 46.6% | DL20: 41.9% | DM20: 72.2% | DN20: 85.1% | DO20: 44.7% | DP20: 42.4%
I21: 2025 | J21: 12 | K21: 104 | L21: 80 | M21: 76.9% | BO21: AYACUCHO | BP21: 86.3% | BS21: AREQUIPA | BT21: 22.1% | BU21: 33.9% | BV21: 40.5% | BW21: 42.5% | BX21: 38.5% | BY21: 48.2% | BZ21: 44.7% | CA21: 39.9% | CB21: 45.5% | CC21: 49.7% | CD21: 46.0% | CE21: 37.0% | CL21: Febrero | CM21: 46.7% | CN21: 65.1% | CO21: 87.5% | CP21: 33.9% | CQ21: 89.5% | CR21: 61.5% | CS21: 59.3% | CT21: 70.1% | CU21: 83.0% | CV21: 72.8% | CW21: 71.3% | CX21: 76.7% | CY21: 42.0% | CZ21: 56.5% | DA21: 19.9% | DB21: 27.3% | DC21: 17.2% | DD21: 41.0% | DE21: 74.0% | DF21: 49.7% | DG21: 78.7% | DH21: 68.9% | DI21: 73.3% | DJ21: 56.6% | DK21: 53.9% | DL21: 51.1% | DM21: 82.4% | DN21: 93.3% | DO21: 64.3% | DP21: 54.6%
I22: Total general | K22: 1,119 | L22: 911 | M22: 81.4% | BO22: CAJAMARCA | BP22: 61.6% | BS22: AYACUCHO | BT22: 82.4% | BU22: 89.5% | BV22: 85.8% | BW22: 86.4% | BX22: 87.2% | BY22: 87.6% | BZ22: 88.4% | CA22: 88.5% | CB22: 87.5% | CC22: 86.4% | CD22: 84.0% | CE22: 80.8% | CL22: Marzo | CM22: 48.6% | CN22: 63.6% | CO22: 87.6% | CP22: 40.5% | CQ22: 85.8% | CR22: 68.3% | CS22: 61.2% | CT22: 74.7% | CU22: 86.9% | CV22: 82.0% | CW22: 71.0% | CX22: 76.1% | CY22: 48.9% | CZ22: 57.9% | DA22: 21.0% | DB22: 29.3% | DC22: 21.7% | DD22: 43.2% | DE22: 79.2% | DF22: 47.6% | DG22: 74.3% | DH22: 82.4% | DI22: 80.8% | DJ22: 60.4% | DK22: 57.3% | DL22: 58.1% | DM22: 79.9% | DN22: 91.9% | DO22: 69.3% | DP22: 57.1%
BO23: CALLAO | BP23: 57.9% | BS23: CAJAMARCA | BT23: 48.8% | BU23: 61.5% | BV23: 68.3% | BW23: 66.0% | BX23: 63.5% | BY23: 63.0% | BZ23: 61.7% | CA23: 60.3% | CB23: 61.3% | CC23: 63.2% | CD23: 61.9% | CE23: 59.0% | CL23: Abril | CM23: 49.2% | CN23: 66.7% | CO23: 88.4% | CP23: 42.5% | CQ23: 86.4% | CR23: 66.0% | CS23: 60.0% | CT23: 73.6% | CU23: 83.4% | CV23: 83.1% | CW23: 73.4% | CX23: 72.8% | CY23: 45.4% | CZ23: 56.6% | DA23: 14.0% | DB23: 26.9% | DC23: 14.5% | DD23: 40.3% | DE23: 69.5% | DF23: 46.7% | DG23: 70.7% | DH23: 75.2% | DI23: 76.0% | DJ23: 58.6% | DK23: 51.9% | DL23: 54.4% | DM23: 83.6% | DN23: 95.1% | DO23: 64.1% | DP23: 55.1%
BO24: CUSCO | BP24: 71.7% | BS24: CALLAO | BT24: 49.2% | BU24: 59.3% | BV24: 61.2% | BW24: 60.0% | BX24: 53.1% | BY24: 59.5% | BZ24: 61.7% | CA24: 56.1% | CB24: 60.2% | CC24: 63.5% | CD24: 54.4% | CE24: 57.6% | CL24: Mayo | CM24: 51.4% | CN24: 62.2% | CO24: 87.5% | CP24: 38.5% | CQ24: 87.2% | CR24: 63.5% | CS24: 53.1% | CT24: 72.7% | CU24: 78.5% | CV24: 79.2% | CW24: 67.5% | CX24: 72.4% | CY24: 46.8% | CZ24: 54.0% | DA24: 13.7% | DB24: 23.0% | DC24: 13.1% | DD24: 38.1% | DE24: 72.5% | DF24: 46.9% | DG24: 80.9% | DH24: 79.5% | DI24: 77.5% | DJ24: 50.9% | DK24: 50.3% | DL24: 48.2% | DM24: 80.0% | DN24: 91.5% | DO24: 64.4% | DP24: 53.3%
BO25: HUANCAVELICA | BP25: 81.8% | BS25: CUSCO | BT25: 63.3% | BU25: 70.1% | BV25: 74.7% | BW25: 73.6% | BX25: 72.7% | BY25: 74.1% | BZ25: 74.5% | CA25: 73.6% | CB25: 72.8% | CC25: 73.7% | CD25: 68.7% | CE25: 67.9% | CL25: Junio | CM25: 48.6% | CN25: 65.4% | CO25: 84.7% | CP25: 48.2% | CQ25: 87.6% | CR25: 63.0% | CS25: 59.5% | CT25: 74.1% | CU25: 80.8% | CV25: 80.5% | CW25: 69.9% | CX25: 77.9% | CY25: 51.0% | CZ25: 55.2% | DA25: 16.6% | DB25: 24.0% | DC25: 16.2% | DD25: 40.6% | DE25: 76.8% | DF25: 51.2% | DG25: 78.7% | DH25: 80.4% | DI25: 77.0% | DJ25: 56.3% | DK25: 58.3% | DL25: 57.1% | DM25: 80.7% | DN25: 91.7% | DO25: 61.5% | DP25: 55.9%
BO26: HUANUCO | BP26: 78.4% | BS26: HUANCAVELICA | BT26: 78.7% | BU26: 83.0% | BV26: 86.9% | BW26: 83.4% | BX26: 78.5% | BY26: 80.8% | BZ26: 80.1% | CA26: 84.1% | CB26: 86.9% | CC26: 79.6% | CD26: 76.7% | CE26: 82.2% | CL26: Julio | CM26: 47.5% | CN26: 63.9% | CO26: 87.4% | CP26: 44.7% | CQ26: 88.4% | CR26: 61.7% | CS26: 61.7% | CT26: 74.5% | CU26: 80.1% | CV26: 80.3% | CW26: 72.1% | CX26: 76.7% | CY26: 54.3% | CZ26: 55.3% | DA26: 31.2% | DB26: 26.4% | DC26: 16.1% | DD26: 40.6% | DE26: 79.1% | DF26: 46.6% | DG26: 75.5% | DH26: 77.4% | DI26: 70.3% | DJ26: 48.0% | DK26: 57.5% | DL26: 48.8% | DM26: 85.1% | DN26: 90.4% | DO26: 60.4% | DP26: 55.5%
BO27: ICA | BP27: 69.8% | BS27: HUANUCO | BT27: 64.6% | BU27: 72.8% | BV27: 82.0% | BW27: 83.1% | BX27: 79.2% | BY27: 80.5% | BZ27: 80.3% | CA27: 79.5% | CB27: 82.2% | CC27: 81.6% | CD27: 79.8% | CE27: 75.6% | CL27: Agosto | CM27: 49.4% | CN27: 64.2% | CO27: 83.8% | CP27: 39.9% | CQ27: 88.5% | CR27: 60.3% | CS27: 56.1% | CT27: 73.6% | CU27: 84.1% | CV27: 79.5% | CW27: 66.3% | CX27: 73.7% | CY27: 48.3% | CZ27: 55.0% | DA27: 26.7% | DB27: 23.5% | DC27: 17.6% | DD27: 35.5% | DE27: 75.9% | DF27: 46.4% | DG27: 71.2% | DH27: 76.4% | DI27: 71.4% | DJ27: 52.0% | DK27: 59.0% | DL27: 49.9% | DM27: 85.2% | DN27: 93.4% | DO27: 60.8% | DP27: 54.5%
BO28: JUNIN | BP28: 75.5% | BS28: ICA | BT28: 58.5% | BU28: 71.3% | BV28: 71.0% | BW28: 73.4% | BX28: 67.5% | BY28: 69.9% | BZ28: 72.1% | CA28: 66.3% | CB28: 72.0% | CC28: 77.0% | CD28: 70.9% | CE28: 66.6% | CL28: Setiembre | CM28: 52.7% | CN28: 60.6% | CO28: 81.9% | CP28: 45.5% | CQ28: 87.5% | CR28: 61.3% | CS28: 60.2% | CT28: 72.8% | CU28: 86.9% | CV28: 82.2% | CW28: 72.0% | CX28: 75.4% | CY28: 46.2% | CZ28: 50.6% | DA28: 26.6% | DB28: 21.3% | DC28: 15.8% | DD28: 38.4% | DE28: 79.6% | DF28: 46.1% | DG28: 75.9% | DH28: 73.8% | DI28: 67.6% | DJ28: 48.4% | DK28: 57.3% | DL28: 51.0% | DM28: 84.4% | DN28: 93.2% | DO28: 61.6% | DP28: 54.6%
BO29: LA LIBERTAD | BP29: 46.4% | BS29: JUNIN | BT29: 73.2% | BU29: 76.7% | BV29: 76.1% | BW29: 72.8% | BX29: 72.4% | BY29: 77.9% | BZ29: 76.7% | CA29: 73.7% | CB29: 75.4% | CC29: 77.8% | CD29: 75.2% | CE29: 78.3% | CL29: Octubre | CM29: 50.2% | CN29: 62.3% | CO29: 83.3% | CP29: 49.7% | CQ29: 86.4% | CR29: 63.2% | CS29: 63.5% | CT29: 73.7% | CU29: 79.6% | CV29: 81.6% | CW29: 77.0% | CX29: 77.8% | CY29: 47.8% | CZ29: 49.1% | DA29: 26.8% | DB29: 23.6% | DC29: 16.2% | DD29: 37.3% | DE29: 74.2% | DF29: 46.9% | DG29: 70.0% | DH29: 76.0% | DI29: 67.7% | DJ29: 46.9% | DK29: 56.0% | DL29: 48.1% | DM29: 84.1% | DN29: 93.4% | DO29: 61.6% | DP29: 54.5%
BO30: LAMBAYEQUE | BP30: 51.4% | BS30: LA LIBERTAD | BT30: 29.5% | BU30: 42.0% | BV30: 48.9% | BW30: 45.4% | BX30: 46.8% | BY30: 51.0% | BZ30: 54.3% | CA30: 48.3% | CB30: 46.2% | CC30: 47.8% | CD30: 44.8% | CE30: 49.1% | CL30: Noviembre | CM30: 49.3% | CN30: 61.2% | CO30: 82.5% | CP30: 46.0% | CQ30: 84.0% | CR30: 61.9% | CS30: 54.4% | CT30: 68.7% | CU30: 76.7% | CV30: 79.8% | CW30: 70.9% | CX30: 75.2% | CY30: 44.8% | CZ30: 50.1% | DA30: 24.2% | DB30: 19.3% | DC30: 17.8% | DD30: 29.8% | DE30: 73.9% | DF30: 41.6% | DG30: 54.1% | DH30: 62.5% | DI30: 67.9% | DJ30: 49.1% | DK30: 56.3% | DL30: 49.5% | DM30: 84.1% | DN30: 88.1% | DO30: 57.3% | DP30: 52.3%
BO31: LIMA DIRIS CENTRO | BP31: 21.3% | BS31: LAMBAYEQUE | BT31: 30.4% | BU31: 56.5% | BV31: 57.9% | BW31: 56.6% | BX31: 54.0% | BY31: 55.2% | BZ31: 55.3% | CA31: 55.0% | CB31: 50.6% | CC31: 49.1% | CD31: 50.1% | CE31: 44.3% | CL31: Diciembre | CM31: 53.7% | CN31: 58.0% | CO31: 79.8% | CP31: 37.0% | CQ31: 80.8% | CR31: 59.0% | CS31: 57.6% | CT31: 67.9% | CU31: 82.2% | CV31: 75.6% | CW31: 66.6% | CX31: 78.3% | CY31: 49.1% | CZ31: 44.3% | DA31: 28.0% | DB31: 20.3% | DC31: 17.1% | DD31: 24.7% | DE31: 68.4% | DF31: 44.8% | DG31: 33.0% | DH31: 72.8% | DI31: 48.5% | DJ31: 45.4% | DK31: 54.1% | DL31: 37.8% | DM31: 77.8% | DN31: 71.3% | DO31: 46.7% | DP31: 50.2%
BO32: LIMA DIRIS ESTE | BP32: 23.4% | BS32: LIMA DIRIS CENTRO | BT32: 7.8% | BU32: 19.9% | BV32: 21.0% | BW32: 14.0% | BX32: 13.7% | BY32: 16.6% | BZ32: 31.2% | CA32: 26.7% | CB32: 26.6% | CC32: 26.8% | CD32: 24.2% | CE32: 28.0%
BO33: LIMA DIRIS NORTE | BP33: 16.3% | BS33: LIMA DIRIS ESTE | BT33: 14.3% | BU33: 27.3% | BV33: 29.3% | BW33: 26.9% | BX33: 23.0% | BY33: 24.0% | BZ33: 26.4% | CA33: 23.5% | CB33: 21.3% | CC33: 23.6% | CD33: 19.3% | CE33: 20.3%
BO34: LIMA DIRIS SUR | BP34: 36.2% | BS34: LIMA DIRIS NORTE | BT34: 12.2% | BU34: 17.2% | BV34: 21.7% | BW34: 14.5% | BX34: 13.1% | BY34: 16.2% | BZ34: 16.1% | CA34: 17.6% | CB34: 15.8% | CC34: 16.2% | CD34: 17.8% | CE34: 17.1%
BO35: LIMA REGION | BP35: 74.3% | BS35: LIMA DIRIS SUR | BT35: 22.8% | BU35: 41.0% | BV35: 43.2% | BW35: 40.3% | BX35: 38.1% | BY35: 40.6% | BZ35: 40.6% | CA35: 35.5% | CB35: 38.4% | CC35: 37.3% | CD35: 29.8% | CE35: 24.7% | CL35: MES
BO36: LORETO | BP36: 44.8% | BS36: LIMA REGION | BT36: 68.1% | BU36: 74.0% | BV36: 79.2% | BW36: 69.5% | BX36: 72.5% | BY36: 76.8% | BZ36: 79.1% | CA36: 75.9% | CB36: 79.6% | CC36: 74.2% | CD36: 73.9% | CE36: 68.4% | CM36: =+CM19 -> AMAZONAS | CN36: =+CN19 -> ANCASH | CO36: APURIMAC | CP36: AREQUIPA | CQ36: AYACUCHO | CR36: CAJAMARCA | CS36: CALLAO | CT36: CUSCO | CU36: HUANCAVELICA | CV36: HUANUCO | CW36: ICA | CX36: JUNIN | CY36: LA LIBERTAD | CZ36: LAMBAYEQUE | DA36: LIMA DIRIS CENTRO | DB36: LIMA DIRIS ESTE | DC36: LIMA DIRIS NORTE | DD36: LIMA DIRIS SUR | DE36: LIMA PROVINCIAS | DF36: LORETO | DG36: MADRE DE DIOS | DH36: MOQUEGUA | DI36: PASCO | DJ36: PIURA | DK36: PUNO | DL36: SAN MARTIN | DM36: TACNA | DN36: TUMBES | DO36: UCAYALI | DP36: NACIONAL
BO37: MADRE DE DIOS | BP37: 69.6% | BS37: LORETO | BT37: 21.9% | BU37: 49.7% | BV37: 47.6% | BW37: 46.7% | BX37: 46.9% | BY37: 51.2% | BZ37: 46.6% | CA37: 46.4% | CB37: 46.1% | CC37: 46.9% | CD37: 41.6% | CE37: 44.8% | CL37: Enero | CM37: =+IFERROR(GETPIVOTDATA("Ind",$CL$18,"mes",$CL37,"diresa",CM$36),"-") -> 31.9% | CN37: =+IFERROR(GETPIVOTDATA("Ind",$CL$18,"mes",$CL37,"diresa",CN$36),"-") -> 50.0% | CO37: 82.6% | CP37: 22.1% | CQ37: 82.4% | CR37: 48.8% | CS37: 49.2% | CT37: 63.3% | CU37: 78.7% | CV37: 64.6% | CW37: 58.5% | CX37: 73.2% | CY37: 29.5% | CZ37: 30.4% | DA37: 7.8% | DB37: 14.3% | DC37: 12.2% | DD37: =+IFERROR(GETPIVOTDATA("Ind",$CL$18,"mes",$CL37,"diresa",DD$36),"-") -> 22.8% | DE37: 68.1% | DF37: 21.9% | DG37: 65.5% | DH37: 73.8% | DI37: 70.0% | DJ37: 46.0% | DK37: 46.6% | DL37: 41.9% | DM37: 72.2% | DN37: 85.1% | DO37: 44.7% | DP37: =GETPIVOTDATA("Ind",$CL$18,"mes",$CL37) -> 42.4%
BO38: MOQUEGUA | BP38: 75.3% | BS38: MADRE DE DIOS | BT38: 65.5% | BU38: 78.7% | BV38: 74.3% | BW38: 70.7% | BX38: 80.9% | BY38: 78.7% | BZ38: 75.5% | CA38: 71.2% | CB38: 75.9% | CC38: 70.0% | CD38: 54.1% | CE38: 33.0% | CL38: Febrero | CM38: =+IFERROR(GETPIVOTDATA("Ind",$CL$18,"mes",$CL38,"diresa",CM$36),"-") -> 46.7% | CN38: 65.1% | CO38: 87.5% | CP38: 33.9% | CQ38: 89.5% | CR38: 61.5% | CS38: 59.3% | CT38: 70.1% | CU38: 83.0% | CV38: 72.8% | CW38: 71.3% | CX38: 76.7% | CY38: 42.0% | CZ38: 56.5% | DA38: 19.9% | DB38: 27.3% | DC38: 17.2% | DD38: 41.0% | DE38: 74.0% | DF38: 49.7% | DG38: 78.7% | DH38: 68.9% | DI38: 73.3% | DJ38: 56.6% | DK38: 53.9% | DL38: 51.1% | DM38: 82.4% | DN38: 93.3% | DO38: 64.3% | DP38: =+IFERROR(GETPIVOTDATA("ind",$CL$18,"mes",$CL38),"-") -> 54.6%
BO39: PASCO | BP39: 70.6% | BS39: MOQUEGUA | BT39: 73.8% | BU39: 68.9% | BV39: 82.4% | BW39: 75.2% | BX39: 79.5% | BY39: 80.4% | BZ39: 77.4% | CA39: 76.4% | CB39: 73.8% | CC39: 76.0% | CD39: 62.5% | CE39: 72.8% | CL39: Marzo | CM39: 48.6% | CN39: 63.6% | CO39: 87.6% | CP39: 40.5% | CQ39: 85.8% | CR39: 68.3% | CS39: 61.2% | CT39: 74.7% | CU39: 86.9% | CV39: 82.0% | CW39: 71.0% | CX39: 76.1% | CY39: 48.9% | CZ39: 57.9% | DA39: 21.0% | DB39: 29.3% | DC39: 21.7% | DD39: 43.2% | DE39: 79.2% | DF39: 47.6% | DG39: 74.3% | DH39: 82.4% | DI39: 80.8% | DJ39: 60.4% | DK39: 57.3% | DL39: 58.1% | DM39: 79.9% | DN39: 91.9% | DO39: 69.3% | DP39: 57.1%
BO40: PIURA | BP40: 51.7% | BS40: PASCO | BT40: 70.0% | BU40: 73.3% | BV40: 80.8% | BW40: 76.0% | BX40: 77.5% | BY40: 77.0% | BZ40: 70.3% | CA40: 71.4% | CB40: 67.6% | CC40: 67.7% | CD40: 67.9% | CE40: 48.5% | CL40: Abril | CM40: 49.2% | CN40: 66.7% | CO40: 88.4% | CP40: 42.5% | CQ40: 86.4% | CR40: 66.0% | CS40: 60.0% | CT40: 73.6% | CU40: 83.4% | CV40: 83.1% | CW40: 73.4% | CX40: 72.8% | CY40: 45.4% | CZ40: 56.6% | DA40: 14.0% | DB40: 26.9% | DC40: 14.5% | DD40: 40.3% | DE40: 69.5% | DF40: 46.7% | DG40: 70.7% | DH40: 75.2% | DI40: 76.0% | DJ40: 58.6% | DK40: 51.9% | DL40: 54.4% | DM40: 83.6% | DN40: 95.1% | DO40: 64.1% | DP40: 55.1%
BO41: PUNO | BP41: 54.8% | BS41: PIURA | BT41: 46.0% | BU41: 56.6% | BV41: 60.4% | BW41: 58.6% | BX41: 50.9% | BY41: 56.3% | BZ41: 48.0% | CA41: 52.0% | CB41: 48.4% | CC41: 46.9% | CD41: 49.1% | CE41: 45.4% | CL41: Mayo | CM41: 51.4% | CN41: 62.2% | CO41: 87.5% | CP41: 38.5% | CQ41: 87.2% | CR41: 63.5% | CS41: 53.1% | CT41: 72.7% | CU41: 78.5% | CV41: 79.2% | CW41: 67.5% | CX41: 72.4% | CY41: 46.8% | CZ41: 54.0% | DA41: 13.7% | DB41: 23.0% | DC41: 13.1% | DD41: 38.1% | DE41: 72.5% | DF41: 46.9% | DG41: 80.9% | DH41: 79.5% | DI41: 77.5% | DJ41: 50.9% | DK41: 50.3% | DL41: 48.2% | DM41: 80.0% | DN41: 91.5% | DO41: 64.4% | DP41: 53.3%
BO42: SAN MARTIN | BP42: 49.6% | BS42: PUNO | BT42: 46.6% | BU42: 53.9% | BV42: 57.3% | BW42: 51.9% | BX42: 50.3% | BY42: 58.3% | BZ42: 57.5% | CA42: 59.0% | CB42: 57.3% | CC42: 56.0% | CD42: 56.3% | CE42: 54.1% | CL42: Junio | CM42: 48.6% | CN42: 65.4% | CO42: 84.7% | CP42: 48.2% | CQ42: 87.6% | CR42: 63.0% | CS42: 59.5% | CT42: 74.1% | CU42: 80.8% | CV42: 80.5% | CW42: 69.9% | CX42: 77.9% | CY42: 51.0% | CZ42: 55.2% | DA42: 16.6% | DB42: 24.0% | DC42: 16.2% | DD42: 40.6% | DE42: 76.8% | DF42: 51.2% | DG42: 78.7% | DH42: 80.4% | DI42: 77.0% | DJ42: 56.3% | DK42: 58.3% | DL42: 57.1% | DM42: 80.7% | DN42: 91.7% | DO42: 61.5% | DP42: 55.9%
BO43: TACNA | BP43: 81.6% | BS43: SAN MARTIN | BT43: 41.9% | BU43: 51.1% | BV43: 58.1% | BW43: 54.4% | BX43: 48.2% | BY43: 57.1% | BZ43: 48.8% | CA43: 49.9% | CB43: 51.0% | CC43: 48.1% | CD43: 49.5% | CE43: 37.8% | CL43: Julio | CM43: 47.5% | CN43: 63.9% | CO43: 87.4% | CP43: 44.7% | CQ43: 88.4% | CR43: 61.7% | CS43: 61.7% | CT43: 74.5% | CU43: 80.1% | CV43: 80.3% | CW43: 72.1% | CX43: 76.7% | CY43: 54.3% | CZ43: 55.3% | DA43: 31.2% | DB43: 26.4% | DC43: 16.1% | DD43: 40.6% | DE43: 79.1% | DF43: 46.6% | DG43: 75.5% | DH43: 77.4% | DI43: 70.3% | DJ43: 48.0% | DK43: 57.5% | DL43: 48.8% | DM43: 85.1% | DN43: 90.4% | DO43: 60.4% | DP43: 55.5%
BO44: TUMBES | BP44: 89.9% | BS44: TACNA | BT44: 72.2% | BU44: 82.4% | BV44: 79.9% | BW44: 83.6% | BX44: 80.0% | BY44: 80.7% | BZ44: 85.1% | CA44: 85.2% | CB44: 84.4% | CC44: 84.1% | CD44: 84.1% | CE44: 77.8% | CL44: Agosto | CM44: 49.4% | CN44: 64.2% | CO44: 83.8% | CP44: 39.9% | CQ44: 88.5% | CR44: 60.3% | CS44: 56.1% | CT44: 73.6% | CU44: 84.1% | CV44: 79.5% | CW44: 66.3% | CX44: 73.7% | CY44: 48.3% | CZ44: 55.0% | DA44: 26.7% | DB44: 23.5% | DC44: 17.6% | DD44: 35.5% | DE44: 75.9% | DF44: 46.4% | DG44: 71.2% | DH44: 76.4% | DI44: 71.4% | DJ44: 52.0% | DK44: 59.0% | DL44: 49.9% | DM44: 85.2% | DN44: 93.4% | DO44: 60.8% | DP44: 54.5%
BO45: UCAYALI | BP45: 59.8% | BS45: TUMBES | BT45: 85.1% | BU45: 93.3% | BV45: 91.9% | BW45: 95.1% | BX45: 91.5% | BY45: 91.7% | BZ45: 90.4% | CA45: 93.4% | CB45: 93.2% | CC45: 93.4% | CD45: 88.1% | CE45: 71.3% | CL45: Setiembre | CM45: 52.7% | CN45: 60.6% | CO45: 81.9% | CP45: 45.5% | CQ45: 87.5% | CR45: 61.3% | CS45: 60.2% | CT45: 72.8% | CU45: 86.9% | CV45: 82.2% | CW45: 72.0% | CX45: 75.4% | CY45: 46.2% | CZ45: 50.6% | DA45: 26.6% | DB45: 21.3% | DC45: 15.8% | DD45: 38.4% | DE45: 79.6% | DF45: 46.1% | DG45: 75.9% | DH45: 73.8% | DI45: 67.6% | DJ45: 48.4% | DK45: 57.3% | DL45: 51.0% | DM45: 84.4% | DN45: 93.2% | DO45: 61.6% | DP45: 54.6%
BO46: Total general | BP46: 53.4% | BS46: UCAYALI | BT46: 44.7% | BU46: 64.3% | BV46: 69.3% | BW46: 64.1% | BX46: 64.4% | BY46: 61.5% | BZ46: 60.4% | CA46: 60.8% | CB46: 61.6% | CC46: 61.6% | CD46: 57.3% | CE46: 46.7% | CL46: Octubre | CM46: 50.2% | CN46: 62.3% | CO46: 83.3% | CP46: 49.7% | CQ46: 86.4% | CR46: 63.2% | CS46: 63.5% | CT46: 73.7% | CU46: 79.6% | CV46: 81.6% | CW46: 77.0% | CX46: 77.8% | CY46: 47.8% | CZ46: 49.1% | DA46: 26.8% | DB46: 23.6% | DC46: 16.2% | DD46: 37.3% | DE46: 74.2% | DF46: 46.9% | DG46: 70.0% | DH46: 76.0% | DI46: 67.7% | DJ46: 46.9% | DK46: 56.0% | DL46: 48.1% | DM46: 84.1% | DN46: 93.4% | DO46: 61.6% | DP46: 54.5%
BS47: Total general | BT47: 42.4% | BU47: 54.6% | BV47: 57.1% | BW47: 55.1% | BX47: 53.3% | BY47: 55.9% | BZ47: 55.5% | CA47: 54.5% | CB47: 54.6% | CC47: 54.5% | CD47: 52.3% | CE47: 50.2% | CL47: Noviembre | CM47: 49.3% | CN47: 61.2% | CO47: 82.5% | CP47: 46.0% | CQ47: 84.0% | CR47: 61.9% | CS47: 54.4% | CT47: 68.7% | CU47: 76.7% | CV47: 79.8% | CW47: 70.9% | CX47: 75.2% | CY47: 44.8% | CZ47: 50.1% | DA47: 24.2% | DB47: 19.3% | DC47: 17.8% | DD47: 29.8% | DE47: 73.9% | DF47: 41.6% | DG47: 54.1% | DH47: 62.5% | DI47: 67.9% | DJ47: 49.1% | DK47: 56.3% | DL47: 49.5% | DM47: 84.1% | DN47: 88.1% | DO47: 57.3% | DP47: 52.3%
CL48: Diciembre | CM48: 53.7% | CN48: 58.0% | CO48: 79.8% | CP48: 37.0% | CQ48: 80.8% | CR48: 59.0% | CS48: 57.6% | CT48: 67.9% | CU48: 82.2% | CV48: 75.6% | CW48: 66.6% | CX48: 78.3% | CY48: 49.1% | CZ48: 44.3% | DA48: 28.0% | DB48: 20.3% | DC48: 17.1% | DD48: 24.7% | DE48: 68.4% | DF48: 44.8% | DG48: 33.0% | DH48: 72.8% | DI48: 48.5% | DJ48: 45.4% | DK48: 54.1% | DL48: 37.8% | DM48: 77.8% | DN48: 71.3% | DO48: 46.7% | DP48: 50.2%
BS50: valor
BT51: 1 | BU51: 2 | BV51: 3 | BW51: 4 | BX51: 5 | BY51: 6 | BZ51: 7 | CA51: 8 | CB51: 9 | CC51: 10 | CD51: 11 | CE51: 12 | CH51: MIN | CI51: MAX
BO52: AMAZONAS | BP52: =+IFERROR(GETPIVOTDATA("Ind",$BO$16,"diresa",$BO52),"-") -> 48.1% | BS52: AMAZONAS | BT52: =+IFERROR(GETPIVOTDATA("Ind",$BS$16,"mes",BT$51,"diresa",$BS52),"-") -> 31.9% | BU52: =+IFERROR(GETPIVOTDATA("Ind",$BS$16,"mes",BU$51,"diresa",$BS52),"-") -> 46.7% | BV52: 48.6% | BW52: 49.2% | BX52: 51.4% | BY52: 48.6% | BZ52: 47.5% | CA52: 49.4% | CB52: 52.7% | CC52: 50.2% | CD52: 49.3% | CE52: 53.7% | CG52: AMAZONAS | CH52: =+IF(BT52="-","-",MIN(BT52:CE52)) -> 31.9% | CI52: =+IF(BT52="-","-",MAX(BT52:CE52)) -> 53.7%
BO53: ANCASH | BP53: =+IFERROR(GETPIVOTDATA("Ind",$BO$16,"diresa",$BO53),"-") -> 62.0% | BS53: ANCASH | BT53: =+IFERROR(GETPIVOTDATA("Ind",$BS$16,"mes",BT$51,"diresa",$BS53),"-") -> 50.0% | BU53: 65.1% | BV53: 63.6% | BW53: 66.7% | BX53: 62.2% | BY53: 65.4% | BZ53: 63.9% | CA53: 64.2% | CB53: 60.6% | CC53: 62.3% | CD53: 61.2% | CE53: 58.0% | CG53: ANCASH | CH53: =+IF(BT53="-","-",MIN(BT53:CE53)) -> 50.0% | CI53: =+IF(BT53="-","-",MAX(BT53:CE53)) -> 66.7%
BO54: APURIMAC | BP54: =+IFERROR(GETPIVOTDATA("Ind",$BO$16,"diresa",$BO54),"-") -> 84.8% | BS54: APURIMAC | BT54: 82.6% | BU54: 87.5% | BV54: 87.6% | BW54: 88.4% | BX54: 87.5% | BY54: 84.7% | BZ54: 87.4% | CA54: 83.8% | CB54: 81.9% | CC54: 83.3% | CD54: 82.5% | CE54: 79.8% | CG54: APURIMAC | CH54: 79.8% | CI54: 88.4%
BO55: AREQUIPA | BP55: =+IFERROR(GETPIVOTDATA("Ind",$BO$16,"diresa",$BO55),"-") -> 40.8% | BS55: AREQUIPA | BT55: 22.1% | BU55: 33.9% | BV55: 40.5% | BW55: 42.5% | BX55: 38.5% | BY55: 48.2% | BZ55: 44.7% | CA55: 39.9% | CB55: 45.5% | CC55: 49.7% | CD55: 46.0% | CE55: 37.0% | CG55: AREQUIPA | CH55: 22.1% | CI55: 49.7%
BO56: AYACUCHO | BP56: =+IFERROR(GETPIVOTDATA("Ind",$BO$16,"diresa",$BO56),"-") -> 86.3% | BS56: AYACUCHO | BT56: 82.4% | BU56: 89.5% | BV56: 85.8% | BW56: 86.4% | BX56: 87.2% | BY56: 87.6% | BZ56: 88.4% | CA56: 88.5% | CB56: 87.5% | CC56: 86.4% | CD56: 84.0% | CE56: 80.8% | CG56: AYACUCHO | CH56: 80.8% | CI56: 89.5%
BO57: CAJAMARCA | BP57: =+IFERROR(GETPIVOTDATA("Ind",$BO$16,"diresa",$BO57),"-") -> 61.6% | BS57: CAJAMARCA | BT57: 48.8% | BU57: 61.5% | BV57: 68.3% | BW57: 66.0% | BX57: 63.5% | BY57: 63.0% | BZ57: 61.7% | CA57: 60.3% | CB57: 61.3% | CC57: 63.2% | CD57: 61.9% | CE57: 59.0% | CG57: CAJAMARCA | CH57: 48.8% | CI57: 68.3%
BO58: CALLAO | BP58: 57.9% | BS58: CALLAO | BT58: 49.2% | BU58: 59.3% | BV58: 61.2% | BW58: 60.0% | BX58: 53.1% | BY58: 59.5% | BZ58: 61.7% | CA58: 56.1% | CB58: 60.2% | CC58: 63.5% | CD58: 54.4% | CE58: 57.6% | CG58: CALLAO | CH58: 49.2% | CI58: 63.5%
BO59: CUSCO | BP59: 71.7% | BS59: CUSCO | BT59: 63.3% | BU59: 70.1% | BV59: 74.7% | BW59: 73.6% | BX59: 72.7% | BY59: 74.1% | BZ59: 74.5% | CA59: 73.6% | CB59: 72.8% | CC59: 73.7% | CD59: 68.7% | CE59: 67.9% | CG59: CUSCO | CH59: 63.3% | CI59: 74.7%
BO60: HUANCAVELICA | BP60: 81.8% | BS60: HUANCAVELICA | BT60: 78.7% | BU60: 83.0% | BV60: 86.9% | BW60: 83.4% | BX60: 78.5% | BY60: 80.8% | BZ60: 80.1% | CA60: 84.1% | CB60: 86.9% | CC60: 79.6% | CD60: 76.7% | CE60: 82.2% | CG60: HUANCAVELICA | CH60: 76.7% | CI60: 86.9%
BO61: HUANUCO | BP61: 78.4% | BS61: HUANUCO | BT61: 64.6% | BU61: 72.8% | BV61: 82.0% | BW61: 83.1% | BX61: 79.2% | BY61: 80.5% | BZ61: 80.3% | CA61: 79.5% | CB61: 82.2% | CC61: 81.6% | CD61: 79.8% | CE61: 75.6% | CG61: HUANUCO | CH61: 64.6% | CI61: 83.1%
BO62: ICA | BP62: 69.8% | BS62: ICA | BT62: 58.5% | BU62: 71.3% | BV62: 71.0% | BW62: 73.4% | BX62: 67.5% | BY62: 69.9% | BZ62: 72.1% | CA62: 66.3% | CB62: 72.0% | CC62: 77.0% | CD62: 70.9% | CE62: 66.6% | CG62: ICA | CH62: 58.5% | CI62: 77.0%
BO63: JUNIN | BP63: 75.5% | BS63: JUNIN | BT63: 73.2% | BU63: 76.7% | BV63: 76.1% | BW63: 72.8% | BX63: 72.4% | BY63: 77.9% | BZ63: 76.7% | CA63: 73.7% | CB63: 75.4% | CC63: 77.8% | CD63: 75.2% | CE63: 78.3% | CG63: JUNIN | CH63: 72.4% | CI63: 78.3%
BO64: LA LIBERTAD | BP64: 46.4% | BS64: LA LIBERTAD | BT64: 29.5% | BU64: 42.0% | BV64: 48.9% | BW64: 45.4% | BX64: 46.8% | BY64: 51.0% | BZ64: 54.3% | CA64: 48.3% | CB64: 46.2% | CC64: 47.8% | CD64: 44.8% | CE64: 49.1% | CG64: LA LIBERTAD | CH64: 29.5% | CI64: 54.3%
BO65: LAMBAYEQUE | BP65: 51.4% | BS65: LAMBAYEQUE | BT65: 30.4% | BU65: 56.5% | BV65: 57.9% | BW65: 56.6% | BX65: 54.0% | BY65: 55.2% | BZ65: 55.3% | CA65: 55.0% | CB65: 50.6% | CC65: 49.1% | CD65: 50.1% | CE65: 44.3% | CG65: LAMBAYEQUE | CH65: 30.4% | CI65: 57.9%
BO66: LIMA DIRIS CENTRO | BP66: 21.3% | BS66: LIMA DIRIS CENTRO | BT66: 7.8% | BU66: 19.9% | BV66: 21.0% | BW66: 14.0% | BX66: 13.7% | BY66: 16.6% | BZ66: 31.2% | CA66: 26.7% | CB66: 26.6% | CC66: 26.8% | CD66: 24.2% | CE66: 28.0% | CG66: LIMA DIRIS CENTRO | CH66: 7.8% | CI66: 31.2%
BO67: LIMA DIRIS ESTE | BP67: 23.4% | BS67: LIMA DIRIS ESTE | BT67: 14.3% | BU67: 27.3% | BV67: 29.3% | BW67: 26.9% | BX67: 23.0% | BY67: 24.0% | BZ67: 26.4% | CA67: 23.5% | CB67: 21.3% | CC67: 23.6% | CD67: 19.3% | CE67: 20.3% | CG67: LIMA DIRIS ESTE | CH67: 14.3% | CI67: 29.3%
BO68: LIMA DIRIS NORTE | BP68: 16.3% | BS68: LIMA DIRIS NORTE | BT68: 12.2% | BU68: 17.2% | BV68: 21.7% | BW68: 14.5% | BX68: 13.1% | BY68: 16.2% | BZ68: 16.1% | CA68: 17.6% | CB68: 15.8% | CC68: 16.2% | CD68: 17.8% | CE68: 17.1% | CG68: LIMA DIRIS NORTE | CH68: 12.2% | CI68: 21.7%
BO69: LIMA DIRIS SUR | BP69: 36.2% | BS69: LIMA DIRIS SUR | BT69: 22.8% | BU69: 41.0% | BV69: 43.2% | BW69: 40.3% | BX69: 38.1% | BY69: 40.6% | BZ69: 40.6% | CA69: 35.5% | CB69: 38.4% | CC69: 37.3% | CD69: 29.8% | CE69: 24.7% | CG69: LIMA DIRIS SUR | CH69: 22.8% | CI69: 43.2%
BO70: LIMA REGION | BP70: 74.3% | BS70: LIMA REGION | BT70: 68.1% | BU70: 74.0% | BV70: 79.2% | BW70: 69.5% | BX70: 72.5% | BY70: 76.8% | BZ70: 79.1% | CA70: 75.9% | CB70: 79.6% | CC70: 74.2% | CD70: 73.9% | CE70: 68.4% | CG70: LIMA PROVINCIAS | CH70: 68.1% | CI70: 79.6%
BO71: LORETO | BP71: 44.8% | BS71: LORETO | BT71: 21.9% | BU71: 49.7% | BV71: 47.6% | BW71: 46.7% | BX71: 46.9% | BY71: 51.2% | BZ71: 46.6% | CA71: 46.4% | CB71: 46.1% | CC71: 46.9% | CD71: 41.6% | CE71: 44.8% | CG71: LORETO | CH71: 21.9% | CI71: 51.2%
BO72: MADRE DE DIOS | BP72: 69.6% | BS72: MADRE DE DIOS | BT72: 65.5% | BU72: 78.7% | BV72: 74.3% | BW72: 70.7% | BX72: 80.9% | BY72: 78.7% | BZ72: 75.5% | CA72: 71.2% | CB72: 75.9% | CC72: 70.0% | CD72: 54.1% | CE72: 33.0% | CG72: MADRE DE DIOS | CH72: 33.0% | CI72: 80.9%
BO73: MOQUEGUA | BP73: 75.3% | BS73: MOQUEGUA | BT73: 73.8% | BU73: 68.9% | BV73: 82.4% | BW73: 75.2% | BX73: 79.5% | BY73: 80.4% | BZ73: 77.4% | CA73: 76.4% | CB73: 73.8% | CC73: 76.0% | CD73: 62.5% | CE73: 72.8% | CG73: MOQUEGUA | CH73: 62.5% | CI73: 82.4%
BO74: PASCO | BP74: 70.6% | BS74: PASCO | BT74: 70.0% | BU74: 73.3% | BV74: 80.8% | BW74: 76.0% | BX74: 77.5% | BY74: 77.0% | BZ74: 70.3% | CA74: 71.4% | CB74: 67.6% | CC74: 67.7% | CD74: 67.9% | CE74: 48.5% | CG74: PASCO | CH74: 48.5% | CI74: 80.8%
BO75: PIURA | BP75: 51.7% | BS75: PIURA | BT75: 46.0% | BU75: 56.6% | BV75: 60.4% | BW75: 58.6% | BX75: 50.9% | BY75: 56.3% | BZ75: 48.0% | CA75: 52.0% | CB75: 48.4% | CC75: 46.9% | CD75: 49.1% | CE75: 45.4% | CG75: PIURA | CH75: 45.4% | CI75: 60.4%
BO76: PUNO | BP76: 54.8% | BS76: PUNO | BT76: 46.6% | BU76: 53.9% | BV76: 57.3% | BW76: 51.9% | BX76: 50.3% | BY76: 58.3% | BZ76: 57.5% | CA76: 59.0% | CB76: 57.3% | CC76: 56.0% | CD76: 56.3% | CE76: 54.1% | CG76: PUNO | CH76: 46.6% | CI76: 59.0%
BO77: SAN MARTIN | BP77: 49.6% | BS77: SAN MARTIN | BT77: 41.9% | BU77: 51.1% | BV77: 58.1% | BW77: 54.4% | BX77: 48.2% | BY77: 57.1% | BZ77: 48.8% | CA77: 49.9% | CB77: 51.0% | CC77: 48.1% | CD77: 49.5% | CE77: 37.8% | CG77: SAN MARTIN | CH77: 37.8% | CI77: 58.1%
BO78: TACNA | BP78: 81.6% | BS78: TACNA | BT78: 72.2% | BU78: 82.4% | BV78: 79.9% | BW78: 83.6% | BX78: 80.0% | BY78: 80.7% | BZ78: 85.1% | CA78: 85.2% | CB78: 84.4% | CC78: 84.1% | CD78: 84.1% | CE78: 77.8% | CG78: TACNA | CH78: 72.2% | CI78: 85.2%
BO79: TUMBES | BP79: 89.9% | BS79: TUMBES | BT79: 85.1% | BU79: 93.3% | BV79: 91.9% | BW79: 95.1% | BX79: 91.5% | BY79: 91.7% | BZ79: 90.4% | CA79: 93.4% | CB79: 93.2% | CC79: 93.4% | CD79: 88.1% | CE79: 71.3% | CG79: TUMBES | CH79: 71.3% | CI79: 95.1%
BO80: UCAYALI | BP80: 59.8% | BS80: UCAYALI | BT80: 44.7% | BU80: 64.3% | BV80: 69.3% | BW80: 64.1% | BX80: 64.4% | BY80: 61.5% | BZ80: 60.4% | CA80: 60.8% | CB80: 61.6% | CC80: 61.6% | CD80: 57.3% | CE80: 46.7% | CG80: UCAYALI | CH80: 44.7% | CI80: 69.3%
BO81: NACIONAL | BP81: =+IFERROR(GETPIVOTDATA("Ind",$BO$16),"-") -> 53.4% | BS81: NACIONAL | BT81: =+IFERROR(GETPIVOTDATA("Ind",$BS$16,"mes",BT$51),"-") -> 42.4% | BU81: =+IFERROR(GETPIVOTDATA("Ind",$BS$16,"mes",BU$51),"-") -> 54.6% | BV81: 57.1% | BW81: 55.1% | BX81: 53.3% | BY81: 55.9% | BZ81: 55.5% | CA81: 54.5% | CB81: 54.6% | CC81: 54.5% | CD81: 52.3% | CE81: 50.2% | CG81: NACIONAL | CH81: 42.4% | CI81: 57.1%

Sheet DL_1153_2025_CG05
A1: =+DL1153_2025!C11 -> Ficha 05:Porcentaje de niñas y niños menores de 2 años en condición crecimiento inadecuado que luego de un periodo de seguimiento mejora sus condiciones nutricionales. | J1: eess_nombre | K1: (Todas) | BP1: 1 | DT1: 1
A2: Periodo de Evaluación: | B2: =+DL1153_2025!B42 -> Diciembre - 2025 | J2: Diris | K2: (Todas)
J3: Provincia | K3: (Todas)
A4: año | B4: 2025 | J4: Distrito | K4: (Todas)
A5: mes | B5: 12 | J5: Red | K5: KIMBIRI PICHARI
A6: DIRESA/ DIRIS | B6: RED | C6: Provincia | D6: Distrito | E6: EESS | F6: Denominador: Niñas y niños menores de 730 días que en el período de evaluación, acuden al establecimiento de salud por cualquier motivo de consulta registrados con DNI en HIS y que han sido detectados en condición de crecimiento inadecuado. | G6: Numerador: Niñas y niños del denominador, que luego de un periodo de seguimiento entre 60 a 100 días recobran la condición de normalidad. | H6: Indicador: Porcentaje de niñas y niños menores de 2 años en condición crecimiento inadecuado que luego de un periodo de seguimiento mejora sus condiciones nutricionales. | J6: Mes | K6: Denominador: Niñas y niños menores de 730 días que en el período de evaluación, acuden al establecimiento de salud por cualquier motivo de consulta registrados con DNI en HIS y que han sido detectados en condición de crecimiento inadecuado. | L6: Numerador: Niñas y niños del denominador, que luego de un periodo de seguimiento entre 60 a 100 días recobran la condición de normalidad. | M6: Indicador: Porcentaje de niñas y niños menores de 2 años en condición crecimiento inadecuado que luego de un periodo de seguimiento mejora sus condiciones nutricionales.
A7: Diris | B7: Red | C7: Provincia | D7: Distrito | E7: eess_nombre | F7: Suma de den | G7: Suma de num | H7: Suma de Ind | J7: mes | K7: Suma de den | L7: Suma de num | M7: Suma de Ind
A8: CUSCO | B8: KIMBIRI PICHARI | C8: LA CONVENCION | D8: MANITEA | E8: I-3 - 00002471 - LOBO TAHUANTINSUYO | F8: 2 | G8: 2 | H8: 100.0% | J8: 1 | K8: 11 | L8: 1 | M8: 9.1%
A9: Total general | F9: 2 | G9: 2 | H9: 100.0% | J9: 2 | K9: 4 | L9: 0 | M9: 0.0%
J10: 3 | K10: 9 | L10: 3 | M10: 33.3%
J11: 4 | K11: 4 | L11: 1 | M11: 25.0%
J12: 5 | K12: 2 | L12: 0 | M12: 0.0% | BQ12: año | BR12: (Todas) | BU12: año | BV12: (Todas) | CN12: año | CO12: (Todas)
J13: 6 | K13: 2 | L13: 1 | M13: 50.0%
J14: 7 | K14: 5 | L14: 2 | M14: 40.0% | BQ14: Diris | BR14: Suma de Ind | BU14: Suma de Ind | BV14: mes | CN14: Suma de Ind | CO14: Diris
J15: 8 | K15: 5 | L15: 2 | M15: 40.0% | BQ15: AMAZONAS | BR15: 6.1% | BU15: Diris | BV15: 1 | BW15: 2 | BX15: 3 | BY15: 4 | BZ15: 5 | CA15: 6 | CB15: 7 | CC15: 8 | CD15: 9 | CE15: 10 | CF15: 11 | CG15: 12 | CN15: mes | CO15: AMAZONAS | CP15: ANCASH | CQ15: APURIMAC | CR15: AREQUIPA | CS15: AYACUCHO | CT15: CAJAMARCA | CU15: CALLAO | CV15: CUSCO | CW15: HUANCAVELICA | CX15: HUANUCO | CY15: ICA | CZ15: JUNIN | DA15: LA LIBERTAD | DB15: LAMBAYEQUE | DC15: LIMA DIRIS CENTRO | DD15: LIMA DIRIS ESTE | DE15: LIMA DIRIS NORTE | DF15: LIMA DIRIS SUR | DG15: LIMA PROVINCIAS | DH15: LORETO | DI15: MADRE DE DIOS | DJ15: MOQUEGUA | DK15: PASCO | DL15: PIURA | DM15: PUNO | DN15: SAN MARTIN | DO15: TACNA | DP15: TUMBES | DQ15: UCAYALI | DR15: Total general
J16: 9 | K16: 3 | L16: 1 | M16: 33.3% | BQ16: ANCASH | BR16: 21.1% | BU16: AMAZONAS | BV16: 2.0% | BW16: 4.5% | BX16: 5.4% | BY16: 17.4% | BZ16: 4.5% | CA16: 13.3% | CB16: 8.0% | CC16: 3.1% | CD16: 12.9% | CE16: 7.7% | CF16: 0.0% | CG16: 0.0% | CN16: Enero | CO16: 2.0% | CP16: 8.7% | CQ16: 27.3% | CR16: 3.8% | CS16: 59.1% | CT16: 2.2% | CU16: 3.6% | CV16: 9.6% | CW16: 6.3% | CX16: 4.0% | CY16: 60.0% | CZ16: 4.2% | DA16: 35.7% | DB16: 12.0% | DC16: 42.5% | DD16: 35.7% | DE16: 5.3% | DF16: 61.8% | DG16: 13.3% | DH16: 0.3% | DI16: 4.4% | DJ16: 0.0% | DK16: 5.6% | DL16: 1.6% | DM16: 2.3% | DN16: 0.0% | DO16: 100.0% | DP16: 9.1% | DQ16: 11.9% | DR16: 9.5%
J17: 10 | K17: 4 | L17: 2 | M17: 50.0% | BQ17: APURIMAC | BR17: 38.5% | BU17: ANCASH | BV17: 8.7% | BW17: 13.9% | BX17: 24.2% | BY17: 24.7% | BZ17: 20.7% | CA17: 18.3% | CB17: 21.8% | CC17: 29.2% | CD17: 22.4% | CE17: 22.9% | CF17: 26.0% | CG17: 33.1% | CN17: Febrero | CO17: 4.5% | CP17: 13.9% | CQ17: 36.9% | CR17: 27.9% | CS17: 92.3% | CT17: 12.3% | CU17: 50.0% | CV17: 24.7% | CW17: 16.7% | CX17: 21.9% | CY17: 70.0% | CZ17: 21.2% | DA17: 91.7% | DB17: 20.0% | DC17: 72.6% | DD17: 90.9% | DE17: 11.1% | DF17: 69.8% | DG17: 21.7% | DH17: 3.7% | DI17: 5.5% | DJ17: 0.0% | DK17: 80.0% | DL17: 14.8% | DM17: 18.5% | DN17: 0.0% | DO17: 100.0% | DP17: 20.0% | DQ17: 30.8% | DR17: 22.1%
J18: 12 | K18: 2 | L18: 2 | M18: 100.0% | BQ18: AREQUIPA | BR18: 23.9% | BU18: APURIMAC | BV18: 27.3% | BW18: 36.9% | BX18: 44.8% | BY18: 29.5% | BZ18: 38.7% | CA18: 35.9% | CB18: 51.7% | CC18: 45.8% | CD18: 41.9% | CE18: 41.9% | CF18: 36.2% | CG18: 39.2% | CN18: Marzo | CO18: 5.4% | CP18: 24.2% | CQ18: 44.8% | CR18: 20.7% | CS18: 93.3% | CT18: 8.5% | CU18: 76.5% | CV18: 31.0% | CW18: 27.0% | CX18: 27.5% | CY18: 63.6% | CZ18: 37.8% | DA18: 97.5% | DB18: 46.7% | DC18: 77.3% | DD18: 100.0% | DE18: 28.6% | DF18: 83.7% | DG18: 47.2% | DH18: 2.2% | DI18: 6.2% | DJ18: 50.0% | DK18: 40.0% | DL18: 15.7% | DM18: 25.9% | DN18: 0.0% | DO18: 100.0% | DP18: 11.1% | DQ18: 43.0% | DR18: 30.1%
J19: Total general | K19: 51 | L19: 15 | M19: 29.4% | BQ19: AYACUCHO | BR19: 87.4% | BU19: AREQUIPA | BV19: 3.8% | BW19: 27.9% | BX19: 20.7% | BY19: 25.6% | BZ19: 5.1% | CA19: 29.9% | CB19: 38.5% | CC19: 22.2% | CD19: 18.5% | CE19: 36.0% | CF19: 34.0% | CG19: 36.0% | CN19: Abril | CO19: 17.4% | CP19: 24.7% | CQ19: 29.5% | CR19: 25.6% | CS19: 83.3% | CT19: 16.5% | CU19: 78.6% | CV19: 37.4% | CW19: 31.3% | CX19: 50.0% | CY19: 80.8% | CZ19: 49.4% | DA19: 84.8% | DB19: 34.4% | DC19: 74.0% | DD19: 91.7% | DE19: 35.8% | DF19: 80.3% | DG19: 33.3% | DH19: 2.7% | DI19: 5.8% | DJ19: 25.0% | DK19: 15.8% | DL19: 6.5% | DM19: 19.4% | DN19: 0.0% | DO19: 100.0% | DP19: 32.1% | DQ19: 43.7% | DR19: 31.9%
BQ20: CAJAMARCA | BR20: 15.0% | BU20: AYACUCHO | BV20: 59.1% | BW20: 92.3% | BX20: 93.3% | BY20: 83.3% | BZ20: 84.6% | CA20: 93.8% | CB20: 100.0% | CC20: 92.9% | CD20: 100.0% | CE20: 73.3% | CF20: 100.0% | CG20: 88.5% | CN20: Mayo | CO20: 4.5% | CP20: 20.7% | CQ20: 38.7% | CR20: 5.1% | CS20: 84.6% | CT20: 19.7% | CU20: 70.0% | CV20: 36.3% | CW20: 25.0% | CX20: 45.3% | CY20: 68.8% | CZ20: 47.8% | DA20: 74.5% | DB20: 31.0% | DC20: 66.7% | DD20: 100.0% | DE20: 45.6% | DF20: 75.0% | DG20: 27.6% | DH20: 0.8% | DI20: 7.7% | DJ20: 11.1% | DK20: 0.0% | DL20: 15.7% | DM20: 19.9% | DN20: 3.8% | DO20: 100.0% | DP20: 15.8% | DQ20: 36.3% | DR20: 29.5%
BQ21: CALLAO | BR21: 65.5% | BU21: CAJAMARCA | BV21: 2.2% | BW21: 12.3% | BX21: 8.5% | BY21: 16.5% | BZ21: 19.7% | CA21: 10.8% | CB21: 14.7% | CC21: 27.5% | CD21: 32.9% | CE21: 15.8% | CF21: 17.3% | CG21: 14.4% | CN21: Junio | CO21: 13.3% | CP21: 18.3% | CQ21: 35.9% | CR21: 29.9% | CS21: 93.8% | CT21: 10.8% | CU21: 86.7% | CV21: 33.9% | CW21: 30.0% | CX21: 47.8% | CY21: 75.0% | CZ21: 50.7% | DA21: 79.7% | DB21: 49.0% | DC21: 70.1% | DD21: 100.0% | DE21: 38.5% | DF21: 90.6% | DG21: 20.0% | DH21: 1.2% | DI21: 17.6% | DJ21: 16.7% | DK21: 20.0% | DL21: 18.7% | DM21: 22.6% | DN21: 6.3% | DO21: 100.0% | DP21: 18.2% | DQ21: 42.3% | DR21: 31.1%
BQ22: CUSCO | BR22: 31.6% | BU22: CALLAO | BV22: 3.6% | BW22: 50.0% | BX22: 76.5% | BY22: 78.6% | BZ22: 70.0% | CA22: 86.7% | CB22: 60.9% | CC22: 72.7% | CD22: 78.6% | CE22: 72.4% | CF22: 93.8% | CG22: 66.7% | CN22: Julio | CO22: 8.0% | CP22: 21.8% | CQ22: 51.7% | CR22: 38.5% | CS22: 100.0% | CT22: 14.7% | CU22: 60.9% | CV22: 41.9% | CW22: 36.8% | CX22: 32.1% | CY22: 83.3% | CZ22: 54.6% | DA22: 88.1% | DB22: 60.0% | DC22: 69.9% | DD22: 100.0% | DE22: 54.5% | DF22: 86.0% | DG22: 25.0% | DH22: 7.0% | DI22: 15.5% | DJ22: 20.0% | DK22: 40.0% | DL22: 23.7% | DM22: 36.6% | DN22: 0.0% | DO22: 100.0% | DP22: 24.0% | DQ22: 50.4% | DR22: 36.7%
BQ23: HUANCAVELICA | BR23: 29.2% | BU23: CUSCO | BV23: 9.6% | BW23: 24.7% | BX23: 31.0% | BY23: 37.4% | BZ23: 36.3% | CA23: 33.9% | CB23: 41.9% | CC23: 27.9% | CD23: 34.0% | CE23: 40.2% | CF23: 40.8% | CG23: 33.3% | CN23: Agosto | CO23: 3.1% | CP23: 29.2% | CQ23: 45.8% | CR23: 22.2% | CS23: 92.9% | CT23: 27.5% | CU23: 72.7% | CV23: 27.9% | CW23: 43.2% | CX23: 37.5% | CY23: 100.0% | CZ23: 48.4% | DA23: 74.1% | DB23: 51.4% | DC23: 50.8% | DD23: 100.0% | DE23: 57.1% | DF23: 79.5% | DG23: 31.3% | DH23: 2.9% | DI23: 20.8% | DJ23: 20.0% | DK23: 12.5% | DL23: 21.7% | DM23: 34.7% | DN23: 14.3% | DO23: 66.7% | DP23: 54.2% | DQ23: 53.9% | DR23: 36.4%
BQ24: HUANUCO | BR24: 35.9% | BU24: HUANCAVELICA | BV24: 6.3% | BW24: 16.7% | BX24: 27.0% | BY24: 31.3% | BZ24: 25.0% | CA24: 30.0% | CB24: 36.8% | CC24: 43.2% | CD24: 42.3% | CE24: 41.0% | CF24: 22.2% | CG24: 30.8% | CN24: Setiembre | CO24: 12.9% | CP24: 22.4% | CQ24: 41.9% | CR24: 18.5% | CS24: 100.0% | CT24: 32.9% | CU24: 78.6% | CV24: 34.0% | CW24: 42.3% | CX24: 46.2% | CY24: 85.7% | CZ24: 51.5% | DA24: 82.1% | DB24: 44.4% | DC24: 56.5% | DD24: 100.0% | DE24: 33.3% | DF24: 76.2% | DG24: 14.8% | DH24: 3.5% | DI24: 19.2% | DJ24: 14.3% | DK24: 26.9% | DL24: 27.6% | DM24: 24.5% | DN24: 0.0% | DO24: 83.3% | DP24: 37.5% | DQ24: 49.8% | DR24: 35.9%
BQ25: ICA | BR25: 72.6% | BU25: HUANUCO | BV25: 4.0% | BW25: 21.9% | BX25: 27.5% | BY25: 50.0% | BZ25: 45.3% | CA25: 47.8% | CB25: 32.1% | CC25: 37.5% | CD25: 46.2% | CE25: 44.4% | CF25: 47.2% | CG25: 33.3% | CN25: Octubre | CO25: 7.7% | CP25: 22.9% | CQ25: 41.9% | CR25: 36.0% | CS25: 73.3% | CT25: 15.8% | CU25: 72.4% | CV25: 40.2% | CW25: 41.0% | CX25: 44.4% | CY25: 62.5% | CZ25: 48.3% | DA25: 77.4% | DB25: 52.0% | DC25: 68.8% | DD25: 100.0% | DE25: 48.0% | DF25: 93.9% | DG25: 25.0% | DH25: 0.8% | DI25: 15.6% | DJ25: 0.0% | DK25: 11.8% | DL25: 34.8% | DM25: 36.7% | DN25: 8.3% | DO25: 100.0% | DP25: 28.6% | DQ25: 42.5% | DR25: 35.4%
BQ26: JUNIN | BR26: 41.1% | BU26: ICA | BV26: 60.0% | BW26: 70.0% | BX26: 63.6% | BY26: 80.8% | BZ26: 68.8% | CA26: 75.0% | CB26: 83.3% | CC26: 100.0% | CD26: 85.7% | CE26: 62.5% | CF26: 36.4% | CG26: 100.0% | CN26: Noviembre | CO26: 0.0% | CP26: 26.0% | CQ26: 36.2% | CR26: 34.0% | CS26: 100.0% | CT26: 17.3% | CU26: 93.8% | CV26: 40.8% | CW26: 22.2% | CX26: 47.2% | CY26: 36.4% | CZ26: 45.6% | DA26: 57.7% | DB26: 58.1% | DC26: 61.8% | DD26: 100.0% | DE26: 22.2% | DF26: 61.4% | DG26: 12.5% | DH26: 3.1% | DI26: 17.7% | DJ26: 12.5% | DK26: 10.0% | DL26: 29.8% | DM26: 25.4% | DN26: 7.1% | DO26: 100.0% | DP26: 46.2% | DQ26: 44.6% | DR26: 32.4%
BQ27: LA LIBERTAD | BR27: 76.3% | BU27: JUNIN | BV27: 4.2% | BW27: 21.2% | BX27: 37.8% | BY27: 49.4% | BZ27: 47.8% | CA27: 50.7% | CB27: 54.6% | CC27: 48.4% | CD27: 51.5% | CE27: 48.3% | CF27: 45.6% | CG27: 52.6% | CN27: Diciembre | CO27: 0.0% | CP27: 33.1% | CQ27: 39.2% | CR27: 36.0% | CS27: 88.5% | CT27: 14.4% | CU27: 66.7% | CV27: 33.3% | CW27: 30.8% | CX27: 33.3% | CY27: 100.0% | CZ27: 52.6% | DA27: 55.0% | DB27: 28.6% | DC27: 75.9% | DD27: 50.0% | DE27: 38.5% | DF27: 60.5% | DG27: 35.7% | DH27: 0.4% | DI27: 19.2% | DJ27: 16.7% | DK27: 0.0% | DL27: 25.6% | DM27: 28.8% | DN27: 5.3% | DO27: 100.0% | DP27: 66.7% | DQ27: 48.5% | DR27: 33.6%
BQ28: LAMBAYEQUE | BR28: 42.1% | BU28: LA LIBERTAD | BV28: 35.7% | BW28: 91.7% | BX28: 97.5% | BY28: 84.8% | BZ28: 74.5% | CA28: 79.7% | CB28: 88.1% | CC28: 74.1% | CD28: 82.1% | CE28: 77.4% | CF28: 57.7% | CG28: 55.0%
BQ29: LIMA DIRIS CENTRO | BR29: 64.8% | BU29: LAMBAYEQUE | BV29: 12.0% | BW29: 20.0% | BX29: 46.7% | BY29: 34.4% | BZ29: 31.0% | CA29: 49.0% | CB29: 60.0% | CC29: 51.4% | CD29: 44.4% | CE29: 52.0% | CF29: 58.1% | CG29: 28.6%
BQ30: LIMA DIRIS ESTE | BR30: 88.2% | BU30: LIMA DIRIS CENTRO | BV30: 42.5% | BW30: 72.6% | BX30: 77.3% | BY30: 74.0% | BZ30: 66.7% | CA30: 70.1% | CB30: 69.9% | CC30: 50.8% | CD30: 56.5% | CE30: 68.8% | CF30: 61.8% | CG30: 75.9%
BQ31: LIMA DIRIS NORTE | BR31: 30.7% | BU31: LIMA DIRIS ESTE | BV31: 35.7% | BW31: 90.9% | BX31: 100.0% | BY31: 91.7% | BZ31: 100.0% | CA31: 100.0% | CB31: 100.0% | CC31: 100.0% | CD31: 100.0% | CE31: 100.0% | CF31: 100.0% | CG31: 50.0%
BQ32: LIMA DIRIS SUR | BR32: 76.5% | BU32: LIMA DIRIS NORTE | BV32: 5.3% | BW32: 11.1% | BX32: 28.6% | BY32: 35.8% | BZ32: 45.6% | CA32: 38.5% | CB32: 54.5% | CC32: 57.1% | CD32: 33.3% | CE32: 48.0% | CF32: 22.2% | CG32: 38.5%
BQ33: LIMA PROVINCIAS | BR33: 26.0% | BU33: LIMA DIRIS SUR | BV33: 61.8% | BW33: 69.8% | BX33: 83.7% | BY33: 80.3% | BZ33: 75.0% | CA33: 90.6% | CB33: 86.0% | CC33: 79.5% | CD33: 76.2% | CE33: 93.9% | CF33: 61.4% | CG33: 60.5%
BQ34: LORETO | BR34: 2.2% | BU34: LIMA PROVINCIAS | BV34: 13.3% | BW34: 21.7% | BX34: 47.2% | BY34: 33.3% | BZ34: 27.6% | CA34: 20.0% | CB34: 25.0% | CC34: 31.3% | CD34: 14.8% | CE34: 25.0% | CF34: 12.5% | CG34: 35.7%
BQ35: MADRE DE DIOS | BR35: 12.0% | BU35: LORETO | BV35: 0.3% | BW35: 3.7% | BX35: 2.2% | BY35: 2.7% | BZ35: 0.8% | CA35: 1.2% | CB35: 7.0% | CC35: 2.9% | CD35: 3.5% | CE35: 0.8% | CF35: 3.1% | CG35: 0.4% | CN35: MENSUAL
BQ36: MOQUEGUA | BR36: 15.9% | BU36: MADRE DE DIOS | BV36: 4.4% | BW36: 5.5% | BX36: 6.2% | BY36: 5.8% | BZ36: 7.7% | CA36: 17.6% | CB36: 15.5% | CC36: 20.8% | CD36: 19.2% | CE36: 15.6% | CF36: 17.7% | CG36: 19.2% | CO36: AMAZONAS | CP36: ANCASH | CQ36: APURIMAC | CR36: AREQUIPA | CS36: AYACUCHO | CT36: CAJAMARCA | CU36: CALLAO | CV36: CUSCO | CW36: HUANCAVELICA | CX36: HUANUCO | CY36: ICA | CZ36: JUNIN | DA36: LA LIBERTAD | DB36: LAMBAYEQUE | DC36: LIMA DIRIS CENTRO | DD36: LIMA DIRIS ESTE | DE36: LIMA DIRIS NORTE | DF36: LIMA DIRIS SUR | DG36: LIMA PROVINCIAS | DH36: LORETO | DI36: MADRE DE DIOS | DJ36: MOQUEGUA | DK36: PASCO | DL36: PIURA | DM36: PUNO | DN36: SAN MARTIN | DO36: TACNA | DP36: TUMBES | DQ36: UCAYALI | DR36: NACIONAL
BQ37: PASCO | BR37: 17.8% | BU37: MOQUEGUA | BV37: 0.0% | BW37: 0.0% | BX37: 50.0% | BY37: 25.0% | BZ37: 11.1% | CA37: 16.7% | CB37: 20.0% | CC37: 20.0% | CD37: 14.3% | CE37: 0.0% | CF37: 12.5% | CG37: 16.7% | CN37: Enero | CO37: =+IFERROR(GETPIVOTDATA("Ind",$CN$14,"Diris",CO$36,"mes",$CN37),"-") -> 2.0% | CP37: 8.7% | CQ37: 27.3% | CR37: 3.8% | CS37: 59.1% | CT37: 2.2% | CU37: 3.6% | CV37: 9.6% | CW37: 6.3% | CX37: 4.0% | CY37: =+IFERROR(GETPIVOTDATA("Ind",$CN$14,"Diris",CY$36,"mes",$CN37),"-") -> 60.0% | CZ37: 4.2% | DA37: 35.7% | DB37: 12.0% | DC37: 42.5% | DD37: 35.7% | DE37: 5.3% | DF37: 61.8% | DG37: 13.3% | DH37: 0.3% | DI37: =+IFERROR(GETPIVOTDATA("Ind",$CN$14,"Diris",DI$36,"mes",$CN37),"-") -> 4.4% | DJ37: 0.0% | DK37: 5.6% | DL37: 1.6% | DM37: 2.3% | DN37: 0.0% | DO37: 100.0% | DP37: 9.1% | DQ37: 11.9% | DR37: =+IFERROR(GETPIVOTDATA("Ind",$CN$14,"mes",$CN37),"-") -> 9.5%
BQ38: PIURA | BR38: 19.6% | BU38: PASCO | BV38: 5.6% | BW38: 80.0% | BX38: 40.0% | BY38: 15.8% | BZ38: 0.0% | CA38: 20.0% | CB38: 40.0% | CC38: 12.5% | CD38: 26.9% | CE38: 11.8% | CF38: 10.0% | CG38: 0.0% | CN38: Febrero | CO38: 4.5% | CP38: 13.9% | CQ38: 36.9% | CR38: 27.9% | CS38: 92.3% | CT38: 12.3% | CU38: 50.0% | CV38: 24.7% | CW38: 16.7% | CX38: 21.9% | CY38: 70.0% | CZ38: 21.2% | DA38: 91.7% | DB38: 20.0% | DC38: 72.6% | DD38: 90.9% | DE38: 11.1% | DF38: 69.8% | DG38: 21.7% | DH38: 3.7% | DI38: 5.5% | DJ38: 0.0% | DK38: 80.0% | DL38: 14.8% | DM38: 18.5% | DN38: 0.0% | DO38: 100.0% | DP38: 20.0% | DQ38: 30.8% | DR38: 22.1%
BQ39: PUNO | BR39: 23.5% | BU39: PIURA | BV39: 1.6% | BW39: 14.8% | BX39: 15.7% | BY39: 6.5% | BZ39: 15.7% | CA39: 18.7% | CB39: 23.7% | CC39: 21.7% | CD39: 27.6% | CE39: 34.8% | CF39: 29.8% | CG39: 25.6% | CN39: Marzo | CO39: 5.4% | CP39: 24.2% | CQ39: 44.8% | CR39: 20.7% | CS39: 93.3% | CT39: 8.5% | CU39: 76.5% | CV39: 31.0% | CW39: 27.0% | CX39: 27.5% | CY39: 63.6% | CZ39: 37.8% | DA39: 97.5% | DB39: 46.7% | DC39: 77.3% | DD39: 100.0% | DE39: 28.6% | DF39: 83.7% | DG39: 47.2% | DH39: 2.2% | DI39: 6.2% | DJ39: 50.0% | DK39: 40.0% | DL39: 15.7% | DM39: 25.9% | DN39: 0.0% | DO39: 100.0% | DP39: 11.1% | DQ39: 43.0% | DR39: 30.1%
BQ40: SAN MARTIN | BR40: 2.9% | BU40: PUNO | BV40: 2.3% | BW40: 18.5% | BX40: 25.9% | BY40: 19.4% | BZ40: 19.9% | CA40: 22.6% | CB40: 36.6% | CC40: 34.7% | CD40: 24.5% | CE40: 36.7% | CF40: 25.4% | CG40: 28.8% | CN40: Abril | CO40: 17.4% | CP40: 24.7% | CQ40: 29.5% | CR40: 25.6% | CS40: 83.3% | CT40: 16.5% | CU40: 78.6% | CV40: 37.4% | CW40: 31.3% | CX40: 50.0% | CY40: 80.8% | CZ40: 49.4% | DA40: 84.8% | DB40: 34.4% | DC40: 74.0% | DD40: 91.7% | DE40: 35.8% | DF40: 80.3% | DG40: 33.3% | DH40: 2.7% | DI40: 5.8% | DJ40: 25.0% | DK40: 15.8% | DL40: 6.5% | DM40: 19.4% | DN40: 0.0% | DO40: 100.0% | DP40: 32.1% | DQ40: 43.7% | DR40: 31.9%
BQ41: TACNA | BR41: 97.1% | BU41: SAN MARTIN | BV41: 0.0% | BW41: 0.0% | BX41: 0.0% | BY41: 0.0% | BZ41: 3.8% | CA41: 6.3% | CB41: 0.0% | CC41: 14.3% | CD41: 0.0% | CE41: 8.3% | CF41: 7.1% | CG41: 5.3% | CN41: Mayo | CO41: 4.5% | CP41: 20.7% | CQ41: 38.7% | CR41: 5.1% | CS41: 84.6% | CT41: 19.7% | CU41: 70.0% | CV41: 36.3% | CW41: 25.0% | CX41: 45.3% | CY41: 68.8% | CZ41: 47.8% | DA41: 74.5% | DB41: 31.0% | DC41: 66.7% | DD41: 100.0% | DE41: 45.6% | DF41: 75.0% | DG41: 27.6% | DH41: 0.8% | DI41: 7.7% | DJ41: 11.1% | DK41: 0.0% | DL41: 15.7% | DM41: 19.9% | DN41: 3.8% | DO41: 100.0% | DP41: 15.8% | DQ41: 36.3% | DR41: 29.5%
BQ42: TUMBES | BR42: 27.8% | BU42: TACNA | BV42: 100.0% | BW42: 100.0% | BX42: 100.0% | BY42: 100.0% | BZ42: 100.0% | CA42: 100.0% | CB42: 100.0% | CC42: 66.7% | CD42: 83.3% | CE42: 100.0% | CF42: 100.0% | CG42: 100.0% | CN42: Junio | CO42: 13.3% | CP42: 18.3% | CQ42: 35.9% | CR42: 29.9% | CS42: 93.8% | CT42: 10.8% | CU42: 86.7% | CV42: 33.9% | CW42: 30.0% | CX42: 47.8% | CY42: 75.0% | CZ42: 50.7% | DA42: 79.7% | DB42: 49.0% | DC42: 70.1% | DD42: 100.0% | DE42: 38.5% | DF42: 90.6% | DG42: 20.0% | DH42: 1.2% | DI42: 17.6% | DJ42: 16.7% | DK42: 20.0% | DL42: 18.7% | DM42: 22.6% | DN42: 6.3% | DO42: 100.0% | DP42: 18.2% | DQ42: 42.3% | DR42: 31.1%
BQ43: UCAYALI | BR43: 40.5% | BU43: TUMBES | BV43: 9.1% | BW43: 20.0% | BX43: 11.1% | BY43: 32.1% | BZ43: 15.8% | CA43: 18.2% | CB43: 24.0% | CC43: 54.2% | CD43: 37.5% | CE43: 28.6% | CF43: 46.2% | CG43: 66.7% | CN43: Julio | CO43: 8.0% | CP43: 21.8% | CQ43: 51.7% | CR43: 38.5% | CS43: 100.0% | CT43: 14.7% | CU43: 60.9% | CV43: 41.9% | CW43: 36.8% | CX43: 32.1% | CY43: 83.3% | CZ43: 54.6% | DA43: 88.1% | DB43: 60.0% | DC43: 69.9% | DD43: 100.0% | DE43: 54.5% | DF43: 86.0% | DG43: 25.0% | DH43: 7.0% | DI43: 15.5% | DJ43: 20.0% | DK43: 40.0% | DL43: 23.7% | DM43: 36.6% | DN43: 0.0% | DO43: 100.0% | DP43: 24.0% | DQ43: 50.4% | DR43: 36.7%
BQ44: Total general | BR44: 29.3% | BU44: UCAYALI | BV44: 11.9% | BW44: 30.8% | BX44: 43.0% | BY44: 43.7% | BZ44: 36.3% | CA44: 42.3% | CB44: 50.4% | CC44: 53.9% | CD44: 49.8% | CE44: 42.5% | CF44: 44.6% | CG44: 48.5% | CN44: Agosto | CO44: 3.1% | CP44: 29.2% | CQ44: 45.8% | CR44: 22.2% | CS44: 92.9% | CT44: 27.5% | CU44: 72.7% | CV44: 27.9% | CW44: 43.2% | CX44: 37.5% | CY44: 100.0% | CZ44: 48.4% | DA44: 74.1% | DB44: 51.4% | DC44: 50.8% | DD44: 100.0% | DE44: 57.1% | DF44: 79.5% | DG44: 31.3% | DH44: 2.9% | DI44: 20.8% | DJ44: 20.0% | DK44: 12.5% | DL44: 21.7% | DM44: 34.7% | DN44: 14.3% | DO44: 66.7% | DP44: 54.2% | DQ44: 53.9% | DR44: 36.4%
BU45: Total general | BV45: 9.5% | BW45: 22.1% | BX45: 30.1% | BY45: 31.9% | BZ45: 29.5% | CA45: 31.1% | CB45: 36.7% | CC45: 36.4% | CD45: 35.9% | CE45: 35.4% | CF45: 32.4% | CG45: 33.6% | CN45: Setiembre | CO45: 12.9% | CP45: 22.4% | CQ45: 41.9% | CR45: 18.5% | CS45: 100.0% | CT45: 32.9% | CU45: 78.6% | CV45: 34.0% | CW45: 42.3% | CX45: 46.2% | CY45: 85.7% | CZ45: 51.5% | DA45: 82.1% | DB45: 44.4% | DC45: 56.5% | DD45: 100.0% | DE45: 33.3% | DF45: 76.2% | DG45: 14.8% | DH45: 3.5% | DI45: 19.2% | DJ45: 14.3% | DK45: 26.9% | DL45: 27.6% | DM45: 24.5% | DN45: 0.0% | DO45: 83.3% | DP45: 37.5% | DQ45: 49.8% | DR45: 35.9%
CN46: Octubre | CO46: 7.7% | CP46: 22.9% | CQ46: 41.9% | CR46: 36.0% | CS46: 73.3% | CT46: 15.8% | CU46: 72.4% | CV46: 40.2% | CW46: 41.0% | CX46: 44.4% | CY46: 62.5% | CZ46: 48.3% | DA46: 77.4% | DB46: 52.0% | DC46: 68.8% | DD46: 100.0% | DE46: 48.0% | DF46: 93.9% | DG46: 25.0% | DH46: 0.8% | DI46: 15.6% | DJ46: 0.0% | DK46: 11.8% | DL46: 34.8% | DM46: 36.7% | DN46: 8.3% | DO46: 100.0% | DP46: 28.6% | DQ46: 42.5% | DR46: 35.4%
BV47: 1 | BW47: 2 | BX47: 3 | BY47: 4 | BZ47: 5 | CA47: 6 | CB47: 7 | CC47: 8 | CD47: 9 | CE47: 10 | CF47: 11 | CG47: 12 | CJ47: MIN | CK47: MAX | CN47: Noviembre | CO47: 0.0% | CP47: 26.0% | CQ47: 36.2% | CR47: 34.0% | CS47: 100.0% | CT47: 17.3% | CU47: 93.8% | CV47: 40.8% | CW47: 22.2% | CX47: 47.2% | CY47: 36.4% | CZ47: 45.6% | DA47: 57.7% | DB47: 58.1% | DC47: 61.8% | DD47: 100.0% | DE47: 22.2% | DF47: 61.4% | DG47: 12.5% | DH47: 3.1% | DI47: 17.7% | DJ47: 12.5% | DK47: 10.0% | DL47: 29.8% | DM47: 25.4% | DN47: 7.1% | DO47: 100.0% | DP47: 46.2% | DQ47: 44.6% | DR47: 32.4%
BQ48: AMAZONAS | BR48: =+IFERROR(GETPIVOTDATA("Ind",$BQ$14,"Diris",$BQ48),"-") -> 6.1% | BU48: AMAZONAS | BV48: =+IFERROR(GETPIVOTDATA("Ind",$BU$14,"Diris",$BU48,"mes",BV$47),"-") -> 2.0% | BW48: =+IFERROR(GETPIVOTDATA("Ind",$BU$14,"Diris",$BU48,"mes",BW$47),"-") -> 4.5% | BX48: 5.4% | BY48: 17.4% | BZ48: 4.5% | CA48: 13.3% | CB48: 8.0% | CC48: 3.1% | CD48: 12.9% | CE48: 7.7% | CF48: 0.0% | CG48: 0.0% | CI48: AMAZONAS | CJ48: =+IF(BV48="-","-",MIN(BV48:CG48)) -> 0.0% | CK48: =+IF(BV48="-","-",MAX(BV48:CG48)) -> 17.4% | CN48: Diciembre | CO48: 0.0% | CP48: 33.1% | CQ48: 39.2% | CR48: 36.0% | CS48: 88.5% | CT48: 14.4% | CU48: 66.7% | CV48: 33.3% | CW48: 30.8% | CX48: 33.3% | CY48: 100.0% | CZ48: 52.6% | DA48: 55.0% | DB48: 28.6% | DC48: 75.9% | DD48: 50.0% | DE48: 38.5% | DF48: 60.5% | DG48: 35.7% | DH48: 0.4% | DI48: 19.2% | DJ48: 16.7% | DK48: 0.0% | DL48: 25.6% | DM48: 28.8% | DN48: 5.3% | DO48: 100.0% | DP48: 66.7% | DQ48: 48.5% | DR48: 33.6%
BQ49: ANCASH | BR49: =+IFERROR(GETPIVOTDATA("Ind",$BQ$14,"Diris",$BQ49),"-") -> 21.1% | BU49: ANCASH | BV49: =+IFERROR(GETPIVOTDATA("Ind",$BU$14,"Diris",$BU49,"mes",BV$47),"-") -> 8.7% | BW49: 13.9% | BX49: 24.2% | BY49: 24.7% | BZ49: 20.7% | CA49: 18.3% | CB49: 21.8% | CC49: 29.2% | CD49: 22.4% | CE49: 22.9% | CF49: 26.0% | CG49: 33.1% | CI49: ANCASH | CJ49: =+IF(BV49="-","-",MIN(BV49:CG49)) -> 8.7% | CK49: =+IF(BV49="-","-",MAX(BV49:CG49)) -> 33.1%
BQ50: APURIMAC | BR50: 38.5% | BU50: APURIMAC | BV50: 27.3% | BW50: 36.9% | BX50: 44.8% | BY50: 29.5% | BZ50: 38.7% | CA50: 35.9% | CB50: 51.7% | CC50: 45.8% | CD50: 41.9% | CE50: 41.9% | CF50: 36.2% | CG50: 39.2% | CI50: APURIMAC | CJ50: 27.3% | CK50: 51.7%
BQ51: AREQUIPA | BR51: 23.9% | BU51: AREQUIPA | BV51: 3.8% | BW51: 27.9% | BX51: 20.7% | BY51: 25.6% | BZ51: 5.1% | CA51: 29.9% | CB51: 38.5% | CC51: 22.2% | CD51: 18.5% | CE51: 36.0% | CF51: 34.0% | CG51: 36.0% | CI51: AREQUIPA | CJ51: 3.8% | CK51: 38.5%
BQ52: AYACUCHO | BR52: 87.4% | BU52: AYACUCHO | BV52: 59.1% | BW52: 92.3% | BX52: 93.3% | BY52: 83.3% | BZ52: 84.6% | CA52: 93.8% | CB52: 100.0% | CC52: 92.9% | CD52: 100.0% | CE52: 73.3% | CF52: 100.0% | CG52: 88.5% | CI52: AYACUCHO | CJ52: 59.1% | CK52: 100.0%
BQ53: CAJAMARCA | BR53: 15.0% | BU53: CAJAMARCA | BV53: 2.2% | BW53: 12.3% | BX53: 8.5% | BY53: 16.5% | BZ53: 19.7% | CA53: 10.8% | CB53: 14.7% | CC53: 27.5% | CD53: 32.9% | CE53: 15.8% | CF53: 17.3% | CG53: 14.4% | CI53: CAJAMARCA | CJ53: 2.2% | CK53: 32.9%
BQ54: CALLAO | BR54: 65.5% | BU54: CALLAO | BV54: 3.6% | BW54: 50.0% | BX54: 76.5% | BY54: 78.6% | BZ54: 70.0% | CA54: 86.7% | CB54: 60.9% | CC54: 72.7% | CD54: 78.6% | CE54: 72.4% | CF54: 93.8% | CG54: 66.7% | CI54: CALLAO | CJ54: 3.6% | CK54: 93.8%
BQ55: CUSCO | BR55: 31.6% | BU55: CUSCO | BV55: 9.6% | BW55: 24.7% | BX55: 31.0% | BY55: 37.4% | BZ55: 36.3% | CA55: 33.9% | CB55: 41.9% | CC55: 27.9% | CD55: 34.0% | CE55: 40.2% | CF55: 40.8% | CG55: 33.3% | CI55: CUSCO | CJ55: 9.6% | CK55: 41.9%
BQ56: HUANCAVELICA | BR56: 29.2% | BU56: HUANCAVELICA | BV56: 6.3% | BW56: 16.7% | BX56: 27.0% | BY56: 31.3% | BZ56: 25.0% | CA56: 30.0% | CB56: 36.8% | CC56: 43.2% | CD56: 42.3% | CE56: 41.0% | CF56: 22.2% | CG56: 30.8% | CI56: HUANCAVELICA | CJ56: 6.3% | CK56: 43.2%
BQ57: HUANUCO | BR57: 35.9% | BU57: HUANUCO | BV57: 4.0% | BW57: 21.9% | BX57: 27.5% | BY57: 50.0% | BZ57: 45.3% | CA57: 47.8% | CB57: 32.1% | CC57: 37.5% | CD57: 46.2% | CE57: 44.4% | CF57: 47.2% | CG57: 33.3% | CI57: HUANUCO | CJ57: 4.0% | CK57: 50.0%
BQ58: ICA | BR58: 72.6% | BU58: ICA | BV58: 60.0% | BW58: 70.0% | BX58: 63.6% | BY58: 80.8% | BZ58: 68.8% | CA58: 75.0% | CB58: 83.3% | CC58: 100.0% | CD58: 85.7% | CE58: 62.5% | CF58: 36.4% | CG58: 100.0% | CI58: ICA | CJ58: 36.4% | CK58: 100.0%
BQ59: JUNIN | BR59: 41.1% | BU59: JUNIN | BV59: 4.2% | BW59: 21.2% | BX59: 37.8% | BY59: 49.4% | BZ59: 47.8% | CA59: 50.7% | CB59: 54.6% | CC59: 48.4% | CD59: 51.5% | CE59: 48.3% | CF59: 45.6% | CG59: 52.6% | CI59: JUNIN | CJ59: 4.2% | CK59: 54.6%
BQ60: LA LIBERTAD | BR60: 76.3% | BU60: LA LIBERTAD | BV60: 35.7% | BW60: 91.7% | BX60: 97.5% | BY60: 84.8% | BZ60: 74.5% | CA60: 79.7% | CB60: 88.1% | CC60: 74.1% | CD60: 82.1% | CE60: 77.4% | CF60: 57.7% | CG60: 55.0% | CI60: LA LIBERTAD | CJ60: 35.7% | CK60: 97.5%
BQ61: LAMBAYEQUE | BR61: 42.1% | BU61: LAMBAYEQUE | BV61: 12.0% | BW61: 20.0% | BX61: 46.7% | BY61: 34.4% | BZ61: 31.0% | CA61: 49.0% | CB61: 60.0% | CC61: 51.4% | CD61: 44.4% | CE61: 52.0% | CF61: 58.1% | CG61: 28.6% | CI61: LAMBAYEQUE | CJ61: 12.0% | CK61: 60.0%
BQ62: LIMA DIRIS CENTRO | BR62: 64.8% | BU62: LIMA DIRIS CENTRO | BV62: 42.5% | BW62: 72.6% | BX62: 77.3% | BY62: 74.0% | BZ62: 66.7% | CA62: 70.1% | CB62: 69.9% | CC62: 50.8% | CD62: 56.5% | CE62: 68.8% | CF62: 61.8% | CG62: 75.9% | CI62: LIMA DIRIS CENTRO | CJ62: 42.5% | CK62: 77.3%
BQ63: LIMA DIRIS ESTE | BR63: 88.2% | BU63: LIMA DIRIS ESTE | BV63: 35.7% | BW63: 90.9% | BX63: 100.0% | BY63: 91.7% | BZ63: 100.0% | CA63: 100.0% | CB63: 100.0% | CC63: 100.0% | CD63: 100.0% | CE63: 100.0% | CF63: 100.0% | CG63: 50.0% | CI63: LIMA DIRIS ESTE | CJ63: 35.7% | CK63: 100.0%
BQ64: LIMA DIRIS NORTE | BR64: 30.7% | BU64: LIMA DIRIS NORTE | BV64: 5.3% | BW64: 11.1% | BX64: 28.6% | BY64: 35.8% | BZ64: 45.6% | CA64: 38.5% | CB64: 54.5% | CC64: 57.1% | CD64: 33.3% | CE64: 48.0% | CF64: 22.2% | CG64: 38.5% | CI64: LIMA DIRIS NORTE | CJ64: 5.3% | CK64: 57.1%
BQ65: LIMA DIRIS SUR | BR65: 76.5% | BU65: LIMA DIRIS SUR | BV65: 61.8% | BW65: 69.8% | BX65: 83.7% | BY65: 80.3% | BZ65: 75.0% | CA65: 90.6% | CB65: 86.0% | CC65: 79.5% | CD65: 76.2% | CE65: 93.9% | CF65: 61.4% | CG65: 60.5% | CI65: LIMA DIRIS SUR | CJ65: 60.5% | CK65: 93.9%
BQ66: LIMA PROVINCIAS | BR66: 26.0% | BU66: LIMA PROVINCIAS | BV66: 13.3% | BW66: 21.7% | BX66: 47.2% | BY66: 33.3% | BZ66: 27.6% | CA66: 20.0% | CB66: 25.0% | CC66: 31.3% | CD66: 14.8% | CE66: 25.0% | CF66: 12.5% | CG66: 35.7% | CI66: LIMA PROVINCIAS | CJ66: 12.5% | CK66: 47.2%
BQ67: LORETO | BR67: 2.2% | BU67: LORETO | BV67: 0.3% | BW67: 3.7% | BX67: 2.2% | BY67: 2.7% | BZ67: 0.8% | CA67: 1.2% | CB67: 7.0% | CC67: 2.9% | CD67: 3.5% | CE67: 0.8% | CF67: 3.1% | CG67: 0.4% | CI67: LORETO | CJ67: 0.3% | CK67: 7.0%
BQ68: MADRE DE DIOS | BR68: 12.0% | BU68: MADRE DE DIOS | BV68: 4.4% | BW68: 5.5% | BX68: 6.2% | BY68: 5.8% | BZ68: 7.7% | CA68: 17.6% | CB68: 15.5% | CC68: 20.8% | CD68: 19.2% | CE68: 15.6% | CF68: 17.7% | CG68: 19.2% | CI68: MADRE DE DIOS | CJ68: 4.4% | CK68: 20.8%
BQ69: MOQUEGUA | BR69: 15.9% | BU69: MOQUEGUA | BV69: 0.0% | BW69: 0.0% | BX69: 50.0% | BY69: 25.0% | BZ69: 11.1% | CA69: 16.7% | CB69: 20.0% | CC69: 20.0% | CD69: 14.3% | CE69: 0.0% | CF69: 12.5% | CG69: 16.7% | CI69: MOQUEGUA | CJ69: 0.0% | CK69: 50.0%
BQ70: PASCO | BR70: 17.8% | BU70: PASCO | BV70: 5.6% | BW70: 80.0% | BX70: 40.0% | BY70: 15.8% | BZ70: 0.0% | CA70: 20.0% | CB70: 40.0% | CC70: 12.5% | CD70: 26.9% | CE70: 11.8% | CF70: 10.0% | CG70: 0.0% | CI70: PASCO | CJ70: 0.0% | CK70: 80.0%
BQ71: PIURA | BR71: 19.6% | BU71: PIURA | BV71: 1.6% | BW71: 14.8% | BX71: 15.7% | BY71: 6.5% | BZ71: 15.7% | CA71: 18.7% | CB71: 23.7% | CC71: 21.7% | CD71: 27.6% | CE71: 34.8% | CF71: 29.8% | CG71: 25.6% | CI71: PIURA | CJ71: 1.6% | CK71: 34.8%
BQ72: PUNO | BR72: 23.5% | BU72: PUNO | BV72: 2.3% | BW72: 18.5% | BX72: 25.9% | BY72: 19.4% | BZ72: 19.9% | CA72: 22.6% | CB72: 36.6% | CC72: 34.7% | CD72: 24.5% | CE72: 36.7% | CF72: 25.4% | CG72: 28.8% | CI72: PUNO | CJ72: 2.3% | CK72: 36.7%
BQ73: SAN MARTIN | BR73: 2.9% | BU73: SAN MARTIN | BV73: 0.0% | BW73: 0.0% | BX73: 0.0% | BY73: 0.0% | BZ73: 3.8% | CA73: 6.3% | CB73: 0.0% | CC73: 14.3% | CD73: 0.0% | CE73: 8.3% | CF73: 7.1% | CG73: 5.3% | CI73: SAN MARTIN | CJ73: 0.0% | CK73: 14.3%
BQ74: TACNA | BR74: 97.1% | BU74: TACNA | BV74: 100.0% | BW74: 100.0% | BX74: 100.0% | BY74: 100.0% | BZ74: 100.0% | CA74: 100.0% | CB74: 100.0% | CC74: 66.7% | CD74: 83.3% | CE74: 100.0% | CF74: 100.0% | CG74: 100.0% | CI74: TACNA | CJ74: 66.7% | CK74: 100.0%
BQ75: TUMBES | BR75: 27.8% | BU75: TUMBES | BV75: 9.1% | BW75: 20.0% | BX75: 11.1% | BY75: 32.1% | BZ75: 15.8% | CA75: 18.2% | CB75: 24.0% | CC75: 54.2% | CD75: 37.5% | CE75: 28.6% | CF75: 46.2% | CG75: 66.7% | CI75: TUMBES | CJ75: 9.1% | CK75: 66.7%
BQ76: UCAYALI | BR76: 40.5% | BU76: UCAYALI | BV76: 11.9% | BW76: 30.8% | BX76: 43.0% | BY76: 43.7% | BZ76: 36.3% | CA76: 42.3% | CB76: 50.4% | CC76: 53.9% | CD76: 49.8% | CE76: 42.5% | CF76: 44.6% | CG76: 48.5% | CI76: UCAYALI | CJ76: 11.9% | CK76: 53.9%
BQ77: NACIONAL | BR77: =+IFERROR(GETPIVOTDATA("Ind",$BQ$14),"-") -> 29.3% | BU77: NACIONAL | BV77: =+IFERROR(GETPIVOTDATA("Ind",$BU$14,"mes",BV$47),"-") -> 9.5% | BW77: =+IFERROR(GETPIVOTDATA("Ind",$BU$14,"mes",BW$47),"-") -> 22.1% | BX77: 30.1% | BY77: 31.9% | BZ77: 29.5% | CA77: 31.1% | CB77: 36.7% | CC77: 36.4% | CD77: 35.9% | CE77: 35.4% | CF77: 32.4% | CG77: 33.6% | CI77: NACIONAL | CJ77: 9.5% | CK77: 36.7%

Sheet DL_1153_2025_CG06
A1: =+DL1153_2025!C12 -> Ficha 06:Porcentaje de niñas y niños de 1 año vacunados con dos dosis de vacuna sarampión, parotiditis y rubeola (SPR). | BP1: 1 | DT1: 1
A2: Periodo de Evaluación: | B2: =+DL1153_2025!B42 -> Diciembre - 2025
J3: Diris | K3: (Todas)
J4: Provincia | K4: (Todas)
A5: año | B5: (Todas) | J5: Red | K5: KIMBIRI PICHARI
A6: mes | B6: 12 | J6: Distrito | K6: (Todas)
A7: DIRESA/ DIRIS | B7: RED | C7: Provincia | D7: Distrito | E7: UBIGEO | F7: Denominador: Niñas/niños de 1 año del padrón nominal | G7: Numerador: Niñas/niños menores de 2 años y mayor de 1 año, que recibieron 2 dosis de la vacuna SPR registrados en HIS con código CPMS 90707 y lab 2. | H7: Indicador: Porcentaje de niñas y niños de 1 año vacunados con dos dosis de vacuna sarampión, parotiditis y rubeola (SPR). | J7: AÑO | K7: MES | L7: Denominador: Niñas/niños de 1 año del padrón nominal | M7: Numerador: Niñas/niños menores de 2 años y mayor de 1 año, que recibieron 2 dosis de la vacuna SPR registrados en HIS con código CPMS 90707 y lab 2. | N7: Indicador: Porcentaje de niñas y niños de 1 año vacunados con dos dosis de vacuna sarampión, parotiditis y rubeola (SPR).
A8: Diris | B8: Red | C8: Provincia | D8: Distrito | E8: ubigeo | F8: Denominador | G8: Numerador | H8: Indicador | J8: año | K8: mes | L8: Denominador | M8: Numerador | N8: Indicador
A9: CUSCO | B9: KIMBIRI PICHARI | C9: LA CONVENCION | D9: CIELO PUNCO | E9: 80916 | F9: 34 | G9: 40 | H9: 117.6% | J9: 2025 | K9: 1 | L9: 1,186 | M9: 97 | N9: 8.2%
A10: CUSCO | B10: KIMBIRI PICHARI | C10: LA CONVENCION | D10: KIMBIRI | E10: 80907 | F10: 262 | G10: 217 | H10: 82.8% | J10: 2025 | K10: 2 | L10: 1,186 | M10: 193 | N10: 16.3%
A11: CUSCO | B11: KIMBIRI PICHARI | C11: LA CONVENCION | D11: MANITEA | E11: 80917 | F11: 43 | G11: 45 | H11: 104.7% | J11: 2025 | K11: 3 | L11: 1,186 | M11: 292 | N11: 24.6% | BQ11: mes | BR11: 12
A12: CUSCO | B12: KIMBIRI PICHARI | C12: LA CONVENCION | D12: PICHARI | E12: 80910 | F12: 584 | G12: 484 | H12: 82.9% | J12: 2025 | K12: 4 | L12: 1,186 | M12: 359 | N12: 30.3% | BQ12: año | BR12: (Todas) | BU12: año | BV12: (Todas) | CN12: año | CO12: (Todas)
A13: CUSCO | B13: KIMBIRI PICHARI | C13: LA CONVENCION | D13: UNION ASHANINKA | E13: 80918 | F13: 173 | G13: 129 | H13: 74.6% | J13: 2025 | K13: 5 | L13: 1,186 | M13: 433 | N13: 36.5%
A14: CUSCO | B14: KIMBIRI PICHARI | C14: LA CONVENCION | D14: VILLA KINTIARINA | E14: 80913 | F14: 46 | G14: 58 | H14: 126.1% | J14: 2025 | K14: 6 | L14: 1,186 | M14: 505 | N14: 42.6% | BQ14: Diris | BR14: Suma de ind | BU14: Suma de ind | BV14: mes | CN14: Suma de ind | CO14: Diris
A15: CUSCO | B15: KIMBIRI PICHARI | C15: LA CONVENCION | D15: VILLA VIRGEN | E15: 80912 | F15: 44 | G15: 45 | H15: 102.3% | J15: 2025 | K15: 7 | L15: 1,186 | M15: 589 | N15: 49.7% | BQ15: AMAZONAS | BR15: 79.1% | BU15: Diris | BV15: 1 | BW15: 2 | BX15: 3 | BY15: 4 | BZ15: 5 | CA15: 6 | CB15: 7 | CC15: 8 | CD15: 9 | CE15: 10 | CF15: 11 | CG15: 12 | CN15: mes | CO15: AMAZONAS | CP15: ANCASH | CQ15: APURIMAC | CR15: AREQUIPA | CS15: AYACUCHO | CT15: CAJAMARCA | CU15: CALLAO | CV15: CUSCO | CW15: HUANCAVELICA | CX15: HUANUCO | CY15: ICA | CZ15: JUNIN | DA15: LA LIBERTAD | DB15: LAMBAYEQUE | DC15: LIMA DIRIS CENTRO | DD15: LIMA DIRIS ESTE | DE15: LIMA DIRIS NORTE | DF15: LIMA DIRIS SUR | DG15: LIMA PROVINCIAS | DH15: LORETO | DI15: MADRE DE DIOS | DJ15: MOQUEGUA | DK15: PASCO | DL15: PIURA | DM15: PUNO | DN15: SAN MARTIN | DO15: TACNA | DP15: TUMBES | DQ15: UCAYALI | DR15: Total general
A16: Total general | F16: 1,186 | G16: 1,018 | H16: 85.8% | J16: 2025 | K16: 8 | L16: 1,186 | M16: 681 | N16: 57.4% | BQ16: ANCASH | BR16: 82.3% | BU16: AMAZONAS | BV16: 6.6% | BW16: 12.4% | BX16: 19.7% | BY16: 26.4% | BZ16: 34.2% | CA16: 40.2% | CB16: 47.1% | CC16: 53.5% | CD16: 60.2% | CE16: 67.4% | CF16: 73.2% | CG16: 79.1% | CN16: Enero | CO16: 6.6% | CP16: 7.2% | CQ16: 7.4% | CR16: 4.1% | CS16: 7.6% | CT16: 7.3% | CU16: 6.2% | CV16: 7.1% | CW16: 8.1% | CX16: 7.4% | CY16: 6.2% | CZ16: 6.8% | DA16: 6.1% | DB16: 5.5% | DC16: 3.7% | DD16: 4.1% | DE16: 4.5% | DF16: 6.3% | DG16: 8.2% | DH16: 4.5% | DI16: 3.6% | DJ16: 5.9% | DK16: 6.4% | DL16: 6.8% | DM16: 5.0% | DN16: 6.7% | DO16: 5.2% | DP16: 8.1% | DQ16: 4.0% | DR16: 5.9%
J17: 2025 | K17: 9 | L17: 1,186 | M17: 778 | N17: 65.6% | BQ17: APURIMAC | BR17: 83.2% | BU17: ANCASH | BV17: 7.2% | BW17: 13.6% | BX17: 21.3% | BY17: 28.4% | BZ17: 35.4% | CA17: 41.7% | CB17: 48.0% | CC17: 54.7% | CD17: 61.6% | CE17: 69.0% | CF17: 75.8% | CG17: 82.3% | CN17: Febrero | CO17: 12.4% | CP17: 13.6% | CQ17: 13.8% | CR17: 8.2% | CS17: 14.3% | CT17: 13.3% | CU17: 11.7% | CV17: 13.2% | CW17: 15.4% | CX17: 13.7% | CY17: 12.0% | CZ17: 13.5% | DA17: 11.8% | DB17: 10.4% | DC17: 7.4% | DD17: 8.2% | DE17: 8.9% | DF17: 12.6% | DG17: 15.3% | DH17: 9.3% | DI17: 8.2% | DJ17: 11.2% | DK17: 12.1% | DL17: 13.4% | DM17: 10.3% | DN17: 12.3% | DO17: 9.7% | DP17: 15.8% | DQ17: 8.1% | DR17: 11.4%
J18: 2025 | K18: 10 | L18: 1,186 | M18: 848 | N18: 71.5% | BQ18: AREQUIPA | BR18: 54.2% | BU18: APURIMAC | BV18: 7.4% | BW18: 13.8% | BX18: 21.4% | BY18: 28.2% | BZ18: 35.5% | CA18: 41.7% | CB18: 48.8% | CC18: 56.1% | CD18: 63.2% | CE18: 70.5% | CF18: 76.8% | CG18: 83.2% | CN18: Marzo | CO18: 19.7% | CP18: 21.3% | CQ18: 21.4% | CR18: 12.5% | CS18: 21.7% | CT18: 20.3% | CU18: 19.3% | CV18: 20.5% | CW18: 24.1% | CX18: 21.4% | CY18: 18.6% | CZ18: 20.3% | DA18: 18.4% | DB18: 15.7% | DC18: 11.2% | DD18: 13.0% | DE18: 14.0% | DF18: 21.5% | DG18: 23.5% | DH18: 15.5% | DI18: 12.6% | DJ18: 16.6% | DK18: 18.2% | DL18: 20.3% | DM18: 16.5% | DN18: 19.4% | DO18: 15.7% | DP18: 24.5% | DQ18: 13.3% | DR18: 17.8%
J19: 2025 | K19: 11 | L19: 1,186 | M19: 936 | N19: 78.9% | BQ19: AYACUCHO | BR19: 84.6% | BU19: AREQUIPA | BV19: 4.1% | BW19: 8.2% | BX19: 12.5% | BY19: 17.1% | BZ19: 22.1% | CA19: 26.7% | CB19: 31.9% | CC19: 36.4% | CD19: 41.4% | CE19: 46.1% | CF19: 50.4% | CG19: 54.2% | CN19: Abril | CO19: 26.4% | CP19: 28.4% | CQ19: 28.2% | CR19: 17.1% | CS19: 29.3% | CT19: 27.0% | CU19: 25.0% | CV19: 27.1% | CW19: 31.5% | CX19: 28.5% | CY19: 24.5% | CZ19: 27.2% | DA19: 24.5% | DB19: 21.7% | DC19: 15.2% | DD19: 17.9% | DE19: 19.1% | DF19: 30.7% | DG19: 32.1% | DH19: 22.0% | DI19: 17.2% | DJ19: 22.4% | DK19: 23.1% | DL19: 26.0% | DM19: 21.9% | DN19: 26.5% | DO19: 21.3% | DP19: 31.8% | DQ19: 18.6% | DR19: 24.0%
J20: 2025 | K20: 12 | L20: 1,186 | M20: 1,018 | N20: 85.8% | BQ20: CAJAMARCA | BR20: 80.6% | BU20: AYACUCHO | BV20: 7.6% | BW20: 14.3% | BX20: 21.7% | BY20: 29.3% | BZ20: 36.0% | CA20: 42.4% | CB20: 49.0% | CC20: 56.4% | CD20: 64.0% | CE20: 71.7% | CF20: 78.3% | CG20: 84.6% | CN20: Mayo | CO20: 34.2% | CP20: 35.4% | CQ20: 35.5% | CR20: 22.1% | CS20: 36.0% | CT20: 33.9% | CU20: 30.4% | CV20: 33.6% | CW20: 38.4% | CX20: 35.5% | CY20: 30.0% | CZ20: 33.5% | DA20: 30.8% | DB20: 27.4% | DC20: 19.3% | DD20: 22.6% | DE20: 23.4% | DF20: 41.6% | DG20: 39.9% | DH20: 27.8% | DI20: 21.9% | DJ20: 26.9% | DK20: 29.4% | DL20: 31.9% | DM20: 27.5% | DN20: 33.4% | DO20: 27.4% | DP20: 39.1% | DQ20: 23.7% | DR20: 30.2%
BQ21: CALLAO | BR21: 67.7% | BU21: CAJAMARCA | BV21: 7.3% | BW21: 13.3% | BX21: 20.3% | BY21: 27.0% | BZ21: 33.9% | CA21: 40.2% | CB21: 47.0% | CC21: 53.9% | CD21: 60.4% | CE21: 67.8% | CF21: 74.7% | CG21: 80.6% | CN21: Junio | CO21: 40.2% | CP21: 41.7% | CQ21: 41.7% | CR21: 26.7% | CS21: 42.4% | CT21: 40.2% | CU21: 35.4% | CV21: 39.2% | CW21: 45.5% | CX21: 42.2% | CY21: 35.3% | CZ21: 39.5% | DA21: 36.5% | DB21: 32.2% | DC21: 22.6% | DD21: 27.2% | DE21: 27.4% | DF21: 49.3% | DG21: 46.7% | DH21: 32.9% | DI21: 26.9% | DJ21: 30.7% | DK21: 35.3% | DL21: 37.4% | DM21: 32.3% | DN21: 39.6% | DO21: 33.4% | DP21: 45.2% | DQ21: 28.5% | DR21: 35.7%
BQ22: CUSCO | BR22: 77.9% | BU22: CALLAO | BV22: 6.2% | BW22: 11.7% | BX22: 19.3% | BY22: 25.0% | BZ22: 30.4% | CA22: 35.4% | CB22: 40.9% | CC22: 46.1% | CD22: 51.1% | CE22: 57.3% | CF22: 63.4% | CG22: 67.7% | CN22: Julio | CO22: 47.1% | CP22: 48.0% | CQ22: 48.8% | CR22: 31.9% | CS22: 49.0% | CT22: 47.0% | CU22: 40.9% | CV22: 45.6% | CW22: 53.2% | CX22: 49.0% | CY22: 40.7% | CZ22: 46.0% | DA22: 42.2% | DB22: 37.1% | DC22: 25.9% | DD22: 31.1% | DE22: 31.1% | DF22: 57.0% | DG22: 53.3% | DH22: 38.4% | DI22: 32.5% | DJ22: 35.5% | DK22: 41.6% | DL22: 42.9% | DM22: 38.2% | DN22: 46.4% | DO22: 38.8% | DP22: 51.5% | DQ22: 33.6% | DR22: 41.3%
BQ23: HUANCAVELICA | BR23: 89.3% | BU23: CUSCO | BV23: 7.1% | BW23: 13.2% | BX23: 20.5% | BY23: 27.1% | BZ23: 33.6% | CA23: 39.2% | CB23: 45.6% | CC23: 52.6% | CD23: 59.5% | CE23: 66.2% | CF23: 72.4% | CG23: 77.9% | CN23: Agosto | CO23: 53.5% | CP23: 54.7% | CQ23: 56.1% | CR23: 36.4% | CS23: 56.4% | CT23: 53.9% | CU23: 46.1% | CV23: 52.6% | CW23: 60.9% | CX23: 55.9% | CY23: 46.5% | CZ23: 52.8% | DA23: 48.3% | DB23: 41.8% | DC23: 29.7% | DD23: 37.1% | DE23: 36.0% | DF23: 62.9% | DG23: 61.1% | DH23: 44.4% | DI23: 38.4% | DJ23: 39.8% | DK23: 49.3% | DL23: 48.5% | DM23: 43.5% | DN23: 53.4% | DO23: 44.2% | DP23: 57.5% | DQ23: 38.6% | DR23: 47.2%
BQ24: HUANUCO | BR24: 82.7% | BU24: HUANCAVELICA | BV24: 8.1% | BW24: 15.4% | BX24: 24.1% | BY24: 31.5% | BZ24: 38.4% | CA24: 45.5% | CB24: 53.2% | CC24: 60.9% | CD24: 67.9% | CE24: 75.6% | CF24: 81.8% | CG24: 89.3% | CN24: Setiembre | CO24: 60.2% | CP24: 61.6% | CQ24: 63.2% | CR24: 41.4% | CS24: 64.0% | CT24: 60.4% | CU24: 51.1% | CV24: 59.5% | CW24: 67.9% | CX24: 63.1% | CY24: 53.1% | CZ24: 59.3% | DA24: 54.2% | DB24: 46.7% | DC24: 34.0% | DD24: 41.8% | DE24: 40.0% | DF24: 69.4% | DG24: 68.7% | DH24: 49.1% | DI24: 44.0% | DJ24: 44.6% | DK24: 55.8% | DL24: 54.2% | DM24: 49.2% | DN24: 60.3% | DO24: 51.3% | DP24: 64.1% | DQ24: 43.6% | DR24: 53.0%
BQ25: ICA | BR25: 70.3% | BU25: HUANUCO | BV25: 7.4% | BW25: 13.7% | BX25: 21.4% | BY25: 28.5% | BZ25: 35.5% | CA25: 42.2% | CB25: 49.0% | CC25: 55.9% | CD25: 63.1% | CE25: 70.1% | CF25: 76.6% | CG25: 82.7% | CN25: Octubre | CO25: 67.4% | CP25: 69.0% | CQ25: 70.5% | CR25: 46.1% | CS25: 71.7% | CT25: 67.8% | CU25: 57.3% | CV25: 66.2% | CW25: 75.6% | CX25: 70.1% | CY25: 59.8% | CZ25: 66.7% | DA25: 60.3% | DB25: 52.1% | DC25: 38.3% | DD25: 47.6% | DE25: 44.7% | DF25: 74.7% | DG25: 76.8% | DH25: 53.9% | DI25: 51.0% | DJ25: 49.7% | DK25: 62.1% | DL25: 61.0% | DM25: 54.6% | DN25: 67.0% | DO25: 57.2% | DP25: 71.3% | DQ25: 49.3% | DR25: 59.1%
BQ26: JUNIN | BR26: 78.6% | BU26: ICA | BV26: 6.2% | BW26: 12.0% | BX26: 18.6% | BY26: 24.5% | BZ26: 30.0% | CA26: 35.3% | CB26: 40.7% | CC26: 46.5% | CD26: 53.1% | CE26: 59.8% | CF26: 65.2% | CG26: 70.3% | CN26: Noviembre | CO26: 73.2% | CP26: 75.8% | CQ26: 76.8% | CR26: 50.4% | CS26: 78.3% | CT26: 74.7% | CU26: 63.4% | CV26: 72.4% | CW26: 81.8% | CX26: 76.6% | CY26: 65.2% | CZ26: 73.0% | DA26: 66.6% | DB26: 57.2% | DC26: 41.9% | DD26: 53.0% | DE26: 49.1% | DF26: 81.4% | DG26: 84.2% | DH26: 58.0% | DI26: 57.4% | DJ26: 54.7% | DK26: 68.0% | DL26: 67.8% | DM26: 59.9% | DN26: 73.3% | DO26: 62.9% | DP26: 78.4% | DQ26: 53.3% | DR26: 64.9%
BQ27: LA LIBERTAD | BR27: 72.3% | BU27: JUNIN | BV27: 6.8% | BW27: 13.5% | BX27: 20.3% | BY27: 27.2% | BZ27: 33.5% | CA27: 39.5% | CB27: 46.0% | CC27: 52.8% | CD27: 59.3% | CE27: 66.7% | CF27: 73.0% | CG27: 78.6% | CN27: Diciembre | CO27: 79.1% | CP27: 82.3% | CQ27: 83.2% | CR27: 54.2% | CS27: 84.6% | CT27: 80.6% | CU27: 67.7% | CV27: 77.9% | CW27: 89.3% | CX27: 82.7% | CY27: 70.3% | CZ27: 78.6% | DA27: 72.3% | DB27: 61.9% | DC27: 45.0% | DD27: 57.1% | DE27: 53.2% | DF27: 85.6% | DG27: 90.9% | DH27: 62.1% | DI27: 61.9% | DJ27: 59.2% | DK27: 74.1% | DL27: 74.1% | DM27: 64.8% | DN27: 79.2% | DO27: 68.3% | DP27: 83.5% | DQ27: 56.3% | DR27: 69.9%
BQ28: LAMBAYEQUE | BR28: 61.9% | BU28: LA LIBERTAD | BV28: 6.1% | BW28: 11.8% | BX28: 18.4% | BY28: 24.5% | BZ28: 30.8% | CA28: 36.5% | CB28: 42.2% | CC28: 48.3% | CD28: 54.2% | CE28: 60.3% | CF28: 66.6% | CG28: 72.3%
BQ29: LIMA DIRIS CENTRO | BR29: 45.0% | BU29: LAMBAYEQUE | BV29: 5.5% | BW29: 10.4% | BX29: 15.7% | BY29: 21.7% | BZ29: 27.4% | CA29: 32.2% | CB29: 37.1% | CC29: 41.8% | CD29: 46.7% | CE29: 52.1% | CF29: 57.2% | CG29: 61.9%
BQ30: LIMA DIRIS ESTE | BR30: 57.1% | BU30: LIMA DIRIS CENTRO | BV30: 3.7% | BW30: 7.4% | BX30: 11.2% | BY30: 15.2% | BZ30: 19.3% | CA30: 22.6% | CB30: 25.9% | CC30: 29.7% | CD30: 34.0% | CE30: 38.3% | CF30: 41.9% | CG30: 45.0%
BQ31: LIMA DIRIS NORTE | BR31: 53.2% | BU31: LIMA DIRIS ESTE | BV31: 4.1% | BW31: 8.2% | BX31: 13.0% | BY31: 17.9% | BZ31: 22.6% | CA31: 27.2% | CB31: 31.1% | CC31: 37.1% | CD31: 41.8% | CE31: 47.6% | CF31: 53.0% | CG31: 57.1%
BQ32: LIMA DIRIS SUR | BR32: 85.6% | BU32: LIMA DIRIS NORTE | BV32: 4.5% | BW32: 8.9% | BX32: 14.0% | BY32: 19.1% | BZ32: 23.4% | CA32: 27.4% | CB32: 31.1% | CC32: 36.0% | CD32: 40.0% | CE32: 44.7% | CF32: 49.1% | CG32: 53.2%
BQ33: LIMA PROVINCIAS | BR33: 90.9% | BU33: LIMA DIRIS SUR | BV33: 6.3% | BW33: 12.6% | BX33: 21.5% | BY33: 30.7% | BZ33: 41.6% | CA33: 49.3% | CB33: 57.0% | CC33: 62.9% | CD33: 69.4% | CE33: 74.7% | CF33: 81.4% | CG33: 85.6%
BQ34: LORETO | BR34: 62.1% | BU34: LIMA PROVINCIAS | BV34: 8.2% | BW34: 15.3% | BX34: 23.5% | BY34: 32.1% | BZ34: 39.9% | CA34: 46.7% | CB34: 53.3% | CC34: 61.1% | CD34: 68.7% | CE34: 76.8% | CF34: 84.2% | CG34: 90.9%
BQ35: MADRE DE DIOS | BR35: 61.9% | BU35: LORETO | BV35: 4.5% | BW35: 9.3% | BX35: 15.5% | BY35: 22.0% | BZ35: 27.8% | CA35: 32.9% | CB35: 38.4% | CC35: 44.4% | CD35: 49.1% | CE35: 53.9% | CF35: 58.0% | CG35: 62.1%
BQ36: MOQUEGUA | BR36: 59.2% | BU36: MADRE DE DIOS | BV36: 3.6% | BW36: 8.2% | BX36: 12.6% | BY36: 17.2% | BZ36: 21.9% | CA36: 26.9% | CB36: 32.5% | CC36: 38.4% | CD36: 44.0% | CE36: 51.0% | CF36: 57.4% | CG36: 61.9% | CO36: AMAZONAS | CP36: ANCASH | CQ36: APURIMAC | CR36: AREQUIPA | CS36: AYACUCHO | CT36: CAJAMARCA | CU36: CALLAO | CV36: CUSCO | CW36: HUANCAVELICA | CX36: HUANUCO | CY36: ICA | CZ36: JUNIN | DA36: LA LIBERTAD | DB36: LAMBAYEQUE | DC36: LIMA DIRIS CENTRO | DD36: LIMA DIRIS ESTE | DE36: LIMA DIRIS NORTE | DF36: LIMA DIRIS SUR | DG36: LIMA PROVINCIAS | DH36: LORETO | DI36: MADRE DE DIOS | DJ36: MOQUEGUA | DK36: PASCO | DL36: PIURA | DM36: PUNO | DN36: SAN MARTIN | DO36: TACNA | DP36: TUMBES | DQ36: UCAYALI | DR36: NACIONAL
BQ37: PASCO | BR37: 74.1% | BU37: MOQUEGUA | BV37: 5.9% | BW37: 11.2% | BX37: 16.6% | BY37: 22.4% | BZ37: 26.9% | CA37: 30.7% | CB37: 35.5% | CC37: 39.8% | CD37: 44.6% | CE37: 49.7% | CF37: 54.7% | CG37: 59.2% | CN37: Enero | CO37: =+IFERROR(GETPIVOTDATA("ind",$CN$14,"Diris",CO$36,"mes",$CN37),"-") -> 6.6% | CP37: 7.2% | CQ37: 7.4% | CR37: 4.1% | CS37: 7.6% | CT37: 7.3% | CU37: 6.2% | CV37: 7.1% | CW37: 8.1% | CX37: 7.4% | CY37: =+IFERROR(GETPIVOTDATA("ind",$CN$14,"Diris",CY$36,"mes",$CN37),"-") -> 6.2% | CZ37: 6.8% | DA37: 6.1% | DB37: 5.5% | DC37: 3.7% | DD37: 4.1% | DE37: 4.5% | DF37: 6.3% | DG37: 8.2% | DH37: 4.5% | DI37: =+IFERROR(GETPIVOTDATA("ind",$CN$14,"Diris",DI$36,"mes",$CN37),"-") -> 3.6% | DJ37: 5.9% | DK37: 6.4% | DL37: 6.8% | DM37: 5.0% | DN37: 6.7% | DO37: 5.2% | DP37: 8.1% | DQ37: 4.0% | DR37: =+IFERROR(GETPIVOTDATA("ind",$CN$14,"mes",$CN37),"-") -> 5.9%
BQ38: PIURA | BR38: 74.1% | BU38: PASCO | BV38: 6.4% | BW38: 12.1% | BX38: 18.2% | BY38: 23.1% | BZ38: 29.4% | CA38: 35.3% | CB38: 41.6% | CC38: 49.3% | CD38: 55.8% | CE38: 62.1% | CF38: 68.0% | CG38: 74.1% | CN38: Febrero | CO38: 12.37% | CP38: 13.57% | CQ38: 13.83% | CR38: 8.19% | CS38: 14.35% | CT38: 13.32% | CU38: 11.68% | CV38: 13.18% | CW38: 15.38% | CX38: 13.66% | CY38: 12.04% | CZ38: 13.48% | DA38: 11.79% | DB38: 10.38% | DC38: 7.37% | DD38: 8.24% | DE38: 8.85% | DF38: 12.65% | DG38: 15.29% | DH38: 9.32% | DI38: 8.21% | DJ38: 11.16% | DK38: 12.13% | DL38: 13.38% | DM38: 10.31% | DN38: 12.30% | DO38: 9.74% | DP38: 15.83% | DQ38: 8.11% | DR38: 11.4%
BQ39: PUNO | BR39: 64.8% | BU39: PIURA | BV39: 6.8% | BW39: 13.4% | BX39: 20.3% | BY39: 26.0% | BZ39: 31.9% | CA39: 37.4% | CB39: 42.9% | CC39: 48.5% | CD39: 54.2% | CE39: 61.0% | CF39: 67.8% | CG39: 74.1% | CN39: Marzo | CO39: 19.72% | CP39: 21.31% | CQ39: 21.36% | CR39: 12.50% | CS39: 21.67% | CT39: 20.29% | CU39: 19.28% | CV39: 20.52% | CW39: 24.13% | CX39: 21.43% | CY39: 18.62% | CZ39: 20.33% | DA39: 18.36% | DB39: 15.69% | DC39: 11.19% | DD39: 13.05% | DE39: 14.02% | DF39: 21.51% | DG39: 23.48% | DH39: 15.45% | DI39: 12.58% | DJ39: 16.62% | DK39: 18.20% | DL39: 20.29% | DM39: 16.46% | DN39: 19.36% | DO39: 15.73% | DP39: 24.52% | DQ39: 13.35% | DR39: 17.8%
BQ40: SAN MARTIN | BR40: 79.2% | BU40: PUNO | BV40: 5.0% | BW40: 10.3% | BX40: 16.5% | BY40: 21.9% | BZ40: 27.5% | CA40: 32.3% | CB40: 38.2% | CC40: 43.5% | CD40: 49.2% | CE40: 54.6% | CF40: 59.9% | CG40: 64.8% | CN40: Abril | CO40: 26.43% | CP40: 28.38% | CQ40: 28.24% | CR40: 17.10% | CS40: 29.25% | CT40: 26.98% | CU40: 25.03% | CV40: 27.06% | CW40: 31.46% | CX40: 28.46% | CY40: 24.54% | CZ40: 27.23% | DA40: 24.48% | DB40: 21.74% | DC40: 15.22% | DD40: 17.95% | DE40: 19.05% | DF40: 30.71% | DG40: 32.10% | DH40: 22.00% | DI40: 17.19% | DJ40: 22.43% | DK40: 23.11% | DL40: 26.01% | DM40: 21.89% | DN40: 26.51% | DO40: 21.31% | DP40: 31.84% | DQ40: 18.57% | DR40: 24.0%
BQ41: TACNA | BR41: 68.3% | BU41: SAN MARTIN | BV41: 6.7% | BW41: 12.3% | BX41: 19.4% | BY41: 26.5% | BZ41: 33.4% | CA41: 39.6% | CB41: 46.4% | CC41: 53.4% | CD41: 60.3% | CE41: 67.0% | CF41: 73.3% | CG41: 79.2% | CN41: Mayo | CO41: 34.20% | CP41: 35.41% | CQ41: 35.52% | CR41: 22.09% | CS41: 36.02% | CT41: 33.92% | CU41: 30.42% | CV41: 33.57% | CW41: 38.41% | CX41: 35.51% | CY41: 30.05% | CZ41: 33.51% | DA41: 30.83% | DB41: 27.41% | DC41: 19.32% | DD41: 22.64% | DE41: 23.38% | DF41: 41.62% | DG41: 39.91% | DH41: 27.81% | DI41: 21.86% | DJ41: 26.90% | DK41: 29.42% | DL41: 31.89% | DM41: 27.52% | DN41: 33.35% | DO41: 27.36% | DP41: 39.13% | DQ41: 23.65% | DR41: 30.2%
BQ42: TUMBES | BR42: 83.5% | BU42: TACNA | BV42: 5.2% | BW42: 9.7% | BX42: 15.7% | BY42: 21.3% | BZ42: 27.4% | CA42: 33.4% | CB42: 38.8% | CC42: 44.2% | CD42: 51.3% | CE42: 57.2% | CF42: 62.9% | CG42: 68.3% | CN42: Junio | CO42: 40.24% | CP42: 41.69% | CQ42: 41.74% | CR42: 26.74% | CS42: 42.42% | CT42: 40.22% | CU42: 35.43% | CV42: 39.19% | CW42: 45.53% | CX42: 42.23% | CY42: 35.26% | CZ42: 39.54% | DA42: 36.48% | DB42: 32.24% | DC42: 22.60% | DD42: 27.25% | DE42: 27.40% | DF42: 49.35% | DG42: 46.72% | DH42: 32.91% | DI42: 26.95% | DJ42: 30.71% | DK42: 35.26% | DL42: 37.40% | DM42: 32.30% | DN42: 39.58% | DO42: 33.37% | DP42: 45.23% | DQ42: 28.49% | DR42: 35.7%
BQ43: UCAYALI | BR43: 56.3% | BU43: TUMBES | BV43: 8.1% | BW43: 15.8% | BX43: 24.5% | BY43: 31.8% | BZ43: 39.1% | CA43: 45.2% | CB43: 51.5% | CC43: 57.5% | CD43: 64.1% | CE43: 71.3% | CF43: 78.4% | CG43: 83.5% | CN43: Julio | CO43: 47.13% | CP43: 47.99% | CQ43: 48.76% | CR43: 31.88% | CS43: 49.01% | CT43: 46.97% | CU43: 40.86% | CV43: 45.58% | CW43: 53.16% | CX43: 48.99% | CY43: 40.69% | CZ43: 45.98% | DA43: 42.22% | DB43: 37.08% | DC43: 25.86% | DD43: 31.05% | DE43: 31.14% | DF43: 56.95% | DG43: 53.27% | DH43: 38.45% | DI43: 32.49% | DJ43: 35.55% | DK43: 41.63% | DL43: 42.89% | DM43: 38.22% | DN43: 46.36% | DO43: 38.84% | DP43: 51.45% | DQ43: 33.55% | DR43: 41.3%
BQ44: Total general | BR44: 69.9% | BU44: UCAYALI | BV44: 4.0% | BW44: 8.1% | BX44: 13.3% | BY44: 18.6% | BZ44: 23.7% | CA44: 28.5% | CB44: 33.6% | CC44: 38.6% | CD44: 43.6% | CE44: 49.3% | CF44: 53.3% | CG44: 56.3% | CN44: Agosto | CO44: 53.51% | CP44: 54.74% | CQ44: 56.10% | CR44: 36.43% | CS44: 56.41% | CT44: 53.90% | CU44: 46.14% | CV44: 52.61% | CW44: 60.94% | CX44: 55.85% | CY44: 46.49% | CZ44: 52.80% | DA44: 48.33% | DB44: 41.76% | DC44: 29.73% | DD44: 37.11% | DE44: 35.96% | DF44: 62.88% | DG44: 61.10% | DH44: 44.38% | DI44: 38.41% | DJ44: 39.76% | DK44: 49.30% | DL44: 48.54% | DM44: 43.51% | DN44: 53.41% | DO44: 44.20% | DP44: 57.52% | DQ44: 38.56% | DR44: 47.2%
BU45: Total general | BV45: 5.9% | BW45: 11.4% | BX45: 17.8% | BY45: 24.0% | BZ45: 30.2% | CA45: 35.7% | CB45: 41.3% | CC45: 47.2% | CD45: 53.0% | CE45: 59.1% | CF45: 64.9% | CG45: 69.9% | CN45: Setiembre | CO45: 60.15% | CP45: 61.57% | CQ45: 63.24% | CR45: 41.36% | CS45: 64.04% | CT45: 60.44% | CU45: 51.08% | CV45: 59.55% | CW45: 67.93% | CX45: 63.08% | CY45: 53.15% | CZ45: 59.29% | DA45: 54.20% | DB45: 46.70% | DC45: 33.99% | DD45: 41.85% | DE45: 40.05% | DF45: 69.41% | DG45: 68.69% | DH45: 49.06% | DI45: 44.01% | DJ45: 44.60% | DK45: 55.77% | DL45: 54.20% | DM45: 49.16% | DN45: 60.28% | DO45: 51.27% | DP45: 64.06% | DQ45: 43.56% | DR45: 53.0%
CN46: Octubre | CO46: 67.40% | CP46: 69.04% | CQ46: 70.45% | CR46: 46.11% | CS46: 71.73% | CT46: 67.77% | CU46: 57.28% | CV46: 66.20% | CW46: 75.64% | CX46: 70.05% | CY46: 59.77% | CZ46: 66.67% | DA46: 60.33% | DB46: 52.11% | DC46: 38.32% | DD46: 47.59% | DE46: 44.70% | DF46: 74.69% | DG46: 76.81% | DH46: 53.86% | DI46: 51.02% | DJ46: 49.74% | DK46: 62.06% | DL46: 60.96% | DM46: 54.55% | DN46: 67.00% | DO46: 57.23% | DP46: 71.29% | DQ46: 49.28% | DR46: 59.1%
CN47: Noviembre | CO47: 73.17% | CP47: 75.84% | CQ47: 76.85% | CR47: 50.36% | CS47: 78.30% | CT47: 74.74% | CU47: 63.37% | CV47: 72.36% | CW47: 81.78% | CX47: 76.62% | CY47: 65.22% | CZ47: 73.02% | DA47: 66.62% | DB47: 57.19% | DC47: 41.88% | DD47: 52.96% | DE47: 49.14% | DF47: 81.40% | DG47: 84.20% | DH47: 57.98% | DI47: 57.41% | DJ47: 54.73% | DK47: 67.98% | DL47: 67.83% | DM47: 59.87% | DN47: 73.32% | DO47: 62.88% | DP47: 78.39% | DQ47: 53.29% | DR47: 64.9%
CN48: Diciembre | CO48: 79.05% | CP48: 82.29% | CQ48: 83.15% | CR48: 54.17% | CS48: 84.56% | CT48: 80.58% | CU48: 67.75% | CV48: 77.92% | CW48: 89.29% | CX48: 82.75% | CY48: 70.35% | CZ48: 78.60% | DA48: 72.29% | DB48: 61.90% | DC48: 45.02% | DD48: 57.10% | DE48: 53.23% | DF48: 85.61% | DG48: 90.94% | DH48: 62.11% | DI48: 61.87% | DJ48: 59.16% | DK48: 74.13% | DL48: 74.06% | DM48: 64.78% | DN48: 79.17% | DO48: 68.35% | DP48: 83.52% | DQ48: 56.25% | DR48: 69.9%
BV50: 1 | BW50: 2 | BX50: 3 | BY50: 4 | BZ50: 5 | CA50: 6 | CB50: 7 | CC50: 8 | CD50: 9 | CE50: 10 | CF50: 11 | CG50: 12 | CJ50: MIN | CK50: MAX
BQ51: AMAZONAS | BR51: =+IFERROR(GETPIVOTDATA("ind",$BQ$14,"Diris",$BQ51),"-") -> 79.1% | BU51: AMAZONAS | BV51: =+IFERROR(GETPIVOTDATA("ind",$BU$14,"Diris",$BU51,"mes",BV$50),"-") -> 6.6% | BW51: =+IFERROR(GETPIVOTDATA("ind",$BU$14,"Diris",$BU51,"mes",BW$50),"-") -> 12.4% | BX51: 19.7% | BY51: 26.4% | BZ51: 34.2% | CA51: 40.2% | CB51: 47.1% | CC51: 53.5% | CD51: 60.2% | CE51: 67.4% | CF51: 73.2% | CG51: 79.1% | CI51: AMAZONAS | CJ51: =+IF(BV51="-","-",MIN(BV51:CG51)) -> 6.6% | CK51: =+IF(BV51="-","-",MAX(BV51:CG51)) -> 79.1%
BQ52: ANCASH | BR52: =+IFERROR(GETPIVOTDATA("ind",$BQ$14,"Diris",$BQ52),"-") -> 82.3% | BU52: ANCASH | BV52: =+IFERROR(GETPIVOTDATA("ind",$BU$14,"Diris",$BU52,"mes",BV$50),"-") -> 7.2% | BW52: 13.6% | BX52: 21.3% | BY52: 28.4% | BZ52: 35.4% | CA52: 41.7% | CB52: 48.0% | CC52: 54.7% | CD52: 61.6% | CE52: 69.0% | CF52: 75.8% | CG52: 82.3% | CI52: ANCASH | CJ52: =+IF(BV52="-","-",MIN(BV52:CG52)) -> 7.2% | CK52: =+IF(BV52="-","-",MAX(BV52:CG52)) -> 82.3%
BQ53: APURIMAC | BR53: 83.2% | BU53: APURIMAC | BV53: 7.4% | BW53: 13.8% | BX53: 21.4% | BY53: 28.2% | BZ53: 35.5% | CA53: 41.7% | CB53: 48.8% | CC53: 56.1% | CD53: 63.2% | CE53: 70.5% | CF53: 76.8% | CG53: 83.2% | CI53: APURIMAC | CJ53: 7.4% | CK53: 83.2%
BQ54: AREQUIPA | BR54: 54.2% | BU54: AREQUIPA | BV54: 4.1% | BW54: 8.2% | BX54: 12.5% | BY54: 17.1% | BZ54: 22.1% | CA54: 26.7% | CB54: 31.9% | CC54: 36.4% | CD54: 41.4% | CE54: 46.1% | CF54: 50.4% | CG54: 54.2% | CI54: AREQUIPA | CJ54: 4.1% | CK54: 54.2%
BQ55: AYACUCHO | BR55: 84.6% | BU55: AYACUCHO | BV55: 7.6% | BW55: 14.3% | BX55: 21.7% | BY55: 29.3% | BZ55: 36.0% | CA55: 42.4% | CB55: 49.0% | CC55: 56.4% | CD55: 64.0% | CE55: 71.7% | CF55: 78.3% | CG55: 84.6% | CI55: AYACUCHO | CJ55: 7.6% | CK55: 84.6%
BQ56: CAJAMARCA | BR56: 80.6% | BU56: CAJAMARCA | BV56: 7.3% | BW56: 13.3% | BX56: 20.3% | BY56: 27.0% | BZ56: 33.9% | CA56: 40.2% | CB56: 47.0% | CC56: 53.9% | CD56: 60.4% | CE56: 67.8% | CF56: 74.7% | CG56: 80.6% | CI56: CAJAMARCA | CJ56: 7.3% | CK56: 80.6%
BQ57: CALLAO | BR57: 67.7% | BU57: CALLAO | BV57: 6.2% | BW57: 11.7% | BX57: 19.3% | BY57: 25.0% | BZ57: 30.4% | CA57: 35.4% | CB57: 40.9% | CC57: 46.1% | CD57: 51.1% | CE57: 57.3% | CF57: 63.4% | CG57: 67.7% | CI57: CALLAO | CJ57: 6.2% | CK57: 67.7%
BQ58: CUSCO | BR58: 77.9% | BU58: CUSCO | BV58: 7.1% | BW58: 13.2% | BX58: 20.5% | BY58: 27.1% | BZ58: 33.6% | CA58: 39.2% | CB58: 45.6% | CC58: 52.6% | CD58: 59.5% | CE58: 66.2% | CF58: 72.4% | CG58: 77.9% | CI58: CUSCO | CJ58: 7.1% | CK58: 77.9%
BQ59: HUANCAVELICA | BR59: 89.3% | BU59: HUANCAVELICA | BV59: 8.1% | BW59: 15.4% | BX59: 24.1% | BY59: 31.5% | BZ59: 38.4% | CA59: 45.5% | CB59: 53.2% | CC59: 60.9% | CD59: 67.9% | CE59: 75.6% | CF59: 81.8% | CG59: 89.3% | CI59: HUANCAVELICA | CJ59: 8.1% | CK59: 89.3%
BQ60: HUANUCO | BR60: 82.7% | BU60: HUANUCO | BV60: 7.4% | BW60: 13.7% | BX60: 21.4% | BY60: 28.5% | BZ60: 35.5% | CA60: 42.2% | CB60: 49.0% | CC60: 55.9% | CD60: 63.1% | CE60: 70.1% | CF60: 76.6% | CG60: 82.7% | CI60: HUANUCO | CJ60: 7.4% | CK60: 82.7%
BQ61: ICA | BR61: 70.3% | BU61: ICA | BV61: 6.2% | BW61: 12.0% | BX61: 18.6% | BY61: 24.5% | BZ61: 30.0% | CA61: 35.3% | CB61: 40.7% | CC61: 46.5% | CD61: 53.1% | CE61: 59.8% | CF61: 65.2% | CG61: 70.3% | CI61: ICA | CJ61: 6.2% | CK61: 70.3%
BQ62: JUNIN | BR62: 78.6% | BU62: JUNIN | BV62: 6.8% | BW62: 13.5% | BX62: 20.3% | BY62: 27.2% | BZ62: 33.5% | CA62: 39.5% | CB62: 46.0% | CC62: 52.8% | CD62: 59.3% | CE62: 66.7% | CF62: 73.0% | CG62: 78.6% | CI62: JUNIN | CJ62: 6.8% | CK62: 78.6%
BQ63: LA LIBERTAD | BR63: 72.3% | BU63: LA LIBERTAD | BV63: 6.1% | BW63: 11.8% | BX63: 18.4% | BY63: 24.5% | BZ63: 30.8% | CA63: 36.5% | CB63: 42.2% | CC63: 48.3% | CD63: 54.2% | CE63: 60.3% | CF63: 66.6% | CG63: 72.3% | CI63: LA LIBERTAD | CJ63: 6.1% | CK63: 72.3%
BQ64: LAMBAYEQUE | BR64: 61.9% | BU64: LAMBAYEQUE | BV64: 5.5% | BW64: 10.4% | BX64: 15.7% | BY64: 21.7% | BZ64: 27.4% | CA64: 32.2% | CB64: 37.1% | CC64: 41.8% | CD64: 46.7% | CE64: 52.1% | CF64: 57.2% | CG64: 61.9% | CI64: LAMBAYEQUE | CJ64: 5.5% | CK64: 61.9%
BQ65: LIMA DIRIS CENTRO | BR65: 45.0% | BU65: LIMA DIRIS CENTRO | BV65: 3.7% | BW65: 7.4% | BX65: 11.2% | BY65: 15.2% | BZ65: 19.3% | CA65: 22.6% | CB65: 25.9% | CC65: 29.7% | CD65: 34.0% | CE65: 38.3% | CF65: 41.9% | CG65: 45.0% | CI65: LIMA DIRIS CENTRO | CJ65: 3.7% | CK65: 45.0%
BQ66: LIMA DIRIS ESTE | BR66: 57.1% | BU66: LIMA DIRIS ESTE | BV66: 4.1% | BW66: 8.2% | BX66: 13.0% | BY66: 17.9% | BZ66: 22.6% | CA66: 27.2% | CB66: 31.1% | CC66: 37.1% | CD66: 41.8% | CE66: 47.6% | CF66: 53.0% | CG66: 57.1% | CI66: LIMA DIRIS ESTE | CJ66: 4.1% | CK66: 57.1%
BQ67: LIMA DIRIS NORTE | BR67: 53.2% | BU67: LIMA DIRIS NORTE | BV67: 4.5% | BW67: 8.9% | BX67: 14.0% | BY67: 19.1% | BZ67: 23.4% | CA67: 27.4% | CB67: 31.1% | CC67: 36.0% | CD67: 40.0% | CE67: 44.7% | CF67: 49.1% | CG67: 53.2% | CI67: LIMA DIRIS NORTE | CJ67: 4.5% | CK67: 53.2%
BQ68: LIMA DIRIS SUR | BR68: 85.6% | BU68: LIMA DIRIS SUR | BV68: 6.3% | BW68: 12.6% | BX68: 21.5% | BY68: 30.7% | BZ68: 41.6% | CA68: 49.3% | CB68: 57.0% | CC68: 62.9% | CD68: 69.4% | CE68: 74.7% | CF68: 81.4% | CG68: 85.6% | CI68: LIMA DIRIS SUR | CJ68: 6.3% | CK68: 85.6%
BQ69: LIMA PROVINCIAS | BR69: 90.9% | BU69: LIMA PROVINCIAS | BV69: 8.2% | BW69: 15.3% | BX69: 23.5% | BY69: 32.1% | BZ69: 39.9% | CA69: 46.7% | CB69: 53.3% | CC69: 61.1% | CD69: 68.7% | CE69: 76.8% | CF69: 84.2% | CG69: 90.9% | CI69: LIMA PROVINCIAS | CJ69: 8.2% | CK69: 90.9%
BQ70: LORETO | BR70: 62.1% | BU70: LORETO | BV70: 4.5% | BW70: 9.3% | BX70: 15.5% | BY70: 22.0% | BZ70: 27.8% | CA70: 32.9% | CB70: 38.4% | CC70: 44.4% | CD70: 49.1% | CE70: 53.9% | CF70: 58.0% | CG70: 62.1% | CI70: LORETO | CJ70: 4.5% | CK70: 62.1%
BQ71: MADRE DE DIOS | BR71: 61.9% | BU71: MADRE DE DIOS | BV71: 3.6% | BW71: 8.2% | BX71: 12.6% | BY71: 17.2% | BZ71: 21.9% | CA71: 26.9% | CB71: 32.5% | CC71: 38.4% | CD71: 44.0% | CE71: 51.0% | CF71: 57.4% | CG71: 61.9% | CI71: MADRE DE DIOS | CJ71: 3.6% | CK71: 61.9%
BQ72: MOQUEGUA | BR72: 59.2% | BU72: MOQUEGUA | BV72: 5.9% | BW72: 11.2% | BX72: 16.6% | BY72: 22.4% | BZ72: 26.9% | CA72: 30.7% | CB72: 35.5% | CC72: 39.8% | CD72: 44.6% | CE72: 49.7% | CF72: 54.7% | CG72: 59.2% | CI72: MOQUEGUA | CJ72: 5.9% | CK72: 59.2%
BQ73: PASCO | BR73: 74.1% | BU73: PASCO | BV73: 6.4% | BW73: 12.1% | BX73: 18.2% | BY73: 23.1% | BZ73: 29.4% | CA73: 35.3% | CB73: 41.6% | CC73: 49.3% | CD73: 55.8% | CE73: 62.1% | CF73: 68.0% | CG73: 74.1% | CI73: PASCO | CJ73: 6.4% | CK73: 74.1%
BQ74: PIURA | BR74: 74.1% | BU74: PIURA | BV74: 6.8% | BW74: 13.4% | BX74: 20.3% | BY74: 26.0% | BZ74: 31.9% | CA74: 37.4% | CB74: 42.9% | CC74: 48.5% | CD74: 54.2% | CE74: 61.0% | CF74: 67.8% | CG74: 74.1% | CI74: PIURA | CJ74: 6.8% | CK74: 74.1%
BQ75: PUNO | BR75: 64.8% | BU75: PUNO | BV75: 5.0% | BW75: 10.3% | BX75: 16.5% | BY75: 21.9% | BZ75: 27.5% | CA75: 32.3% | CB75: 38.2% | CC75: 43.5% | CD75: 49.2% | CE75: 54.6% | CF75: 59.9% | CG75: 64.8% | CI75: PUNO | CJ75: 5.0% | CK75: 64.8%
BQ76: SAN MARTIN | BR76: 79.2% | BU76: SAN MARTIN | BV76: 6.7% | BW76: 12.3% | BX76: 19.4% | BY76: 26.5% | BZ76: 33.4% | CA76: 39.6% | CB76: 46.4% | CC76: 53.4% | CD76: 60.3% | CE76: 67.0% | CF76: 73.3% | CG76: 79.2% | CI76: SAN MARTIN | CJ76: 6.7% | CK76: 79.2%
BQ77: TACNA | BR77: 68.3% | BU77: TACNA | BV77: 5.2% | BW77: 9.7% | BX77: 15.7% | BY77: 21.3% | BZ77: 27.4% | CA77: 33.4% | CB77: 38.8% | CC77: 44.2% | CD77: 51.3% | CE77: 57.2% | CF77: 62.9% | CG77: 68.3% | CI77: TACNA | CJ77: 5.2% | CK77: 68.3%
BQ78: TUMBES | BR78: 83.5% | BU78: TUMBES | BV78: 8.1% | BW78: 15.8% | BX78: 24.5% | BY78: 31.8% | BZ78: 39.1% | CA78: 45.2% | CB78: 51.5% | CC78: 57.5% | CD78: 64.1% | CE78: 71.3% | CF78: 78.4% | CG78: 83.5% | CI78: TUMBES | CJ78: 8.1% | CK78: 83.5%
BQ79: UCAYALI | BR79: 56.3% | BU79: UCAYALI | BV79: 4.0% | BW79: 8.1% | BX79: 13.3% | BY79: 18.6% | BZ79: 23.7% | CA79: 28.5% | CB79: 33.6% | CC79: 38.6% | CD79: 43.6% | CE79: 49.3% | CF79: 53.3% | CG79: 56.3% | CI79: UCAYALI | CJ79: 4.0% | CK79: 56.3%
BQ80: NACIONAL | BR80: =+IFERROR(GETPIVOTDATA("ind",$BQ$14),"-") -> 69.9% | BU80: NACIONAL | BV80: =+IFERROR(GETPIVOTDATA("ind",$BU$14,"mes",BV$50),"-") -> 5.9% | BW80: =+IFERROR(GETPIVOTDATA("ind",$BU$14,"mes",BW$50),"-") -> 11.4% | BX80: 17.8% | BY80: 24.0% | BZ80: 30.2% | CA80: 35.7% | CB80: 41.3% | CC80: 47.2% | CD80: 53.0% | CE80: 59.1% | CF80: 64.9% | CG80: 69.9% | CI80: NACIONAL | CJ80: 5.9% | CK80: 69.9%

Sheet DL_1153_2025_CG07
A1: =+DL1153_2025!C13 -> Ficha 07:Porcentaje de recién nacidos de parto institucional, vacunados con BCG y Anti hepatitis B dentro de las 24 horas después del nacimiento. | BL1: 1 | DP1: 4
A2: Periodo de Evaluación: | B2: =+DL1153_2025!B42 -> Diciembre - 2025
J3: Diris | K3: (Todas)
J4: Red | K4: KIMBIRI PICHARI
A5: mes | B5: 12 | J5: Provincia | K5: (Todas)
A6: año | B6: 2025 | J6: eess_nombre | K6: (Todas)
A7: DIRIS del Establecimiento de Salud | B7: RED del Establecimiento de Salud | C7: Provincia de Establecimiento | D7: Nombre del Establecimiento | E7: Categoria del Establecimiento | F7: Denominador: Suma de niños /niñas nacidas en Hospital o Instituto, registrados en el CNV en Línea en el periodo de evaluación, excluyendo los niños / niñas nacidas con menos de 1,500 gr., y/o patológicos que por razones médicas no puedan recibir la vacuna BCG y/o vacuna anti hepatitis B | G7: Numerador: Suma de niños / niñas nacidas en Hospital o Instituto, registrados en el HIS con DNI o CNV, que forman parte del denominador y que recibieron 1 dosis de la vacuna BCG (CPMS: 90585) y 1 de HVB (CPMS: 90744) antes del alta (dentro de las 24 horas después del nacimiento). | H7: Indicador: Porcentaje de recién nacidos de parto institucional, vacunados con BCG y Anti hepatitis B, dentro de las 24 horas después del nacimiento. | J7: AÑO | K7: MES | L7: Denominador: Suma de niños /niñas nacidas en Hospital o Instituto, registrados en el CNV en Línea en el periodo de evaluación, excluyendo los niños / niñas nacidas con menos de 1,500 gr., y/o patológicos que por razones médicas no puedan recibir la vacuna BCG y/o vacuna anti hepatitis B | M7: Numerador: Suma de niños / niñas nacidas en Hospital o Instituto, registrados en el HIS con DNI o CNV, que forman parte del denominador y que recibieron 1 dosis de la vacuna BCG (CPMS: 90585) y 1 de HVB (CPMS: 90744) antes del alta (dentro de las 24 horas después del nacimiento). | N7: Indicador: Porcentaje de recién nacidos de parto institucional, vacunados con BCG y Anti hepatitis B, dentro de las 24 horas después del nacimiento.
A8: Diris | B8: Red | C8: Provincia | D8: eess_nombre | E8: Cat_estab | F8: Denominador | G8: Numerador | H8: Indicador | J8: año | K8: mes | L8: Denominador | M8: Numerador | N8: Indicador
A9: CUSCO | B9: KIMBIRI PICHARI | C9: LA CONVENCION | D9: II-1 - 00002469 - SAN JUAN DE KIMBIRI VRAEM | E9: II-1 | F9: 56 | G9: 55 | H9: 98.2% | J9: 2025 | K9: 1 | L9: 114 | M9: 113 | N9: 99.1%
A10: CUSCO | B10: KIMBIRI PICHARI | C10: LA CONVENCION | D10: I-4 - 00034418 - PICHARI VRAEM | E10: I-4 | F10: 38 | G10: 38 | H10: 100.0% | J10: 2025 | K10: 2 | L10: 84 | M10: 82 | N10: 97.6%
A11: Total general | F11: 94 | G11: 93 | H11: 98.9% | J11: 2025 | K11: 3 | L11: 102 | M11: 102 | N11: 100.0%
J12: 2025 | K12: 4 | L12: 111 | M12: 111 | N12: 100.0%
J13: 2025 | K13: 5 | L13: 80 | M13: 79 | N13: 98.8% | BM13: año | BN13: (Todas) | BQ13: año | BR13: (Todas)
J14: 2025 | K14: 6 | L14: 93 | M14: 91 | N14: 97.8%
J15: 2025 | K15: 7 | L15: 63 | M15: 63 | N15: 100.0% | BM15: Diris | BN15: Suma de IND | BQ15: Suma de IND | BR15: mes | CJ15: año | CK15: (Todas)
J16: 2025 | K16: 8 | L16: 77 | M16: 77 | N16: 100.0% | BM16: AMAZONAS | BN16: 90.8% | BQ16: Diris | BR16: 1 | BS16: 2 | BT16: 3 | BU16: 4 | BV16: 5 | BW16: 6 | BX16: 7 | BY16: 8 | BZ16: 9 | CA16: 10 | CB16: 11 | CC16: 12
J17: 2025 | K17: 9 | L17: 85 | M17: 81 | N17: 95.3% | BM17: ANCASH | BN17: 97.2% | BQ17: AMAZONAS | BR17: 90.9% | BS17: 92.4% | BT17: 93.3% | BU17: 91.6% | BV17: 92.5% | BW17: 94.4% | BX17: 92.2% | BY17: 89.7% | BZ17: 88.4% | CA17: 86.9% | CB17: 88.5% | CC17: 88.4% | CJ17: Suma de IND | CK17: Diris
J18: 2025 | K18: 10 | L18: 82 | M18: 82 | N18: 100.0% | BM18: APURIMAC | BN18: 99.4% | BQ18: ANCASH | BR18: 96.5% | BS18: 96.6% | BT18: 97.8% | BU18: 97.3% | BV18: 96.8% | BW18: 97.6% | BX18: 96.7% | BY18: 96.5% | BZ18: 97.2% | CA18: 97.5% | CB18: 97.7% | CC18: 98.0% | CJ18: mes | CK18: AMAZONAS | CL18: ANCASH | CM18: APURIMAC | CN18: AREQUIPA | CO18: AYACUCHO | CP18: CAJAMARCA | CQ18: CALLAO | CR18: CUSCO | CS18: HUANCAVELICA | CT18: HUANUCO | CU18: ICA | CV18: JUNIN | CW18: LA LIBERTAD | CX18: LAMBAYEQUE | CY18: LIMA DIRIS CENTRO | CZ18: LIMA DIRIS ESTE | DA18: LIMA DIRIS NORTE | DB18: LIMA DIRIS SUR | DC18: LIMA REGION | DD18: LORETO | DE18: MADRE DE DIOS | DF18: MOQUEGUA | DG18: PASCO | DH18: PIURA | DI18: PUNO | DJ18: SAN MARTIN | DK18: TACNA | DL18: TUMBES | DM18: UCAYALI | DN18: Total general
J19: 2025 | K19: 11 | L19: 110 | M19: 110 | N19: 100.0% | BM19: AREQUIPA | BN19: 93.2% | BQ19: APURIMAC | BR19: 100.0% | BS19: 99.2% | BT19: 99.3% | BU19: 99.2% | BV19: 99.7% | BW19: 98.8% | BX19: 99.2% | BY19: 99.5% | BZ19: 99.5% | CA19: 99.2% | CB19: 99.7% | CC19: 99.4% | CJ19: Enero | CK19: 90.9% | CL19: 96.5% | CM19: 100.0% | CN19: 96.4% | CO19: 99.3% | CP19: 92.6% | CQ19: 98.6% | CR19: 98.6% | CS19: 98.5% | CT19: 90.5% | CU19: 96.6% | CV19: 96.1% | CW19: 96.9% | CX19: 95.9% | CY19: 96.7% | CZ19: 95.7% | DA19: 96.1% | DB19: 97.6% | DC19: 96.0% | DD19: 71.8% | DE19: 95.7% | DF19: 100.0% | DG19: 91.0% | DH19: 90.3% | DI19: 93.7% | DJ19: 95.0% | DK19: 100.0% | DL19: 98.9% | DM19: 92.1% | DN19: 94.3%
J20: 2025 | K20: 12 | L20: 94 | M20: 93 | N20: 98.9% | BM20: AYACUCHO | BN20: 96.5% | BQ20: AREQUIPA | BR20: 96.4% | BS20: 96.1% | BT20: 97.0% | BU20: 84.4% | BV20: 89.7% | BW20: 90.7% | BX20: 93.7% | BY20: 94.6% | BZ20: 92.8% | CA20: 93.9% | CB20: 93.0% | CC20: 94.5% | CJ20: Febrero | CK20: 92.4% | CL20: 96.6% | CM20: 99.2% | CN20: 96.1% | CO20: 99.6% | CP20: 93.8% | CQ20: 98.5% | CR20: 99.5% | CS20: 97.7% | CT20: 96.0% | CU20: 96.8% | CV20: 96.8% | CW20: 96.5% | CX20: 97.0% | CY20: 96.8% | CZ20: 95.3% | DA20: 97.4% | DB20: 97.6% | DC20: 98.3% | DD20: 72.2% | DE20: 97.8% | DF20: 98.9% | DG20: 95.1% | DH20: 93.4% | DI20: 92.8% | DJ20: 94.6% | DK20: 99.5% | DL20: 97.1% | DM20: 92.0% | DN20: 94.9%
J21: Total general | L21: 1,095 | M21: 1,084 | N21: 99.0% | BM21: CAJAMARCA | BN21: 94.1% | BQ21: AYACUCHO | BR21: 99.3% | BS21: 99.6% | BT21: 99.2% | BU21: 99.0% | BV21: 99.0% | BW21: 99.5% | BX21: 98.5% | BY21: 98.2% | BZ21: 97.5% | CA21: 88.5% | CB21: 89.1% | CC21: 90.4% | CJ21: Marzo | CK21: 93.3% | CL21: 97.8% | CM21: 99.3% | CN21: 97.0% | CO21: 99.2% | CP21: 93.9% | CQ21: 98.2% | CR21: 98.7% | CS21: 97.7% | CT21: 96.2% | CU21: 97.6% | CV21: 95.4% | CW21: 97.9% | CX21: 96.5% | CY21: 96.4% | CZ21: 96.4% | DA21: 95.8% | DB21: 97.0% | DC21: 96.4% | DD21: 67.3% | DE21: 98.4% | DF21: 100.0% | DG21: 91.1% | DH21: 92.3% | DI21: 93.8% | DJ21: 93.3% | DK21: 100.0% | DL21: 97.1% | DM21: 91.8% | DN21: 94.2%
BM22: CALLAO | BN22: 97.8% | BQ22: CAJAMARCA | BR22: 92.6% | BS22: 93.8% | BT22: 93.9% | BU22: 93.0% | BV22: 93.3% | BW22: 94.3% | BX22: 95.8% | BY22: 94.3% | BZ22: 95.4% | CA22: 96.2% | CB22: 93.5% | CC22: 93.2% | CJ22: Abril | CK22: 91.6% | CL22: 97.3% | CM22: 99.2% | CN22: 84.4% | CO22: 99.0% | CP22: 93.0% | CQ22: 90.4% | CR22: 99.5% | CS22: 97.9% | CT22: 96.1% | CU22: 96.9% | CV22: 92.1% | CW22: 97.5% | CX22: 95.8% | CY22: 96.0% | CZ22: 95.9% | DA22: 95.9% | DB22: 97.3% | DC22: 97.1% | DD22: 60.7% | DE22: 98.5% | DF22: 98.3% | DG22: 92.4% | DH22: 85.0% | DI22: 86.5% | DJ22: 94.0% | DK22: 98.7% | DL22: 96.5% | DM22: 92.3% | DN22: 92.3%
BM23: CUSCO | BN23: 98.9% | BQ23: CALLAO | BR23: 98.6% | BS23: 98.5% | BT23: 98.2% | BU23: 90.4% | BV23: 98.0% | BW23: 99.4% | BX23: 98.5% | BY23: 98.7% | BZ23: 99.6% | CA23: 98.0% | CB23: 98.8% | CC23: 98.3% | CJ23: Mayo | CK23: 92.5% | CL23: 96.8% | CM23: 99.7% | CN23: 89.7% | CO23: 99.0% | CP23: 93.3% | CQ23: 98.0% | CR23: 99.3% | CS23: 97.7% | CT23: 96.6% | CU23: 96.5% | CV23: 96.8% | CW23: 97.0% | CX23: 96.6% | CY23: 96.1% | CZ23: 96.4% | DA23: 97.4% | DB23: 98.0% | DC23: 98.0% | DD23: 69.7% | DE23: 96.7% | DF23: 99.1% | DG23: 94.4% | DH23: 85.3% | DI23: 94.4% | DJ23: 95.0% | DK23: 97.3% | DL23: 95.9% | DM23: 93.2% | DN23: 94.0%
BM24: HUANCAVELICA | BN24: 97.5% | BQ24: CUSCO | BR24: 98.6% | BS24: 99.5% | BT24: 98.7% | BU24: 99.5% | BV24: 99.3% | BW24: 99.3% | BX24: 99.6% | BY24: 99.1% | BZ24: 98.0% | CA24: 98.5% | CB24: 98.8% | CC24: 97.3% | CJ24: Junio | CK24: 94.4% | CL24: 97.6% | CM24: 98.8% | CN24: 90.7% | CO24: 99.5% | CP24: 94.3% | CQ24: 99.4% | CR24: 99.3% | CS24: 98.2% | CT24: 96.0% | CU24: 98.4% | CV24: 93.1% | CW24: 97.8% | CX24: 96.5% | CY24: 96.4% | CZ24: 96.3% | DA24: 96.7% | DB24: 97.5% | DC24: 98.5% | DD24: 67.4% | DE24: 99.1% | DF24: 98.8% | DG24: 91.4% | DH24: 83.6% | DI24: 92.1% | DJ24: 97.2% | DK24: 99.0% | DL24: 97.5% | DM24: 93.1% | DN24: 94.0%
BM25: HUANUCO | BN25: 95.5% | BQ25: HUANCAVELICA | BR25: 98.5% | BS25: 97.7% | BT25: 97.7% | BU25: 97.9% | BV25: 97.7% | BW25: 98.2% | BX25: 98.6% | BY25: 96.1% | BZ25: 97.0% | CA25: 97.7% | CB25: 97.0% | CC25: 96.3% | CJ25: Julio | CK25: 92.2% | CL25: 96.7% | CM25: 99.2% | CN25: 93.7% | CO25: 98.5% | CP25: 95.8% | CQ25: 98.5% | CR25: 99.6% | CS25: 98.6% | CT25: 95.1% | CU25: 97.1% | CV25: 91.0% | CW25: 97.5% | CX25: 95.9% | CY25: 95.9% | CZ25: 96.8% | DA25: 98.3% | DB25: 98.2% | DC25: 97.9% | DD25: 70.2% | DE25: 95.6% | DF25: 100.0% | DG25: 91.8% | DH25: 86.7% | DI25: 94.0% | DJ25: 95.9% | DK25: 98.3% | DL25: 97.8% | DM25: 92.0% | DN25: 94.2%
BM26: ICA | BN26: 96.8% | BQ26: HUANUCO | BR26: 90.5% | BS26: 96.0% | BT26: 96.2% | BU26: 96.1% | BV26: 96.6% | BW26: 96.0% | BX26: 95.1% | BY26: 95.7% | BZ26: 96.0% | CA26: 96.3% | CB26: 97.8% | CC26: 94.3% | CJ26: Agosto | CK26: 89.7% | CL26: 96.5% | CM26: 99.5% | CN26: 94.6% | CO26: 98.2% | CP26: 94.3% | CQ26: 98.7% | CR26: 99.1% | CS26: 96.1% | CT26: 95.7% | CU26: 96.5% | CV26: 94.6% | CW26: 96.8% | CX26: 95.6% | CY26: 96.1% | CZ26: 95.4% | DA26: 98.7% | DB26: 97.3% | DC26: 97.8% | DD26: 65.4% | DE26: 98.9% | DF26: 98.1% | DG26: 90.5% | DH26: 85.1% | DI26: 91.8% | DJ26: 95.7% | DK26: 100.0% | DL26: 97.1% | DM26: 93.4% | DN26: 93.6%
BM27: JUNIN | BN27: 94.8% | BQ27: ICA | BR27: 96.6% | BS27: 96.8% | BT27: 97.6% | BU27: 96.9% | BV27: 96.5% | BW27: 98.4% | BX27: 97.1% | BY27: 96.5% | BZ27: 97.7% | CA27: 96.7% | CB27: 96.5% | CC27: 93.9% | CJ27: Setiembre | CK27: 88.4% | CL27: 97.2% | CM27: 99.5% | CN27: 92.8% | CO27: 97.5% | CP27: 95.4% | CQ27: 99.6% | CR27: 98.0% | CS27: 97.0% | CT27: 96.0% | CU27: 97.7% | CV27: 94.9% | CW27: 97.7% | CX27: 95.1% | CY27: 96.2% | CZ27: 96.5% | DA27: 97.7% | DB27: 98.0% | DC27: 98.5% | DD27: 66.7% | DE27: 98.1% | DF27: 97.9% | DG27: 92.2% | DH27: 84.8% | DI27: 93.9% | DJ27: 95.1% | DK27: 98.9% | DL27: 97.2% | DM27: 94.2% | DN27: 93.7%
BM28: LA LIBERTAD | BN28: 97.1% | BQ28: JUNIN | BR28: 96.1% | BS28: 96.8% | BT28: 95.4% | BU28: 92.1% | BV28: 96.8% | BW28: 93.1% | BX28: 91.0% | BY28: 94.6% | BZ28: 94.9% | CA28: 96.1% | CB28: 96.7% | CC28: 94.4% | CJ28: Octubre | CK28: 86.9% | CL28: 97.5% | CM28: 99.2% | CN28: 93.9% | CO28: 88.5% | CP28: 96.2% | CQ28: 98.0% | CR28: 98.5% | CS28: 97.7% | CT28: 96.3% | CU28: 96.7% | CV28: 96.1% | CW28: 96.7% | CX28: 96.1% | CY28: 96.1% | CZ28: 95.6% | DA28: 96.8% | DB28: 96.8% | DC28: 98.3% | DD28: 69.7% | DE28: 97.7% | DF28: 98.7% | DG28: 91.7% | DH28: 88.0% | DI28: 92.5% | DJ28: 96.1% | DK28: 98.3% | DL28: 96.7% | DM28: 93.9% | DN28: 93.8%
BM29: LAMBAYEQUE | BN29: 95.8% | BQ29: LA LIBERTAD | BR29: 96.9% | BS29: 96.5% | BT29: 97.9% | BU29: 97.5% | BV29: 97.0% | BW29: 97.8% | BX29: 97.5% | BY29: 96.8% | BZ29: 97.7% | CA29: 96.7% | CB29: 96.6% | CC29: 96.2% | CJ29: Noviembre | CK29: 88.5% | CL29: 97.7% | CM29: 99.7% | CN29: 93.0% | CO29: 89.1% | CP29: 93.5% | CQ29: 98.8% | CR29: 98.8% | CS29: 97.0% | CT29: 97.8% | CU29: 96.5% | CV29: 96.7% | CW29: 96.6% | CX29: 93.5% | CY29: 96.2% | CZ29: 95.7% | DA29: 96.6% | DB29: 95.4% | DC29: 97.5% | DD29: 73.3% | DE29: 98.7% | DF29: 98.7% | DG29: 94.1% | DH29: 88.8% | DI29: 94.2% | DJ29: 96.5% | DK29: 99.4% | DL29: 95.6% | DM29: 94.8% | DN29: 93.9%
BM30: LIMA DIRIS CENTRO | BN30: 96.3% | BQ30: LAMBAYEQUE | BR30: 95.9% | BS30: 97.0% | BT30: 96.5% | BU30: 95.8% | BV30: 96.6% | BW30: 96.5% | BX30: 95.9% | BY30: 95.6% | BZ30: 95.1% | CA30: 96.1% | CB30: 93.5% | CC30: 95.4% | CJ30: Diciembre | CK30: 88.4% | CL30: 98.0% | CM30: 99.4% | CN30: 94.5% | CO30: 90.4% | CP30: 93.2% | CQ30: 98.3% | CR30: 97.3% | CS30: 96.3% | CT30: 94.3% | CU30: 93.9% | CV30: 94.4% | CW30: 96.2% | CX30: 95.4% | CY30: 96.2% | CZ30: 93.2% | DA30: 95.3% | DB30: 95.3% | DC30: 96.1% | DD30: 64.0% | DE30: 97.0% | DF30: 99.0% | DG30: 92.5% | DH30: 88.8% | DI30: 92.4% | DJ30: 96.6% | DK30: 96.4% | DL30: 88.8% | DM30: 91.7% | DN30: 92.6%
BM31: LIMA DIRIS ESTE | BN31: 95.8% | BQ31: LIMA DIRIS CENTRO | BR31: 96.7% | BS31: 96.8% | BT31: 96.4% | BU31: 96.0% | BV31: 96.1% | BW31: 96.4% | BX31: 95.9% | BY31: 96.1% | BZ31: 96.2% | CA31: 96.1% | CB31: 96.2% | CC31: 96.2%
BM32: LIMA DIRIS NORTE | BN32: 96.9% | BQ32: LIMA DIRIS ESTE | BR32: 95.7% | BS32: 95.3% | BT32: 96.4% | BU32: 95.9% | BV32: 96.4% | BW32: 96.3% | BX32: 96.8% | BY32: 95.4% | BZ32: 96.5% | CA32: 95.6% | CB32: 95.7% | CC32: 93.2%
BM33: LIMA DIRIS SUR | BN33: 97.2% | BQ33: LIMA DIRIS NORTE | BR33: 96.1% | BS33: 97.4% | BT33: 95.8% | BU33: 95.9% | BV33: 97.4% | BW33: 96.7% | BX33: 98.3% | BY33: 98.7% | BZ33: 97.7% | CA33: 96.8% | CB33: 96.6% | CC33: 95.3%
BM34: LIMA REGION | BN34: 97.5% | BQ34: LIMA DIRIS SUR | BR34: 97.6% | BS34: 97.6% | BT34: 97.0% | BU34: 97.3% | BV34: 98.0% | BW34: 97.5% | BX34: 98.2% | BY34: 97.3% | BZ34: 98.0% | CA34: 96.8% | CB34: 95.4% | CC34: 95.3%
BM35: LORETO | BN35: 68.1% | BQ35: LIMA REGION | BR35: 96.0% | BS35: 98.3% | BT35: 96.4% | BU35: 97.1% | BV35: 98.0% | BW35: 98.5% | BX35: 97.9% | BY35: 97.8% | BZ35: 98.5% | CA35: 98.3% | CB35: 97.5% | CC35: 96.1%
BM36: MADRE DE DIOS | BN36: 97.7% | BQ36: LORETO | BR36: 71.8% | BS36: 72.2% | BT36: 67.3% | BU36: 60.7% | BV36: 69.7% | BW36: 67.4% | BX36: 70.2% | BY36: 65.4% | BZ36: 66.7% | CA36: 69.7% | CB36: 73.3% | CC36: 64.0% | CK36: AMAZONAS | CL36: ANCASH | CM36: APURIMAC | CN36: AREQUIPA | CO36: AYACUCHO | CP36: CAJAMARCA | CQ36: CALLAO | CR36: CUSCO | CS36: HUANCAVELICA | CT36: HUANUCO | CU36: ICA | CV36: JUNIN | CW36: LA LIBERTAD | CX36: LAMBAYEQUE | CY36: LIMA DIRIS CENTRO | CZ36: LIMA DIRIS ESTE | DA36: LIMA DIRIS NORTE | DB36: LIMA DIRIS SUR | DC36: LIMA PROVINCIAS | DD36: LORETO | DE36: MADRE DE DIOS | DF36: MOQUEGUA | DG36: PASCO | DH36: PIURA | DI36: PUNO | DJ36: SAN MARTIN | DK36: TACNA | DL36: TUMBES | DM36: UCAYALI | DN36: NACIONAL
BM37: MOQUEGUA | BN37: 99.0% | BQ37: MADRE DE DIOS | BR37: 95.7% | BS37: 97.8% | BT37: 98.4% | BU37: 98.5% | BV37: 96.7% | BW37: 99.1% | BX37: 95.6% | BY37: 98.9% | BZ37: 98.1% | CA37: 97.7% | CB37: 98.7% | CC37: 97.0% | CJ37: Enero | CK37: =+IFERROR(GETPIVOTDATA("IND",$CJ$17,"Diris",CK$36,"mes",$CJ37),"-") -> 90.9% | CL37: =+IFERROR(GETPIVOTDATA("IND",$CJ$17,"Diris",CL$36,"mes",$CJ37),"-") -> 96.5% | CM37: 100.0% | CN37: 96.4% | CO37: 99.3% | CP37: 92.6% | CQ37: 98.6% | CR37: 98.6% | CS37: 98.5% | CT37: 90.5% | CU37: 96.6% | CV37: 96.1% | CW37: 96.9% | CX37: 95.9% | CY37: 96.7% | CZ37: 95.7% | DA37: 96.1% | DB37: 97.6% | DC37: - | DD37: 71.8% | DE37: 95.7% | DF37: 100.0% | DG37: 91.0% | DH37: 90.3% | DI37: 93.7% | DJ37: 95.0% | DK37: 100.0% | DL37: 98.9% | DM37: 92.1% | DN37: =+IFERROR(GETPIVOTDATA("IND",$CJ$17,"mes",$CJ37),"-") -> 94.3%
BM38: PASCO | BN38: 92.3% | BQ38: MOQUEGUA | BR38: 100.0% | BS38: 98.9% | BT38: 100.0% | BU38: 98.3% | BV38: 99.1% | BW38: 98.8% | BX38: 100.0% | BY38: 98.1% | BZ38: 97.9% | CA38: 98.7% | CB38: 98.7% | CC38: 99.0% | CJ38: Febrero | CK38: =+IFERROR(GETPIVOTDATA("IND",$CJ$17,"Diris",CK$36,"mes",$CJ38),"-") -> 92.4% | CL38: 96.6% | CM38: 99.2% | CN38: 96.1% | CO38: 99.6% | CP38: 93.8% | CQ38: 98.5% | CR38: 99.5% | CS38: 97.7% | CT38: 96.0% | CU38: 96.8% | CV38: 96.8% | CW38: 96.5% | CX38: 97.0% | CY38: 96.8% | CZ38: 95.3% | DA38: 97.4% | DB38: 97.6% | DC38: - | DD38: 72.2% | DE38: 97.8% | DF38: 98.9% | DG38: 95.1% | DH38: 93.4% | DI38: 92.8% | DJ38: 94.6% | DK38: 99.5% | DL38: 97.1% | DM38: 92.0% | DN38: =+IFERROR(GETPIVOTDATA("IND",$CJ$17,"mes",$CJ38),"-") -> 94.9%
BM39: PIURA | BN39: 87.6% | BQ39: PASCO | BR39: 91.0% | BS39: 95.1% | BT39: 91.1% | BU39: 92.4% | BV39: 94.4% | BW39: 91.4% | BX39: 91.8% | BY39: 90.5% | BZ39: 92.2% | CA39: 91.7% | CB39: 94.1% | CC39: 92.5% | CJ39: Marzo | CK39: 93.3% | CL39: 97.8% | CM39: 99.3% | CN39: 97.0% | CO39: 99.2% | CP39: 93.9% | CQ39: 98.2% | CR39: 98.7% | CS39: 97.7% | CT39: 96.2% | CU39: 97.6% | CV39: 95.4% | CW39: 97.9% | CX39: 96.5% | CY39: 96.4% | CZ39: 96.4% | DA39: 95.8% | DB39: 97.0% | DC39: - | DD39: 67.3% | DE39: 98.4% | DF39: 100.0% | DG39: 91.1% | DH39: 92.3% | DI39: 93.8% | DJ39: 93.3% | DK39: 100.0% | DL39: 97.1% | DM39: 91.8% | DN39: 94.2%
BM40: PUNO | BN40: 92.7% | BQ40: PIURA | BR40: 90.3% | BS40: 93.4% | BT40: 92.3% | BU40: 85.0% | BV40: 85.3% | BW40: 83.6% | BX40: 86.7% | BY40: 85.1% | BZ40: 84.8% | CA40: 88.0% | CB40: 88.8% | CC40: 88.8% | CJ40: Abril | CK40: 91.6% | CL40: 97.3% | CM40: 99.2% | CN40: 84.4% | CO40: 99.0% | CP40: 93.0% | CQ40: 90.4% | CR40: 99.5% | CS40: 97.9% | CT40: 96.1% | CU40: 96.9% | CV40: 92.1% | CW40: 97.5% | CX40: 95.8% | CY40: 96.0% | CZ40: 95.9% | DA40: 95.9% | DB40: 97.3% | DC40: - | DD40: 60.7% | DE40: 98.5% | DF40: 98.3% | DG40: 92.4% | DH40: 85.0% | DI40: 86.5% | DJ40: 94.0% | DK40: 98.7% | DL40: 96.5% | DM40: 92.3% | DN40: 92.3%
BM41: SAN MARTIN | BN41: 95.4% | BQ41: PUNO | BR41: 93.7% | BS41: 92.8% | BT41: 93.8% | BU41: 86.5% | BV41: 94.4% | BW41: 92.1% | BX41: 94.0% | BY41: 91.8% | BZ41: 93.9% | CA41: 92.5% | CB41: 94.2% | CC41: 92.4% | CJ41: Mayo | CK41: 92.5% | CL41: 96.8% | CM41: 99.7% | CN41: 89.7% | CO41: 99.0% | CP41: 93.3% | CQ41: 98.0% | CR41: 99.3% | CS41: 97.7% | CT41: 96.6% | CU41: 96.5% | CV41: 96.8% | CW41: 97.0% | CX41: 96.6% | CY41: 96.1% | CZ41: 96.4% | DA41: 97.4% | DB41: 98.0% | DC41: - | DD41: 69.7% | DE41: 96.7% | DF41: 99.1% | DG41: 94.4% | DH41: 85.3% | DI41: 94.4% | DJ41: 95.0% | DK41: 97.3% | DL41: 95.9% | DM41: 93.2% | DN41: 94.0%
BM42: TACNA | BN42: 98.8% | BQ42: SAN MARTIN | BR42: 95.0% | BS42: 94.6% | BT42: 93.3% | BU42: 94.0% | BV42: 95.0% | BW42: 97.2% | BX42: 95.9% | BY42: 95.7% | BZ42: 95.1% | CA42: 96.1% | CB42: 96.5% | CC42: 96.6% | CJ42: Junio | CK42: 94.4% | CL42: 97.6% | CM42: 98.8% | CN42: 90.7% | CO42: 99.5% | CP42: 94.3% | CQ42: 99.4% | CR42: 99.3% | CS42: 98.2% | CT42: 96.0% | CU42: 98.4% | CV42: 93.1% | CW42: 97.8% | CX42: 96.5% | CY42: 96.4% | CZ42: 96.3% | DA42: 96.7% | DB42: 97.5% | DC42: - | DD42: 67.4% | DE42: 99.1% | DF42: 98.8% | DG42: 91.4% | DH42: 83.6% | DI42: 92.1% | DJ42: 97.2% | DK42: 99.0% | DL42: 97.5% | DM42: 93.1% | DN42: 94.0%
BM43: TUMBES | BN43: 96.5% | BQ43: TACNA | BR43: 100.0% | BS43: 99.5% | BT43: 100.0% | BU43: 98.7% | BV43: 97.3% | BW43: 99.0% | BX43: 98.3% | BY43: 100.0% | BZ43: 98.9% | CA43: 98.3% | CB43: 99.4% | CC43: 96.4% | CJ43: Julio | CK43: 92.2% | CL43: 96.7% | CM43: 99.2% | CN43: 93.7% | CO43: 98.5% | CP43: 95.8% | CQ43: 98.5% | CR43: 99.6% | CS43: 98.6% | CT43: 95.1% | CU43: 97.1% | CV43: 91.0% | CW43: 97.5% | CX43: 95.9% | CY43: 95.9% | CZ43: 96.8% | DA43: 98.3% | DB43: 98.2% | DC43: - | DD43: 70.2% | DE43: 95.6% | DF43: 100.0% | DG43: 91.8% | DH43: 86.7% | DI43: 94.0% | DJ43: 95.9% | DK43: 98.3% | DL43: 97.8% | DM43: 92.0% | DN43: 94.2%
BM44: UCAYALI | BN44: 92.9% | BQ44: TUMBES | BR44: 98.9% | BS44: 97.1% | BT44: 97.1% | BU44: 96.5% | BV44: 95.9% | BW44: 97.5% | BX44: 97.8% | BY44: 97.1% | BZ44: 97.2% | CA44: 96.7% | CB44: 95.6% | CC44: 88.8% | CJ44: Agosto | CK44: 89.7% | CL44: 96.5% | CM44: 99.5% | CN44: 94.6% | CO44: 98.2% | CP44: 94.3% | CQ44: 98.7% | CR44: 99.1% | CS44: 96.1% | CT44: 95.7% | CU44: 96.5% | CV44: 94.6% | CW44: 96.8% | CX44: 95.6% | CY44: 96.1% | CZ44: 95.4% | DA44: 98.7% | DB44: 97.3% | DC44: - | DD44: 65.4% | DE44: 98.9% | DF44: 98.1% | DG44: 90.5% | DH44: 85.1% | DI44: 91.8% | DJ44: 95.7% | DK44: 100.0% | DL44: 97.1% | DM44: 93.4% | DN44: 93.6%
BM45: Total general | BN45: 93.8% | BQ45: UCAYALI | BR45: 92.1% | BS45: 92.0% | BT45: 91.8% | BU45: 92.3% | BV45: 93.2% | BW45: 93.1% | BX45: 92.0% | BY45: 93.4% | BZ45: 94.2% | CA45: 93.9% | CB45: 94.8% | CC45: 91.7% | CJ45: Setiembre | CK45: 88.4% | CL45: 97.2% | CM45: 99.5% | CN45: 92.8% | CO45: 97.5% | CP45: 95.4% | CQ45: 99.6% | CR45: 98.0% | CS45: 97.0% | CT45: 96.0% | CU45: 97.7% | CV45: 94.9% | CW45: 97.7% | CX45: 95.1% | CY45: 96.2% | CZ45: 96.5% | DA45: 97.7% | DB45: 98.0% | DC45: - | DD45: 66.7% | DE45: 98.1% | DF45: 97.9% | DG45: 92.2% | DH45: 84.8% | DI45: 93.9% | DJ45: 95.1% | DK45: 98.9% | DL45: 97.2% | DM45: 94.2% | DN45: 93.7%
BQ46: Total general | BR46: 94.3% | BS46: 94.9% | BT46: 94.2% | BU46: 92.3% | BV46: 94.0% | BW46: 94.0% | BX46: 94.2% | BY46: 93.6% | BZ46: 93.7% | CA46: 93.8% | CB46: 93.9% | CC46: 92.6% | CJ46: Octubre | CK46: 86.9% | CL46: 97.5% | CM46: 99.2% | CN46: 93.9% | CO46: 88.5% | CP46: 96.2% | CQ46: 98.0% | CR46: 98.5% | CS46: 97.7% | CT46: 96.3% | CU46: 96.7% | CV46: 96.1% | CW46: 96.7% | CX46: 96.1% | CY46: 96.1% | CZ46: 95.6% | DA46: 96.8% | DB46: 96.8% | DC46: - | DD46: =+IFERROR(GETPIVOTDATA("IND",$CJ$17,"Diris",DD$36,"mes",$CJ46),"-") -> 69.7% | DE46: 97.7% | DF46: 98.7% | DG46: 91.7% | DH46: 88.0% | DI46: 92.5% | DJ46: 96.1% | DK46: 98.3% | DL46: 96.7% | DM46: 93.9% | DN46: 93.8%
CJ47: Noviembre | CK47: 88.5% | CL47: 97.7% | CM47: 99.7% | CN47: 93.0% | CO47: 89.1% | CP47: 93.5% | CQ47: 98.8% | CR47: 98.8% | CS47: 97.0% | CT47: 97.8% | CU47: 96.5% | CV47: 96.7% | CW47: 96.6% | CX47: 93.5% | CY47: 96.2% | CZ47: 95.7% | DA47: 96.6% | DB47: 95.4% | DC47: - | DD47: 73.3% | DE47: 98.7% | DF47: 98.7% | DG47: 94.1% | DH47: 88.8% | DI47: 94.2% | DJ47: 96.5% | DK47: 99.4% | DL47: 95.6% | DM47: 94.8% | DN47: 93.9%
CJ48: Diciembre | CK48: 88.4% | CL48: 98.0% | CM48: 99.4% | CN48: 94.5% | CO48: 90.4% | CP48: 93.2% | CQ48: 98.3% | CR48: 97.3% | CS48: 96.3% | CT48: 94.3% | CU48: 93.9% | CV48: 94.4% | CW48: 96.2% | CX48: 95.4% | CY48: 96.2% | CZ48: 93.2% | DA48: 95.3% | DB48: 95.3% | DC48: - | DD48: 64.0% | DE48: 97.0% | DF48: 99.0% | DG48: 92.5% | DH48: 88.8% | DI48: 92.4% | DJ48: 96.6% | DK48: 96.4% | DL48: 88.8% | DM48: 91.7% | DN48: 92.6%
BR52: 1 | BS52: 2 | BT52: 3 | BU52: 4 | BV52: 5 | BW52: 6 | BX52: 7 | BY52: 8 | BZ52: 9 | CA52: 10 | CB52: 11 | CC52: 12 | CF52: MIN | CG52: MAX
BM53: AMAZONAS | BN53: =+IFERROR(GETPIVOTDATA("ind",$BM$15,"Diris",$BM53),"-") -> 90.8% | BQ53: AMAZONAS | BR53: =+IFERROR(GETPIVOTDATA("IND",$BQ$15,"Diris",$BQ53,"mes",BR$52),"-") -> 90.9% | BS53: 92.4% | BT53: 93.3% | BU53: 91.6% | BV53: 92.5% | BW53: 94.4% | BX53: 92.2% | BY53: 89.7% | BZ53: 88.4% | CA53: 86.9% | CB53: 88.5% | CC53: 88.4% | CE53: AMAZONAS | CF53: =+IF(BR53="-","-",MIN(BR53:CC53)) -> 86.9% | CG53: =+IF(BR53="-","-",MAX(BR53:CC53)) -> 94.4%
BM54: ANCASH | BN54: =+IFERROR(GETPIVOTDATA("ind",$BM$15,"Diris",$BM54),"-") -> 97.2% | BQ54: ANCASH | BR54: 96.5% | BS54: 96.6% | BT54: 97.8% | BU54: 97.3% | BV54: 96.8% | BW54: 97.6% | BX54: 96.7% | BY54: 96.5% | BZ54: 97.2% | CA54: 97.5% | CB54: 97.7% | CC54: 98.0% | CE54: ANCASH | CF54: =+IF(BR54="-","-",MIN(BR54:CC54)) -> 96.5% | CG54: =+IF(BR54="-","-",MAX(BR54:CC54)) -> 98.0%
BM55: APURIMAC | BN55: 99.4% | BQ55: APURIMAC | BR55: 100.0% | BS55: 99.2% | BT55: 99.3% | BU55: 99.2% | BV55: 99.7% | BW55: 98.8% | BX55: 99.2% | BY55: 99.5% | BZ55: 99.5% | CA55: 99.2% | CB55: 99.7% | CC55: 99.4% | CE55: APURIMAC | CF55: 98.8% | CG55: 100.0%
BM56: AREQUIPA | BN56: 93.2% | BQ56: AREQUIPA | BR56: 96.4% | BS56: 96.1% | BT56: 97.0% | BU56: 84.4% | BV56: 89.7% | BW56: 90.7% | BX56: 93.7% | BY56: 94.6% | BZ56: 92.8% | CA56: 93.9% | CB56: 93.0% | CC56: 94.5% | CE56: AREQUIPA | CF56: 84.4% | CG56: 97.0%
BM57: AYACUCHO | BN57: 96.5% | BQ57: AYACUCHO | BR57: 99.3% | BS57: 99.6% | BT57: 99.2% | BU57: 99.0% | BV57: 99.0% | BW57: 99.5% | BX57: 98.5% | BY57: 98.2% | BZ57: 97.5% | CA57: 88.5% | CB57: 89.1% | CC57: 90.4% | CE57: AYACUCHO | CF57: 88.5% | CG57: 99.6%
BM58: CAJAMARCA | BN58: 94.1% | BQ58: CAJAMARCA | BR58: 92.6% | BS58: 93.8% | BT58: 93.9% | BU58: 93.0% | BV58: 93.3% | BW58: 94.3% | BX58: 95.8% | BY58: 94.3% | BZ58: 95.4% | CA58: 96.2% | CB58: 93.5% | CC58: 93.2% | CE58: CAJAMARCA | CF58: 92.6% | CG58: 96.2%
BM59: CALLAO | BN59: 97.8% | BQ59: CALLAO | BR59: 98.6% | BS59: 98.5% | BT59: 98.2% | BU59: 90.4% | BV59: 98.0% | BW59: 99.4% | BX59: 98.5% | BY59: 98.7% | BZ59: 99.6% | CA59: 98.0% | CB59: 98.8% | CC59: 98.3% | CE59: CALLAO | CF59: 90.4% | CG59: 99.6%
BM60: CUSCO | BN60: 98.9% | BQ60: CUSCO | BR60: 98.6% | BS60: 99.5% | BT60: 98.7% | BU60: 99.5% | BV60: 99.3% | BW60: 99.3% | BX60: 99.6% | BY60: 99.1% | BZ60: 98.0% | CA60: 98.5% | CB60: 98.8% | CC60: 97.3% | CE60: CUSCO | CF60: 97.3% | CG60: 99.6%
BM61: HUANCAVELICA | BN61: 97.5% | BQ61: HUANCAVELICA | BR61: 98.5% | BS61: 97.7% | BT61: 97.7% | BU61: 97.9% | BV61: 97.7% | BW61: 98.2% | BX61: 98.6% | BY61: 96.1% | BZ61: 97.0% | CA61: 97.7% | CB61: 97.0% | CC61: 96.3% | CE61: HUANCAVELICA | CF61: 96.1% | CG61: 98.6%
BM62: HUANUCO | BN62: 95.5% | BQ62: HUANUCO | BR62: 90.5% | BS62: 96.0% | BT62: 96.2% | BU62: 96.1% | BV62: 96.6% | BW62: 96.0% | BX62: 95.1% | BY62: 95.7% | BZ62: 96.0% | CA62: 96.3% | CB62: 97.8% | CC62: 94.3% | CE62: HUANUCO | CF62: 90.5% | CG62: 97.8%
BM63: ICA | BN63: 96.8% | BQ63: ICA | BR63: =+IFERROR(GETPIVOTDATA("IND",$BQ$15,"Diris",$BQ63,"mes",BR$52),"-") -> 96.6% | BS63: 96.8% | BT63: 97.6% | BU63: 96.9% | BV63: 96.5% | BW63: 98.4% | BX63: 97.1% | BY63: 96.5% | BZ63: 97.7% | CA63: 96.7% | CB63: 96.5% | CC63: 93.9% | CE63: ICA | CF63: 93.9% | CG63: 98.4%
BM64: JUNIN | BN64: 94.8% | BQ64: JUNIN | BR64: 96.1% | BS64: 96.8% | BT64: 95.4% | BU64: 92.1% | BV64: 96.8% | BW64: 93.1% | BX64: 91.0% | BY64: 94.6% | BZ64: 94.9% | CA64: 96.1% | CB64: 96.7% | CC64: 94.4% | CE64: JUNIN | CF64: 91.0% | CG64: 96.8%
BM65: LA LIBERTAD | BN65: 97.1% | BQ65: LA LIBERTAD | BR65: 96.9% | BS65: 96.5% | BT65: 97.9% | BU65: 97.5% | BV65: 97.0% | BW65: 97.8% | BX65: 97.5% | BY65: 96.8% | BZ65: 97.7% | CA65: 96.7% | CB65: 96.6% | CC65: 96.2% | CE65: LA LIBERTAD | CF65: 96.2% | CG65: 97.9%
BM66: LAMBAYEQUE | BN66: 95.8% | BQ66: LAMBAYEQUE | BR66: 95.9% | BS66: 97.0% | BT66: 96.5% | BU66: 95.8% | BV66: 96.6% | BW66: 96.5% | BX66: 95.9% | BY66: 95.6% | BZ66: 95.1% | CA66: 96.1% | CB66: 93.5% | CC66: 95.4% | CE66: LAMBAYEQUE | CF66: 93.5% | CG66: 97.0%
BM67: LIMA DIRIS CENTRO | BN67: 96.3% | BQ67: LIMA DIRIS CENTRO | BR67: 96.7% | BS67: 96.8% | BT67: 96.4% | BU67: 96.0% | BV67: 96.1% | BW67: 96.4% | BX67: 95.9% | BY67: 96.1% | BZ67: 96.2% | CA67: 96.1% | CB67: 96.2% | CC67: 96.2% | CE67: LIMA DIRIS CENTRO | CF67: 95.9% | CG67: 96.8%
BM68: LIMA DIRIS ESTE | BN68: 95.8% | BQ68: LIMA DIRIS ESTE | BR68: 95.7% | BS68: 95.3% | BT68: 96.4% | BU68: 95.9% | BV68: 96.4% | BW68: 96.3% | BX68: 96.8% | BY68: 95.4% | BZ68: 96.5% | CA68: 95.6% | CB68: 95.7% | CC68: 93.2% | CE68: LIMA DIRIS ESTE | CF68: 93.2% | CG68: 96.8%
BM69: LIMA DIRIS NORTE | BN69: 96.9% | BQ69: LIMA DIRIS NORTE | BR69: 96.1% | BS69: 97.4% | BT69: 95.8% | BU69: 95.9% | BV69: 97.4% | BW69: 96.7% | BX69: 98.3% | BY69: 98.7% | BZ69: 97.7% | CA69: 96.8% | CB69: 96.6% | CC69: 95.3% | CE69: LIMA DIRIS NORTE | CF69: 95.3% | CG69: 98.7%
BM70: LIMA DIRIS SUR | BN70: 97.2% | BQ70: LIMA DIRIS SUR | BR70: 97.6% | BS70: 97.6% | BT70: 97.0% | BU70: 97.3% | BV70: 98.0% | BW70: 97.5% | BX70: 98.2% | BY70: 97.3% | BZ70: 98.0% | CA70: 96.8% | CB70: 95.4% | CC70: 95.3% | CE70: LIMA DIRIS SUR | CF70: 95.3% | CG70: 98.2%
BM71: LIMA REGION | BN71: 97.5% | BQ71: LIMA REGION | BR71: 96.0% | BS71: 98.3% | BT71: 96.4% | BU71: 97.1% | BV71: 98.0% | BW71: 98.5% | BX71: 97.9% | BY71: 97.8% | BZ71: 98.5% | CA71: 98.3% | CB71: 97.5% | CC71: 96.1% | CE71: LIMA PROVINCIAS | CF71: 96.0% | CG71: 98.5%
BM72: LORETO | BN72: 68.1% | BQ72: LORETO | BR72: 71.8% | BS72: 72.2% | BT72: 67.3% | BU72: 60.7% | BV72: 69.7% | BW72: 67.4% | BX72: 70.2% | BY72: 65.4% | BZ72: 66.7% | CA72: 69.7% | CB72: 73.3% | CC72: 64.0% | CE72: LORETO | CF72: 60.7% | CG72: 73.3%
BM73: MADRE DE DIOS | BN73: 97.7% | BQ73: MADRE DE DIOS | BR73: =+IFERROR(GETPIVOTDATA("IND",$BQ$15,"Diris",$BQ73,"mes",BR$52),"-") -> 95.7% | BS73: 97.8% | BT73: 98.4% | BU73: 98.5% | BV73: 96.7% | BW73: 99.1% | BX73: 95.6% | BY73: 98.9% | BZ73: 98.1% | CA73: 97.7% | CB73: 98.7% | CC73: 97.0% | CE73: MADRE DE DIOS | CF73: 95.6% | CG73: 99.1%
BM74: MOQUEGUA | BN74: 99.0% | BQ74: MOQUEGUA | BR74: 100.0% | BS74: 98.9% | BT74: 100.0% | BU74: 98.3% | BV74: 99.1% | BW74: 98.8% | BX74: 100.0% | BY74: 98.1% | BZ74: 97.9% | CA74: 98.7% | CB74: 98.7% | CC74: 99.0% | CE74: MOQUEGUA | CF74: 97.9% | CG74: 100.0%
BM75: PASCO | BN75: 92.3% | BQ75: PASCO | BR75: 91.0% | BS75: 95.1% | BT75: 91.1% | BU75: 92.4% | BV75: 94.4% | BW75: 91.4% | BX75: 91.8% | BY75: 90.5% | BZ75: 92.2% | CA75: 91.7% | CB75: 94.1% | CC75: 92.5% | CE75: PASCO | CF75: 90.5% | CG75: 95.1%
BM76: PIURA | BN76: 87.6% | BQ76: PIURA | BR76: 90.3% | BS76: 93.4% | BT76: 92.3% | BU76: 85.0% | BV76: 85.3% | BW76: 83.6% | BX76: 86.7% | BY76: 85.1% | BZ76: 84.8% | CA76: 88.0% | CB76: 88.8% | CC76: 88.8% | CE76: PIURA | CF76: 83.6% | CG76: 93.4%
BM77: PUNO | BN77: 92.7% | BQ77: PUNO | BR77: 93.7% | BS77: 92.8% | BT77: 93.8% | BU77: 86.5% | BV77: 94.4% | BW77: 92.1% | BX77: 94.0% | BY77: 91.8% | BZ77: 93.9% | CA77: 92.5% | CB77: 94.2% | CC77: 92.4% | CE77: PUNO | CF77: 86.5% | CG77: 94.4%
BM78: SAN MARTIN | BN78: 95.4% | BQ78: SAN MARTIN | BR78: 95.0% | BS78: 94.6% | BT78: 93.3% | BU78: 94.0% | BV78: 95.0% | BW78: 97.2% | BX78: 95.9% | BY78: 95.7% | BZ78: 95.1% | CA78: 96.1% | CB78: 96.5% | CC78: 96.6% | CE78: SAN MARTIN | CF78: 93.3% | CG78: 97.2%
BM79: TACNA | BN79: 98.8% | BQ79: TACNA | BR79: 100.0% | BS79: 99.5% | BT79: 100.0% | BU79: 98.7% | BV79: 97.3% | BW79: 99.0% | BX79: 98.3% | BY79: 100.0% | BZ79: 98.9% | CA79: 98.3% | CB79: 99.4% | CC79: 96.4% | CE79: TACNA | CF79: 96.4% | CG79: 100.0%
BM80: TUMBES | BN80: 96.5% | BQ80: TUMBES | BR80: 98.9% | BS80: 97.1% | BT80: 97.1% | BU80: 96.5% | BV80: 95.9% | BW80: 97.5% | BX80: 97.8% | BY80: 97.1% | BZ80: 97.2% | CA80: 96.7% | CB80: 95.6% | CC80: 88.8% | CE80: TUMBES | CF80: 88.8% | CG80: 98.9%
BM81: UCAYALI | BN81: 92.9% | BQ81: UCAYALI | BR81: 92.1% | BS81: 92.0% | BT81: 91.8% | BU81: 92.3% | BV81: 93.2% | BW81: 93.1% | BX81: 92.0% | BY81: 93.4% | BZ81: 94.2% | CA81: 93.9% | CB81: 94.8% | CC81: 91.7% | CE81: UCAYALI | CF81: 91.7% | CG81: 94.8%
BM82: NACIONAL | BN82: =+IFERROR(GETPIVOTDATA("ind",$BM$15),"-") -> 93.8% | BQ82: NACIONAL | BR82: =+IFERROR(GETPIVOTDATA("IND",$BQ$15,"mes",BR$52),"-") -> 94.3% | BS82: 94.9% | BT82: 94.2% | BU82: 92.3% | BV82: 94.0% | BW82: 94.0% | BX82: 94.2% | BY82: 93.6% | BZ82: 93.7% | CA82: 93.8% | CB82: 93.9% | CC82: 92.6% | CE82: NACIONAL | CF82: 92.3% | CG82: 94.9%

Sheet DL_1153_2025_CG08
A1: =+DL1153_2025!C14 -> Ficha 08:Tasa de éxito de tratamiento para TB Sensible | BQ1: 1 | DU1: 1
A2: Periodo de Evaluación: | B2: =+DL1153_2025!B42 -> Diciembre - 2025
L5: Diris | M5: (Todas)
A6: año | B6: (Todas) | L6: Red | M6: KIMBIRI PICHARI | BR6: año | BS6: (Todas) | BV6: año | BW6: (Todas) | CO6: año | CP6: (Todas)
A7: mes | B7: 12 | L7: eess_nombre | M7: (Todas) | BR7: mes | BS7: 12
A8: DIRESA/DIRIS | B8: RED | C8: Provincia | D8: Distrito | E8: Categoria EEES | F8: Nombre EESS | G8: Denominador: Número total de personas afectadas de casos de TB sensible registrados en el SIG TB con documento de identidad válido que hayan sido diagnosticados entre 01 de julio 2024 al 30 junio del año 2025. | H8: Numerador: Total de personas afectadas por TB sensible incluidos en el denominador con resultado de tratamiento: curado + tratamiento completo registrados en el SIG TB | I8: Indicador: Tasa de éxito de tratamiento para TB Sensible | L8: AÑO | M8: MES | N8: Categoría | O8: Denominador: Número total de personas afectadas de casos de TB sensible registrados en el SIG TB con documento de identidad válido que hayan sido diagnosticados entre 01 de julio 2024 al 30 junio del año 2025. | P8: Numerador: Total de personas afectadas por TB sensible incluidos en el denominador con resultado de tratamiento: curado + tratamiento completo registrados en el SIG TB | Q8: Indicador: Tasa de éxito de tratamiento para TB Sensible | BV8: Suma de Ind | BW8: mes | CO8: Suma de Ind | CP8: Diris
A9: Diris | B9: Red | C9: Provincia | D9: Distrito | E9: cat_estab | F9: eess_nombre | G9: Suma de den | H9: Suma de num | I9: Suma de Ind | L9: año | M9: mes | N9: cat_estab | O9: Suma de den | P9: Suma de num | Q9: Suma de Ind | BR9: Diris | BS9: Suma de Ind | BV9: Diris | BW9: 1 | BX9: 2 | BY9: 3 | BZ9: 4 | CA9: 5 | CB9: 6 | CC9: 7 | CD9: 8 | CE9: 9 | CF9: 10 | CG9: 11 | CH9: 12 | CO9: mes | CP9: AMAZONAS | CQ9: ANCASH | CR9: APURIMAC | CS9: AREQUIPA | CT9: AYACUCHO | CU9: CAJAMARCA | CV9: CALLAO | CW9: CUSCO | CX9: HUANCAVELICA | CY9: HUANUCO | CZ9: ICA | DA9: JUNIN | DB9: LA LIBERTAD | DC9: LAMBAYEQUE | DD9: LIMA DIRIS CENTRO | DE9: LIMA DIRIS ESTE | DF9: LIMA DIRIS NORTE | DG9: LIMA DIRIS SUR | DH9: LIMA REGION | DI9: LORETO | DJ9: MADRE DE DIOS | DK9: MOQUEGUA | DL9: PASCO | DM9: PIURA | DN9: PUNO | DO9: SAN MARTIN | DP9: TACNA | DQ9: TUMBES | DR9: UCAYALI | DS9: Total general
A10: CUSCO | B10: KIMBIRI PICHARI | C10: LA CONVENCION | D10: PICHARI | E10: I-2 | F10: I-2 - 00007114 - QUISTO CENTRAL | G10: 4 | H10: 3 | I10: 75.0% | L10: 2025 | M10: 1 | O10: 26 | P10: 2 | Q10: 7.7% | BR10: AMAZONAS | BS10: 70.8% | BV10: AMAZONAS | BW10: 4.3% | BX10: 11.7% | BY10: 21.3% | BZ10: 24.8% | CA10: 31.3% | CB10: 35.0% | CC10: 38.3% | CD10: 44.2% | CE10: 52.5% | CF10: 60.8% | CG10: 68.3% | CH10: 70.8% | CO10: Enero | CP10: 4.3% | CQ10: 6.8% | CR10: 3.3% | CS10: 9.6% | CT10: 11.0% | CU10: 7.9% | CV10: 5.8% | CW10: 11.7% | CX10: 6.9% | CY10: 9.4% | CZ10: 5.8% | DA10: 10.8% | DB10: 6.1% | DC10: 9.3% | DD10: 5.2% | DE10: 7.1% | DF10: 4.7% | DG10: 4.5% | DH10: 7.8% | DI10: 11.1% | DJ10: 8.5% | DK10: 6.1% | DL10: 16.2% | DM10: 9.4% | DN10: 6.2% | DO10: 16.4% | DP10: 6.3% | DQ10: 3.2% | DR10: 10.7% | DS10: 7.3%
A11: CUSCO | B11: KIMBIRI PICHARI | C11: LA CONVENCION | D11: PICHARI | E11: I-2 | F11: I-2 - 00015170 - PICHARI BAJA | G11: 2 | H11: 2 | I11: 100.0% | L11: 2025 | M11: 2 | O11: 28 | P11: 4 | Q11: 14.3% | BR11: ANCASH | BS11: 85.7% | BV11: ANCASH | BW11: 6.8% | BX11: 14.3% | BY11: 26.2% | BZ11: 32.3% | CA11: 40.8% | CB11: 42.7% | CC11: 49.6% | CD11: 58.3% | CE11: 65.4% | CF11: 71.6% | CG11: 78.8% | CH11: 85.7% | CO11: Febrero | CP11: 11.7% | CQ11: 14.3% | CR11: 25.8% | CS11: 16.5% | CT11: 19.4% | CU11: 18.8% | CV11: 12.1% | CW11: 18.9% | CX11: 9.4% | CY11: 16.0% | CZ11: 12.6% | DA11: 21.5% | DB11: 13.0% | DC11: 18.0% | DD11: 11.6% | DE11: 14.2% | DF11: 9.6% | DG11: 10.2% | DH11: 18.3% | DI11: 17.7% | DJ11: 19.8% | DK11: 17.2% | DL11: 23.3% | DM11: 17.1% | DN11: 12.6% | DO11: 22.7% | DP11: 13.6% | DQ11: 10.0% | DR11: 15.7% | DS11: 14.2%
A12: CUSCO | B12: KIMBIRI PICHARI | C12: LA CONVENCION | D12: PICHARI | E12: I-4 | F12: I-4 - 00002494 - PICHARI | G12: 12 | H12: 8 | I12: 66.7% | L12: 2025 | M12: 3 | O12: 30 | P12: 5 | Q12: 16.7% | BR12: APURIMAC | BS12: 77.1% | BV12: APURIMAC | BW12: 3.3% | BX12: 25.8% | BY12: 43.8% | BZ12: 52.8% | CA12: 47.7% | CB12: 50.0% | CC12: 52.1% | CD12: 56.3% | CE12: 60.4% | CF12: 64.6% | CG12: 75.0% | CH12: 77.1% | CO12: Marzo | CP12: 21.3% | CQ12: 26.2% | CR12: 43.8% | CS12: 26.5% | CT12: 26.4% | CU12: 27.1% | CV12: 20.0% | CW12: 23.6% | CX12: 17.1% | CY12: 23.0% | CZ12: 22.5% | DA12: 33.9% | DB12: 21.7% | DC12: 24.0% | DD12: 18.3% | DE12: 21.0% | DF12: 15.9% | DG12: 17.8% | DH12: 25.7% | DI12: 26.2% | DJ12: 27.1% | DK12: 23.8% | DL12: 37.0% | DM12: 26.1% | DN12: 21.4% | DO12: 29.8% | DP12: 20.7% | DQ12: 12.3% | DR12: 22.3% | DS12: 21.8%
A13: CUSCO | B13: KIMBIRI PICHARI | C13: LA CONVENCION | D13: KIMBIRI | E13: I-2 | F13: I-2 - 00002474 - SAMANIATO | G13: 3 | H13: 3 | I13: 100.0% | L13: 2025 | M13: 4 | O13: 30 | P13: 9 | Q13: 30.0% | BR13: AREQUIPA | BS13: 85.0% | BV13: AREQUIPA | BW13: 9.6% | BX13: 16.5% | BY13: 26.5% | BZ13: 36.0% | CA13: 42.4% | CB13: 46.3% | CC13: 54.0% | CD13: 62.5% | CE13: 68.1% | CF13: 74.0% | CG13: 80.4% | CH13: 85.0% | CO13: Abril | CP13: 24.8% | CQ13: 32.3% | CR13: 52.8% | CS13: 36.0% | CT13: 27.4% | CU13: 35.4% | CV13: 25.6% | CW13: 28.7% | CX13: 31.7% | CY13: 28.5% | CZ13: 29.1% | DA13: 39.4% | DB13: 25.5% | DC13: 30.1% | DD13: 25.3% | DE13: 26.4% | DF13: 21.6% | DG13: 24.5% | DH13: 31.3% | DI13: 30.6% | DJ13: 34.5% | DK13: 28.6% | DL13: 40.7% | DM13: 28.4% | DN13: 25.9% | DO13: 32.4% | DP13: 27.7% | DQ13: 20.0% | DR13: 27.6% | DS13: 27.6%
A14: CUSCO | B14: KIMBIRI PICHARI | C14: LA CONVENCION | D14: KIMBIRI | E14: I-2 | F14: I-2 - 00002475 - KIMBIRI ALTO | G14: 2 | H14: 2 | I14: 100.0% | L14: 2025 | M14: 5 | O14: 34 | P14: 13 | Q14: 38.2% | BR14: AYACUCHO | BS14: 85.7% | BV14: AYACUCHO | BW14: 11.0% | BX14: 19.4% | BY14: 26.4% | BZ14: 27.4% | CA14: 29.4% | CB14: 35.1% | CC14: 44.8% | CD14: 51.3% | CE14: 60.4% | CF14: 70.1% | CG14: 76.0% | CH14: 85.7% | CO14: Mayo | CP14: 31.3% | CQ14: 40.8% | CR14: 47.7% | CS14: 42.4% | CT14: 29.4% | CU14: 42.8% | CV14: 32.0% | CW14: 32.0% | CX14: 31.4% | CY14: 29.7% | CZ14: 35.6% | DA14: 45.2% | DB14: 32.4% | DC14: 37.6% | DD14: 30.8% | DE14: 31.2% | DF14: 26.3% | DG14: 31.0% | DH14: 38.3% | DI14: 34.4% | DJ14: 38.5% | DK14: 31.3% | DL14: 44.4% | DM14: 35.5% | DN14: 29.7% | DO14: 36.6% | DP14: 35.6% | DQ14: 25.7% | DR14: 32.3% | DS14: 33.0%
A15: CUSCO | B15: KIMBIRI PICHARI | C15: LA CONVENCION | D15: KIMBIRI | E15: II-1 | F15: II-1 - 00002469 - SAN JUAN DE KIMBIRI VRAEM | G15: 7 | H15: 6 | I15: 85.7% | L15: 2025 | M15: 6 | O15: 35 | P15: 15 | Q15: 42.9% | BR15: CAJAMARCA | BS15: 80.0% | BV15: CAJAMARCA | BW15: 7.9% | BX15: 18.8% | BY15: 27.1% | BZ15: 35.4% | CA15: 42.8% | CB15: 44.5% | CC15: 53.6% | CD15: 61.8% | CE15: 65.9% | CF15: 72.3% | CG15: 77.3% | CH15: 80.0% | CO15: Junio | CP15: 35.0% | CQ15: 42.7% | CR15: 50.0% | CS15: 46.3% | CT15: 35.1% | CU15: 44.5% | CV15: 37.4% | CW15: 32.8% | CX15: 43.4% | CY15: 32.4% | CZ15: 38.2% | DA15: 49.8% | DB15: 36.6% | DC15: 43.4% | DD15: 35.9% | DE15: 36.9% | DF15: 30.2% | DG15: 36.9% | DH15: 40.4% | DI15: 38.1% | DJ15: 39.3% | DK15: 31.6% | DL15: 42.4% | DM15: 37.9% | DN15: 35.8% | DO15: 38.1% | DP15: 45.9% | DQ15: 32.1% | DR15: 35.6% | DS15: 37.2%
A16: CUSCO | B16: KIMBIRI PICHARI | C16: LA CONVENCION | D16: CIELO PUNCO | E16: I-3 | F16: I-3 - 00002470 - CHIRUMPIARI | G16: 1 | H16: 1 | I16: 100.0% | L16: 2025 | M16: 7 | O16: 35 | P16: 19 | Q16: 54.3% | BR16: CALLAO | BS16: 87.8% | BV16: CALLAO | BW16: 5.8% | BX16: 12.1% | BY16: 20.0% | BZ16: 25.6% | CA16: 32.0% | CB16: 37.4% | CC16: 47.6% | CD16: 55.4% | CE16: 64.5% | CF16: 72.3% | CG16: 79.7% | CH16: 87.8% | CO16: Julio | CP16: 38.3% | CQ16: 49.6% | CR16: 52.1% | CS16: 54.0% | CT16: 44.8% | CU16: 53.6% | CV16: 47.6% | CW16: 40.1% | CX16: 49.1% | CY16: 41.6% | CZ16: 46.8% | DA16: 56.9% | DB16: 44.9% | DC16: 49.4% | DD16: 43.7% | DE16: 45.4% | DF16: 37.9% | DG16: 44.6% | DH16: 47.6% | DI16: 45.2% | DJ16: 45.6% | DK16: 39.8% | DL16: 50.0% | DM16: 43.9% | DN16: 40.8% | DO16: 46.1% | DP16: 55.5% | DQ16: 39.4% | DR16: 44.5% | DS16: 45.0%
A17: CUSCO | B17: KIMBIRI PICHARI | C17: LA CONVENCION | D17: UNIÓN ASHANINKA | E17: I-1 | F17: I-1 - 00015169 - PITIRINQUINI | G17: 1 | H17: 1 | I17: 100.0% | L17: 2025 | M17: 8 | O17: 35 | P17: 22 | Q17: 62.9% | BR17: CUSCO | BS17: 74.9% | BV17: CUSCO | BW17: 11.7% | BX17: 18.9% | BY17: 23.6% | BZ17: 28.7% | CA17: 32.0% | CB17: 32.8% | CC17: 40.1% | CD17: 45.8% | CE17: 55.9% | CF17: 63.2% | CG17: 68.2% | CH17: 74.9% | CO17: Agosto | CP17: 44.2% | CQ17: 58.3% | CR17: 56.3% | CS17: 62.5% | CT17: 51.3% | CU17: 61.8% | CV17: 55.4% | CW17: 45.8% | CX17: 50.9% | CY17: 48.7% | CZ17: 55.2% | DA17: 65.7% | DB17: 51.7% | DC17: 57.7% | DD17: 52.4% | DE17: 53.9% | DF17: 45.2% | DG17: 52.0% | DH17: 54.8% | DI17: 53.4% | DJ17: 49.6% | DK17: 45.9% | DL17: 56.1% | DM17: 51.6% | DN17: 48.2% | DO17: 52.3% | DP17: 63.1% | DQ17: 48.6% | DR17: 51.2% | DS17: 52.7%
A18: CUSCO | B18: KIMBIRI PICHARI | C18: LA CONVENCION | D18: UNIÓN ASHANINKA | E18: I-3 | F18: I-3 - 00002495 - MANTARO | G18: 1 | H18: 1 | I18: 100.0% | L18: 2025 | M18: 9 | O18: 35 | P18: 22 | Q18: 62.9% | BR18: HUANCAVELICA | BS18: 75.5% | BV18: HUANCAVELICA | BW18: 6.9% | BX18: 9.4% | BY18: 17.1% | BZ18: 31.7% | CA18: 31.4% | CB18: 43.4% | CC18: 49.1% | CD18: 50.9% | CE18: 54.7% | CF18: 62.3% | CG18: 73.6% | CH18: 75.5% | CO18: Setiembre | CP18: 52.5% | CQ18: 65.4% | CR18: 60.4% | CS18: 68.1% | CT18: 60.4% | CU18: 65.9% | CV18: 64.5% | CW18: 55.9% | CX18: 54.7% | CY18: 55.2% | CZ18: 60.6% | DA18: 71.3% | DB18: 60.0% | DC18: 65.1% | DD18: 60.2% | DE18: 63.0% | DF18: 51.4% | DG18: 61.8% | DH18: 61.1% | DI18: 60.5% | DJ18: 53.7% | DK18: 51.0% | DL18: 57.6% | DM18: 61.6% | DN18: 56.4% | DO18: 60.1% | DP18: 69.7% | DQ18: 63.3% | DR18: 57.6% | DS18: 60.2%
A19: CUSCO | B19: KIMBIRI PICHARI | C19: LA CONVENCION | D19: VILLA VIRGEN | E19: I-2 | F19: I-2 - 00002479 - VILLA VIRGEN | G19: 2 | H19: 2 | I19: 100.0% | L19: 2025 | M19: 10 | O19: 35 | P19: 26 | Q19: 74.3% | BR19: HUANUCO | BS19: 76.4% | BV19: HUANUCO | BW19: 9.4% | BX19: 16.0% | BY19: 23.0% | BZ19: 28.5% | CA19: 29.7% | CB19: 32.4% | CC19: 41.6% | CD19: 48.7% | CE19: 55.2% | CF19: 61.9% | CG19: 69.6% | CH19: 76.4% | CO19: Octubre | CP19: 60.8% | CQ19: 71.6% | CR19: 64.6% | CS19: 74.0% | CT19: 70.1% | CU19: 72.3% | CV19: 72.3% | CW19: 63.2% | CX19: 62.3% | CY19: 61.9% | CZ19: 67.8% | DA19: 77.8% | DB19: 66.4% | DC19: 74.1% | DD19: 67.4% | DE19: 70.6% | DF19: 58.8% | DG19: 70.3% | DH19: 67.4% | DI19: 67.6% | DJ19: 60.7% | DK19: 60.2% | DL19: 68.2% | DM19: 70.9% | DN19: 64.5% | DO19: 68.1% | DP19: 76.9% | DQ19: 67.0% | DR19: 62.7% | DS19: 67.5%
A20: Total general | G20: 35 | H20: 29 | I20: 82.9% | L20: 2025 | M20: 11 | O20: 35 | P20: 27 | Q20: 77.1% | BR20: ICA | BS20: 82.3% | BV20: ICA | BW20: 5.8% | BX20: 12.6% | BY20: 22.5% | BZ20: 29.1% | CA20: 35.6% | CB20: 38.2% | CC20: 46.8% | CD20: 55.2% | CE20: 60.6% | CF20: 67.8% | CG20: 75.1% | CH20: 82.3% | CO20: Noviembre | CP20: 68.3% | CQ20: 78.8% | CR20: 75.0% | CS20: 80.4% | CT20: 76.0% | CU20: 77.3% | CV20: 79.7% | CW20: 68.2% | CX20: 73.6% | CY20: 69.6% | CZ20: 75.1% | DA20: 84.7% | DB20: 73.1% | DC20: 79.9% | DD20: 74.5% | DE20: 76.8% | DF20: 65.4% | DG20: 77.6% | DH20: 74.8% | DI20: 73.6% | DJ20: 63.7% | DK20: 70.4% | DL20: 75.8% | DM20: 76.6% | DN20: 69.9% | DO20: 76.7% | DP20: 83.8% | DQ20: 76.1% | DR20: 70.0% | DS20: 74.2%
L21: 2025 | M21: 12 | O21: 35 | P21: 29 | Q21: 82.9% | BR21: JUNIN | BS21: 89.8% | BV21: JUNIN | BW21: 10.8% | BX21: 21.5% | BY21: 33.9% | BZ21: 39.4% | CA21: 45.2% | CB21: 49.8% | CC21: 56.9% | CD21: 65.7% | CE21: 71.3% | CF21: 77.8% | CG21: 84.7% | CH21: 89.8% | CO21: Diciembre | CP21: 70.8% | CQ21: 85.7% | CR21: 77.1% | CS21: 85.0% | CT21: 85.7% | CU21: 80.0% | CV21: 87.8% | CW21: 74.9% | CX21: 75.5% | CY21: 76.4% | CZ21: 82.3% | DA21: 89.8% | DB21: 79.6% | DC21: 83.5% | DD21: 80.4% | DE21: 81.7% | DF21: 71.7% | DG21: 83.7% | DH21: 80.8% | DI21: 78.2% | DJ21: 67.0% | DK21: 81.6% | DL21: 77.3% | DM21: 81.6% | DN21: 75.9% | DO21: 78.0% | DP21: 88.3% | DQ21: 79.8% | DR21: 74.0% | DS21: 79.8%
BR22: LA LIBERTAD | BS22: 79.6% | BV22: LA LIBERTAD | BW22: 6.1% | BX22: 13.0% | BY22: 21.7% | BZ22: 25.5% | CA22: 32.4% | CB22: 36.6% | CC22: 44.9% | CD22: 51.7% | CE22: 60.0% | CF22: 66.4% | CG22: 73.1% | CH22: 79.6%
BR23: LAMBAYEQUE | BS23: 83.5% | BV23: LAMBAYEQUE | BW23: 9.3% | BX23: 18.0% | BY23: 24.0% | BZ23: 30.1% | CA23: 37.6% | CB23: 43.4% | CC23: 49.4% | CD23: 57.7% | CE23: 65.1% | CF23: 74.1% | CG23: 79.9% | CH23: 83.5%
BR24: LIMA DIRIS CENTRO | BS24: 80.4% | BV24: LIMA DIRIS CENTRO | BW24: 5.2% | BX24: 11.6% | BY24: 18.3% | BZ24: 25.3% | CA24: 30.8% | CB24: 35.9% | CC24: 43.7% | CD24: 52.4% | CE24: 60.2% | CF24: 67.4% | CG24: 74.5% | CH24: 80.4%
BR25: LIMA DIRIS ESTE | BS25: 81.7% | BV25: LIMA DIRIS ESTE | BW25: 7.1% | BX25: 14.2% | BY25: 21.0% | BZ25: 26.4% | CA25: 31.2% | CB25: 36.9% | CC25: 45.4% | CD25: 53.9% | CE25: 63.0% | CF25: 70.6% | CG25: 76.8% | CH25: 81.7%
BR26: LIMA DIRIS NORTE | BS26: 71.7% | BV26: LIMA DIRIS NORTE | BW26: 4.7% | BX26: 9.6% | BY26: 15.9% | BZ26: 21.6% | CA26: 26.3% | CB26: 30.2% | CC26: 37.9% | CD26: 45.2% | CE26: 51.4% | CF26: 58.8% | CG26: 65.4% | CH26: 71.7%
BR27: LIMA DIRIS SUR | BS27: 83.7% | BV27: LIMA DIRIS SUR | BW27: 4.5% | BX27: 10.2% | BY27: 17.8% | BZ27: 24.5% | CA27: 31.0% | CB27: 36.9% | CC27: 44.6% | CD27: 52.0% | CE27: 61.8% | CF27: 70.3% | CG27: 77.6% | CH27: 83.7%
BR28: LIMA REGION | BS28: 80.8% | BV28: LIMA REGION | BW28: 7.8% | BX28: 18.3% | BY28: 25.7% | BZ28: 31.3% | CA28: 38.3% | CB28: 40.4% | CC28: 47.6% | CD28: 54.8% | CE28: 61.1% | CF28: 67.4% | CG28: 74.8% | CH28: 80.8%
BR29: LORETO | BS29: 78.2% | BV29: LORETO | BW29: 11.1% | BX29: 17.7% | BY29: 26.2% | BZ29: 30.6% | CA29: 34.4% | CB29: 38.1% | CC29: 45.2% | CD29: 53.4% | CE29: 60.5% | CF29: 67.6% | CG29: 73.6% | CH29: 78.2% | CP29: AMAZONAS | CQ29: ANCASH | CR29: APURIMAC | CS29: AREQUIPA | CT29: AYACUCHO | CU29: CAJAMARCA | CV29: CALLAO | CW29: CUSCO | CX29: HUANCAVELICA | CY29: HUANUCO | CZ29: ICA | DA29: JUNIN | DB29: LA LIBERTAD | DC29: LAMBAYEQUE | DD29: LIMA DIRIS CENTRO | DE29: LIMA DIRIS ESTE | DF29: LIMA DIRIS NORTE | DG29: LIMA DIRIS SUR | DH29: LIMA PROVINCIAS | DI29: LORETO | DJ29: MADRE DE DIOS | DK29: MOQUEGUA | DL29: PASCO | DM29: PIURA | DN29: PUNO | DO29: SAN MARTIN | DP29: TACNA | DQ29: TUMBES | DR29: UCAYALI | DS29: NACIONAL
BR30: MADRE DE DIOS | BS30: 67.0% | BV30: MADRE DE DIOS | BW30: 8.5% | BX30: 19.8% | BY30: 27.1% | BZ30: 34.5% | CA30: 38.5% | CB30: 39.3% | CC30: 45.6% | CD30: 49.6% | CE30: 53.7% | CF30: 60.7% | CG30: 63.7% | CH30: 67.0% | CO30: Enero | CP30: =+IFERROR(GETPIVOTDATA("Ind",$CO$8,"Diris",CP$29,"mes",$CO30),"-") -> 4.3% | CQ30: =+IFERROR(GETPIVOTDATA("Ind",$CO$8,"Diris",CQ$29,"mes",$CO30),"-") -> 6.8% | CR30: 3.3% | CS30: 9.6% | CT30: 11.0% | CU30: 7.9% | CV30: 5.8% | CW30: 11.7% | CX30: 6.9% | CY30: 9.4% | CZ30: 5.8% | DA30: 10.8% | DB30: 6.1% | DC30: 9.3% | DD30: 5.2% | DE30: 7.1% | DF30: 4.7% | DG30: 4.5% | DH30: - | DI30: 11.1% | DJ30: 8.5% | DK30: 6.1% | DL30: 16.2% | DM30: 9.4% | DN30: 6.2% | DO30: 16.4% | DP30: 6.3% | DQ30: 3.2% | DR30: 10.7% | DS30: =+IFERROR(GETPIVOTDATA("Ind",$CO$8,"mes",$CO30),"-") -> 7.3%
BR31: MOQUEGUA | BS31: 81.6% | BV31: MOQUEGUA | BW31: 6.1% | BX31: 17.2% | BY31: 23.8% | BZ31: 28.6% | CA31: 31.3% | CB31: 31.6% | CC31: 39.8% | CD31: 45.9% | CE31: 51.0% | CF31: 60.2% | CG31: 70.4% | CH31: 81.6% | CO31: Febrero | CP31: =+IFERROR(GETPIVOTDATA("Ind",$CO$8,"Diris",CP$29,"mes",$CO31),"-") -> 11.7% | CQ31: 14.3% | CR31: 25.8% | CS31: 16.5% | CT31: 19.4% | CU31: 18.8% | CV31: 12.1% | CW31: 18.9% | CX31: 9.4% | CY31: 16.0% | CZ31: 12.6% | DA31: 21.5% | DB31: 13.0% | DC31: 18.0% | DD31: 11.6% | DE31: 14.2% | DF31: 9.6% | DG31: 10.2% | DH31: - | DI31: 17.7% | DJ31: 19.8% | DK31: 17.2% | DL31: 23.3% | DM31: 17.1% | DN31: 12.6% | DO31: 22.7% | DP31: 13.6% | DQ31: 10.0% | DR31: 15.7% | DS31: =+IFERROR(GETPIVOTDATA("Ind",$CO$8,"mes",$CO31),"-") -> 14.2%
BR32: PASCO | BS32: 77.3% | BV32: PASCO | BW32: 16.2% | BX32: 23.3% | BY32: 37.0% | BZ32: 40.7% | CA32: 44.4% | CB32: 42.4% | CC32: 50.0% | CD32: 56.1% | CE32: 57.6% | CF32: 68.2% | CG32: 75.8% | CH32: 77.3% | CO32: Marzo | CP32: 21.3% | CQ32: 26.2% | CR32: 43.8% | CS32: 26.5% | CT32: 26.4% | CU32: 27.1% | CV32: 20.0% | CW32: 23.6% | CX32: 17.1% | CY32: 23.0% | CZ32: 22.5% | DA32: 33.9% | DB32: 21.7% | DC32: 24.0% | DD32: 18.3% | DE32: 21.0% | DF32: 15.9% | DG32: 17.8% | DH32: - | DI32: 26.2% | DJ32: 27.1% | DK32: 23.8% | DL32: 37.0% | DM32: 26.1% | DN32: 21.4% | DO32: 29.8% | DP32: 20.7% | DQ32: 12.3% | DR32: 22.3% | DS32: 21.8%
BR33: PIURA | BS33: 81.6% | BV33: PIURA | BW33: 9.4% | BX33: 17.1% | BY33: 26.1% | BZ33: 28.4% | CA33: 35.5% | CB33: 37.9% | CC33: 43.9% | CD33: 51.6% | CE33: 61.6% | CF33: 70.9% | CG33: 76.6% | CH33: 81.6% | CO33: Abril | CP33: 24.8% | CQ33: 32.3% | CR33: 52.8% | CS33: 36.0% | CT33: 27.4% | CU33: 35.4% | CV33: 25.6% | CW33: 28.7% | CX33: 31.7% | CY33: 28.5% | CZ33: 29.1% | DA33: 39.4% | DB33: 25.5% | DC33: 30.1% | DD33: 25.3% | DE33: 26.4% | DF33: 21.6% | DG33: 24.5% | DH33: - | DI33: 30.6% | DJ33: 34.5% | DK33: 28.6% | DL33: 40.7% | DM33: 28.4% | DN33: 25.9% | DO33: 32.4% | DP33: 27.7% | DQ33: 20.0% | DR33: 27.6% | DS33: 27.6%
BR34: PUNO | BS34: 75.9% | BV34: PUNO | BW34: 6.2% | BX34: 12.6% | BY34: 21.4% | BZ34: 25.9% | CA34: 29.7% | CB34: 35.8% | CC34: 40.8% | CD34: 48.2% | CE34: 56.4% | CF34: 64.5% | CG34: 69.9% | CH34: 75.9% | CO34: Mayo | CP34: 31.3% | CQ34: 40.8% | CR34: 47.7% | CS34: 42.4% | CT34: 29.4% | CU34: 42.8% | CV34: 32.0% | CW34: 32.0% | CX34: 31.4% | CY34: 29.7% | CZ34: 35.6% | DA34: 45.2% | DB34: 32.4% | DC34: 37.6% | DD34: 30.8% | DE34: 31.2% | DF34: 26.3% | DG34: 31.0% | DH34: - | DI34: 34.4% | DJ34: 38.5% | DK34: 31.3% | DL34: 44.4% | DM34: 35.5% | DN34: 29.7% | DO34: 36.6% | DP34: 35.6% | DQ34: 25.7% | DR34: 32.3% | DS34: 33.0%
BR35: SAN MARTIN | BS35: 78.0% | BV35: SAN MARTIN | BW35: 16.4% | BX35: 22.7% | BY35: 29.8% | BZ35: 32.4% | CA35: 36.6% | CB35: 38.1% | CC35: 46.1% | CD35: 52.3% | CE35: 60.1% | CF35: 68.1% | CG35: 76.7% | CH35: 78.0% | CO35: Junio | CP35: 35.0% | CQ35: 42.7% | CR35: 50.0% | CS35: 46.3% | CT35: 35.1% | CU35: 44.5% | CV35: 37.4% | CW35: 32.8% | CX35: 43.4% | CY35: 32.4% | CZ35: 38.2% | DA35: 49.8% | DB35: 36.6% | DC35: 43.4% | DD35: 35.9% | DE35: 36.9% | DF35: 30.2% | DG35: 36.9% | DH35: - | DI35: 38.1% | DJ35: 39.3% | DK35: 31.6% | DL35: 42.4% | DM35: 37.9% | DN35: 35.8% | DO35: 38.1% | DP35: 45.9% | DQ35: 32.1% | DR35: 35.6% | DS35: 37.2%
BR36: TACNA | BS36: 88.3% | BV36: TACNA | BW36: 6.3% | BX36: 13.6% | BY36: 20.7% | BZ36: 27.7% | CA36: 35.6% | CB36: 45.9% | CC36: 55.5% | CD36: 63.1% | CE36: 69.7% | CF36: 76.9% | CG36: 83.8% | CH36: 88.3% | CO36: Julio | CP36: 38.3% | CQ36: 49.6% | CR36: 52.1% | CS36: 54.0% | CT36: 44.8% | CU36: 53.6% | CV36: 47.6% | CW36: 40.1% | CX36: 49.1% | CY36: 41.6% | CZ36: 46.8% | DA36: 56.9% | DB36: 44.9% | DC36: 49.4% | DD36: 43.7% | DE36: 45.4% | DF36: 37.9% | DG36: 44.6% | DH36: - | DI36: 45.2% | DJ36: 45.6% | DK36: 39.8% | DL36: 50.0% | DM36: 43.9% | DN36: 40.8% | DO36: 46.1% | DP36: 55.5% | DQ36: 39.4% | DR36: 44.5% | DS36: 45.0%
BR37: TUMBES | BS37: 79.8% | BV37: TUMBES | BW37: 3.2% | BX37: 10.0% | BY37: 12.3% | BZ37: 20.0% | CA37: 25.7% | CB37: 32.1% | CC37: 39.4% | CD37: 48.6% | CE37: 63.3% | CF37: 67.0% | CG37: 76.1% | CH37: 79.8% | CO37: Agosto | CP37: 44.2% | CQ37: 58.3% | CR37: 56.3% | CS37: 62.5% | CT37: 51.3% | CU37: 61.8% | CV37: 55.4% | CW37: 45.8% | CX37: 50.9% | CY37: 48.7% | CZ37: 55.2% | DA37: 65.7% | DB37: 51.7% | DC37: 57.7% | DD37: 52.4% | DE37: 53.9% | DF37: 45.2% | DG37: 52.0% | DH37: - | DI37: 53.4% | DJ37: 49.6% | DK37: 45.9% | DL37: 56.1% | DM37: 51.6% | DN37: 48.2% | DO37: 52.3% | DP37: 63.1% | DQ37: 48.6% | DR37: 51.2% | DS37: 52.7%
BR38: UCAYALI | BS38: 74.0% | BV38: UCAYALI | BW38: 10.7% | BX38: 15.7% | BY38: 22.3% | BZ38: 27.6% | CA38: 32.3% | CB38: 35.6% | CC38: 44.5% | CD38: 51.2% | CE38: 57.6% | CF38: 62.7% | CG38: 70.0% | CH38: 74.0% | CO38: Setiembre | CP38: 52.5% | CQ38: 65.4% | CR38: 60.4% | CS38: 68.1% | CT38: 60.4% | CU38: 65.9% | CV38: 64.5% | CW38: 55.9% | CX38: 54.7% | CY38: 55.2% | CZ38: 60.6% | DA38: 71.3% | DB38: 60.0% | DC38: 65.1% | DD38: 60.2% | DE38: 63.0% | DF38: 51.4% | DG38: 61.8% | DH38: - | DI38: 60.5% | DJ38: 53.7% | DK38: 51.0% | DL38: 57.6% | DM38: 61.6% | DN38: 56.4% | DO38: 60.1% | DP38: 69.7% | DQ38: 63.3% | DR38: 57.6% | DS38: 60.2%
BR39: Total general | BS39: 79.8% | BV39: Total general | BW39: 7.3% | BX39: 14.2% | BY39: 21.8% | BZ39: 27.6% | CA39: 33.0% | CB39: 37.2% | CC39: 45.0% | CD39: 52.7% | CE39: 60.2% | CF39: 67.5% | CG39: 74.2% | CH39: 79.8% | CO39: Octubre | CP39: 60.8% | CQ39: 71.6% | CR39: 64.6% | CS39: 74.0% | CT39: 70.1% | CU39: 72.3% | CV39: 72.3% | CW39: 63.2% | CX39: 62.3% | CY39: 61.9% | CZ39: 67.8% | DA39: 77.8% | DB39: 66.4% | DC39: 74.1% | DD39: 67.4% | DE39: 70.6% | DF39: 58.8% | DG39: 70.3% | DH39: - | DI39: =+IFERROR(GETPIVOTDATA("Ind",$CO$8,"Diris",DI$29,"mes",$CO39),"-") -> 67.6% | DJ39: 60.7% | DK39: 60.2% | DL39: 68.2% | DM39: 70.9% | DN39: 64.5% | DO39: 68.1% | DP39: 76.9% | DQ39: 67.0% | DR39: 62.7% | DS39: 67.5%
CO40: Noviembre | CP40: 68.3% | CQ40: 78.8% | CR40: 75.0% | CS40: 80.4% | CT40: 76.0% | CU40: 77.3% | CV40: 79.7% | CW40: 68.2% | CX40: 73.6% | CY40: 69.6% | CZ40: 75.1% | DA40: 84.7% | DB40: 73.1% | DC40: 79.9% | DD40: 74.5% | DE40: 76.8% | DF40: 65.4% | DG40: 77.6% | DH40: - | DI40: 73.6% | DJ40: 63.7% | DK40: 70.4% | DL40: 75.8% | DM40: 76.6% | DN40: 69.9% | DO40: 76.7% | DP40: 83.8% | DQ40: 76.1% | DR40: 70.0% | DS40: 74.2%
CO41: Diciembre | CP41: 70.8% | CQ41: 85.7% | CR41: 77.1% | CS41: 85.0% | CT41: 85.7% | CU41: 80.0% | CV41: 87.8% | CW41: 74.9% | CX41: 75.5% | CY41: 76.4% | CZ41: 82.3% | DA41: 89.8% | DB41: 79.6% | DC41: 83.5% | DD41: 80.4% | DE41: 81.7% | DF41: 71.7% | DG41: 83.7% | DH41: - | DI41: 78.2% | DJ41: 67.0% | DK41: 81.6% | DL41: 77.3% | DM41: 81.6% | DN41: 75.9% | DO41: 78.0% | DP41: 88.3% | DQ41: 79.8% | DR41: 74.0% | DS41: 79.8%
BW45: 1 | BX45: 2 | BY45: 3 | BZ45: 4 | CA45: 5 | CB45: 6 | CC45: 7 | CD45: 8 | CE45: 9 | CF45: 10 | CG45: 11 | CH45: 12
BR46: AMAZONAS | BS46: =+IFERROR(GETPIVOTDATA("Ind",$BR$9,"Diris",BR46),"-") -> 70.8% | BV46: AMAZONAS | BW46: =+IFERROR(GETPIVOTDATA("Ind",$BV$8,"Diris",$BV46,"mes",BW$45),"-") -> 4.3% | BX46: =+IFERROR(GETPIVOTDATA("Ind",$BV$8,"Diris",$BV46,"mes",BX$45),"-") -> 11.7% | BY46: 21.3% | BZ46: 24.8% | CA46: 31.3% | CB46: 35.0% | CC46: 38.3% | CD46: 44.2% | CE46: 52.5% | CF46: 60.8% | CG46: 68.3% | CH46: 70.8% | CJ46: AMAZONAS | CK46: =+IF(BW46="-","-",MIN(BW46:CH46)) -> 4.3% | CL46: =+IF(BW46="-","-",MAX(BW46:CH46)) -> 70.8%
BR47: ANCASH | BS47: =+IFERROR(GETPIVOTDATA("Ind",$BR$9,"Diris",BR47),"-") -> 85.7% | BV47: ANCASH | BW47: =+IFERROR(GETPIVOTDATA("Ind",$BV$8,"Diris",$BV47,"mes",BW$45),"-") -> 6.8% | BX47: 14.3% | BY47: 26.2% | BZ47: 32.3% | CA47: 40.8% | CB47: 42.7% | CC47: 49.6% | CD47: 58.3% | CE47: 65.4% | CF47: 71.6% | CG47: 78.8% | CH47: 85.7% | CJ47: ANCASH | CK47: =+IF(BW47="-","-",MIN(BW47:CH47)) -> 6.8% | CL47: =+IF(BW47="-","-",MAX(BW47:CH47)) -> 85.7%
BR48: APURIMAC | BS48: 77.1% | BV48: APURIMAC | BW48: 3.3% | BX48: 25.8% | BY48: 43.8% | BZ48: 52.8% | CA48: 47.7% | CB48: 50.0% | CC48: 52.1% | CD48: 56.3% | CE48: 60.4% | CF48: 64.6% | CG48: 75.0% | CH48: 77.1% | CJ48: APURIMAC | CK48: 3.3% | CL48: 77.1%
BR49: AREQUIPA | BS49: 85.0% | BV49: AREQUIPA | BW49: 9.6% | BX49: 16.5% | BY49: 26.5% | BZ49: 36.0% | CA49: 42.4% | CB49: 46.3% | CC49: 54.0% | CD49: 62.5% | CE49: 68.1% | CF49: 74.0% | CG49: 80.4% | CH49: 85.0% | CJ49: AREQUIPA | CK49: 9.6% | CL49: 85.0%
BR50: AYACUCHO | BS50: 85.7% | BV50: AYACUCHO | BW50: 11.0% | BX50: 19.4% | BY50: 26.4% | BZ50: 27.4% | CA50: 29.4% | CB50: 35.1% | CC50: 44.8% | CD50: 51.3% | CE50: 60.4% | CF50: 70.1% | CG50: 76.0% | CH50: 85.7% | CJ50: AYACUCHO | CK50: 11.0% | CL50: 85.7%
BR51: CAJAMARCA | BS51: 80.0% | BV51: CAJAMARCA | BW51: 7.9% | BX51: 18.8% | BY51: 27.1% | BZ51: 35.4% | CA51: 42.8% | CB51: 44.5% | CC51: 53.6% | CD51: 61.8% | CE51: 65.9% | CF51: 72.3% | CG51: 77.3% | CH51: 80.0% | CJ51: CAJAMARCA | CK51: 7.9% | CL51: 80.0%
BR52: CALLAO | BS52: 87.8% | BV52: CALLAO | BW52: 5.8% | BX52: 12.1% | BY52: 20.0% | BZ52: 25.6% | CA52: 32.0% | CB52: 37.4% | CC52: 47.6% | CD52: 55.4% | CE52: 64.5% | CF52: 72.3% | CG52: 79.7% | CH52: 87.8% | CJ52: CALLAO | CK52: 5.8% | CL52: 87.8%
BR53: CUSCO | BS53: 74.9% | BV53: CUSCO | BW53: 11.7% | BX53: 18.9% | BY53: 23.6% | BZ53: 28.7% | CA53: 32.0% | CB53: 32.8% | CC53: 40.1% | CD53: 45.8% | CE53: 55.9% | CF53: 63.2% | CG53: 68.2% | CH53: 74.9% | CJ53: CUSCO | CK53: 11.7% | CL53: 74.9%
BR54: HUANCAVELICA | BS54: 75.5% | BV54: HUANCAVELICA | BW54: 6.9% | BX54: 9.4% | BY54: 17.1% | BZ54: 31.7% | CA54: 31.4% | CB54: 43.4% | CC54: 49.1% | CD54: 50.9% | CE54: 54.7% | CF54: 62.3% | CG54: 73.6% | CH54: 75.5% | CJ54: HUANCAVELICA | CK54: 6.9% | CL54: 75.5%
BR55: HUANUCO | BS55: 76.4% | BV55: HUANUCO | BW55: 9.4% | BX55: 16.0% | BY55: 23.0% | BZ55: 28.5% | CA55: 29.7% | CB55: 32.4% | CC55: 41.6% | CD55: 48.7% | CE55: 55.2% | CF55: 61.9% | CG55: 69.6% | CH55: 76.4% | CJ55: HUANUCO | CK55: 9.4% | CL55: 76.4%
BR56: ICA | BS56: 82.3% | BV56: ICA | BW56: 5.8% | BX56: 12.6% | BY56: 22.5% | BZ56: 29.1% | CA56: 35.6% | CB56: 38.2% | CC56: 46.8% | CD56: 55.2% | CE56: 60.6% | CF56: 67.8% | CG56: 75.1% | CH56: 82.3% | CJ56: ICA | CK56: 5.8% | CL56: 82.3%
BR57: JUNIN | BS57: 89.8% | BV57: JUNIN | BW57: 10.8% | BX57: 21.5% | BY57: 33.9% | BZ57: 39.4% | CA57: 45.2% | CB57: 49.8% | CC57: 56.9% | CD57: 65.7% | CE57: 71.3% | CF57: 77.8% | CG57: 84.7% | CH57: 89.8% | CJ57: JUNIN | CK57: 10.8% | CL57: 89.8%
BR58: LA LIBERTAD | BS58: 79.6% | BV58: LA LIBERTAD | BW58: 6.1% | BX58: 13.0% | BY58: 21.7% | BZ58: 25.5% | CA58: 32.4% | CB58: 36.6% | CC58: 44.9% | CD58: 51.7% | CE58: 60.0% | CF58: 66.4% | CG58: 73.1% | CH58: 79.6% | CJ58: LA LIBERTAD | CK58: 6.1% | CL58: 79.6%
BR59: LAMBAYEQUE | BS59: 83.5% | BV59: LAMBAYEQUE | BW59: 9.3% | BX59: 18.0% | BY59: 24.0% | BZ59: 30.1% | CA59: 37.6% | CB59: 43.4% | CC59: 49.4% | CD59: 57.7% | CE59: 65.1% | CF59: 74.1% | CG59: 79.9% | CH59: 83.5% | CJ59: LAMBAYEQUE | CK59: 9.3% | CL59: 83.5%
BR60: LIMA DIRIS CENTRO | BS60: 80.4% | BV60: LIMA DIRIS CENTRO | BW60: 5.2% | BX60: 11.6% | BY60: 18.3% | BZ60: 25.3% | CA60: 30.8% | CB60: 35.9% | CC60: 43.7% | CD60: 52.4% | CE60: 60.2% | CF60: 67.4% | CG60: 74.5% | CH60: 80.4% | CJ60: LIMA DIRIS CENTRO | CK60: 5.2% | CL60: 80.4%
BR61: LIMA DIRIS ESTE | BS61: 81.7% | BV61: LIMA DIRIS ESTE | BW61: 7.1% | BX61: 14.2% | BY61: 21.0% | BZ61: 26.4% | CA61: 31.2% | CB61: 36.9% | CC61: 45.4% | CD61: 53.9% | CE61: 63.0% | CF61: 70.6% | CG61: 76.8% | CH61: 81.7% | CJ61: LIMA DIRIS ESTE | CK61: 7.1% | CL61: 81.7%
BR62: LIMA DIRIS NORTE | BS62: 71.7% | BV62: LIMA DIRIS NORTE | BW62: 4.7% | BX62: 9.6% | BY62: 15.9% | BZ62: 21.6% | CA62: 26.3% | CB62: 30.2% | CC62: 37.9% | CD62: 45.2% | CE62: 51.4% | CF62: 58.8% | CG62: 65.4% | CH62: 71.7% | CJ62: LIMA DIRIS NORTE | CK62: 4.7% | CL62: 71.7%
BR63: LIMA DIRIS SUR | BS63: 83.7% | BV63: LIMA DIRIS SUR | BW63: 4.5% | BX63: 10.2% | BY63: 17.8% | BZ63: 24.5% | CA63: 31.0% | CB63: 36.9% | CC63: 44.6% | CD63: 52.0% | CE63: 61.8% | CF63: 70.3% | CG63: 77.6% | CH63: 83.7% | CJ63: LIMA DIRIS SUR | CK63: 4.5% | CL63: 83.7%
BR64: LIMA REGION | BS64: 80.8% | BV64: LIMA REGION | BW64: 7.8% | BX64: 18.3% | BY64: 25.7% | BZ64: 31.3% | CA64: 38.3% | CB64: 40.4% | CC64: 47.6% | CD64: 54.8% | CE64: 61.1% | CF64: 67.4% | CG64: 74.8% | CH64: 80.8% | CJ64: LIMA PROVINCIAS | CK64: 7.8% | CL64: 80.8%
BR65: LORETO | BS65: 78.2% | BV65: LORETO | BW65: 11.1% | BX65: 17.7% | BY65: 26.2% | BZ65: 30.6% | CA65: 34.4% | CB65: 38.1% | CC65: 45.2% | CD65: 53.4% | CE65: 60.5% | CF65: 67.6% | CG65: 73.6% | CH65: 78.2% | CJ65: LORETO | CK65: 11.1% | CL65: 78.2%
BR66: MADRE DE DIOS | BS66: 67.0% | BV66: MADRE DE DIOS | BW66: 8.5% | BX66: 19.8% | BY66: 27.1% | BZ66: 34.5% | CA66: 38.5% | CB66: 39.3% | CC66: 45.6% | CD66: 49.6% | CE66: 53.7% | CF66: 60.7% | CG66: 63.7% | CH66: 67.0% | CJ66: MADRE DE DIOS | CK66: 8.5% | CL66: 67.0%
BR67: MOQUEGUA | BS67: 81.6% | BV67: MOQUEGUA | BW67: 6.1% | BX67: 17.2% | BY67: 23.8% | BZ67: 28.6% | CA67: 31.3% | CB67: 31.6% | CC67: 39.8% | CD67: 45.9% | CE67: 51.0% | CF67: 60.2% | CG67: 70.4% | CH67: 81.6% | CJ67: MOQUEGUA | CK67: 6.1% | CL67: 81.6%
BR68: PASCO | BS68: 77.3% | BV68: PASCO | BW68: 16.2% | BX68: 23.3% | BY68: 37.0% | BZ68: 40.7% | CA68: 44.4% | CB68: 42.4% | CC68: 50.0% | CD68: 56.1% | CE68: 57.6% | CF68: 68.2% | CG68: 75.8% | CH68: 77.3% | CJ68: PASCO | CK68: 16.2% | CL68: 77.3%
BR69: PIURA | BS69: 81.6% | BV69: PIURA | BW69: 9.4% | BX69: 17.1% | BY69: 26.1% | BZ69: 28.4% | CA69: 35.5% | CB69: 37.9% | CC69: 43.9% | CD69: 51.6% | CE69: 61.6% | CF69: 70.9% | CG69: 76.6% | CH69: 81.6% | CJ69: PIURA | CK69: 9.4% | CL69: 81.6%
BR70: PUNO | BS70: 75.9% | BV70: PUNO | BW70: 6.2% | BX70: 12.6% | BY70: 21.4% | BZ70: 25.9% | CA70: 29.7% | CB70: 35.8% | CC70: 40.8% | CD70: 48.2% | CE70: 56.4% | CF70: 64.5% | CG70: 69.9% | CH70: 75.9% | CJ70: PUNO | CK70: 6.2% | CL70: 75.9%
BR71: SAN MARTIN | BS71: 78.0% | BV71: SAN MARTIN | BW71: 16.4% | BX71: 22.7% | BY71: 29.8% | BZ71: 32.4% | CA71: 36.6% | CB71: 38.1% | CC71: 46.1% | CD71: 52.3% | CE71: 60.1% | CF71: 68.1% | CG71: 76.7% | CH71: 78.0% | CJ71: SAN MARTIN | CK71: 16.4% | CL71: 78.0%
BR72: TACNA | BS72: 88.3% | BV72: TACNA | BW72: 6.3% | BX72: 13.6% | BY72: 20.7% | BZ72: 27.7% | CA72: 35.6% | CB72: 45.9% | CC72: 55.5% | CD72: 63.1% | CE72: 69.7% | CF72: 76.9% | CG72: 83.8% | CH72: 88.3% | CJ72: TACNA | CK72: 6.3% | CL72: 88.3%
BR73: TUMBES | BS73: 79.8% | BV73: TUMBES | BW73: 3.2% | BX73: 10.0% | BY73: 12.3% | BZ73: 20.0% | CA73: 25.7% | CB73: 32.1% | CC73: 39.4% | CD73: 48.6% | CE73: 63.3% | CF73: 67.0% | CG73: 76.1% | CH73: 79.8% | CJ73: TUMBES | CK73: 3.2% | CL73: 79.8%
BR74: UCAYALI | BS74: 74.0% | BV74: UCAYALI | BW74: 10.7% | BX74: 15.7% | BY74: 22.3% | BZ74: 27.6% | CA74: 32.3% | CB74: 35.6% | CC74: 44.5% | CD74: 51.2% | CE74: 57.6% | CF74: 62.7% | CG74: 70.0% | CH74: 74.0% | CJ74: UCAYALI | CK74: 10.7% | CL74: 74.0%
BR75: NACIONAL | BS75: =+IFERROR(GETPIVOTDATA("Ind",$BR$9),"-") -> 79.8% | BV75: NACIONAL | BW75: =+IFERROR(GETPIVOTDATA("Ind",$BV$8,"mes",BW$45),"-") -> 7.3% | BX75: =+IFERROR(GETPIVOTDATA("Ind",$BV$8,"mes",BX$45),"-") -> 14.2% | BY75: 0.2179210937 | BZ75: 0.2756800107 | CA75: 0.3297974928 | CB75: 0.3722330638 | CC75: 0.4500139392 | CD75: 0.5266796766 | CE75: 0.6020072484 | CF75: 0.6748815166 | CG75: 0.7423473655 | CH75: =+IFERROR(GETPIVOTDATA("Ind",$BV$8,"mes",CH$45),"-") -> 0.797769724 | CJ75: NACIONAL | CK75: 7.3% | CL75: 79.8%

Sheet DL_1153_2025_CG09
A1: =+DL1153_2025!C15 -> Ficha 09:Porcentaje de contactos menores de 5 años de edad que culminan Terapia Preventiva para TB. | BP1: 1 | DT1: 1
A2: Periodo de Evaluación: | B2: =+DL1153_2025!B42 -> Diciembre - 2025
K3: Avance Mensual:
K5: Diris | L5: (Todas)
A6: año | B6: 2025 | K6: Red | L6: KIMBIRI PICHARI | BQ6: año | BR6: (Todas) | CN6: año | CO6: (Todas)
A7: mes | B7: 12 | K7: eess_nombre | L7: (Todas) | BQ7: mes | BR7: 12 | BU7: año | BV7: (Todas)
A8: DIRESA/DIRIS | B8: RED | C8: Provincia | D8: Distrito | E8: Categoria EEES | F8: Nombre EESS | G8: Denominador: Total de contactos < 5 años de TB pulmonar censados de los casos diagnosticados entre 01 de enero 2024 al 30 setiembre del año 2024, registrados en el SIG TB en el período a evaluar. | H8: Numerador: Total de contactos <5 años de TB Pulmonar incluidos en el denominador, que culminan TPTB del periodo a evaluar | I8: Indicador: Porcentaje de contactos menores de 5 años de edad que culminan Terapia Preventiva para TB | K8: AÑO | L8: MES | M8: Categoría | N8: Denominador: Total de contactos < 5 años de TB pulmonar censados de los casos diagnosticados entre 01 de enero 2024 al 30 setiembre del año 2024, registrados en el SIG TB en el período a evaluar. | O8: Numerador: Total de contactos <5 años de TB Pulmonar incluidos en el denominador, que culminan TPTB del periodo a evaluar | P8: Indicador: Porcentaje de contactos menores de 5 años de edad que culminan Terapia Preventiva para TB | CN8: Suma de Ind | CO8: Diris
A9: Diris | B9: Red | C9: Provincia | D9: Distrito | E9: cat_estab | F9: eess_nombre | G9: Suma de den | H9: Suma de num | I9: Suma de Ind | K9: año | L9: mes | M9: cat_estab | N9: Suma de den | O9: Suma de num | P9: Suma de Ind | BQ9: Diris | BR9: Suma de Ind | BU9: Suma de Ind | BV9: mes | CN9: mes | CO9: AMAZONAS | CP9: ANCASH | CQ9: APURIMAC | CR9: AREQUIPA | CS9: AYACUCHO | CT9: CAJAMARCA | CU9: CALLAO | CV9: CUSCO | CW9: HUANCAVELICA | CX9: HUANUCO | CY9: ICA | CZ9: JUNIN | DA9: LA LIBERTAD | DB9: LAMBAYEQUE | DC9: LIMA DIRIS CENTRO | DD9: LIMA DIRIS ESTE | DE9: LIMA DIRIS NORTE | DF9: LIMA DIRIS SUR | DG9: LIMA REGION | DH9: LORETO | DI9: MADRE DE DIOS | DJ9: MOQUEGUA | DK9: PASCO | DL9: PIURA | DM9: PUNO | DN9: SAN MARTIN | DO9: TACNA | DP9: TUMBES | DQ9: UCAYALI | DR9: Total general
A10: CUSCO | B10: KIMBIRI PICHARI | C10: LA CONVENCION | D10: KIMBIRI | E10: I-2 | F10: I-2 - 00002474 - SAMANIATO | G10: 1 | H10: 1 | I10: 100.0% | K10: 2025 | L10: 1 | N10: 1 | O10: 0 | P10: 0.0% | BQ10: AMAZONAS | BR10: 77.8% | BU10: Diris | BV10: 1 | BW10: 2 | BX10: 3 | BY10: 4 | BZ10: 5 | CA10: 6 | CB10: 7 | CC10: 8 | CD10: 9 | CE10: 10 | CF10: 11 | CG10: 12 | CN10: Enero | CO10: 100.0% | CP10: 9.1% | CQ10: 0.0% | CR10: 0.0% | CS10: 0.0% | CT10: 10.0% | CU10: 4.5% | CV10: 14.3% | CW10: 50.0% | CX10: 12.5% | CY10: 18.8% | CZ10: 7.7% | DA10: 0.0% | DB10: 0.0% | DC10: 7.3% | DD10: 8.8% | DE10: 4.8% | DF10: 8.9% | DG10: 0.0% | DH10: 0.0% | DI10: 20.0% | DJ10: 0.0% | DK10: 100.0% | DL10: 7.1% | DM10: 0.0% | DN10: 0.0% | DO10: 0.0% | DP10: 0.0% | DQ10: 4.9% | DR10: 6.5%
A11: CUSCO | B11: KIMBIRI PICHARI | C11: LA CONVENCION | D11: VILLA VIRGEN | E11: I-2 | F11: I-2 - 00002479 - VILLA VIRGEN | G11: 2 | H11: 1 | I11: 50.0% | K11: 2025 | L11: 2 | N11: 2 | O11: 0 | P11: 0.0% | BQ11: ANCASH | BR11: 90.0% | BU11: AMAZONAS | BV11: 100.0% | BW11: 100.0% | BX11: 25.0% | BY11: 20.0% | BZ11: 16.7% | CA11: 14.3% | CB11: 62.5% | CC11: 55.6% | CD11: 66.7% | CE11: 77.8% | CF11: 77.8% | CG11: 77.8% | CN11: Febrero | CO11: 100.0% | CP11: 10.5% | CQ11: 0.0% | CR11: 16.7% | CS11: 0.0% | CT11: 9.1% | CU11: 10.3% | CV11: 25.0% | CW11: 100.0% | CX11: 12.5% | CY11: 19.5% | CZ11: 22.6% | DA11: 10.6% | DB11: 7.1% | DC11: 12.0% | DD11: 15.3% | DE11: 11.5% | DF11: 20.0% | DG11: 0.0% | DH11: 1.4% | DI11: 50.0% | DJ11: 0.0% | DK11: 100.0% | DL11: 12.5% | DM11: 0.0% | DN11: 0.0% | DO11: 0.0% | DP11: 0.0% | DQ11: 17.0% | DR11: 12.8%
A12: Total general | G12: 3 | H12: 2 | I12: 66.7% | K12: 2025 | L12: 3 | N12: 2 | O12: 0 | P12: 0.0% | BQ12: APURIMAC | BR12: 100.0% | BU12: ANCASH | BV12: 9.1% | BW12: 10.5% | BX12: 28.6% | BY12: 41.7% | BZ12: 60.0% | CA12: 50.0% | CB12: 52.4% | CC12: 51.9% | CD12: 56.7% | CE12: 63.3% | CF12: 83.3% | CG12: 90.0% | CN12: Marzo | CO12: 25.0% | CP12: 28.6% | CQ12: 16.7% | CR12: 31.3% | CS12: 0.0% | CT12: 15.4% | CU12: 12.8% | CV12: 27.3% | CW12: 100.0% | CX12: 20.0% | CY12: 22.7% | CZ12: 24.4% | DA12: 10.0% | DB12: 10.5% | DC12: 24.4% | DD12: 19.4% | DE12: 12.9% | DF12: 27.1% | DG12: 13.2% | DH12: 3.3% | DI12: 33.3% | DJ12: 0.0% | DK12: 100.0% | DL12: 22.2% | DM12: 10.0% | DN12: 5.9% | DO12: 12.5% | DP12: 0.0% | DQ12: 14.5% | DR12: 17.1%
K13: 2025 | L13: 4 | N13: 2 | O13: 0 | P13: 0.0% | BQ13: AREQUIPA | BR13: 61.3% | BU13: APURIMAC | BV13: 0.0% | BW13: 0.0% | BX13: 16.7% | BY13: 16.7% | BZ13: 25.0% | CA13: 62.5% | CB13: 62.5% | CC13: 66.7% | CD13: 88.9% | CE13: 88.9% | CF13: 88.9% | CG13: 100.0% | CN13: Abril | CO13: 20.0% | CP13: 41.7% | CQ13: 16.7% | CR13: 30.0% | CS13: 25.0% | CT13: 14.3% | CU13: 12.0% | CV13: 39.1% | CW13: 100.0% | CX13: 18.8% | CY13: 38.8% | CZ13: 29.2% | DA13: 16.0% | DB13: 34.0% | DC13: 30.4% | DD13: 27.5% | DE13: 18.5% | DF13: 35.6% | DG13: 19.1% | DH13: 8.3% | DI13: 25.0% | DJ13: 25.0% | DK13: 50.0% | DL13: 35.0% | DM13: 9.1% | DN13: 4.3% | DO13: 37.5% | DP13: 20.0% | DQ13: 21.0% | DR13: 24.0%
K14: 2025 | L14: 5 | N14: 2 | O14: 0 | P14: 0.0% | BQ14: AYACUCHO | BR14: 62.5% | BU14: AREQUIPA | BV14: 0.0% | BW14: 16.7% | BX14: 31.3% | BY14: 30.0% | BZ14: 35.0% | CA14: 41.7% | CB14: 46.2% | CC14: 50.0% | CD14: 51.6% | CE14: 54.8% | CF14: 54.8% | CG14: 61.3% | CN14: Mayo | CO14: 16.7% | CP14: 60.0% | CQ14: 25.0% | CR14: 35.0% | CS14: 16.7% | CT14: 33.3% | CU14: 22.0% | CV14: 47.8% | CW14: 100.0% | CX14: 14.3% | CY14: 51.9% | CZ14: 41.5% | DA14: 29.6% | DB14: 38.9% | DC14: 38.6% | DD14: 33.6% | DE14: 28.0% | DF14: 39.0% | DG14: 30.2% | DH14: 25.0% | DI14: 21.4% | DJ14: 50.0% | DK14: 40.0% | DL14: 31.8% | DM14: 15.4% | DN14: 3.4% | DO14: 40.0% | DP14: 36.4% | DQ14: 22.4% | DR14: 32.3%
K15: 2025 | L15: 6 | N15: 2 | O15: 1 | P15: 50.0% | BQ15: CAJAMARCA | BR15: 84.2% | BU15: AYACUCHO | BV15: 0.0% | BW15: 0.0% | BX15: 0.0% | BY15: 25.0% | BZ15: 16.7% | CA15: 16.7% | CB15: 14.3% | CC15: 37.5% | CD15: 50.0% | CE15: 50.0% | CF15: 50.0% | CG15: 62.5% | CN15: Junio | CO15: 14.3% | CP15: 50.0% | CQ15: 62.5% | CR15: 41.7% | CS15: 16.7% | CT15: 38.9% | CU15: 46.2% | CV15: 51.9% | CW15: 100.0% | CX15: 26.1% | CY15: 59.7% | CZ15: 66.1% | DA15: 32.6% | DB15: 48.3% | DC15: 43.6% | DD15: 41.6% | DE15: 35.3% | DF15: 42.8% | DG15: 39.0% | DH15: 35.9% | DI15: 26.7% | DJ15: 60.0% | DK15: 40.0% | DL15: 52.2% | DM15: 30.8% | DN15: 10.0% | DO15: 70.0% | DP15: 54.5% | DQ15: 25.3% | DR15: 40.8%
